Workbook

Sheet Age Standards
A1: IVCA Age Standards Ver.2.2015 | E1: Men | K1: 20.5km | L1: 2.86km
A2: Year of Birth | B2: Age | C2: 10 Mls | D2: 25 Miles | E2: 50 Miles | G2: Bar | H2: Rev. 10. | I2: Rev. 25. | J2: Rev. 50. | K2: Mullagh cct TT | L2: Hill Climb
A3: 1975 | B3: 40 | C3: 00:25:13 | D3: 01:04:59 | E3: 02:15:14 | G3: 03:45:26 | K3: =+C3*1.275 -> 00:32:09.075 | L3: 00:10:33.054
A4: 1974 | B4: 41 | C4: 00:25:17.483 | D4: 01:05:12 | E4: 02:15:42.473 | G4: 03:46:11.955 | H4: 00:00:04.483 | I4: 00:00:13 | J4: 00:00:28.473 | K4: =+C4*1.275 -> 00:32:14.790 | L4: 00:10:34.930
A5: 1973 | B5: 42 | C5: 00:25:21.979 | D5: 01:05:25 | E5: 02:16:11.045 | G5: 03:46:58.024 | H5: 00:00:04.496 | I5: 00:00:13 | J5: 00:00:28.572 | K5: =+C5*1.275 -> 00:32:20.523 | L5: 00:10:36.811
A6: 1972 | B6: 43 | C6: 00:25:26.490 | D6: 01:05:38 | E6: 02:16:39.717 | G6: 03:47:44.206 | H6: 00:00:04.510 | I6: 00:00:13 | J6: 00:00:28.672 | K6: 00:32:26.274 | L6: 00:10:38.699
A7: 1971 | B7: 44 | C7: 00:25:31.014 | D7: 01:05:50 | E7: 02:17:08.489 | G7: 03:48:29.503 | H7: 00:00:04.524 | I7: 00:00:12 | J7: 00:00:28.773 | K7: 00:32:32.043 | L7: 00:10:40.592
A8: 1970 | B8: 45 | C8: 00:25:35.552 | D8: 01:06:02 | E8: 02:17:37.363 | G8: 03:49:14.915 | H8: 00:00:04.538 | I8: 00:00:12 | J8: 00:00:28.873 | K8: 00:32:37.829 | L8: 00:10:42.491
A9: 1969 | B9: 46 | C9: 00:25:40.105 | D9: 01:06:14 | E9: 02:18:06.337 | G9: 03:50:00.442 | H9: 00:00:04.553 | I9: 00:00:12 | J9: 00:00:28.974 | K9: 00:32:43.634 | L9: 00:10:44.395
A10: 1968 | B10: 47 | C10: 00:25:44.672 | D10: 01:06:25 | E10: 02:18:35.412 | G10: 03:50:45.084 | H10: 00:00:04.567 | I10: 00:00:11 | J10: 00:00:29.076 | K10: 00:32:49.456 | L10: 00:10:46.306
A11: 1967 | B11: 48 | C11: 00:25:49.252 | D11: 01:06:37 | E11: 02:19:04.590 | G11: 03:51:30.842 | H11: 00:00:04.581 | I11: 00:00:12 | J11: 00:00:29.177 | K11: 00:32:55.297 | L11: 00:10:48.223
A12: 1966 | B12: 49 | C12: 00:25:53.847 | D12: 01:06:49 | E12: 02:19:33.869 | G12: 03:52:16.717 | H12: 00:00:04.595 | I12: 00:00:12 | J12: 00:00:29.280 | K12: 00:33:01.155 | L12: 00:10:50.145
A13: 1965 | B13: 50 | C13: 00:25:58.457 | D13: 01:07:01 | E13: 02:20:03.252 | G13: 03:53:02.708 | H13: 00:00:04.609 | I13: 00:00:12 | J13: 00:00:29.382 | K13: 00:33:07.032 | L13: 00:10:52.074
A14: 1964 | B14: 51 | C14: 00:26:03.080 | D14: 01:07:13 | E14: 02:20:32.736 | G14: 03:53:48.816 | H14: 00:00:04.624 | I14: 00:00:12 | J14: 00:00:29.485 | K14: 00:33:12.927 | L14: 00:10:54.008
A15: 1963 | B15: 52 | C15: 00:26:07.718 | D15: 01:07:25 | E15: 02:21:02.324 | G15: 03:54:35.042 | H15: 00:00:04.638 | I15: 00:00:12 | J15: 00:00:29.588 | K15: 00:33:18.840 | L15: 00:10:55.949
A16: 1962 | B16: 53 | C16: 00:26:12.370 | D16: 01:07:38 | E16: 02:21:32.016 | G16: 03:55:22.386 | H16: 00:00:04.652 | I16: 00:00:13 | J16: 00:00:29.692 | K16: 00:33:24.772 | L16: 00:10:57.895
A17: 1961 | B17: 54 | C17: 00:26:17.037 | D17: 01:07:51 | E17: 02:22:01.812 | G17: 03:56:09.848 | H17: 00:00:04.667 | I17: 00:00:13 | J17: 00:00:29.796 | K17: 00:33:30.722 | L17: 00:10:59.848
A18: 1960 | B18: 55 | C18: 00:26:21.718 | D18: 01:08:04 | E18: 02:22:32.566 | G18: 03:56:58.284 | H18: 00:00:04.681 | I18: 00:00:13 | J18: 00:00:30.754 | K18: 00:33:36.690 | L18: 00:11:01.807
A19: 1959 | B19: 56 | C19: 00:26:26.413 | D19: 01:08:18 | E19: 02:23:04.288 | G19: 03:57:48.701 | H19: 00:00:04.696 | I19: 00:00:14 | J19: 00:00:31.722 | K19: 00:33:42.677 | L19: 00:11:03.771
A20: 1958 | B20: 57 | C20: 00:26:31.124 | D20: 01:08:33 | E20: 02:23:36.988 | G20: 03:58:41.112 | H20: 00:00:04.710 | I20: 00:00:15 | J20: 00:00:32.700 | K20: 00:33:48.683 | L20: 00:11:05.742
A21: 1957 | B21: 58 | C21: 00:26:35.848 | D21: 01:08:48 | E21: 02:24:10.676 | G21: 03:59:34.525 | H21: 00:00:04.725 | I21: 00:00:15 | J21: 00:00:33.688 | K21: 00:33:54.707 | L21: 00:11:07.719
A22: 1956 | B22: 59 | C22: 00:26:40.588 | D22: 01:09:03 | E22: 02:24:45.363 | G22: 04:00:28.951 | H22: 00:00:04.739 | I22: 00:00:15 | J22: 00:00:34.687 | K22: 00:34:00.750 | L22: 00:11:09.702
A23: 1955 | B23: 60 | C23: 00:26:45.495 | D23: 01:09:20 | E23: 02:25:21.930 | G23: 04:01:27.425 | H23: 00:00:04.907 | I23: 00:00:17 | J23: 00:00:36.567 | K23: 00:34:07.007 | L23: 00:11:11.755
A24: 1954 | B24: 61 | C24: 00:26:50.572 | D24: 01:09:37 | E24: 02:26:00.399 | G24: 04:02:27.971 | H24: 00:00:05.077 | I24: 00:00:17 | J24: 00:00:38.469 | K24: 00:34:13.480 | L24: 00:11:13.880
A25: 1953 | B25: 62 | C25: 00:26:56.129 | D25: 01:09:56 | E25: 02:26:40.793 | G25: 04:03:32.922 | H25: 00:00:05.557 | I25: 00:00:19 | J25: 00:00:40.394 | K25: 00:34:20.565 | L25: 00:11:16.205
A26: 1952 | B26: 63 | C26: 00:27:02.171 | D26: 01:10:15 | E26: 02:27:23.138 | G26: 04:04:40.308 | H26: 00:00:06.042 | I26: 00:00:19 | J26: 00:00:42.345 | K26: 00:34:28.268 | L26: 00:11:18.733
A27: 1951 | B27: 64 | C27: 00:27:08.703 | D27: 01:10:35 | E27: 02:28:07.458 | G27: 04:05:51.161 | H27: 00:00:06.532 | I27: 00:00:20 | J27: 00:00:44.321 | K27: 00:34:36.596 | L27: 00:11:21.466
A28: 1950 | B28: 65 | C28: 00:27:15.730 | D28: 01:10:57 | E28: 02:28:54.673 | G28: 04:07:07.403 | H28: 00:00:07.028 | I28: 00:00:22 | J28: 00:00:47.215 | K28: 00:34:45.556 | L28: 00:11:24.406
A29: 1949 | B29: 66 | C29: 00:27:23.260 | D29: 01:11:19 | E29: 02:29:44.825 | G29: 04:08:27.085 | H29: 00:00:07.530 | I29: 00:00:22 | J29: 00:00:50.152 | K29: 00:34:55.157 | L29: 00:11:27.557
A30: 1948 | B30: 67 | C30: 00:27:31.299 | D30: 01:11:43 | E30: 02:30:37.959 | G30: 04:09:52.258 | H30: 00:00:08.039 | I30: 00:00:24 | J30: 00:00:53.134 | K30: 00:35:05.406 | L30: 00:11:30.920
A31: 1947 | B31: 68 | C31: 00:27:39.854 | D31: 01:12:09 | E31: 02:31:34.125 | G31: 04:11:22.979 | H31: 00:00:08.555 | I31: 00:00:26 | J31: 00:00:56.166 | K31: 00:35:16.314 | L31: 00:11:34.500
A32: 1946 | B32: 69 | C32: 00:27:48.934 | D32: 01:12:36 | E32: 02:32:34.285 | G32: 04:12:59.218 | H32: 00:00:09.079 | I32: 00:00:27 | J32: 00:01:00.160 | K32: 00:35:27.890 | L32: 00:11:38.299
A33: 1945 | B33: 70 | C33: 00:27:58.705 | D33: 01:13:05 | E33: 02:33:38.512 | G33: 04:14:42.217 | H33: 00:00:09.772 | I33: 00:00:29 | J33: 00:01:04.227 | K33: 00:35:40.349 | L33: 00:11:42.387
A34: 1944 | B34: 71 | C34: 00:28:09.181 | D34: 01:13:35 | E34: 02:34:46.884 | G34: 04:16:31.065 | H34: 00:00:10.476 | I34: 00:00:30 | J34: 00:01:08.372 | K34: 00:35:53.706 | L34: 00:11:46.770
A35: 1943 | B35: 72 | C35: 00:28:20.374 | D35: 01:14:08 | E35: 02:35:59.486 | G35: 04:18:27.860 | H35: 00:00:11.193 | I35: 00:00:33 | J35: 00:01:12.601 | K35: 00:36:07.977 | L35: 00:11:51.454
A36: 1942 | B36: 73 | C36: 00:28:32.298 | D36: 01:14:42 | E36: 02:37:16.405 | G36: 04:20:30.704 | H36: 00:00:11.924 | I36: 00:00:34 | J36: 00:01:16.920 | K36: 00:36:23.180 | L36: 00:11:56.443
A37: 1941 | B37: 74 | C37: 00:28:44.967 | D37: 01:15:19 | E37: 02:38:38.685 | G37: 04:22:42.652 | H37: 00:00:12.669 | I37: 00:00:37 | J37: 00:01:22.279 | K37: 00:36:39.333 | L37: 00:12:01.743
A38: 1940 | B38: 75 | C38: 00:28:58.396 | D38: 01:15:58 | E38: 02:40:07.404 | G38: 04:25:03.800 | H38: 00:00:13.430 | I38: 00:00:39 | J38: 00:01:28.719 | K38: 00:36:56.455 | L38: 00:12:07.363
A39: 1939 | B39: 76 | C39: 00:29:12.603 | D39: 01:16:40 | E39: 02:41:42.725 | G39: 04:27:35.329 | H39: 00:00:14.207 | I39: 00:00:42 | J39: 00:01:35.321 | K39: 00:37:14.569 | L39: 00:12:13.307
A40: 1938 | B40: 77 | C40: 00:29:27.605 | D40: 01:17:25 | E40: 02:43:24.824 | G40: 04:30:17.429 | H40: 00:00:15.002 | I40: 00:00:45 | J40: 00:01:42.099 | K40: 00:37:33.697 | L40: 00:12:19.584
A41: 1937 | B41: 78 | C41: 00:29:43.591 | D41: 01:18:13 | E41: 02:45:13.891 | G41: 04:33:10.482 | H41: 00:00:15.986 | I41: 00:00:48 | J41: 00:01:49.067 | K41: 00:37:54.078 | L41: 00:12:26.272
A42: 1936 | B42: 79 | C42: 00:30:00.757 | D42: 01:19:05 | E42: 02:47:11.123 | G42: 04:36:16.879 | H42: 00:00:17.166 | I42: 00:00:52 | J42: 00:01:57.232 | K42: 00:38:15.965 | L42: 00:12:33.455
A43: 1935 | B43: 80 | C43: 00:30:19.135 | D43: 01:20:01 | E43: 02:49:17.779 | G43: 04:39:37.914 | H43: 00:00:18.378 | I43: 00:00:56 | J43: 00:02:06.657 | K43: 00:38:39.397 | L43: 00:12:41.144
A44: 1934 | B44: 81 | C44: 00:30:38.759 | D44: 01:21:01 | E44: 02:51:35.193 | G44: 04:43:14.951 | H44: 00:00:19.624 | I44: 00:01:00 | J44: 00:02:17.414 | K44: 00:39:04.417 | L44: 00:12:49.355
A45: 1933 | B45: 82 | C45: 00:30:59.665 | D45: 01:22:05 | E45: 02:54:04.778 | G45: 04:47:09.443 | H45: 00:00:20.907 | I45: 00:01:04 | J45: 00:02:29.585 | K45: 00:39:31.073 | L45: 00:12:58.103
A46: 1932 | B46: 83 | C46: 00:31:22.611 | D46: 01:23:15 | E46: 02:56:48.044 | G46: 04:51:25.655 | H46: 00:00:22.946 | I46: 00:01:10 | J46: 00:02:43.266 | K46: 00:40:00.330 | L46: 00:13:07.704
A47: 1931 | B47: 84 | C47: 00:31:47.667 | D47: 01:24:31 | E47: 02:59:45.549 | G47: 04:56:04.216 | H47: 00:00:25.055 | I47: 00:01:16 | J47: 00:02:57.505 | K47: 00:40:32.275 | L47: 00:13:18.187
A48: 1930 | B48: 85 | C48: 00:32:14.909 | D48: 01:25:54 | E48: 03:03:00.067 | G48: 05:01:08.975 | H48: 00:00:27.242 | I48: 00:01:23 | J48: 00:03:14.518 | K48: 00:41:07.009 | L48: 00:13:29.585
A50: IVCA Age Standards Ver.2.2015 | E50: Women | K50: 20.5km | L50: 2.86km
A51: Year of Birth | B51: Age | C51: 10 Mls | D51: 25 Miles | E51: 50 Miles | G51: Bar | H51: Rev. 10. | I51: Rev. 25. | J51: Rev. 50. | K51: Mullagh cct TT | L51: Hill Climb
A52: 1970 | B52: 35 | C52: 00:26:49 | D52: 01:09:01 | E52: 02:23:28 | G52: 03:59:18 | H52: 00:00:05 | I52: 00:00:14 | J52: 00:00:31 | K52: =+C52*1.275 -> 00:34:11.475
A53: 1971 | B53: 36 | C53: 00:26:54 | D53: 01:09:15 | E53: 02:23:59 | G53: 04:00:08 | H53: 00:00:05 | I53: 00:00:14 | J53: 00:00:31 | K53: 00:34:17.850
A54: 1972 | B54: 37 | C54: 00:26:59 | D54: 01:09:29 | E54: 02:24:30 | G54: 04:00:58 | H54: 00:00:05 | I54: 00:00:14 | J54: 00:00:31 | K54: 00:34:24.225
A55: 1973 | B55: 38 | C55: 00:27:04 | D55: 01:09:43 | E55: 02:25:01 | G55: 04:01:48 | H55: 00:00:05 | I55: 00:00:14 | J55: 00:00:31 | K55: 00:34:30.600
A56: 1974 | B56: 39 | C56: 00:27:09 | D56: 01:09:57 | E56: 02:25:32 | G56: 04:02:38 | H56: 00:00:05 | I56: 00:00:14 | J56: 00:00:31 | K56: 00:34:36.975
A57: 1975 | B57: 40 | C57: 00:27:14.040 | D57: 01:10:10.920 | E57: 02:26:03.120 | G57: 04:03:28.080 | H57: 00:00:05 | I57: 00:00:14 | J57: 00:00:31 | K57: 00:34:43.401 | L57: 00:11:23.699
A58: 1974 | B58: 41 | C58: 00:27:18.881 | D58: 01:10:24.960 | E58: 02:26:33.870 | G58: 04:04:17.712 | H58: 00:00:04.841 | I58: 00:00:14.040 | J58: 00:00:30.750 | K58: 00:34:49.574 | L58: 00:11:25.724
A59: 1973 | B59: 42 | C59: 00:27:23.737 | D59: 01:10:39 | E59: 02:27:04.728 | G59: 04:05:07.466 | H59: 00:00:04.856 | I59: 00:00:14.040 | J59: 00:00:30.858 | K59: 00:34:55.765 | L59: 00:11:27.756
A60: 1972 | B60: 43 | C60: 00:27:28.609 | D60: 01:10:53.040 | E60: 02:27:35.694 | G60: 04:05:57.343 | H60: 00:00:04.871 | I60: 00:00:14.040 | J60: 00:00:30.966 | K60: 00:35:01.976 | L60: 00:11:29.794
A61: 1971 | B61: 44 | C61: 00:27:33.495 | D61: 01:11:06 | E61: 02:28:06.768 | G61: 04:06:46.264 | H61: 00:00:04.886 | I61: 00:00:12.960 | J61: 00:00:31.074 | K61: 00:35:08.206 | L61: 00:11:31.839
A62: 1970 | B62: 45 | C62: 00:27:38.397 | D62: 01:11:18.960 | E62: 02:28:37.952 | G62: 04:07:35.308 | H62: 00:00:04.902 | I62: 00:00:12.960 | J62: 00:00:31.183 | K62: 00:35:14.456 | L62: 00:11:33.890
A63: 1969 | B63: 46 | C63: 00:27:43.313 | D63: 01:11:31.920 | E63: 02:29:09.244 | G63: 04:08:24.477 | H63: 00:00:04.917 | I63: 00:00:12.960 | J63: 00:00:31.292 | K63: 00:35:20.724 | L63: 00:11:35.947
A64: 1968 | B64: 47 | C64: 00:27:48.245 | D64: 01:11:43.800 | E64: 02:29:40.645 | G64: 04:09:12.691 | H64: 00:00:04.932 | I64: 00:00:11.880 | J64: 00:00:31.402 | K64: 00:35:27.013 | L64: 00:11:38.011
A65: 1967 | B65: 48 | C65: 00:27:53.192 | D65: 01:11:56.760 | E65: 02:30:12.157 | G65: 04:10:02.110 | H65: 00:00:04.947 | I65: 00:00:12.960 | J65: 00:00:31.512 | K65: 00:35:33.320 | L65: 00:11:40.081
A66: 1966 | B66: 49 | C66: 00:27:58.155 | D66: 01:12:09.720 | E66: 02:30:43.779 | G66: 04:10:51.654 | H66: 00:00:04.963 | I66: 00:00:12.960 | J66: 00:00:31.622 | K66: 00:35:39.648 | L66: 00:11:42.157
A67: 1965 | B67: 50 | C67: 00:28:03.133 | D67: 01:12:22.680 | E67: 02:31:15.512 | G67: 04:11:41.325 | H67: 00:00:04.978 | I67: 00:00:12.960 | J67: 00:00:31.733 | K67: 00:35:45.995 | L67: 00:11:44.240
A68: 1964 | B68: 51 | C68: 00:28:08.126 | D68: 01:12:35.640 | E68: 02:31:47.355 | G68: 04:12:31.122 | H68: 00:00:04.993 | I68: 00:00:12.960 | J68: 00:00:31.844 | K68: 00:35:52.361 | L68: 00:11:46.329
A69: 1963 | B69: 52 | C69: 00:28:13.135 | D69: 01:12:48.600 | E69: 02:32:19.310 | G69: 04:13:21.046 | H69: 00:00:05.009 | I69: 00:00:12.960 | J69: 00:00:31.955 | K69: 00:35:58.748 | L69: 00:11:48.425
A70: 1962 | B70: 53 | C70: 00:28:18.160 | D70: 01:13:02.640 | E70: 02:32:51.377 | G70: 04:14:12.177 | H70: 00:00:05.024 | I70: 00:00:14.040 | J70: 00:00:32.067 | K70: 00:36:05.154 | L70: 00:11:50.527
A71: 1961 | B71: 54 | C71: 00:28:23.200 | D71: 01:13:16.680 | E71: 02:33:23.557 | G71: 04:15:03.436 | H71: 00:00:05.040 | I71: 00:00:14.040 | J71: 00:00:32.179 | K71: 00:36:11.580 | L71: 00:11:52.636
A72: 1960 | B72: 55 | C72: 00:28:28.255 | D72: 01:13:30.720 | E72: 02:33:56.771 | G72: 04:15:55.746 | H72: 00:00:05.056 | I72: 00:00:14.040 | J72: 00:00:33.214 | K72: 00:36:18.026 | L72: 00:11:54.751
A73: 1959 | B73: 56 | C73: 00:28:33.327 | D73: 01:13:45.840 | E73: 02:34:31.031 | G73: 04:16:50.198 | H73: 00:00:05.071 | I73: 00:00:15.120 | J73: 00:00:34.260 | K73: 00:36:24.491 | L73: 00:11:56.873
A74: 1958 | B74: 57 | C74: 00:28:38.414 | D74: 01:14:02.040 | E74: 02:35:06.347 | G74: 04:17:46.801 | H74: 00:00:05.087 | I74: 00:00:16.200 | J74: 00:00:35.316 | K74: 00:36:30.977 | L74: 00:11:59.001
A75: 1957 | B75: 58 | C75: 00:28:43.516 | D75: 01:14:18.240 | E75: 02:35:42.730 | G75: 04:18:44.487 | H75: 00:00:05.103 | I75: 00:00:16.200 | J75: 00:00:36.383 | K75: 00:36:37.483 | L75: 00:12:01.137
A76: 1956 | B76: 59 | C76: 00:28:48.635 | D76: 01:14:34.440 | E76: 02:36:20.192 | G76: 04:19:43.267 | H76: 00:00:05.119 | I76: 00:00:16.200 | J76: 00:00:37.462 | K76: 00:36:44.010 | L76: 00:12:03.278
A77: 1955 | B77: 60 | C77: 00:28:53.935 | D77: 01:14:52.800 | E77: 02:36:59.684 | G77: 04:20:46.419 | H77: 00:00:05.300 | I77: 00:00:18.360 | J77: 00:00:39.492 | K77: 00:36:50.767 | L77: 00:12:05.496
A78: 1954 | B78: 61 | C78: 00:28:59.418 | D78: 01:15:11.160 | E78: 02:37:41.230 | G78: 04:21:51.809 | H78: 00:00:05.483 | I78: 00:00:18.360 | J78: 00:00:41.546 | K78: 00:36:57.758 | L78: 00:12:07.790
A79: 1953 | B79: 62 | C79: 00:29:05.420 | D79: 01:15:31.680 | E79: 02:38:24.856 | G79: 04:23:01.956 | H79: 00:00:06.001 | I79: 00:00:20.520 | J79: 00:00:43.626 | K79: 00:37:05.410 | L79: 00:12:10.301
A80: 1952 | B80: 63 | C80: 00:29:11.945 | D80: 01:15:52.200 | E80: 02:39:10.589 | G80: 04:24:14.733 | H80: 00:00:06.525 | I80: 00:00:20.520 | J80: 00:00:45.732 | K80: 00:37:13.729 | L80: 00:12:13.031
A81: 1951 | B81: 64 | C81: 00:29:18.999 | D81: 01:16:13.800 | E81: 02:39:58.455 | G81: 04:25:31.254 | H81: 00:00:07.054 | I81: 00:00:21.600 | J81: 00:00:47.866 | K81: 00:37:22.723 | L81: 00:12:15.983
A82: 1950 | B82: 65 | C82: 00:29:26.589 | D82: 01:16:37.560 | E82: 02:40:49.447 | G82: 04:26:53.596 | H82: 00:00:07.590 | I82: 00:00:23.760 | J82: 00:00:50.992 | K82: 00:37:32.401 | L82: 00:12:19.158
A83: 1949 | B83: 66 | C83: 00:29:34.721 | D83: 01:17:01.320 | E83: 02:41:43.611 | G83: 04:28:19.652 | H83: 00:00:08.132 | I83: 00:00:23.760 | J83: 00:00:54.164 | K83: 00:37:42.769 | L83: 00:12:22.561
A84: 1948 | B84: 67 | C84: 00:29:43.403 | D84: 01:17:27.240 | E84: 02:42:40.996 | G84: 04:29:51.639 | H84: 00:00:08.682 | I84: 00:00:25.920 | J84: 00:00:57.385 | K84: 00:37:53.839 | L84: 00:12:26.194
A85: 1947 | B85: 68 | C85: 00:29:52.643 | D85: 01:17:55.320 | E85: 02:43:41.655 | G85: 04:31:29.617 | H85: 00:00:09.240 | I85: 00:00:28.080 | J85: 00:01:00.659 | K85: 00:38:05.619 | L85: 00:12:30.060
A86: 1946 | B86: 69 | C86: 00:30:02.448 | D86: 01:18:24.480 | E86: 02:44:46.627 | G86: 04:33:13.556 | H86: 00:00:09.806 | I86: 00:00:29.160 | J86: 00:01:04.973 | K86: 00:38:18.122 | L86: 00:12:34.162
A87: 1945 | B87: 70 | C87: 00:30:13.002 | D87: 01:18:55.800 | E87: 02:45:55.993 | G87: 04:35:04.794 | H87: 00:00:10.554 | I87: 00:00:31.320 | J87: 00:01:09.365 | K87: 00:38:31.577 | L87: 00:12:38.578
A88: 1944 | B88: 71 | C88: 00:30:24.316 | D88: 01:19:28.200 | E88: 02:47:09.835 | G88: 04:37:02.351 | H88: 00:00:11.314 | I88: 00:00:32.400 | J88: 00:01:13.842 | K88: 00:38:46.003 | L88: 00:12:43.312
A89: 1943 | B89: 72 | C89: 00:30:36.404 | D89: 01:20:03.840 | E89: 02:48:28.244 | G89: 04:39:08.489 | H89: 00:00:12.088 | I89: 00:00:35.640 | J89: 00:01:18.410 | K89: 00:39:01.416 | L89: 00:12:48.370
A90: 1942 | B90: 73 | C90: 00:30:49.282 | D90: 01:20:40.560 | E90: 02:49:51.318 | G90: 04:41:21.160 | H90: 00:00:12.878 | I90: 00:00:36.720 | J90: 00:01:23.074 | K90: 00:39:17.835 | L90: 00:12:53.758
A91: 1941 | B91: 74 | C91: 00:31:02.964 | D91: 01:21:20.520 | E91: 02:51:20.180 | G91: 04:43:43.664 | H91: 00:00:13.682 | I91: 00:00:39.960 | J91: 00:01:28.862 | K91: 00:39:35.279 | L91: 00:12:59.483
A92: 1940 | B92: 75 | C92: 00:31:17.468 | D92: 01:22:02.640 | E92: 02:52:55.996 | G92: 04:46:16.104 | H92: 00:00:14.504 | I92: 00:00:42.120 | J92: 00:01:35.817 | K92: 00:39:53.772 | L92: 00:13:05.552
A93: 1939 | B93: 76 | C93: 00:31:32.812 | D93: 01:22:48 | E93: 02:54:38.943 | G93: 04:48:59.755 | H93: 00:00:15.343 | I93: 00:00:45.360 | J93: 00:01:42.947 | K93: 00:40:13.335 | L93: 00:13:11.971
A94: 1938 | B94: 77 | C94: 00:31:49.014 | D94: 01:23:36.600 | E94: 02:56:29.210 | G94: 04:51:54.824 | H94: 00:00:16.202 | I94: 00:00:48.600 | J94: 00:01:50.267 | K94: 00:40:33.992 | L94: 00:13:18.750
A95: 1937 | B95: 78 | C95: 00:32:06.278 | D95: 01:24:28.440 | E95: 02:58:27.002 | G95: 04:55:01.720 | H95: 00:00:17.265 | I95: 00:00:51.840 | J95: 00:01:57.792 | K95: 00:40:56.005 | L95: 00:13:25.974
A96: 1936 | B96: 79 | C96: 00:32:24.817 | D96: 01:25:24.600 | E96: 03:00:33.612 | G96: 04:58:23.030 | H96: 00:00:18.539 | I96: 00:00:56.160 | J96: 00:02:06.610 | K96: 00:41:19.642 | L96: 00:13:33.731
A97: 1935 | B97: 80 | C97: 00:32:44.665 | D97: 01:26:25.080 | E97: 03:02:50.402 | G97: 05:02:00.147 | H97: 00:00:19.848 | I97: 00:01:00.480 | J97: 00:02:16.789 | K97: 00:41:44.948 | L97: 00:13:42.036
A98: 1934 | B98: 81 | C98: 00:33:05.859 | D98: 01:27:29.880 | E98: 03:05:18.808 | G98: 05:05:54.548 | H98: 00:00:21.194 | I98: 00:01:04.800 | J98: 00:02:28.407 | K98: 00:42:11.970 | L98: 00:13:50.903
A99: 1933 | B99: 82 | C99: 00:33:28.439 | D99: 01:28:39 | E99: 03:08:00.360 | G99: 05:10:07.798 | H99: 00:00:22.579 | I99: 00:01:09.120 | J99: 00:02:41.552 | K99: 00:42:40.759 | L99: 00:14:00.351
A100: 1932 | B100: 83 | C100: 00:33:53.220 | D100: 01:29:54.600 | E100: 03:10:56.687 | G100: 05:14:44.508 | H100: 00:00:24.782 | I100: 00:01:15.600 | J100: 00:02:56.327 | K100: 00:43:12.356 | L100: 00:14:10.720
A101: 1931 | B101: 84 | C101: 00:34:20.280 | D101: 01:31:16.680 | E101: 03:14:08.393 | G101: 05:19:45.353 | H101: 00:00:27.060 | I101: 00:01:22.080 | J101: 00:03:11.705 | K101: 00:43:46.857 | L101: 00:14:22.042
A102: 1930 | B102: 85 | C102: 00:34:49.701 | D102: 01:32:46.320 | E102: 03:17:38.472 | G102: 05:25:14.494 | H102: 00:00:29.421 | I102: 00:01:29.640 | J102: 00:03:30.079 | K102: 00:44:24.369 | L102: 00:14:34.352

Sheet Ability Times
A1: Ability Handicaps | C1: 17/2/2016 | K1: Bold Times = 2013 PB's | M1: Non bold ridden 2012 but not improved.
K2: Bold Times = 2014 PB's | M2: Non bold ridden 2014 but not improved.
K3: Bold Times = 2015 PB's | M3: Non bold ridden 2015 but not improved.
K4: Bold Times = 2016 PB's | M4: Non bold ridden 2016 but not improved.
B6: Licence Name | C6: Age | D6: Gender | F6: Handicap Times | K6: Scr 0:20:0 | L6: Scr 0:50:0 | M6: Scr 1:40:0
F7: 2014 Ability Handicaps | I7: Handicap age increments | K7: Ability Handicaps | M7: =+C1 -> 17/2/2016 | P7: Improved By
E8: 10 mile TT | F8: 25 mile TT | G8: 50 mile TT | K8: 10 mile TT | L8: 25 mile TT | M8: 50 mile TT | N8: 2.86km | O8: 20.5km
A9: Column1 | B9: Column3 | C9: Column4 | D9: Column5 | E9: Column6 | F9: Column7 | G9: Column8 | H9: Column9 | I9: Column10 | J9: Column11 | K9: Column12 | L9: Column13 | M9: Column14 | N9: Column15 | O9: Column16 | P9: Column17 | Q9: Column18 | R9: Column19 | S9: Column20 | T9: Column21 | U9: Column22 | V9: Column23 | W9: Column24 | X9: Column25 | Y9: Column26
A10: 1002 | B10: =VLOOKUP($A10,'[1]Racing numbers file'!$A$4:$G$400,2,FALSE) -> Kevin Simms | C10: =VLOOKUP($A10,'[1]Racing numbers file'!$A$4:$G$400,5,FALSE) -> 84 | D10: =VLOOKUP($A10,'[1]Racing numbers file'!$A$4:$H$400,8,FALSE) -> M | E10: 00:30:58 | F10: 01:20:46 | G10: 03:04:41 | H10: =VLOOKUP($C10,'Age Standards'!$B$3:$J$48,7,FALSE) -> 00:00:25.055 | I10: =VLOOKUP($C10,'Age Standards'!$B$3:$J$48,8,FALSE) -> 00:01:16 | J10: =VLOOKUP($C10,'Age Standards'!$B$3:$J$48,9,FALSE) -> 00:02:57.505 | K10: =+Table6[[#This Row],[Column6]]+Table6[[#This Row],[Column9]] -> 00:31:23.055 | L10: =+Table6[[#This Row],[Column7]]+Table6[[#This Row],[Column10]] -> 01:22:02 | M10: =+Table6[[#This Row],[Column8]]+Table6[[#This Row],[Column11]] -> 03:07:38.505 | N10: 00:11:34 | O10: 00:49:06
A11: 1004 | B11: =VLOOKUP($A11,'[1]Racing numbers file'!$A$4:$G$400,2,FALSE) -> Patsy FitzSimons | C11: =VLOOKUP($A11,'[1]Racing numbers file'!$A$4:$G$400,5,FALSE) -> 82 | D11: =VLOOKUP($A11,'[1]Racing numbers file'!$A$4:$H$400,8,FALSE) -> M | E11: 00:29:23 | F11: 01:13:46 | G11: 02:33:50 | H11: =VLOOKUP($C11,'Age Standards'!$B$3:$J$48,7,FALSE) -> 00:00:20.907 | I11: =VLOOKUP($C11,'Age Standards'!$B$3:$J$48,8,FALSE) -> 00:01:04 | J11: =VLOOKUP($C11,'Age Standards'!$B$3:$J$48,9,FALSE) -> 00:02:29.585 | K11: =+Table6[[#This Row],[Column6]]+Table6[[#This Row],[Column9]] -> 00:29:43.907 | L11: =+Table6[[#This Row],[Column7]]+Table6[[#This Row],[Column10]] -> 01:14:50 | M11: =+Table6[[#This Row],[Column8]]+Table6[[#This Row],[Column11]] -> 02:36:19.585 | N11: 00:12:04 | O11: 00:41:49
A12: 1014 | B12: =VLOOKUP($A12,'[1]Racing numbers file'!$A$4:$G$400,2,FALSE) -> Peter Schweppe | C12: =VLOOKUP($A12,'[1]Racing numbers file'!$A$4:$G$400,5,FALSE) -> 78 | D12: =VLOOKUP($A12,'[1]Racing numbers file'!$A$4:$H$400,8,FALSE) -> M | E12: 00:26:27 | F12: 01:06:32 | G12: 02:25:58.099 | H12: =VLOOKUP($C12,'Age Standards'!$B$3:$J$48,7,FALSE) -> 00:00:15.986 | I12: =VLOOKUP($C12,'Age Standards'!$B$3:$J$48,8,FALSE) -> 00:00:48 | J12: =VLOOKUP($C12,'Age Standards'!$B$3:$J$48,9,FALSE) -> 00:01:49.067 | K12: =+Table6[[#This Row],[Column6]]+Table6[[#This Row],[Column9]] -> 00:26:42.986 | L12: =+Table6[[#This Row],[Column7]]+Table6[[#This Row],[Column10]] -> 01:07:20 | M12: =+Table6[[#This Row],[Column8]]+Table6[[#This Row],[Column11]] -> 02:27:47.166 | N12: 00:00:00 | O12: 00:35:35
A13: 1015 | B13: =VLOOKUP($A13,'[1]Racing numbers file'!$A$4:$G$400,2,FALSE) -> Paddy Byrne | C13: =VLOOKUP($A13,'[1]Racing numbers file'!$A$4:$G$400,5,FALSE) -> 78 | D13: =VLOOKUP($A13,'[1]Racing numbers file'!$A$4:$H$400,8,FALSE) -> M | E13: 00:20:00 | F13: 00:50:00 | G13: 01:40:00 | H13: =VLOOKUP($C13,'Age Standards'!$B$3:$J$48,7,FALSE) -> 00:00:15.986 | I13: =VLOOKUP($C13,'Age Standards'!$B$3:$J$48,8,FALSE) -> 00:00:48 | J13: =VLOOKUP($C13,'Age Standards'!$B$3:$J$48,9,FALSE) -> 00:01:49.067 | K13: 00:20:00 | L13: 00:50:00 | M13: 01:40:00 | N13: 00:00:00 | O13: 00:40:35
A14: 1023 | B14: =VLOOKUP($A14,'[1]Racing numbers file'!$A$4:$G$400,2,FALSE) -> Robert Norgrove | C14: =VLOOKUP($A14,'[1]Racing numbers file'!$A$4:$G$400,5,FALSE) -> 76 | D14: =VLOOKUP($A14,'[1]Racing numbers file'!$A$4:$H$400,8,FALSE) -> M | E14: 00:29:26.430 | F14: 01:17:26 | G14: 01:40:00 | H14: =VLOOKUP($C14,'Age Standards'!$B$3:$J$48,7,FALSE) -> 00:00:14.207 | I14: =VLOOKUP($C14,'Age Standards'!$B$3:$J$48,8,FALSE) -> 00:00:42 | J14: =VLOOKUP($C14,'Age Standards'!$B$3:$J$48,9,FALSE) -> 00:01:35.321 | K14: =+Table6[[#This Row],[Column6]]+Table6[[#This Row],[Column9]] -> 00:29:40.636 | L14: =+Table6[[#This Row],[Column7]]+Table6[[#This Row],[Column10]] -> 01:18:08 | M14: 01:40:00 | N14: 00:00:00 | O14: 00:25:42
A15: 1024 | B15: =VLOOKUP($A15,'[1]Racing numbers file'!$A$4:$G$400,2,FALSE) -> Eddie Scully | C15: =VLOOKUP($A15,'[1]Racing numbers file'!$A$4:$G$400,5,FALSE) -> 75 | D15: =VLOOKUP($A15,'[1]Racing numbers file'!$A$4:$H$400,8,FALSE) -> M | E15: 00:28:28 | F15: 01:13:39 | G15: 01:40:00 | H15: =VLOOKUP($C15,'Age Standards'!$B$3:$J$48,7,FALSE) -> 00:00:13.430 | I15: =VLOOKUP($C15,'Age Standards'!$B$3:$J$48,8,FALSE) -> 00:00:39 | J15: =VLOOKUP($C15,'Age Standards'!$B$3:$J$48,9,FALSE) -> 00:01:28.719 | K15: =+Table6[[#This Row],[Column6]]+Table6[[#This Row],[Column9]] -> 00:28:41.430 | L15: =+Table6[[#This Row],[Column7]]+Table6[[#This Row],[Column10]] -> 01:14:18 | M15: =+Table6[[#This Row],[Column8]]+Table6[[#This Row],[Column11]] -> 01:41:28.719 | N15: 00:14:02 | O15: 00:25:42
A16: 1026 | B16: =VLOOKUP($A16,'[1]Racing numbers file'!$A$4:$G$400,2,FALSE) -> Seán Lally | C16: =VLOOKUP($A16,'[1]Racing numbers file'!$A$4:$G$400,5,FALSE) -> 75 | D16: =VLOOKUP($A16,'[1]Racing numbers file'!$A$4:$H$400,8,FALSE) -> M | E16: 00:25:18 | F16: 01:03:47 | G16: 01:11:09 | H16: =VLOOKUP($C16,'Age Standards'!$B$3:$J$48,7,FALSE) -> 00:00:13.430 | I16: =VLOOKUP($C16,'Age Standards'!$B$3:$J$48,8,FALSE) -> 00:00:39 | J16: =VLOOKUP($C16,'Age Standards'!$B$3:$J$48,9,FALSE) -> 00:01:28.719 | K16: =+Table6[[#This Row],[Column6]]+Table6[[#This Row],[Column9]] -> 00:25:31.430 | L16: =+Table6[[#This Row],[Column7]]+Table6[[#This Row],[Column10]] -> 01:04:26 | M16: =+Table6[[#This Row],[Column8]]+Table6[[#This Row],[Column11]] -> 01:12:37.719 | N16: 00:07:00 | O16: 00:25:42
A17: 1034 | B17: =VLOOKUP($A17,'[1]Racing numbers file'!$A$4:$G$400,2,FALSE) -> Paddy Davis | C17: =VLOOKUP($A17,'[1]Racing numbers file'!$A$4:$G$400,5,FALSE) -> 73 | D17: =VLOOKUP($A17,'[1]Racing numbers file'!$A$4:$H$400,8,FALSE) -> M | E17: 00:25:19.193 | F17: 01:05:49 | G17: 02:12:15 | H17: =VLOOKUP($C17,'Age Standards'!$B$3:$J$48,7,FALSE) -> 00:00:11.924 | I17: =VLOOKUP($C17,'Age Standards'!$B$3:$J$48,8,FALSE) -> 00:00:34 | J17: =VLOOKUP($C17,'Age Standards'!$B$3:$J$48,9,FALSE) -> 00:01:16.920 | K17: =+Table6[[#This Row],[Column6]]+Table6[[#This Row],[Column9]] -> 00:25:31.117 | L17: =+Table6[[#This Row],[Column7]]+Table6[[#This Row],[Column10]] -> 01:06:23 | M17: =+Table6[[#This Row],[Column8]]+Table6[[#This Row],[Column11]] -> 02:13:31.920 | N17: 00:10:47 | O17: 00:33:39
A18: 1040 | B18: =VLOOKUP($A18,'[1]Racing numbers file'!$A$4:$G$400,2,FALSE) -> Phil Ormrod | C18: =VLOOKUP($A18,'[1]Racing numbers file'!$A$4:$G$400,5,FALSE) -> 72 | D18: =VLOOKUP($A18,'[1]Racing numbers file'!$A$4:$H$400,8,FALSE) -> M | E18: 00:24:13.476 | F18: 01:03:47 | G18: 02:12:17 | H18: =VLOOKUP($C18,'Age Standards'!$B$3:$J$48,7,FALSE) -> 00:00:11.193 | I18: =VLOOKUP($C18,'Age Standards'!$B$3:$J$48,8,FALSE) -> 00:00:33 | J18: =VLOOKUP($C18,'Age Standards'!$B$3:$J$48,9,FALSE) -> 00:01:12.601 | K18: =+Table6[[#This Row],[Column6]]+Table6[[#This Row],[Column9]] -> 00:24:24.669 | L18: =+Table6[[#This Row],[Column7]]+Table6[[#This Row],[Column10]] -> 01:04:20 | M18: =+Table6[[#This Row],[Column8]]+Table6[[#This Row],[Column11]] -> 02:13:29.601 | N18: 00:12:06 | O18: 00:33:14
A19: 1044 | B19: =VLOOKUP($A19,'[1]Racing numbers file'!$A$4:$G$400,2,FALSE) -> Eddie Dunne | C19: =VLOOKUP($A19,'[1]Racing numbers file'!$A$4:$G$400,5,FALSE) -> 72 | D19: =VLOOKUP($A19,'[1]Racing numbers file'!$A$4:$H$400,8,FALSE) -> M | E19: 00:26:44 | F19: 01:10:55 | G19: 01:40:00 | H19: =VLOOKUP($C19,'Age Standards'!$B$3:$J$48,7,FALSE) -> 00:00:11.193 | I19: =VLOOKUP($C19,'Age Standards'!$B$3:$J$48,8,FALSE) -> 00:00:33 | J19: =VLOOKUP($C19,'Age Standards'!$B$3:$J$48,9,FALSE) -> 00:01:12.601 | K19: =+Table6[[#This Row],[Column6]]+Table6[[#This Row],[Column9]] -> 00:26:55.193 | L19: =+Table6[[#This Row],[Column7]]+Table6[[#This Row],[Column10]] -> 01:11:28 | M19: 01:40:00 | N19: 00:11:15 | O19: 00:37:48
A20: 1045 | B20: =VLOOKUP($A20,'[1]Racing numbers file'!$A$4:$G$400,2,FALSE) -> Oliver Bright | C20: =VLOOKUP($A20,'[1]Racing numbers file'!$A$4:$G$400,5,FALSE) -> 72 | D20: =VLOOKUP($A20,'[1]Racing numbers file'!$A$4:$H$400,8,FALSE) -> M | E20: 00:30:26 | F20: 01:22:29 | G20: 02:52:28.372 | H20: =VLOOKUP($C20,'Age Standards'!$B$3:$J$48,7,FALSE) -> 00:00:11.193 | I20: =VLOOKUP($C20,'Age Standards'!$B$3:$J$48,8,FALSE) -> 00:00:33 | J20: =VLOOKUP($C20,'Age Standards'!$B$3:$J$48,9,FALSE) -> 00:01:12.601 | K20: =+Table6[[#This Row],[Column6]]+Table6[[#This Row],[Column9]] -> 00:30:37.193 | L20: =+Table6[[#This Row],[Column7]]+Table6[[#This Row],[Column10]] -> 01:23:02 | M20: =+Table6[[#This Row],[Column8]]+Table6[[#This Row],[Column11]] -> 02:53:40.974 | N20: 00:16:57 | O20: 00:42:52
A21: 1050 | B21: =VLOOKUP($A21,'[1]Racing numbers file'!$A$4:$G$400,2,FALSE) -> Mick Davis | C21: =VLOOKUP($A21,'[1]Racing numbers file'!$A$4:$G$400,5,FALSE) -> 71 | D21: =VLOOKUP($A21,'[1]Racing numbers file'!$A$4:$H$400,8,FALSE) -> M | E21: 00:26:52.772 | F21: 01:10:48 | G21: 02:26:42.227 | H21: =VLOOKUP($C21,'Age Standards'!$B$3:$J$48,7,FALSE) -> 00:00:10.476 | I21: =VLOOKUP($C21,'Age Standards'!$B$3:$J$48,8,FALSE) -> 00:00:30 | J21: =VLOOKUP($C21,'Age Standards'!$B$3:$J$48,9,FALSE) -> 00:01:08.372 | K21: =+Table6[[#This Row],[Column6]]+Table6[[#This Row],[Column9]] -> 00:27:03.248 | L21: =+Table6[[#This Row],[Column7]]+Table6[[#This Row],[Column10]] -> 01:11:18 | M21: =+Table6[[#This Row],[Column8]]+Table6[[#This Row],[Column11]] -> 02:27:50.599 | N21: 00:11:47 | O21: 00:25:42
A22: 1054 | B22: =VLOOKUP($A22,'[1]Racing numbers file'!$A$4:$G$400,2,FALSE) -> Peter Rice | C22: =VLOOKUP($A22,'[1]Racing numbers file'!$A$4:$G$400,5,FALSE) -> 70 | D22: =VLOOKUP($A22,'[1]Racing numbers file'!$A$4:$H$400,8,FALSE) -> M | E22: 00:28:30.079 | F22: 01:16:08 | G22: 02:45:24 | H22: =VLOOKUP($C22,'Age Standards'!$B$3:$J$48,7,FALSE) -> 00:00:09.772 | I22: =VLOOKUP($C22,'Age Standards'!$B$3:$J$48,8,FALSE) -> 00:00:29 | J22: =VLOOKUP($C22,'Age Standards'!$B$3:$J$48,9,FALSE) -> 00:01:04.227 | K22: =+Table6[[#This Row],[Column6]]+Table6[[#This Row],[Column9]] -> 00:28:39.851 | L22: =+Table6[[#This Row],[Column7]]+Table6[[#This Row],[Column10]] -> 01:16:37 | M22: =+Table6[[#This Row],[Column8]]+Table6[[#This Row],[Column11]] -> 02:46:28.227 | N22: 00:00:00 | O22: 00:38:47
A23: 1060 | B23: =VLOOKUP($A23,'[1]Racing numbers file'!$A$4:$G$400,2,FALSE) -> Hugh Davis | C23: =VLOOKUP($A23,'[1]Racing numbers file'!$A$4:$G$400,5,FALSE) -> 69 | D23: =VLOOKUP($A23,'[1]Racing numbers file'!$A$4:$H$400,8,FALSE) -> M | E23: 00:23:43.555 | F23: 00:59:24 | G23: 02:01:04 | H23: =VLOOKUP($C23,'Age Standards'!$B$3:$J$48,7,FALSE) -> 00:00:09.079 | I23: =VLOOKUP($C23,'Age Standards'!$B$3:$J$48,8,FALSE) -> 00:00:27 | J23: =VLOOKUP($C23,'Age Standards'!$B$3:$J$48,9,FALSE) -> 00:01:00.160 | K23: =+Table6[[#This Row],[Column6]]+Table6[[#This Row],[Column9]] -> 00:23:52.634 | L23: =+Table6[[#This Row],[Column7]]+Table6[[#This Row],[Column10]] -> 00:59:51 | M23: =+Table6[[#This Row],[Column8]]+Table6[[#This Row],[Column11]] -> 02:02:04.160 | N23: 00:10:05 | O23: 00:25:42
A24: 1062 | B24: =VLOOKUP($A24,'[1]Racing numbers file'!$A$4:$G$400,2,FALSE) -> Mick Mullen | C24: =VLOOKUP($A24,'[1]Racing numbers file'!$A$4:$G$400,5,FALSE) -> 68 | D24: =VLOOKUP($A24,'[1]Racing numbers file'!$A$4:$H$400,8,FALSE) -> M | E24: 00:27:06.039 | F24: 01:09:19 | G24: 01:40:00 | H24: =VLOOKUP($C24,'Age Standards'!$B$3:$J$48,7,FALSE) -> 00:00:08.555 | I24: =VLOOKUP($C24,'Age Standards'!$B$3:$J$48,8,FALSE) -> 00:00:26 | J24: =VLOOKUP($C24,'Age Standards'!$B$3:$J$48,9,FALSE) -> 00:00:56.166 | K24: =+Table6[[#This Row],[Column6]]+Table6[[#This Row],[Column9]] -> 00:27:14.594 | L24: =+Table6[[#This Row],[Column7]]+Table6[[#This Row],[Column10]] -> 01:09:45 | M24: 01:40:00 | N24: 00:00:00 | O24: 00:35:18
A25: 1077 | B25: =VLOOKUP($A25,'[1]Racing numbers file'!$A$4:$G$400,2,FALSE) -> Brendan Byrne | C25: =VLOOKUP($A25,'[1]Racing numbers file'!$A$4:$G$400,5,FALSE) -> 66 | D25: =VLOOKUP($A25,'[1]Racing numbers file'!$A$4:$H$400,8,FALSE) -> M | E25: 00:26:45.028 | F25: 01:07:14 | G25: 02:19:53 | H25: =VLOOKUP($C25,'Age Standards'!$B$3:$J$48,7,FALSE) -> 00:00:07.530 | I25: =VLOOKUP($C25,'Age Standards'!$B$3:$J$48,8,FALSE) -> 00:00:22 | J25: =VLOOKUP($C25,'Age Standards'!$B$3:$J$48,9,FALSE) -> 00:00:50.152 | K25: 00:26:52 | L25: =+Table6[[#This Row],[Column7]]+Table6[[#This Row],[Column10]] -> 01:07:36 | M25: =+Table6[[#This Row],[Column8]]+Table6[[#This Row],[Column11]] -> 02:20:43.152 | N25: 00:12:01 | O25: 00:36:39
A26: 1083 | B26: =VLOOKUP($A26,'[1]Racing numbers file'!$A$4:$G$400,2,FALSE) -> Seán Darragh | C26: =VLOOKUP($A26,'[1]Racing numbers file'!$A$4:$G$400,5,FALSE) -> 65 | D26: =VLOOKUP($A26,'[1]Racing numbers file'!$A$4:$H$400,8,FALSE) -> M | E26: 00:27:31 | F26: 01:09:56 | G26: 01:40:00 | H26: =VLOOKUP($C26,'Age Standards'!$B$3:$J$48,7,FALSE) -> 00:00:07.028 | I26: =VLOOKUP($C26,'Age Standards'!$B$3:$J$48,8,FALSE) -> 00:00:22 | J26: =VLOOKUP($C26,'Age Standards'!$B$3:$J$48,9,FALSE) -> 00:00:47.215 | K26: =+Table6[[#This Row],[Column6]]+Table6[[#This Row],[Column9]] -> 00:27:38.028 | L26: =+Table6[[#This Row],[Column7]]+Table6[[#This Row],[Column10]] -> 01:10:18 | M26: 01:40:00 | N26: 00:09:45 | O26: 00:36:15
A27: 1090 | B27: =VLOOKUP($A27,'[1]Racing numbers file'!$A$4:$G$400,2,FALSE) -> Colm Conway | C27: =VLOOKUP($A27,'[1]Racing numbers file'!$A$4:$G$400,5,FALSE) -> 64 | D27: =VLOOKUP($A27,'[1]Racing numbers file'!$A$4:$H$400,8,FALSE) -> M | E27: 00:29:51 | F27: 01:11:53 | G27: 01:40:00 | H27: =VLOOKUP($C27,'Age Standards'!$B$3:$J$48,7,FALSE) -> 00:00:06.532 | I27: =VLOOKUP($C27,'Age Standards'!$B$3:$J$48,8,FALSE) -> 00:00:20 | J27: =VLOOKUP($C27,'Age Standards'!$B$3:$J$48,9,FALSE) -> 00:00:44.321 | K27: 00:29:51 | L27: =+Table6[[#This Row],[Column7]]+Table6[[#This Row],[Column10]] -> 01:12:13 | M27: 01:40:00 | N27: 00:12:02 | O27: 00:35:14
A28: 1095 | B28: =VLOOKUP($A28,'[1]Racing numbers file'!$A$4:$G$400,2,FALSE) -> Adrian Byrne | C28: =VLOOKUP($A28,'[1]Racing numbers file'!$A$4:$G$400,5,FALSE) -> 63 | D28: =VLOOKUP($A28,'[1]Racing numbers file'!$A$4:$H$400,8,FALSE) -> M | E28: 00:20:00 | F28: 01:04:00 | G28: 01:40:00 | H28: =VLOOKUP($C28,'Age Standards'!$B$3:$J$48,7,FALSE) -> 00:00:06.042 | I28: =VLOOKUP($C28,'Age Standards'!$B$3:$J$48,8,FALSE) -> 00:00:19 | J28: =VLOOKUP($C28,'Age Standards'!$B$3:$J$48,9,FALSE) -> 00:00:42.345 | K28: 00:20:00 | L28: 00:50:00 | M28: 01:40:00 | N28: 00:07:00 | O28: 00:25:42
A29: 1095 | B29: =VLOOKUP($A29,'[1]Racing numbers file'!$A$4:$G$400,2,FALSE) -> Adrian Byrne | C29: =VLOOKUP($A29,'[1]Racing numbers file'!$A$4:$G$400,5,FALSE) -> 63 | D29: =VLOOKUP($A29,'[1]Racing numbers file'!$A$4:$H$400,8,FALSE) -> M | E29: 00:20:00 | F29: 00:40:00 | G29: 01:40:00 | H29: =VLOOKUP($C29,'Age Standards'!$B$3:$J$48,7,FALSE) -> 00:00:06.042 | I29: =VLOOKUP($C29,'Age Standards'!$B$3:$J$48,8,FALSE) -> 00:00:19 | J29: =VLOOKUP($C29,'Age Standards'!$B$3:$J$48,9,FALSE) -> 00:00:42.345 | K29: 00:20:00 | L29: 00:50:00 | M29: 01:40:00 | N29: 00:00:00 | O29: 00:25:42
A30: 1096 | B30: =VLOOKUP($A30,'[1]Racing numbers file'!$A$4:$G$400,2,FALSE) -> Peter Raftery | C30: =VLOOKUP($A30,'[1]Racing numbers file'!$A$4:$G$400,5,FALSE) -> 63 | D30: =VLOOKUP($A30,'[1]Racing numbers file'!$A$4:$H$400,8,FALSE) -> M | E30: 00:24:33.557 | F30: 01:03:44 | G30: 02:16:25.394 | H30: =VLOOKUP($C30,'Age Standards'!$B$3:$J$48,7,FALSE) -> 00:00:06.042 | I30: =VLOOKUP($C30,'Age Standards'!$B$3:$J$48,8,FALSE) -> 00:00:19 | J30: =VLOOKUP($C30,'Age Standards'!$B$3:$J$48,9,FALSE) -> 00:00:42.345 | K30: =+Table6[[#This Row],[Column6]]+Table6[[#This Row],[Column9]] -> 00:24:39.598 | L30: =+Table6[[#This Row],[Column7]]+Table6[[#This Row],[Column10]] -> 01:04:03 | M30: =+Table6[[#This Row],[Column8]]+Table6[[#This Row],[Column11]] -> 02:17:07.739 | N30: 00:00:00 | O30: 00:25:42
A31: 1101 | B31: =VLOOKUP($A31,'[1]Racing numbers file'!$A$4:$G$400,2,FALSE) -> Mick Usher | C31: =VLOOKUP($A31,'[1]Racing numbers file'!$A$4:$G$400,5,FALSE) -> 62 | D31: =VLOOKUP($A31,'[1]Racing numbers file'!$A$4:$H$400,8,FALSE) -> M | E31: 00:24:50 | F31: 00:50:00 | G31: 01:40:00 | H31: =VLOOKUP($C31,'Age Standards'!$B$3:$J$48,7,FALSE) -> 00:00:05.557 | I31: =VLOOKUP($C31,'Age Standards'!$B$3:$J$48,8,FALSE) -> 00:00:19 | J31: =VLOOKUP($C31,'Age Standards'!$B$3:$J$48,9,FALSE) -> 00:00:40.394 | K31: 00:24:50 | L31: =+Table6[[#This Row],[Column7]]+Table6[[#This Row],[Column10]] -> 00:50:19 | M31: =+Table6[[#This Row],[Column8]]+Table6[[#This Row],[Column11]] -> 01:40:40.394 | N31: 00:00:00 | O31: 00:33:47
A32: 1103 | B32: =VLOOKUP($A32,'[1]Racing numbers file'!$A$4:$G$400,2,FALSE) -> Gerry Gaston | C32: =VLOOKUP($A32,'[1]Racing numbers file'!$A$4:$G$400,5,FALSE) -> 62 | D32: =VLOOKUP($A32,'[1]Racing numbers file'!$A$4:$H$400,8,FALSE) -> M | E32: 00:25:58 | F32: 01:05:12 | G32: 02:15:20 | H32: =VLOOKUP($C32,'Age Standards'!$B$3:$J$48,7,FALSE) -> 00:00:05.557 | I32: =VLOOKUP($C32,'Age Standards'!$B$3:$J$48,8,FALSE) -> 00:00:19 | J32: =VLOOKUP($C32,'Age Standards'!$B$3:$J$48,9,FALSE) -> 00:00:40.394 | K32: =+Table6[[#This Row],[Column6]]+Table6[[#This Row],[Column9]] -> 00:26:03.557 | L32: =+Table6[[#This Row],[Column7]]+Table6[[#This Row],[Column10]] -> 01:05:31 | M32: =+Table6[[#This Row],[Column8]]+Table6[[#This Row],[Column11]] -> 02:16:00.394 | N32: 00:09:50 | O32: 00:34:43
A33: 1114 | B33: =VLOOKUP($A33,'[1]Racing numbers file'!$A$4:$G$400,2,FALSE) -> Jimmy Murphy | C33: =VLOOKUP($A33,'[1]Racing numbers file'!$A$4:$G$400,5,FALSE) -> 60 | D33: =VLOOKUP($A33,'[1]Racing numbers file'!$A$4:$H$400,8,FALSE) -> M | E33: 00:27:03 | F33: 00:50:00 | G33: 01:40:31 | H33: =VLOOKUP($C33,'Age Standards'!$B$3:$J$48,7,FALSE) -> 00:00:04.907 | I33: =VLOOKUP($C33,'Age Standards'!$B$3:$J$48,8,FALSE) -> 00:00:17 | J33: =VLOOKUP($C33,'Age Standards'!$B$3:$J$48,9,FALSE) -> 00:00:36.567 | K33: 00:27:03 | L33: =+Table6[[#This Row],[Column7]]+Table6[[#This Row],[Column10]] -> 00:50:17 | M33: 01:40:00 | N33: 00:11:45 | O33: 00:36:51
A34: 1115 | B34: =VLOOKUP($A34,'[1]Racing numbers file'!$A$4:$G$400,2,FALSE) -> Jimmy Flynn | C34: =VLOOKUP($A34,'[1]Racing numbers file'!$A$4:$G$400,5,FALSE) -> 60 | D34: =VLOOKUP($A34,'[1]Racing numbers file'!$A$4:$H$400,8,FALSE) -> M | E34: 00:20:00 | F34: 00:50:00 | G34: 01:40:00 | H34: =VLOOKUP($C34,'Age Standards'!$B$3:$J$48,7,FALSE) -> 00:00:04.907 | I34: =VLOOKUP($C34,'Age Standards'!$B$3:$J$48,8,FALSE) -> 00:00:17 | J34: =VLOOKUP($C34,'Age Standards'!$B$3:$J$48,9,FALSE) -> 00:00:36.567 | K34: 00:20:00 | L34: 00:50:00 | M34: 01:40:00 | N34: 00:08:56 | O34: 00:25:42
A35: 1120 | B35: =VLOOKUP($A35,'[1]Racing numbers file'!$A$4:$G$400,2,FALSE) -> Dermot O'Gorman | C35: =VLOOKUP($A35,'[1]Racing numbers file'!$A$4:$G$400,5,FALSE) -> 60 | D35: =VLOOKUP($A35,'[1]Racing numbers file'!$A$4:$H$400,8,FALSE) -> M | E35: 00:20:00 | F35: 00:50:00 | G35: 01:40:00 | H35: =VLOOKUP($C35,'Age Standards'!$B$3:$J$48,7,FALSE) -> 00:00:04.907 | I35: =VLOOKUP($C35,'Age Standards'!$B$3:$J$48,8,FALSE) -> 00:00:17 | J35: =VLOOKUP($C35,'Age Standards'!$B$3:$J$48,9,FALSE) -> 00:00:36.567 | K35: 00:20:00 | L35: 00:50:00 | M35: 01:40:00 | N35: 00:00:00 | O35: 00:25:42
A36: 1123 | B36: =VLOOKUP($A36,'[1]Racing numbers file'!$A$4:$G$400,2,FALSE) -> Colm Cassidy | C36: =VLOOKUP($A36,'[1]Racing numbers file'!$A$4:$G$400,5,FALSE) -> 59 | D36: =VLOOKUP($A36,'[1]Racing numbers file'!$A$4:$H$400,8,FALSE) -> M | E36: 00:25:00.725 | F36: 01:05:53 | G36: 02:18:33.688 | H36: =VLOOKUP($C36,'Age Standards'!$B$3:$J$48,7,FALSE) -> 00:00:04.739 | I36: =VLOOKUP($C36,'Age Standards'!$B$3:$J$48,8,FALSE) -> 00:00:15 | J36: =VLOOKUP($C36,'Age Standards'!$B$3:$J$48,9,FALSE) -> 00:00:34.687 | K36: =+Table6[[#This Row],[Column6]]+Table6[[#This Row],[Column9]] -> 00:25:05.464 | L36: =+Table6[[#This Row],[Column7]]+Table6[[#This Row],[Column10]] -> 01:06:08 | M36: =+Table6[[#This Row],[Column8]]+Table6[[#This Row],[Column11]] -> 02:19:08.375 | N36: 00:09:50 | O36: 00:25:42
A37: 1131 | B37: =VLOOKUP($A37,'[1]Racing numbers file'!$A$4:$G$400,2,FALSE) -> Ed Hogan | C37: =VLOOKUP($A37,'[1]Racing numbers file'!$A$4:$G$400,5,FALSE) -> 58 | D37: =VLOOKUP($A37,'[1]Racing numbers file'!$A$4:$H$400,8,FALSE) -> M | E37: 00:20:00 | F37: 01:13:08 | G37: 01:40:00 | H37: =VLOOKUP($C37,'Age Standards'!$B$3:$J$48,7,FALSE) -> 00:00:04.725 | I37: =VLOOKUP($C37,'Age Standards'!$B$3:$J$48,8,FALSE) -> 00:00:15 | J37: =VLOOKUP($C37,'Age Standards'!$B$3:$J$48,9,FALSE) -> 00:00:33.688 | K37: =+Table6[[#This Row],[Column6]]+Table6[[#This Row],[Column9]] -> 00:20:04.725 | L37: =+Table6[[#This Row],[Column7]]+Table6[[#This Row],[Column10]] -> 01:13:23 | M37: 01:40:00 | N37: 00:00:00 | O37: 00:25:42
A38: 1137 | B38: =VLOOKUP($A38,'[1]Racing numbers file'!$A$4:$G$400,2,FALSE) -> Karl Gallagher | C38: =VLOOKUP($A38,'[1]Racing numbers file'!$A$4:$G$400,5,FALSE) -> 58 | D38: =VLOOKUP($A38,'[1]Racing numbers file'!$A$4:$H$400,8,FALSE) -> M | E38: 00:22:26.710 | F38: 01:03:22 | G38: 01:40:00 | H38: =VLOOKUP($C38,'Age Standards'!$B$3:$J$48,7,FALSE) -> 00:00:04.725 | I38: =VLOOKUP($C38,'Age Standards'!$B$3:$J$48,8,FALSE) -> 00:00:15 | J38: =VLOOKUP($C38,'Age Standards'!$B$3:$J$48,9,FALSE) -> 00:00:33.688 | K38: =+Table6[[#This Row],[Column6]]+Table6[[#This Row],[Column9]] -> 00:22:31.435 | L38: =+Table6[[#This Row],[Column7]]+Table6[[#This Row],[Column10]] -> 01:03:37 | M38: 01:40:00 | N38: 00:00:00 | O38: 00:32:01
A39: 1141 | B39: =VLOOKUP($A39,'[1]Racing numbers file'!$A$4:$G$400,2,FALSE) -> Tom Malone | C39: =VLOOKUP($A39,'[1]Racing numbers file'!$A$4:$G$400,5,FALSE) -> 58 | D39: =VLOOKUP($A39,'[1]Racing numbers file'!$A$4:$H$400,8,FALSE) -> M | E39: 00:23:17.710 | F39: 01:01:34 | G39: 02:09:00.700 | H39: =VLOOKUP($C39,'Age Standards'!$B$3:$J$48,7,FALSE) -> 00:00:04.725 | I39: =VLOOKUP($C39,'Age Standards'!$B$3:$J$48,8,FALSE) -> 00:00:15 | J39: =VLOOKUP($C39,'Age Standards'!$B$3:$J$48,9,FALSE) -> 00:00:33.688 | K39: =+Table6[[#This Row],[Column6]]+Table6[[#This Row],[Column9]] -> 00:23:22.435 | L39: =+Table6[[#This Row],[Column7]]+Table6[[#This Row],[Column10]] -> 01:01:49 | M39: =+Table6[[#This Row],[Column8]]+Table6[[#This Row],[Column11]] -> 02:09:34.388 | N39: 00:00:00 | O39: 00:30:55
A40: 1162 | B40: =VLOOKUP($A40,'[1]Racing numbers file'!$A$4:$G$400,2,FALSE) -> William Parnell | C40: =VLOOKUP($A40,'[1]Racing numbers file'!$A$4:$G$400,5,FALSE) -> 56 | D40: =VLOOKUP($A40,'[1]Racing numbers file'!$A$4:$H$400,8,FALSE) -> M | E40: 00:20:00 | F40: 00:50:00 | G40: 01:40:00 | H40: =VLOOKUP($C40,'Age Standards'!$B$3:$J$48,7,FALSE) -> 00:00:04.696 | I40: =VLOOKUP($C40,'Age Standards'!$B$3:$J$48,8,FALSE) -> 00:00:14 | J40: =VLOOKUP($C40,'Age Standards'!$B$3:$J$48,9,FALSE) -> 00:00:31.722 | K40: 00:20:00 | L40: 00:50:00 | M40: 01:40:00 | N40: 00:09:08 | O40: 00:25:42
A41: 1163 | B41: =VLOOKUP($A41,'[1]Racing numbers file'!$A$4:$G$400,2,FALSE) -> Eddie Lynch | C41: =VLOOKUP($A41,'[1]Racing numbers file'!$A$4:$G$400,5,FALSE) -> 56 | D41: =VLOOKUP($A41,'[1]Racing numbers file'!$A$4:$H$400,8,FALSE) -> M | E41: 00:24:22 | F41: 00:50:00 | G41: 01:40:00 | H41: =VLOOKUP($C41,'Age Standards'!$B$3:$J$48,7,FALSE) -> 00:00:04.696 | I41: =VLOOKUP($C41,'Age Standards'!$B$3:$J$48,8,FALSE) -> 00:00:14 | J41: =VLOOKUP($C41,'Age Standards'!$B$3:$J$48,9,FALSE) -> 00:00:31.722 | K41: =+Table6[[#This Row],[Column6]]+Table6[[#This Row],[Column9]] -> 00:24:26.696 | L41: =+Table6[[#This Row],[Column7]]+Table6[[#This Row],[Column10]] -> 00:50:14 | M41: 01:40:00 | N41: 00:11:35 | O41: 00:25:42
A42: 1164 | B42: =VLOOKUP($A42,'[1]Racing numbers file'!$A$4:$G$400,2,FALSE) -> Eunan Malone | C42: =VLOOKUP($A42,'[1]Racing numbers file'!$A$4:$G$400,5,FALSE) -> 56 | D42: =VLOOKUP($A42,'[1]Racing numbers file'!$A$4:$H$400,8,FALSE) -> M | E42: 00:23:07 | F42: 00:58:53 | G42: 02:03:46 | H42: =VLOOKUP($C42,'Age Standards'!$B$3:$J$48,7,FALSE) -> 00:00:04.696 | I42: =VLOOKUP($C42,'Age Standards'!$B$3:$J$48,8,FALSE) -> 00:00:14 | J42: =VLOOKUP($C42,'Age Standards'!$B$3:$J$48,9,FALSE) -> 00:00:31.722 | K42: =+Table6[[#This Row],[Column6]]+Table6[[#This Row],[Column9]] -> 00:23:11.696 | L42: =+Table6[[#This Row],[Column7]]+Table6[[#This Row],[Column10]] -> 00:59:07 | M42: =+Table6[[#This Row],[Column8]]+Table6[[#This Row],[Column11]] -> 02:04:17.722 | N42: 00:09:51 | O42: 00:29:42
A43: 1169 | B43: =VLOOKUP($A43,'[1]Racing numbers file'!$A$4:$G$400,2,FALSE) -> Paul Atkinson | C43: =VLOOKUP($A43,'[1]Racing numbers file'!$A$4:$G$400,5,FALSE) -> 56 | D43: =VLOOKUP($A43,'[1]Racing numbers file'!$A$4:$H$400,8,FALSE) -> M | E43: 00:24:08.681 | F43: 01:03:45 | G43: 02:15:12.754 | H43: =VLOOKUP($C43,'Age Standards'!$B$3:$J$48,7,FALSE) -> 00:00:04.696 | I43: =VLOOKUP($C43,'Age Standards'!$B$3:$J$48,8,FALSE) -> 00:00:14 | J43: =VLOOKUP($C43,'Age Standards'!$B$3:$J$48,9,FALSE) -> 00:00:31.722 | K43: =+Table6[[#This Row],[Column6]]+Table6[[#This Row],[Column9]] -> 00:24:13.377 | L43: =+Table6[[#This Row],[Column7]]+Table6[[#This Row],[Column10]] -> 01:03:59 | M43: =+Table6[[#This Row],[Column8]]+Table6[[#This Row],[Column11]] -> 02:15:44.476 | N43: 00:10:41 | O43: 00:32:39
A44: 1185 | B44: =VLOOKUP($A44,'[1]Racing numbers file'!$A$4:$G$400,2,FALSE) -> Noel Thompson | C44: =VLOOKUP($A44,'[1]Racing numbers file'!$A$4:$G$400,5,FALSE) -> 55 | D44: =VLOOKUP($A44,'[1]Racing numbers file'!$A$4:$H$400,8,FALSE) -> M | E44: 00:23:26 | F44: 01:01:16 | G44: 01:40:00 | H44: =VLOOKUP($C44,'Age Standards'!$B$3:$J$48,7,FALSE) -> 00:00:04.681 | I44: =VLOOKUP($C44,'Age Standards'!$B$3:$J$48,8,FALSE) -> 00:00:13 | J44: =VLOOKUP($C44,'Age Standards'!$B$3:$J$48,9,FALSE) -> 00:00:30.754 | K44: 00:23:26 | L44: =+Table6[[#This Row],[Column7]]+Table6[[#This Row],[Column10]] -> 01:01:29 | M44: =+Table6[[#This Row],[Column8]]+Table6[[#This Row],[Column11]] -> 01:40:30.754 | N44: 00:00:00 | O44: 00:25:42
A45: 1190 | B45: =VLOOKUP($A45,'[1]Racing numbers file'!$A$4:$G$400,2,FALSE) -> Lloyd Scott | C45: =VLOOKUP($A45,'[1]Racing numbers file'!$A$4:$G$400,5,FALSE) -> 954 | D45: =VLOOKUP($A45,'[1]Racing numbers file'!$A$4:$H$400,8,FALSE) -> M | E45: 00:25:01 | F45: 01:02:13 | G45: 01:40:00 | H45: =VLOOKUP($C45,'Age Standards'!$B$3:$J$48,7,FALSE) ->  | I45: =VLOOKUP($C45,'Age Standards'!$B$3:$J$48,8,FALSE) ->  | J45: =VLOOKUP($C45,'Age Standards'!$B$3:$J$48,9,FALSE) ->  | K45: =+Table6[[#This Row],[Column6]]+Table6[[#This Row],[Column9]] ->  | L45: =+Table6[[#This Row],[Column7]]+Table6[[#This Row],[Column10]] ->  | M45: =+Table6[[#This Row],[Column8]]+Table6[[#This Row],[Column11]] ->  | N45: 00:00:00 | O45: 00:25:42
A46: 1195 | B46: =VLOOKUP($A46,'[1]Racing numbers file'!$A$4:$G$400,2,FALSE) -> Willie McDonald | C46: =VLOOKUP($A46,'[1]Racing numbers file'!$A$4:$G$400,5,FALSE) -> 54 | D46: =VLOOKUP($A46,'[1]Racing numbers file'!$A$4:$H$400,8,FALSE) -> M | E46: 00:20:00 | F46: 00:40:00 | G46: 01:40:00 | H46: =VLOOKUP($C46,'Age Standards'!$B$3:$J$48,7,FALSE) -> 00:00:04.667 | I46: =VLOOKUP($C46,'Age Standards'!$B$3:$J$48,8,FALSE) -> 00:00:13 | J46: =VLOOKUP($C46,'Age Standards'!$B$3:$J$48,9,FALSE) -> 00:00:29.796 | K46: 00:20:00 | L46: 00:50:00 | M46: 01:40:00 | N46: 00:00:00 | O46: 00:25:42
A47: 1196 | B47: =VLOOKUP($A47,'[1]Racing numbers file'!$A$4:$G$400,2,FALSE) -> Tom Barber | C47: =VLOOKUP($A47,'[1]Racing numbers file'!$A$4:$G$400,5,FALSE) -> 54 | D47: =VLOOKUP($A47,'[1]Racing numbers file'!$A$4:$H$400,8,FALSE) -> M | E47: 00:25:12 | F47: 01:07:47 | G47: 02:19:17.692 | H47: =VLOOKUP($C47,'Age Standards'!$B$3:$J$48,7,FALSE) -> 00:00:04.667 | I47: =VLOOKUP($C47,'Age Standards'!$B$3:$J$48,8,FALSE) -> 00:00:13 | J47: =VLOOKUP($C47,'Age Standards'!$B$3:$J$48,9,FALSE) -> 00:00:29.796 | K47: 00:25:12 | L47: =+Table6[[#This Row],[Column7]]+Table6[[#This Row],[Column10]] -> 01:08:00 | M47: =+Table6[[#This Row],[Column8]]+Table6[[#This Row],[Column11]] -> 02:19:47.487 | N47: 00:00:00 | O47: 00:25:42
A48: 1197 | B48: =VLOOKUP($A48,'[1]Racing numbers file'!$A$4:$G$400,2,FALSE) -> Dermot Moyne | C48: =VLOOKUP($A48,'[1]Racing numbers file'!$A$4:$G$400,5,FALSE) -> 54 | D48: =VLOOKUP($A48,'[1]Racing numbers file'!$A$4:$H$400,8,FALSE) -> M | E48: 00:23:33 | F48: 01:00:21 | G48: 02:19:17.692 | H48: =VLOOKUP($C48,'Age Standards'!$B$3:$J$48,7,FALSE) -> 00:00:04.667 | I48: =VLOOKUP($C48,'Age Standards'!$B$3:$J$48,8,FALSE) -> 00:00:13 | J48: =VLOOKUP($C48,'Age Standards'!$B$3:$J$48,9,FALSE) -> 00:00:29.796 | K48: =+Table6[[#This Row],[Column6]]+Table6[[#This Row],[Column9]] -> 00:23:37.667 | L48: =+Table6[[#This Row],[Column7]]+Table6[[#This Row],[Column10]] -> 01:00:34 | M48: =+Table6[[#This Row],[Column8]]+Table6[[#This Row],[Column11]] -> 02:19:47.487 | N48: 00:00:00 | O48: 00:31:28
A49: 1213 | B49: =VLOOKUP($A49,'[1]Racing numbers file'!$A$4:$G$400,2,FALSE) -> Lloyd Berry | C49: =VLOOKUP($A49,'[1]Racing numbers file'!$A$4:$G$400,5,FALSE) -> 52 | D49: =VLOOKUP($A49,'[1]Racing numbers file'!$A$4:$H$400,8,FALSE) -> M | E49: 00:22:47.623 | F49: 00:59:03 | G49: 02:01:05.485 | H49: =VLOOKUP($C49,'Age Standards'!$B$3:$J$48,7,FALSE) -> 00:00:04.638 | I49: =VLOOKUP($C49,'Age Standards'!$B$3:$J$48,8,FALSE) -> 00:00:12 | J49: =VLOOKUP($C49,'Age Standards'!$B$3:$J$48,9,FALSE) -> 00:00:29.588 | K49: =+Table6[[#This Row],[Column6]]+Table6[[#This Row],[Column9]] -> 00:22:52.261 | L49: =+Table6[[#This Row],[Column7]]+Table6[[#This Row],[Column10]] -> 00:59:15 | M49: =+Table6[[#This Row],[Column8]]+Table6[[#This Row],[Column11]] -> 02:01:35.073 | N49: 00:09:12 | O49: 00:25:42
A50: 1214 | B50: =VLOOKUP($A50,'[1]Racing numbers file'!$A$4:$G$400,2,FALSE) -> Robert Kehoe | C50: =VLOOKUP($A50,'[1]Racing numbers file'!$A$4:$G$400,5,FALSE) -> 52 | D50: =VLOOKUP($A50,'[1]Racing numbers file'!$A$4:$H$400,8,FALSE) -> M | E50: 00:25:14.624 | F50: 01:04:36 | G50: 01:40:00 | H50: =VLOOKUP($C50,'Age Standards'!$B$3:$J$48,7,FALSE) -> 00:00:04.638 | I50: =VLOOKUP($C50,'Age Standards'!$B$3:$J$48,8,FALSE) -> 00:00:12 | J50: =VLOOKUP($C50,'Age Standards'!$B$3:$J$48,9,FALSE) -> 00:00:29.588 | K50: =+Table6[[#This Row],[Column6]]+Table6[[#This Row],[Column9]] -> 00:25:19.261 | L50: =+Table6[[#This Row],[Column7]]+Table6[[#This Row],[Column10]] -> 01:04:48 | M50: 01:40:00 | N50: 00:08:38 | O50: 00:25:42
A51: 1224 | B51: =VLOOKUP($A51,'[1]Racing numbers file'!$A$4:$G$400,2,FALSE) -> Pat Byrne | C51: =VLOOKUP($A51,'[1]Racing numbers file'!$A$4:$G$400,5,FALSE) -> 52 | D51: =VLOOKUP($A51,'[1]Racing numbers file'!$A$4:$H$400,8,FALSE) -> M | E51: 00:23:20 | F51: 00:57:36 | G51: 01:58:34 | H51: =VLOOKUP($C51,'Age Standards'!$B$3:$J$48,7,FALSE) -> 00:00:04.638 | I51: =VLOOKUP($C51,'Age Standards'!$B$3:$J$48,8,FALSE) -> 00:00:12 | J51: =VLOOKUP($C51,'Age Standards'!$B$3:$J$48,9,FALSE) -> 00:00:29.588 | K51: 00:23:20 | L51: =+Table6[[#This Row],[Column7]]+Table6[[#This Row],[Column10]] -> 00:57:48 | M51: =+Table6[[#This Row],[Column8]]+Table6[[#This Row],[Column11]] -> 01:59:03.588 | N51: 00:09:05 | O51: 00:29:57
A52: 1227 | B52: =VLOOKUP($A52,'[1]Racing numbers file'!$A$4:$G$400,2,FALSE) -> Linus Devlin | C52: =VLOOKUP($A52,'[1]Racing numbers file'!$A$4:$G$400,5,FALSE) -> 52 | D52: =VLOOKUP($A52,'[1]Racing numbers file'!$A$4:$H$400,8,FALSE) -> M | E52: 00:23:12 | F52: 00:59:12 | G52: 02:07:08 | H52: =VLOOKUP($C52,'Age Standards'!$B$3:$J$48,7,FALSE) -> 00:00:04.638 | I52: =VLOOKUP($C52,'Age Standards'!$B$3:$J$48,8,FALSE) -> 00:00:12 | J52: =VLOOKUP($C52,'Age Standards'!$B$3:$J$48,9,FALSE) -> 00:00:29.588 | K52: =+Table6[[#This Row],[Column6]]+Table6[[#This Row],[Column9]] -> 00:23:16.638 | L52: =+Table6[[#This Row],[Column7]]+Table6[[#This Row],[Column10]] -> 00:59:24 | M52: =+Table6[[#This Row],[Column8]]+Table6[[#This Row],[Column11]] -> 02:07:37.588 | N52: 00:00:00 | O52: 00:25:42
A53: 1228 | B53: =VLOOKUP($A53,'[1]Racing numbers file'!$A$4:$G$400,2,FALSE) -> William McGonagle | C53: =VLOOKUP($A53,'[1]Racing numbers file'!$A$4:$G$400,5,FALSE) -> 52 | D53: =VLOOKUP($A53,'[1]Racing numbers file'!$A$4:$H$400,8,FALSE) -> M | E53: 00:25:39 | F53: 00:50:00 | G53: 01:40:00 | H53: =VLOOKUP($C53,'Age Standards'!$B$3:$J$48,7,FALSE) -> 00:00:04.638 | I53: =VLOOKUP($C53,'Age Standards'!$B$3:$J$48,8,FALSE) -> 00:00:12 | J53: =VLOOKUP($C53,'Age Standards'!$B$3:$J$48,9,FALSE) -> 00:00:29.588 | K53: =+Table6[[#This Row],[Column6]]+Table6[[#This Row],[Column9]] -> 00:25:43.638 | L53: =+Table6[[#This Row],[Column7]]+Table6[[#This Row],[Column10]] -> 00:50:12 | M53: 01:40:00 | N53: 01:00:00 | O53: 00:25:42
A54: 1230 | B54: =VLOOKUP($A54,'[1]Racing numbers file'!$A$4:$G$400,2,FALSE) -> Paul Cullinan | C54: =VLOOKUP($A54,'[1]Racing numbers file'!$A$4:$G$400,5,FALSE) -> 51 | D54: =VLOOKUP($A54,'[1]Racing numbers file'!$A$4:$H$400,8,FALSE) -> M | E54: 00:22:33.609 | F54: 00:59:26 | G54: 01:40:00 | H54: =VLOOKUP($C54,'Age Standards'!$B$3:$J$48,7,FALSE) -> 00:00:04.624 | I54: =VLOOKUP($C54,'Age Standards'!$B$3:$J$48,8,FALSE) -> 00:00:12 | J54: =VLOOKUP($C54,'Age Standards'!$B$3:$J$48,9,FALSE) -> 00:00:29.485 | K54: =+Table6[[#This Row],[Column6]]+Table6[[#This Row],[Column9]] -> 00:22:38.233 | L54: =+Table6[[#This Row],[Column7]]+Table6[[#This Row],[Column10]] -> 00:59:38 | M54: 01:40:00 | N54: 00:00:00 | O54: 11:25:00.999
A55: 1231 | B55: =VLOOKUP($A55,'[1]Racing numbers file'!$A$4:$G$400,2,FALSE) -> Billy Bourke | C55: =VLOOKUP($A55,'[1]Racing numbers file'!$A$4:$G$400,5,FALSE) -> 51 | D55: =VLOOKUP($A55,'[1]Racing numbers file'!$A$4:$H$400,8,FALSE) -> M | E55: 00:23:10.609 | F55: 01:01:05 | G55: 00:00:29.382 | H55: =VLOOKUP($C55,'Age Standards'!$B$3:$J$48,7,FALSE) -> 00:00:04.624 | I55: =VLOOKUP($C55,'Age Standards'!$B$3:$J$48,8,FALSE) -> 00:00:12 | J55: =VLOOKUP($C55,'Age Standards'!$B$3:$J$48,9,FALSE) -> 00:00:29.485 | K55: 00:23:11 | L55: 01:01:13 | M55: 01:40:00 | N55: 00:08:28 | O55: 00:25:42
A56: 1235 | B56: =VLOOKUP($A56,'[1]Racing numbers file'!$A$4:$G$400,2,FALSE) ->  | C56: =VLOOKUP($A56,'[1]Racing numbers file'!$A$4:$G$400,5,FALSE) ->  | D56: =VLOOKUP($A56,'[1]Racing numbers file'!$A$4:$H$400,8,FALSE) ->  | E56: 00:23:51 | F56: 00:50:00 | G56: 01:40:00 | H56: =VLOOKUP($C56,'Age Standards'!$B$3:$J$48,7,FALSE) ->  | I56: =VLOOKUP($C56,'Age Standards'!$B$3:$J$48,8,FALSE) ->  | J56: =VLOOKUP($C56,'Age Standards'!$B$3:$J$48,9,FALSE) ->  | K56: =+Table6[[#This Row],[Column6]]+Table6[[#This Row],[Column9]] ->  | L56: =+Table6[[#This Row],[Column7]]+Table6[[#This Row],[Column10]] ->  | M56: 01:40:00 | N56: 00:00:00 | O56: 00:25:42
A57: 1236 | B57: =VLOOKUP($A57,'[1]Racing numbers file'!$A$4:$G$400,2,FALSE) -> John Dillon | C57: =VLOOKUP($A57,'[1]Racing numbers file'!$A$4:$G$400,5,FALSE) -> 51 | D57: =VLOOKUP($A57,'[1]Racing numbers file'!$A$4:$H$400,8,FALSE) -> M | E57: 00:22:26.609 | F57: 00:57:43 | G57: 01:57:17.382 | H57: =VLOOKUP($C57,'Age Standards'!$B$3:$J$48,7,FALSE) -> 00:00:04.624 | I57: =VLOOKUP($C57,'Age Standards'!$B$3:$J$48,8,FALSE) -> 00:00:12 | J57: =VLOOKUP($C57,'Age Standards'!$B$3:$J$48,9,FALSE) -> 00:00:29.485 | K57: =+Table6[[#This Row],[Column6]]+Table6[[#This Row],[Column9]] -> 00:22:31.233 | L57: =+Table6[[#This Row],[Column7]]+Table6[[#This Row],[Column10]] -> 00:57:55 | M57: =+Table6[[#This Row],[Column8]]+Table6[[#This Row],[Column11]] -> 01:57:46.867 | N57: 00:08:19 | O57: 00:30:31
A58: 1252 | B58: =VLOOKUP($A58,'[1]Racing numbers file'!$A$4:$G$400,2,FALSE) -> Barry Swan | C58: =VLOOKUP($A58,'[1]Racing numbers file'!$A$4:$G$400,5,FALSE) -> 49 | D58: =VLOOKUP($A58,'[1]Racing numbers file'!$A$4:$H$400,8,FALSE) -> M | E58: 00:23:42.581 | F58: 01:01:37 | G58: 01:40:00 | H58: =VLOOKUP($C58,'Age Standards'!$B$3:$J$48,7,FALSE) -> 00:00:04.595 | I58: =VLOOKUP($C58,'Age Standards'!$B$3:$J$48,8,FALSE) -> 00:00:12 | J58: =VLOOKUP($C58,'Age Standards'!$B$3:$J$48,9,FALSE) -> 00:00:29.280 | K58: =+Table6[[#This Row],[Column6]]+Table6[[#This Row],[Column9]] -> 00:23:47.176 | L58: =+Table6[[#This Row],[Column7]]+Table6[[#This Row],[Column10]] -> 01:01:49 | M58: =+Table6[[#This Row],[Column8]]+Table6[[#This Row],[Column11]] -> 01:40:29.280 | N58: 00:07:54 | O58: 00:31:13
A59: 1255 | B59: =VLOOKUP($A59,'[1]Racing numbers file'!$A$4:$G$400,2,FALSE) -> Paul Dolan | C59: =VLOOKUP($A59,'[1]Racing numbers file'!$A$4:$G$400,5,FALSE) -> 49 | D59: =VLOOKUP($A59,'[1]Racing numbers file'!$A$4:$H$400,8,FALSE) -> M | E59: 00:22:34 | F59: 00:50:00 | G59: 01:40:00 | H59: =VLOOKUP($C59,'Age Standards'!$B$3:$J$48,7,FALSE) -> 00:00:04.595 | I59: =VLOOKUP($C59,'Age Standards'!$B$3:$J$48,8,FALSE) -> 00:00:12 | J59: =VLOOKUP($C59,'Age Standards'!$B$3:$J$48,9,FALSE) -> 00:00:29.280 | K59: 00:22:34 | L59: =+Table6[[#This Row],[Column7]]+Table6[[#This Row],[Column10]] -> 00:50:12 | M59: 01:40:00 | N59: 00:07:56 | O59: 00:25:42
A60: 1258 | B60: =VLOOKUP($A60,'[1]Racing numbers file'!$A$4:$G$400,2,FALSE) -> Rodney Joyce | C60: =VLOOKUP($A60,'[1]Racing numbers file'!$A$4:$G$400,5,FALSE) -> 49 | D60: =VLOOKUP($A60,'[1]Racing numbers file'!$A$4:$H$400,8,FALSE) -> M | E60: 00:24:29 | F60: 01:03:34 | G60: 02:22:04 | H60: =VLOOKUP($C60,'Age Standards'!$B$3:$J$48,7,FALSE) -> 00:00:04.595 | I60: =VLOOKUP($C60,'Age Standards'!$B$3:$J$48,8,FALSE) -> 00:00:12 | J60: =VLOOKUP($C60,'Age Standards'!$B$3:$J$48,9,FALSE) -> 00:00:29.280 | K60: 00:24:29 | L60: 01:03:34 | M60: =+Table6[[#This Row],[Column8]]+Table6[[#This Row],[Column11]] -> 02:22:33.280 | N60: 00:10:32 | O60: 00:32:42
A61: 1259 | B61: =VLOOKUP($A61,'[1]Racing numbers file'!$A$4:$G$400,2,FALSE) -> Mark Prendergast | C61: =VLOOKUP($A61,'[1]Racing numbers file'!$A$4:$G$400,5,FALSE) -> 49 | D61: =VLOOKUP($A61,'[1]Racing numbers file'!$A$4:$H$400,8,FALSE) -> M | E61: 00:22:29 | F61: 00:57:20 | G61: 01:59:12 | H61: =VLOOKUP($C61,'Age Standards'!$B$3:$J$48,7,FALSE) -> 00:00:04.595 | I61: =VLOOKUP($C61,'Age Standards'!$B$3:$J$48,8,FALSE) -> 00:00:12 | J61: =VLOOKUP($C61,'Age Standards'!$B$3:$J$48,9,FALSE) -> 00:00:29.280 | K61: 00:22:29 | L61: =+Table6[[#This Row],[Column7]]+Table6[[#This Row],[Column10]] -> 00:57:32 | M61: =+Table6[[#This Row],[Column8]]+Table6[[#This Row],[Column11]] -> 01:59:41.280 | N61: 00:00:00 | O61: 00:29:27
A62: 1261 | B62: =VLOOKUP($A62,'[1]Racing numbers file'!$A$4:$G$400,2,FALSE) -> Leonard Carrigan | C62: =VLOOKUP($A62,'[1]Racing numbers file'!$A$4:$G$400,5,FALSE) -> 49 | D62: =VLOOKUP($A62,'[1]Racing numbers file'!$A$4:$H$400,8,FALSE) -> M | E62: 00:24:57 | F62: 00:50:00 | G62: 01:40:00 | H62: =VLOOKUP($C62,'Age Standards'!$B$3:$J$48,7,FALSE) -> 00:00:04.595 | I62: =VLOOKUP($C62,'Age Standards'!$B$3:$J$48,8,FALSE) -> 00:00:12 | J62: =VLOOKUP($C62,'Age Standards'!$B$3:$J$48,9,FALSE) -> 00:00:29.280 | K62: 00:24:57 | L62: 00:50:00 | M62: 01:40:00 | N62: 00:00:00 | O62: 00:25:42
A63: 1263 | B63: =VLOOKUP($A63,'[1]Racing numbers file'!$A$4:$G$400,2,FALSE) -> Shay Dalton | C63: =VLOOKUP($A63,'[1]Racing numbers file'!$A$4:$G$400,5,FALSE) -> 49 | D63: =VLOOKUP($A63,'[1]Racing numbers file'!$A$4:$H$400,8,FALSE) -> M | E63: 00:20:00 | F63: 00:50:00 | G63: 01:40:00 | H63: =VLOOKUP($C63,'Age Standards'!$B$3:$J$48,7,FALSE) -> 00:00:04.595 | I63: =VLOOKUP($C63,'Age Standards'!$B$3:$J$48,8,FALSE) -> 00:00:12 | J63: =VLOOKUP($C63,'Age Standards'!$B$3:$J$48,9,FALSE) -> 00:00:29.280 | K63: 00:20:00 | L63: 00:50:00 | M63: 01:40:00 | N63: 00:00:00 | O63: 00:25:42
A64: 1266 | B64: =VLOOKUP($A64,'[1]Racing numbers file'!$A$4:$G$400,2,FALSE) -> Mick Hennessy | C64: =VLOOKUP($A64,'[1]Racing numbers file'!$A$4:$G$400,5,FALSE) -> 48 | D64: =VLOOKUP($A64,'[1]Racing numbers file'!$A$4:$H$400,8,FALSE) -> M | E64: 00:22:18 | F64: 00:58:29 | G64: 02:04:22.076 | H64: =VLOOKUP($C64,'Age Standards'!$B$3:$J$48,7,FALSE) -> 00:00:04.581 | I64: =VLOOKUP($C64,'Age Standards'!$B$3:$J$48,8,FALSE) -> 00:00:12 | J64: =VLOOKUP($C64,'Age Standards'!$B$3:$J$48,9,FALSE) -> 00:00:29.177 | K64: =+Table6[[#This Row],[Column6]]+Table6[[#This Row],[Column9]] -> 00:22:22.581 | L64: =+Table6[[#This Row],[Column7]]+Table6[[#This Row],[Column10]] -> 00:58:41 | M64: =+Table6[[#This Row],[Column8]]+Table6[[#This Row],[Column11]] -> 02:04:51.253 | N64: 00:09:09 | O64: 00:32:15
A65: 1281 | B65: =VLOOKUP($A65,'[1]Racing numbers file'!$A$4:$G$400,2,FALSE) -> Cathal Miller | C65: =VLOOKUP($A65,'[1]Racing numbers file'!$A$4:$G$400,5,FALSE) -> 48 | D65: =VLOOKUP($A65,'[1]Racing numbers file'!$A$4:$H$400,8,FALSE) -> M | E65: 00:20:00 | F65: 00:50:00 | G65: 01:40:00 | H65: =VLOOKUP($C65,'Age Standards'!$B$3:$J$48,7,FALSE) -> 00:00:04.581 | I65: =VLOOKUP($C65,'Age Standards'!$B$3:$J$48,8,FALSE) -> 00:00:12 | J65: =VLOOKUP($C65,'Age Standards'!$B$3:$J$48,9,FALSE) -> 00:00:29.177 | K65: 00:20:00 | L65: 00:50:00 | M65: 01:40:00 | N65: 00:00:00 | O65: 00:29:28
A66: 1284 | B66: =VLOOKUP($A66,'[1]Racing numbers file'!$A$4:$G$400,2,FALSE) -> Enda Smyth | C66: =VLOOKUP($A66,'[1]Racing numbers file'!$A$4:$G$400,5,FALSE) -> 47 | D66: =VLOOKUP($A66,'[1]Racing numbers file'!$A$4:$H$400,8,FALSE) -> M | E66: 00:24:33 | F66: 00:50:00 | G66: 01:40:00 | H66: =VLOOKUP($C66,'Age Standards'!$B$3:$J$48,7,FALSE) -> 00:00:04.567 | I66: =VLOOKUP($C66,'Age Standards'!$B$3:$J$48,8,FALSE) -> 00:00:11 | J66: =VLOOKUP($C66,'Age Standards'!$B$3:$J$48,9,FALSE) -> 00:00:29.076 | K66: =+Table6[[#This Row],[Column6]]+Table6[[#This Row],[Column9]] -> 00:24:37.567 | L66: =+Table6[[#This Row],[Column7]]+Table6[[#This Row],[Column10]] -> 00:50:11 | M66: =+Table6[[#This Row],[Column8]]+Table6[[#This Row],[Column11]] -> 01:40:29.076 | N66: 00:07:00 | O66: 00:36:15
A67: 1294 | B67: =VLOOKUP($A67,'[1]Racing numbers file'!$A$4:$G$400,2,FALSE) -> Mark Kidd | C67: =VLOOKUP($A67,'[1]Racing numbers file'!$A$4:$G$400,5,FALSE) -> 47 | D67: =VLOOKUP($A67,'[1]Racing numbers file'!$A$4:$H$400,8,FALSE) -> M | E67: 00:22:43 | F67: 00:50:00 | G67: 01:40:00 | H67: =VLOOKUP($C67,'Age Standards'!$B$3:$J$48,7,FALSE) -> 00:00:04.567 | I67: =VLOOKUP($C67,'Age Standards'!$B$3:$J$48,8,FALSE) -> 00:00:11 | J67: =VLOOKUP($C67,'Age Standards'!$B$3:$J$48,9,FALSE) -> 00:00:29.076 | K67: 00:22:43 | L67: =+Table6[[#This Row],[Column7]]+Table6[[#This Row],[Column10]] -> 00:50:11 | M67: 01:40:00 | N67: 00:08:42 | O67: 00:25:42
A68: 1303 | B68: =VLOOKUP($A68,'[1]Racing numbers file'!$A$4:$G$400,2,FALSE) -> Richard Dufficy | C68: =VLOOKUP($A68,'[1]Racing numbers file'!$A$4:$G$400,5,FALSE) -> 46 | D68: =VLOOKUP($A68,'[1]Racing numbers file'!$A$4:$H$400,8,FALSE) -> M | E68: 00:23:28.538 | F68: 00:50:00 | G68: 01:40:00 | H68: =VLOOKUP($C68,'Age Standards'!$B$3:$J$48,7,FALSE) -> 00:00:04.553 | I68: =VLOOKUP($C68,'Age Standards'!$B$3:$J$48,8,FALSE) -> 00:00:12 | J68: =VLOOKUP($C68,'Age Standards'!$B$3:$J$48,9,FALSE) -> 00:00:28.974 | K68: =+Table6[[#This Row],[Column6]]+Table6[[#This Row],[Column9]] -> 00:23:33.091 | L68: =+Table6[[#This Row],[Column7]]+Table6[[#This Row],[Column10]] -> 00:50:12 | M68: 01:40:00 | N68: 00:00:00 | O68: 00:32:04
A69: 1311 | B69: =VLOOKUP($A69,'[1]Racing numbers file'!$A$4:$G$400,2,FALSE) -> Deanne Sanders | C69: =VLOOKUP($A69,'[1]Racing numbers file'!$A$4:$G$400,5,FALSE) -> 45 | D69: =VLOOKUP($A69,'[1]Racing numbers file'!$A$4:$H$400,8,FALSE) -> F | E69: 00:25:01 | F69: 01:07:19 | G69: 02:16:34.321 | H69: =VLOOKUP($C69,'Age Standards'!$B$3:$J$48,7,FALSE) -> 00:00:04.538 | I69: =VLOOKUP($C69,'Age Standards'!$B$3:$J$48,8,FALSE) -> 00:00:12 | J69: =VLOOKUP($C69,'Age Standards'!$B$3:$J$48,9,FALSE) -> 00:00:28.873 | K69: =+Table6[[#This Row],[Column6]]+Table6[[#This Row],[Column9]] -> 00:25:05.538 | L69: =+Table6[[#This Row],[Column7]]+Table6[[#This Row],[Column10]] -> 01:07:31 | M69: =+Table6[[#This Row],[Column8]]+Table6[[#This Row],[Column11]] -> 02:17:03.194 | N69: 00:10:43 | O69: 00:25:42
A70: 1311 | B70: =VLOOKUP($A70,'[1]Racing numbers file'!$A$4:$G$400,2,FALSE) -> Deanne Sanders | C70: =VLOOKUP($A70,'[1]Racing numbers file'!$A$4:$G$400,5,FALSE) -> 45 | D70: =VLOOKUP($A70,'[1]Racing numbers file'!$A$4:$H$400,8,FALSE) -> F | E70: 00:27:04 | F70: 01:14:29 | G70: 01:40:00 | H70: =VLOOKUP(C70,'Age Standards'!B$52:J$102,7,FALSE) -> 00:00:04.902 | I70: =VLOOKUP(C70,'Age Standards'!B$52:J$102,8,FALSE) -> 00:00:12.960 | J70: =VLOOKUP(C70,'Age Standards'!B$52:J$102,9,FALSE) -> 00:00:31.183 | K70: 00:27:04 | L70: =+Table6[[#This Row],[Column7]]+Table6[[#This Row],[Column10]] -> 01:14:41.960 | M70: 01:40:00 | N70: 00:00:00 | O70: 00:25:42
A71: 1326 | B71: =VLOOKUP($A71,'[1]Racing numbers file'!$A$4:$G$400,2,FALSE) -> Andrew Kavanagh | C71: =VLOOKUP($A71,'[1]Racing numbers file'!$A$4:$G$400,5,FALSE) -> 45 | D71: =VLOOKUP($A71,'[1]Racing numbers file'!$A$4:$H$400,8,FALSE) -> M | E71: 00:23:12.609 | F71: 01:01:26 | G71: 01:40:00 | H71: =VLOOKUP($C71,'Age Standards'!$B$3:$J$48,7,FALSE) -> 00:00:04.538 | I71: =VLOOKUP($C71,'Age Standards'!$B$3:$J$48,8,FALSE) -> 00:00:12 | J71: =VLOOKUP($C71,'Age Standards'!$B$3:$J$48,9,FALSE) -> 00:00:28.873 | K71: =+Table6[[#This Row],[Column6]]+Table6[[#This Row],[Column9]] -> 00:23:17.148 | L71: =+Table6[[#This Row],[Column7]]+Table6[[#This Row],[Column10]] -> 01:01:38 | M71: 01:40:00 | N71: 00:00:00 | O71: 00:25:42
A72: 1328 | B72: =VLOOKUP($A72,'[1]Racing numbers file'!$A$4:$G$400,2,FALSE) -> Mark McCabe | C72: =VLOOKUP($A72,'[1]Racing numbers file'!$A$4:$G$400,5,FALSE) -> 45 | D72: =VLOOKUP($A72,'[1]Racing numbers file'!$A$4:$H$400,8,FALSE) -> M | E72: 00:20:00 | F72: 00:40:00 | G72: 01:40:00 | H72: =VLOOKUP($C72,'Age Standards'!$B$3:$J$48,7,FALSE) -> 00:00:04.538 | I72: =VLOOKUP($C72,'Age Standards'!$B$3:$J$48,8,FALSE) -> 00:00:12 | J72: =VLOOKUP($C72,'Age Standards'!$B$3:$J$48,9,FALSE) -> 00:00:28.873 | K72: 00:20:00 | L72: 00:50:00 | M72: 01:40:00 | N72: 00:00:00 | O72: 00:25:42
A73: 1339 | B73: =VLOOKUP($A73,'[1]Racing numbers file'!$A$4:$G$400,2,FALSE) -> Noel Conway | C73: =VLOOKUP($A73,'[1]Racing numbers file'!$A$4:$G$400,5,FALSE) -> 44 | D73: =VLOOKUP($A73,'[1]Racing numbers file'!$A$4:$H$400,8,FALSE) -> M | E73: 00:22:36 | F73: 00:58:36 | G73: 02:02:22 | H73: =VLOOKUP($C73,'Age Standards'!$B$3:$J$48,7,FALSE) -> 00:00:04.524 | I73: =VLOOKUP($C73,'Age Standards'!$B$3:$J$48,8,FALSE) -> 00:00:12 | J73: =VLOOKUP($C73,'Age Standards'!$B$3:$J$48,9,FALSE) -> 00:00:28.773 | K73: 00:22:36 | L73: 00:58:36 | M73: =+Table6[[#This Row],[Column8]]+Table6[[#This Row],[Column11]] -> 02:02:50.773 | N73: 00:08:02 | O73: 00:25:42
A74: 1348 | B74: =VLOOKUP($A74,'[1]Racing numbers file'!$A$4:$G$400,2,FALSE) -> Ciara Kinch | C74: =VLOOKUP($A74,'[1]Racing numbers file'!$A$4:$G$400,5,FALSE) -> 43 | D74: =VLOOKUP($A74,'[1]Racing numbers file'!$A$4:$H$400,8,FALSE) -> F | E74: 00:24:35 | F74: 01:05:16 | G74: 01:40:00 | H74: =VLOOKUP(C74,'Age Standards'!B$52:J$102,7,FALSE) -> 00:00:04.871 | I74: =VLOOKUP(C74,'Age Standards'!B$52:J$102,8,FALSE) -> 00:00:14.040 | J74: =VLOOKUP(C74,'Age Standards'!B$52:J$102,9,FALSE) -> 00:00:30.966 | K74: 00:24:35 | L74: =+Table6[[#This Row],[Column7]]+Table6[[#This Row],[Column10]] -> 01:05:30.040 | M74: 01:40:00 | N74: 00:00:00 | O74: 00:25:42
A75: 1351 | B75: =VLOOKUP($A75,'[1]Racing numbers file'!$A$4:$G$400,2,FALSE) ->  | C75: =VLOOKUP($A75,'[1]Racing numbers file'!$A$4:$G$400,5,FALSE) ->  | D75: =VLOOKUP($A75,'[1]Racing numbers file'!$A$4:$H$400,8,FALSE) ->  | E75: 00:22:34 | F75: 01:00:06 | G75: 01:40:00 | H75: =VLOOKUP($C75,'Age Standards'!$B$3:$J$48,7,FALSE) ->  | I75: =VLOOKUP($C75,'Age Standards'!$B$3:$J$48,8,FALSE) ->  | J75: =VLOOKUP($C75,'Age Standards'!$B$3:$J$48,9,FALSE) ->  | K75: 00:22:34 | L75: =+Table6[[#This Row],[Column7]]+Table6[[#This Row],[Column10]] ->  | M75: =+Table6[[#This Row],[Column8]]+Table6[[#This Row],[Column11]] ->  | N75: 00:00:00 | O75: 00:25:42
A76: 1360 | B76: =VLOOKUP($A76,'[1]Racing numbers file'!$A$4:$G$400,2,FALSE) -> David Kelly | C76: =VLOOKUP($A76,'[1]Racing numbers file'!$A$4:$G$400,5,FALSE) -> 61 | D76: =VLOOKUP($A76,'[1]Racing numbers file'!$A$4:$H$400,8,FALSE) -> M | E76: 00:20:00 | F76: 00:50:00 | G76: 01:40:00 | H76: =VLOOKUP($C76,'Age Standards'!$B$3:$J$48,7,FALSE) -> 00:00:05.077 | I76: =VLOOKUP($C76,'Age Standards'!$B$3:$J$48,8,FALSE) -> 00:00:17 | J76: =VLOOKUP($C76,'Age Standards'!$B$3:$J$48,9,FALSE) -> 00:00:38.469 | K76: 00:20:00 | L76: 00:50:00 | M76: 01:40:00 | N76: 00:10:47 | O76: 00:36:50
A77: 1363 | B77: =VLOOKUP($A77,'[1]Racing numbers file'!$A$4:$G$400,2,FALSE) -> Paul Faherty | C77: =VLOOKUP($A77,'[1]Racing numbers file'!$A$4:$G$400,5,FALSE) -> 42 | D77: =VLOOKUP($A77,'[1]Racing numbers file'!$A$4:$H$400,8,FALSE) -> M | E77: 00:20:00 | F77: 00:50:00 | G77: 01:40:00 | H77: =VLOOKUP($C77,'Age Standards'!$B$3:$J$48,7,FALSE) -> 00:00:04.496 | I77: =VLOOKUP($C77,'Age Standards'!$B$3:$J$48,8,FALSE) -> 00:00:13 | J77: =VLOOKUP($C77,'Age Standards'!$B$3:$J$48,9,FALSE) -> 00:00:28.572 | K77: 00:20:00 | L77: 00:50:00 | M77: 01:40:00 | N77: 00:00:00 | O77: 00:25:42
A78: 1374 | B78: =VLOOKUP($A78,'[1]Racing numbers file'!$A$4:$G$400,2,FALSE) -> Martin McCaffrey | C78: =VLOOKUP($A78,'[1]Racing numbers file'!$A$4:$G$400,5,FALSE) -> 52 | D78: =VLOOKUP($A78,'[1]Racing numbers file'!$A$4:$H$400,8,FALSE) -> M | E78: 00:20:00 | F78: 01:04:19 | G78: 01:40:00 | H78: =VLOOKUP($C78,'Age Standards'!$B$3:$J$48,7,FALSE) -> 00:00:04.638 | I78: =VLOOKUP($C78,'Age Standards'!$B$3:$J$48,8,FALSE) -> 00:00:12 | J78: =VLOOKUP($C78,'Age Standards'!$B$3:$J$48,9,FALSE) -> 00:00:29.588 | K78: =+Table6[[#This Row],[Column6]]+Table6[[#This Row],[Column9]] -> 00:20:04.638 | L78: 01:04:19 | M78: 01:40:00 | N78: 00:00:00 | O78: 00:25:42
A79: 1375 | B79: =VLOOKUP($A79,'[1]Racing numbers file'!$A$4:$G$400,2,FALSE) -> Paul Fahy | C79: =VLOOKUP($A79,'[1]Racing numbers file'!$A$4:$G$400,5,FALSE) -> 51 | D79: =VLOOKUP($A79,'[1]Racing numbers file'!$A$4:$H$400,8,FALSE) -> M | E79: 00:20:00 | F79: 00:50:00 | G79: 01:40:00 | H79: =VLOOKUP($C79,'Age Standards'!$B$3:$J$48,7,FALSE) -> 00:00:04.624 | I79: =VLOOKUP($C79,'Age Standards'!$B$3:$J$48,8,FALSE) -> 00:00:12 | J79: =VLOOKUP($C79,'Age Standards'!$B$3:$J$48,9,FALSE) -> 00:00:29.485 | K79: 00:20:00 | L79: 00:50:00 | M79: 01:40:00 | N79: 00:00:00 | O79: 00:25:42
A80: 1381 | B80: =VLOOKUP($A80,'[1]Racing numbers file'!$A$4:$G$400,2,FALSE) -> Aidan Hammond | C80: =VLOOKUP($A80,'[1]Racing numbers file'!$A$4:$G$400,5,FALSE) -> 47 | D80: =VLOOKUP($A80,'[1]Racing numbers file'!$A$4:$H$400,8,FALSE) -> M | E80: 00:20:00 | F80: 01:00:30 | G80: 01:40:28.974 | H80: =VLOOKUP($C80,'Age Standards'!$B$3:$J$48,7,FALSE) -> 00:00:04.567 | I80: =VLOOKUP($C80,'Age Standards'!$B$3:$J$48,8,FALSE) -> 00:00:11 | J80: =VLOOKUP($C80,'Age Standards'!$B$3:$J$48,9,FALSE) -> 00:00:29.076 | K80: 00:20:00 | L80: 01:00:30 | M80: 01:40:00 | N80: 00:00:00 | O80: 00:25:42
A81: 1387 | B81: =VLOOKUP($A81,'[1]Racing numbers file'!$A$4:$G$400,2,FALSE) -> Tony O'Malley | C81: =VLOOKUP($A81,'[1]Racing numbers file'!$A$4:$G$400,5,FALSE) -> 44 | D81: =VLOOKUP($A81,'[1]Racing numbers file'!$A$4:$H$400,8,FALSE) -> M | E81: 00:20:00 | F81: 00:58:39 | G81: 01:40:00 | H81: =VLOOKUP($C81,'Age Standards'!$B$3:$J$48,7,FALSE) -> 00:00:04.524 | I81: =VLOOKUP($C81,'Age Standards'!$B$3:$J$48,8,FALSE) -> 00:00:12 | J81: =VLOOKUP($C81,'Age Standards'!$B$3:$J$48,9,FALSE) -> 00:00:28.773 | K81: 00:20:00 | L81: 00:58:39 | M81: 01:40:00 | N81: 00:08:18 | O81: 00:25:42
A82: 1390 | B82: =VLOOKUP($A82,'[1]Racing numbers file'!$A$4:$G$400,2,FALSE) -> Donagh McArdle | C82: =VLOOKUP($A82,'[1]Racing numbers file'!$A$4:$G$400,5,FALSE) -> 48 | D82: =VLOOKUP($A82,'[1]Racing numbers file'!$A$4:$H$400,8,FALSE) -> M | E82: 00:24:38 | F82: 01:03:50 | G82: 02:13:08 | H82: =VLOOKUP($C82,'Age Standards'!$B$3:$J$48,7,FALSE) -> 00:00:04.581 | I82: =VLOOKUP($C82,'Age Standards'!$B$3:$J$48,8,FALSE) -> 00:00:12 | J82: =VLOOKUP($C82,'Age Standards'!$B$3:$J$48,9,FALSE) -> 00:00:29.177 | K82: =+Table6[[#This Row],[Column6]]+Table6[[#This Row],[Column9]] -> 00:24:42.581 | L82: =+Table6[[#This Row],[Column7]]+Table6[[#This Row],[Column10]] -> 01:04:02 | M82: =+Table6[[#This Row],[Column8]]+Table6[[#This Row],[Column11]] -> 02:13:37.177 | N82: 00:00:00 | O82: 00:25:42
A83: 1396 | B83: =VLOOKUP($A83,'[1]Racing numbers file'!$A$4:$G$400,2,FALSE) -> Cathal Murray | C83: =VLOOKUP($A83,'[1]Racing numbers file'!$A$4:$G$400,5,FALSE) -> 44 | D83: =VLOOKUP($A83,'[1]Racing numbers file'!$A$4:$H$400,8,FALSE) -> M | E83: 00:20:00 | F83: 00:59:21 | G83: 02:07:01 | H83: =VLOOKUP($C83,'Age Standards'!$B$3:$J$48,7,FALSE) -> 00:00:04.524 | I83: =VLOOKUP($C83,'Age Standards'!$B$3:$J$48,8,FALSE) -> 00:00:12 | J83: =VLOOKUP($C83,'Age Standards'!$B$3:$J$48,9,FALSE) -> 00:00:28.773 | K83: =+Table6[[#This Row],[Column6]]+Table6[[#This Row],[Column9]] -> 00:20:04.524 | L83: 00:59:21 | M83: =+Table6[[#This Row],[Column8]]+Table6[[#This Row],[Column11]] -> 02:07:29.773 | N83: 01:00:00 | O83: 00:25:42
A84: 1398 | B84: =VLOOKUP($A84,'[1]Racing numbers file'!$A$4:$G$400,2,FALSE) -> Aidan Yates | C84: =VLOOKUP($A84,'[1]Racing numbers file'!$A$4:$G$400,5,FALSE) -> 42 | D84: =VLOOKUP($A84,'[1]Racing numbers file'!$A$4:$H$400,8,FALSE) -> M | E84: 00:23:16 | F84: 00:58:21 | G84: 01:40:00 | H84: =VLOOKUP($C84,'Age Standards'!$B$3:$J$48,7,FALSE) -> 00:00:04.496 | I84: =VLOOKUP($C84,'Age Standards'!$B$3:$J$48,8,FALSE) -> 00:00:13 | J84: =VLOOKUP($C84,'Age Standards'!$B$3:$J$48,9,FALSE) -> 00:00:28.572 | K84: 00:23:16 | L84: 00:58:21 | M84: =+Table6[[#This Row],[Column8]]+Table6[[#This Row],[Column11]] -> 01:40:28.572 | N84: 01:00:00 | O84: 00:25:42
A85: 1402 | B85: =VLOOKUP($A85,'[1]Racing numbers file'!$A$4:$G$400,2,FALSE) -> Stephen Walsh | C85: =VLOOKUP($A85,'[1]Racing numbers file'!$A$4:$G$400,5,FALSE) -> 47 | D85: =VLOOKUP($A85,'[1]Racing numbers file'!$A$4:$H$400,8,FALSE) -> M | E85: 00:24:11 | F85: 00:50:00 | G85: 01:40:00 | H85: =VLOOKUP($C85,'Age Standards'!$B$3:$J$48,7,FALSE) -> 00:00:04.567 | I85: =VLOOKUP($C85,'Age Standards'!$B$3:$J$48,8,FALSE) -> 00:00:11 | J85: =VLOOKUP($C85,'Age Standards'!$B$3:$J$48,9,FALSE) -> 00:00:29.076 | K85: =+Table6[[#This Row],[Column6]]+Table6[[#This Row],[Column9]] -> 00:24:15.567 | L85: =+Table6[[#This Row],[Column7]]+Table6[[#This Row],[Column10]] -> 00:50:11 | M85: =+Table6[[#This Row],[Column8]]+Table6[[#This Row],[Column11]] -> 01:40:29.076 | N85: 01:00:00 | O85: 00:25:42
A86: 1405 | B86: =VLOOKUP($A86,'[1]Racing numbers file'!$A$4:$G$400,2,FALSE) -> Anthony O'Malley | C86: =VLOOKUP($A86,'[1]Racing numbers file'!$A$4:$G$400,5,FALSE) -> 48 | D86: =VLOOKUP($A86,'[1]Racing numbers file'!$A$4:$H$400,8,FALSE) -> M | E86: 00:20:00 | F86: 00:50:00 | G86: 01:40:00 | H86: =VLOOKUP($C86,'Age Standards'!$B$3:$J$48,7,FALSE) -> 00:00:04.581 | I86: =VLOOKUP($C86,'Age Standards'!$B$3:$J$48,8,FALSE) -> 00:00:12 | J86: =VLOOKUP($C86,'Age Standards'!$B$3:$J$48,9,FALSE) -> 00:00:29.177 | K86: 00:20:00 | L86: 00:50:00 | M86: 01:40:00 | N86: 00:00:00 | O86: 00:25:42
A87: 1416 | B87: =VLOOKUP($A87,'[1]Racing numbers file'!$A$4:$G$400,2,FALSE) -> Barry Dace | C87: =VLOOKUP($A87,'[1]Racing numbers file'!$A$4:$G$400,5,FALSE) -> 42 | D87: =VLOOKUP($A87,'[1]Racing numbers file'!$A$4:$H$400,8,FALSE) -> M | E87: 00:23:06 | F87: 00:58:56 | G87: 02:02:47 | H87: =VLOOKUP($C87,'Age Standards'!$B$3:$J$48,7,FALSE) -> 00:00:04.496 | I87: =VLOOKUP($C87,'Age Standards'!$B$3:$J$48,8,FALSE) -> 00:00:13 | J87: =VLOOKUP($C87,'Age Standards'!$B$3:$J$48,9,FALSE) -> 00:00:28.572 | K87: 00:23:06 | L87: 00:58:56 | M87: 02:02:47 | N87: 00:00:00 | O87: 00:25:42
B88: =VLOOKUP($A88,'[1]Racing numbers file'!$A$4:$G$400,2,FALSE) ->  | C88: =VLOOKUP($A88,'[1]Racing numbers file'!$A$4:$G$400,5,FALSE) ->  | D88: =VLOOKUP($A88,'[1]Racing numbers file'!$A$4:$H$400,8,FALSE) ->  | E88: 02:20:00 | H88: =VLOOKUP($C88,'Age Standards'!$B$3:$J$48,7,FALSE) ->  | I88: =VLOOKUP($C88,'Age Standards'!$B$3:$J$48,8,FALSE) ->  | J88: =VLOOKUP($C88,'Age Standards'!$B$3:$J$48,9,FALSE) ->  | K88: 00:20:00 | L88: 00:50:00 | M88: 01:40:00 | N88: 00:00:00 | O88: 00:00:00
A89: 1420 | B89: =VLOOKUP($A89,'[1]Racing numbers file'!$A$4:$G$400,2,FALSE) -> Ian O'Hara | C89: =VLOOKUP($A89,'[1]Racing numbers file'!$A$4:$G$400,5,FALSE) -> 44 | D89: =VLOOKUP($A89,'[1]Racing numbers file'!$A$4:$H$400,8,FALSE) -> M | E89: 00:20:00 | F89: 00:50:00 | G89: 01:40:00 | H89: =VLOOKUP($C89,'Age Standards'!$B$3:$J$48,7,FALSE) -> 00:00:04.524 | I89: =VLOOKUP($C89,'Age Standards'!$B$3:$J$48,8,FALSE) -> 00:00:12 | J89: =VLOOKUP($C89,'Age Standards'!$B$3:$J$48,9,FALSE) -> 00:00:28.773 | K89: 00:20:00 | L89: 00:50:00 | M89: 01:40:00 | N89: 00:00:00 | O89: 00:25:42
A90: 1426 | B90: =VLOOKUP($A90,'[1]Racing numbers file'!$A$4:$G$400,2,FALSE) -> Seán Bracken | C90: =VLOOKUP($A90,'[1]Racing numbers file'!$A$4:$G$400,5,FALSE) -> 56 | D90: =VLOOKUP($A90,'[1]Racing numbers file'!$A$4:$H$400,8,FALSE) -> M | E90: 00:22:58 | F90: 00:50:00 | G90: 01:40:00 | H90: =VLOOKUP($C90,'Age Standards'!$B$3:$J$48,7,FALSE) -> 00:00:04.696 | I90: =VLOOKUP($C90,'Age Standards'!$B$3:$J$48,8,FALSE) -> 00:00:14 | J90: =VLOOKUP($C90,'Age Standards'!$B$3:$J$48,9,FALSE) -> 00:00:31.722 | K90: 00:22:58 | L90: 00:50:00 | M90: 01:40:00 | N90: 00:00:00 | O90: 00:25:42
A91: 1427 | B91: =VLOOKUP($A91,'[1]Racing numbers file'!$A$4:$G$400,2,FALSE) -> David Carroll | C91: =VLOOKUP($A91,'[1]Racing numbers file'!$A$4:$G$400,5,FALSE) -> 45 | D91: =VLOOKUP($A91,'[1]Racing numbers file'!$A$4:$H$400,8,FALSE) -> M | E91: 00:22:01 | F91: 00:54:56 | G91: 01:40:00 | H91: =VLOOKUP($C91,'Age Standards'!$B$3:$J$48,7,FALSE) -> 00:00:04.538 | I91: =VLOOKUP($C91,'Age Standards'!$B$3:$J$48,8,FALSE) -> 00:00:12 | J91: =VLOOKUP($C91,'Age Standards'!$B$3:$J$48,9,FALSE) -> 00:00:28.873 | K91: 00:22:01 | L91: 00:54:56 | M91: 01:40:00 | N91: 00:00:00 | O91: 00:29:01
A92: 1438 | B92: =VLOOKUP($A92,'[1]Racing numbers file'!$A$4:$G$400,2,FALSE) -> Neil Delahaye | C92: =VLOOKUP($A92,'[1]Racing numbers file'!$A$4:$G$400,5,FALSE) -> 41 | D92: =VLOOKUP($A92,'[1]Racing numbers file'!$A$4:$H$400,8,FALSE) -> M | E92: 00:21:10 | F92: 00:54:20 | G92: 01:40:00 | H92: =VLOOKUP($C92,'Age Standards'!$B$3:$J$48,7,FALSE) -> 00:00:04.483 | I92: =VLOOKUP($C92,'Age Standards'!$B$3:$J$48,8,FALSE) -> 00:00:13 | J92: =VLOOKUP($C92,'Age Standards'!$B$3:$J$48,9,FALSE) -> 00:00:28.473 | K92: 00:21:10 | L92: =+Table6[[#This Row],[Column7]]+Table6[[#This Row],[Column10]] -> 00:54:33 | M92: 01:40:00 | N92: 00:07:37 | O92: 00:25:42
A93: 1439 | B93: =VLOOKUP($A93,'[1]Racing numbers file'!$A$4:$G$400,2,FALSE) ->  | C93: =VLOOKUP($A93,'[1]Racing numbers file'!$A$4:$G$400,5,FALSE) ->  | D93: =VLOOKUP($A93,'[1]Racing numbers file'!$A$4:$H$400,8,FALSE) ->  | E93: 00:20:00 | F93: 00:50:00 | G93: 01:40:00 | H93: =VLOOKUP($C93,'Age Standards'!$B$3:$J$48,7,FALSE) ->  | I93: =VLOOKUP($C93,'Age Standards'!$B$3:$J$48,8,FALSE) ->  | J93: =VLOOKUP($C93,'Age Standards'!$B$3:$J$48,9,FALSE) ->  | K93: 00:20:00 | L93: 00:50:00 | M93: 01:40:00 | N93: 00:00:00 | O93: 00:25:42
A94: 1441 | B94: =VLOOKUP($A94,'[1]Racing numbers file'!$A$4:$G$400,2,FALSE) -> David Bradley | C94: =VLOOKUP($A94,'[1]Racing numbers file'!$A$4:$G$400,5,FALSE) -> 44 | D94: =VLOOKUP($A94,'[1]Racing numbers file'!$A$4:$H$400,8,FALSE) -> M | E94: 00:20:00 | F94: 00:50:00 | G94: 01:40:00 | H94: =VLOOKUP($C94,'Age Standards'!$B$3:$J$48,7,FALSE) -> 00:00:04.524 | I94: =VLOOKUP($C94,'Age Standards'!$B$3:$J$48,8,FALSE) -> 00:00:12 | J94: =VLOOKUP($C94,'Age Standards'!$B$3:$J$48,9,FALSE) -> 00:00:28.773 | K94: 00:20:00 | L94: 00:50:00 | M94: 01:40:00 | N94: 00:08:52 | O94: 00:25:42
A95: 1446 | B95: =VLOOKUP($A95,'[1]Racing numbers file'!$A$4:$G$400,2,FALSE) -> David McDonald | C95: =VLOOKUP($A95,'[1]Racing numbers file'!$A$4:$G$400,5,FALSE) -> 44 | D95: =VLOOKUP($A95,'[1]Racing numbers file'!$A$4:$H$400,8,FALSE) -> M | E95: 00:20:00 | F95: 00:50:00 | G95: 01:40:00 | H95: =VLOOKUP($C95,'Age Standards'!$B$3:$J$48,7,FALSE) -> 00:00:04.524 | I95: =VLOOKUP($C95,'Age Standards'!$B$3:$J$48,8,FALSE) -> 00:00:12 | J95: =VLOOKUP($C95,'Age Standards'!$B$3:$J$48,9,FALSE) -> 00:00:28.773 | K95: 00:20:00 | L95: 00:50:00 | M95: 01:40:00 | N95: 00:00:00 | O95: 00:25:42
A96: 1451 | B96: =VLOOKUP($A96,'[1]Racing numbers file'!$A$4:$G$400,2,FALSE) -> Andreas Voigt | C96: =VLOOKUP($A96,'[1]Racing numbers file'!$A$4:$G$400,5,FALSE) -> 44 | D96: =VLOOKUP($A96,'[1]Racing numbers file'!$A$4:$H$400,8,FALSE) -> M | E96: 00:20:00 | F96: 00:50:00 | G96: 01:40:00 | H96: =VLOOKUP($C96,'Age Standards'!$B$3:$J$48,7,FALSE) -> 00:00:04.524 | I96: =VLOOKUP($C96,'Age Standards'!$B$3:$J$48,8,FALSE) -> 00:00:12 | J96: =VLOOKUP($C96,'Age Standards'!$B$3:$J$48,9,FALSE) -> 00:00:28.773 | K96: 00:20:00 | L96: 00:50:00 | M96: 01:40:00 | N96: 00:00:00 | O96: 00:25:42
A97: 1462 | B97: =VLOOKUP($A97,'[1]Racing numbers file'!$A$4:$G$400,2,FALSE) ->  | C97: =VLOOKUP($A97,'[1]Racing numbers file'!$A$4:$G$400,5,FALSE) ->  | D97: =VLOOKUP($A97,'[1]Racing numbers file'!$A$4:$H$400,8,FALSE) ->  | E97: 00:20:00 | F97: 00:50:00 | G97: 01:40:00 | H97: =VLOOKUP($C97,'Age Standards'!$B$3:$J$48,7,FALSE) ->  | I97: =VLOOKUP($C97,'Age Standards'!$B$3:$J$48,8,FALSE) ->  | J97: =VLOOKUP($C97,'Age Standards'!$B$3:$J$48,9,FALSE) ->  | K97: 00:20:00 | L97: 00:50:00 | M97: 01:40:00 | N97: 01:00:00 | O97: 00:25:42
A98: 1466 | B98: =VLOOKUP($A98,'[1]Racing numbers file'!$A$4:$G$400,2,FALSE) -> Andrew Bartley | C98: =VLOOKUP($A98,'[1]Racing numbers file'!$A$4:$G$400,5,FALSE) -> 51 | D98: =VLOOKUP($A98,'[1]Racing numbers file'!$A$4:$H$400,8,FALSE) -> M | E98: 00:20:00 | F98: 00:50:00 | G98: 01:40:00 | H98: =VLOOKUP($C98,'Age Standards'!$B$3:$J$48,7,FALSE) -> 00:00:04.624 | I98: =VLOOKUP($C98,'Age Standards'!$B$3:$J$48,8,FALSE) -> 00:00:12 | J98: =VLOOKUP($C98,'Age Standards'!$B$3:$J$48,9,FALSE) -> 00:00:29.485 | K98: 00:20:00 | L98: 00:50:00 | M98: 01:40:00 | N98: 00:00:00 | O98: 00:25:42
A99: 1471 | B99: =VLOOKUP($A99,'[1]Racing numbers file'!$A$4:$G$400,2,FALSE) -> Ed O'Brien | C99: =VLOOKUP($A99,'[1]Racing numbers file'!$A$4:$G$400,5,FALSE) -> 41 | D99: =VLOOKUP($A99,'[1]Racing numbers file'!$A$4:$H$400,8,FALSE) -> M | E99: 00:22:17 | F99: 00:57:15 | G99: 01:40:00 | H99: =VLOOKUP($C99,'Age Standards'!$B$3:$J$48,7,FALSE) -> 00:00:04.483 | I99: =VLOOKUP($C99,'Age Standards'!$B$3:$J$48,8,FALSE) -> 00:00:13 | J99: =VLOOKUP($C99,'Age Standards'!$B$3:$J$48,9,FALSE) -> 00:00:28.473 | K99: 00:22:17 | L99: 00:57:15 | M99: 01:40:00 | N99: 00:09:48 | O99: 00:30:28
A100: 1472 | B100: =VLOOKUP($A100,'[1]Racing numbers file'!$A$4:$G$400,2,FALSE) -> Caroline Martinez | C100: =VLOOKUP($A100,'[1]Racing numbers file'!$A$4:$G$400,5,FALSE) -> 37 | D100: =VLOOKUP($A100,'[1]Racing numbers file'!$A$4:$H$400,8,FALSE) -> F | E100: 00:20:00 | F100: 00:50:00 | G100: 01:40:00 | H100: =VLOOKUP(C100,'Age Standards'!B$52:J$102,7,FALSE) -> 00:00:05 | I100: =VLOOKUP(C100,'Age Standards'!B$52:J$102,8,FALSE) -> 00:00:14 | J100: =VLOOKUP(C100,'Age Standards'!B$52:J$102,9,FALSE) -> 00:00:31 | K100: 00:20:00 | L100: 00:50:00 | M100: 01:40:00 | N100: 00:00:00 | O100: 00:25:42
A101: 1473 | B101: =VLOOKUP($A101,'[1]Racing numbers file'!$A$4:$G$400,2,FALSE) ->  | C101: =VLOOKUP($A101,'[1]Racing numbers file'!$A$4:$G$400,5,FALSE) ->  | D101: =VLOOKUP($A101,'[1]Racing numbers file'!$A$4:$H$400,8,FALSE) ->  | E101: 00:20:00 | F101: 00:50:00 | G101: 01:40:00 | H101: =VLOOKUP($C101,'Age Standards'!$B$3:$J$48,7,FALSE) ->  | I101: =VLOOKUP($C101,'Age Standards'!$B$3:$J$48,8,FALSE) ->  | J101: =VLOOKUP($C101,'Age Standards'!$B$3:$J$48,9,FALSE) ->  | K101: 00:20:00 | L101: 00:50:00 | M101: 01:40:00 | N101: 00:00:00 | O101: 00:25:42
A102: 1488 | B102: =VLOOKUP($A102,'[1]Racing numbers file'!$A$4:$G$400,2,FALSE) -> Conor Barry | C102: =VLOOKUP($A102,'[1]Racing numbers file'!$A$4:$G$400,5,FALSE) -> 43 | D102: =VLOOKUP($A102,'[1]Racing numbers file'!$A$4:$H$400,8,FALSE) -> M | E102: 00:20:00 | F102: 00:40:00 | G102: 01:40:00 | H102: =VLOOKUP($C102,'Age Standards'!$B$3:$J$48,7,FALSE) -> 00:00:04.510 | I102: =VLOOKUP($C102,'Age Standards'!$B$3:$J$48,8,FALSE) -> 00:00:13 | J102: =VLOOKUP($C102,'Age Standards'!$B$3:$J$48,9,FALSE) -> 00:00:28.672 | K102: 00:20:00 | L102: 00:50:00 | M102: 01:40:00 | N102: 00:00:00 | O102: 00:25:42
A103: 1519 | B103: =VLOOKUP($A103,'[1]Racing numbers file'!$A$4:$G$400,2,FALSE) -> John Kehoe | C103: =VLOOKUP($A103,'[1]Racing numbers file'!$A$4:$G$400,5,FALSE) -> 47 | D103: =VLOOKUP($A103,'[1]Racing numbers file'!$A$4:$H$400,8,FALSE) -> M | E103: 00:20:00 | F103: 00:40:00 | G103: 01:40:00 | H103: =VLOOKUP($C103,'Age Standards'!$B$3:$J$48,7,FALSE) -> 00:00:04.567 | I103: =VLOOKUP($C103,'Age Standards'!$B$3:$J$48,8,FALSE) -> 00:00:11 | J103: =VLOOKUP($C103,'Age Standards'!$B$3:$J$48,9,FALSE) -> 00:00:29.076 | K103: 00:20:00 | L103: 00:50:00 | M103: 01:40:00 | N103: 00:00:00 | O103: 00:25:42
A104: 1530 | B104: =VLOOKUP($A104,'[1]Racing numbers file'!$A$4:$G$400,2,FALSE) -> Brian Kane | C104: =VLOOKUP($A104,'[1]Racing numbers file'!$A$4:$G$400,5,FALSE) -> 41 | D104: =VLOOKUP($A104,'[1]Racing numbers file'!$A$4:$H$400,8,FALSE) -> M | E104: =VLOOKUP($A104,'[1]Racing numbers file'!$A$4:$H$400,8,FALSE) -> M | F104: =VLOOKUP($A104,'[1]Racing numbers file'!$A$4:$H$400,8,FALSE) -> M | G104: =VLOOKUP($A104,'[1]Racing numbers file'!$A$4:$H$400,8,FALSE) -> M | H104: =VLOOKUP($A104,'[1]Racing numbers file'!$A$4:$H$400,8,FALSE) -> M | I104: =VLOOKUP($A104,'[1]Racing numbers file'!$A$4:$H$400,8,FALSE) -> M | J104: =VLOOKUP($A104,'[1]Racing numbers file'!$A$4:$H$400,8,FALSE) -> M | K104: 00:20:00 | L104: 00:50:00 | M104: 01:40:00 | N104: 00:00:00 | O104: 00:25:42
A105: 1539 | B105: =VLOOKUP($A105,'[1]Racing numbers file'!$A$4:$G$400,2,FALSE) -> Joe Sheehy | C105: =VLOOKUP($A105,'[1]Racing numbers file'!$A$4:$G$400,5,FALSE) -> 49 | D105: =VLOOKUP($A105,'[1]Racing numbers file'!$A$4:$H$400,8,FALSE) -> M | E105: 00:20:00 | F105: 00:40:00 | G105: 01:40:00 | H105: =VLOOKUP($C105,'Age Standards'!$B$3:$J$48,7,FALSE) -> 00:00:04.595 | I105: =VLOOKUP($C105,'Age Standards'!$B$3:$J$48,8,FALSE) -> 00:00:12 | J105: =VLOOKUP($C105,'Age Standards'!$B$3:$J$48,9,FALSE) -> 00:00:29.280 | K105: 00:20:00 | L105: 00:50:00 | M105: 01:40:00 | N105: 00:00:00 | O105: 00:25:42
A106: 1540 | B106: =VLOOKUP($A106,'[1]Racing numbers file'!$A$4:$G$400,2,FALSE) -> Aogan Lynch | C106: =VLOOKUP($A106,'[1]Racing numbers file'!$A$4:$G$400,5,FALSE) -> 41 | D106: =VLOOKUP($A106,'[1]Racing numbers file'!$A$4:$H$400,8,FALSE) -> M | E106: 00:20:00 | F106: 00:50:00 | G106: 01:40:00 | H106: =VLOOKUP($C106,'Age Standards'!$B$3:$J$48,7,FALSE) -> 00:00:04.483 | I106: =VLOOKUP($C106,'Age Standards'!$B$3:$J$48,8,FALSE) -> 00:00:13 | J106: =VLOOKUP($C106,'Age Standards'!$B$3:$J$48,9,FALSE) -> 00:00:28.473 | K106: 00:20:00 | L106: 00:50:00 | M106: 01:40:00 | N106: 00:00:00 | O106: 00:25:42
B107: =VLOOKUP($A107,'[1]Racing numbers file'!$A$4:$G$400,2,FALSE) ->  | C107: =VLOOKUP($A107,'[1]Racing numbers file'!$A$4:$G$400,5,FALSE) ->  | D107: =VLOOKUP($A107,'[1]Racing numbers file'!$A$4:$H$400,8,FALSE) ->  | E107: 00:20:00 | F107: 00:50:00 | G107: 01:40:00 | H107: =VLOOKUP($C107,'Age Standards'!$B$3:$J$48,7,FALSE) ->  | I107: =VLOOKUP($C107,'Age Standards'!$B$3:$J$48,8,FALSE) ->  | J107: =VLOOKUP($C107,'Age Standards'!$B$3:$J$48,9,FALSE) ->  | K107: 00:20:00 | L107: 00:50:00 | M107: 01:40:00 | N107: 00:00:00 | O107: 00:25:42
B108: =VLOOKUP($A108,'[1]Racing numbers file'!$A$4:$G$400,2,FALSE) ->  | C108: =VLOOKUP($A108,'[1]Racing numbers file'!$A$4:$G$400,5,FALSE) ->  | D108: =VLOOKUP($A108,'[1]Racing numbers file'!$A$4:$H$400,8,FALSE) ->  | E108: 00:20:00 | F108: 00:50:00 | G108: 01:40:00 | H108: =VLOOKUP($C108,'Age Standards'!$B$3:$J$48,7,FALSE) ->  | I108: =VLOOKUP($C108,'Age Standards'!$B$3:$J$48,8,FALSE) ->  | J108: =VLOOKUP($C108,'Age Standards'!$B$3:$J$48,9,FALSE) ->  | K108: 00:20:00 | L108: 00:50:00 | M108: 01:40:00 | N108: 00:00:00 | O108: 00:25:42
B109: =VLOOKUP($A109,'[1]Racing numbers file'!$A$4:$G$400,2,FALSE) ->  | C109: =VLOOKUP($A109,'[1]Racing numbers file'!$A$4:$G$400,5,FALSE) ->  | D109: =VLOOKUP($A109,'[1]Racing numbers file'!$A$4:$H$400,8,FALSE) ->  | E109: 00:20:00 | F109: 00:50:00 | G109: 01:40:00 | H109: =VLOOKUP($C109,'Age Standards'!$B$3:$J$48,7,FALSE) ->  | I109: =VLOOKUP($C109,'Age Standards'!$B$3:$J$48,8,FALSE) ->  | J109: =VLOOKUP($C109,'Age Standards'!$B$3:$J$48,9,FALSE) ->  | K109: 00:20:00 | L109: 00:50:00 | M109: 01:40:00 | N109: 00:00:00 | O109: 00:25:42
B110: =VLOOKUP($A110,'[1]Racing numbers file'!$A$4:$G$400,2,FALSE) ->  | C110: =VLOOKUP($A110,'[1]Racing numbers file'!$A$4:$G$400,5,FALSE) ->  | D110: =VLOOKUP($A110,'[1]Racing numbers file'!$A$4:$H$400,8,FALSE) ->  | E110: 00:20:00 | F110: 00:50:00 | G110: 01:40:00 | H110: =VLOOKUP($C110,'Age Standards'!$B$3:$J$48,7,FALSE) ->  | I110: =VLOOKUP($C110,'Age Standards'!$B$3:$J$48,8,FALSE) ->  | J110: =VLOOKUP($C110,'Age Standards'!$B$3:$J$48,9,FALSE) ->  | K110: 00:20:00 | L110: 00:50:00 | M110: 01:40:00 | N110: 00:00:00 | O110: 00:25:42
B111: =VLOOKUP($A111,'[1]Racing numbers file'!$A$4:$G$400,2,FALSE) ->  | C111: =VLOOKUP($A111,'[1]Racing numbers file'!$A$4:$G$400,5,FALSE) ->  | D111: =VLOOKUP($A111,'[1]Racing numbers file'!$A$4:$H$400,8,FALSE) ->  | E111: 00:20:00 | F111: 00:50:00 | G111: 01:40:00 | H111: =VLOOKUP($C111,'Age Standards'!$B$3:$J$48,7,FALSE) ->  | I111: =VLOOKUP($C111,'Age Standards'!$B$3:$J$48,8,FALSE) ->  | J111: =VLOOKUP($C111,'Age Standards'!$B$3:$J$48,9,FALSE) ->  | K111: 00:20:00 | L111: 00:50:00 | M111: 01:40:00 | N111: 00:00:00 | O111: 00:25:42
B112: =VLOOKUP($A112,'[1]Racing numbers file'!$A$4:$G$400,2,FALSE) ->  | C112: =VLOOKUP($A112,'[1]Racing numbers file'!$A$4:$G$400,5,FALSE) ->  | D112: =VLOOKUP($A112,'[1]Racing numbers file'!$A$4:$H$400,8,FALSE) ->  | E112: 00:20:00 | F112: 00:50:00 | G112: 01:40:00 | H112: =VLOOKUP($C112,'Age Standards'!$B$3:$J$48,7,FALSE) ->  | I112: =VLOOKUP($C112,'Age Standards'!$B$3:$J$48,8,FALSE) ->  | J112: =VLOOKUP($C112,'Age Standards'!$B$3:$J$48,9,FALSE) ->  | K112: 00:20:00 | L112: 00:50:00 | M112: 01:40:00 | N112: 00:00:00 | O112: 00:25:42
B113: =VLOOKUP($A113,'[1]Racing numbers file'!$A$4:$G$400,2,FALSE) ->  | C113: =VLOOKUP($A113,'[1]Racing numbers file'!$A$4:$G$400,5,FALSE) ->  | D113: =VLOOKUP($A113,'[1]Racing numbers file'!$A$4:$H$400,8,FALSE) ->  | E113: 00:20:00 | F113: 00:50:00 | G113: 01:40:00 | H113: =VLOOKUP($C113,'Age Standards'!$B$3:$J$48,7,FALSE) ->  | I113: =VLOOKUP($C113,'Age Standards'!$B$3:$J$48,8,FALSE) ->  | J113: =VLOOKUP($C113,'Age Standards'!$B$3:$J$48,9,FALSE) ->  | K113: 00:20:00 | L113: 00:50:00 | M113: 01:40:00 | N113: 00:00:00 | O113: 00:25:42
B114: =VLOOKUP($A114,'[1]Racing numbers file'!$A$4:$G$400,2,FALSE) ->  | C114: =VLOOKUP($A114,'[1]Racing numbers file'!$A$4:$G$400,5,FALSE) ->  | D114: =VLOOKUP($A114,'[1]Racing numbers file'!$A$4:$H$400,8,FALSE) ->  | E114: 00:20:00 | F114: 00:50:00 | G114: 01:40:00 | H114: =VLOOKUP($C114,'Age Standards'!$B$3:$J$48,7,FALSE) ->  | I114: =VLOOKUP($C114,'Age Standards'!$B$3:$J$48,8,FALSE) ->  | J114: =VLOOKUP($C114,'Age Standards'!$B$3:$J$48,9,FALSE) ->  | K114: 00:20:00 | L114: 00:50:00 | M114: 01:40:00 | N114: 00:00:00 | O114: 00:25:42
B115: =VLOOKUP($A115,'[1]Racing numbers file'!$A$4:$G$400,2,FALSE) ->  | C115: =VLOOKUP($A115,'[1]Racing numbers file'!$A$4:$G$400,5,FALSE) ->  | D115: =VLOOKUP($A115,'[1]Racing numbers file'!$A$4:$H$400,8,FALSE) ->  | E115: 00:20:00 | F115: 00:50:00 | G115: 01:40:00 | H115: =VLOOKUP($C115,'Age Standards'!$B$3:$J$48,7,FALSE) ->  | I115: =VLOOKUP($C115,'Age Standards'!$B$3:$J$48,8,FALSE) ->  | J115: =VLOOKUP($C115,'Age Standards'!$B$3:$J$48,9,FALSE) ->  | K115: 00:20:00 | L115: 00:50:00 | M115: 01:40:00 | N115: 00:00:00 | O115: 00:25:42
B116: =VLOOKUP($A116,'[1]Racing numbers file'!$A$4:$G$400,2,FALSE) ->  | C116: =VLOOKUP($A116,'[1]Racing numbers file'!$A$4:$G$400,5,FALSE) ->  | D116: =VLOOKUP($A116,'[1]Racing numbers file'!$A$4:$H$400,8,FALSE) ->  | E116: 00:20:00 | F116: 00:50:00 | G116: 01:40:00 | H116: =VLOOKUP($C116,'Age Standards'!$B$3:$J$48,7,FALSE) ->  | I116: =VLOOKUP($C116,'Age Standards'!$B$3:$J$48,8,FALSE) ->  | J116: =VLOOKUP($C116,'Age Standards'!$B$3:$J$48,9,FALSE) ->  | K116: 00:20:00 | L116: 00:50:00 | M116: 01:40:00 | N116: 00:00:00 | O116: 00:25:42
B117: =VLOOKUP($A117,'[1]Racing numbers file'!$A$4:$G$400,2,FALSE) ->  | C117: =VLOOKUP($A117,'[1]Racing numbers file'!$A$4:$G$400,5,FALSE) ->  | D117: =VLOOKUP($A117,'[1]Racing numbers file'!$A$4:$H$400,8,FALSE) ->  | E117: 00:20:00 | F117: 00:50:00 | G117: 01:40:00 | H117: =VLOOKUP($C117,'Age Standards'!$B$3:$J$48,7,FALSE) ->  | I117: =VLOOKUP($C117,'Age Standards'!$B$3:$J$48,8,FALSE) ->  | J117: =VLOOKUP($C117,'Age Standards'!$B$3:$J$48,9,FALSE) ->  | K117: 00:20:00 | L117: 00:50:00 | M117: 01:40:00 | N117: 00:00:00 | O117: 00:25:42
B118: =VLOOKUP($A118,'[1]Racing numbers file'!$A$4:$G$400,2,FALSE) ->  | C118: =VLOOKUP($A118,'[1]Racing numbers file'!$A$4:$G$400,5,FALSE) ->  | D118: =VLOOKUP($A118,'[1]Racing numbers file'!$A$4:$H$400,8,FALSE) ->  | E118: 00:20:00 | F118: 00:50:00 | G118: 01:40:00 | H118: =VLOOKUP($C118,'Age Standards'!$B$3:$J$48,7,FALSE) ->  | I118: =VLOOKUP($C118,'Age Standards'!$B$3:$J$48,8,FALSE) ->  | J118: =VLOOKUP($C118,'Age Standards'!$B$3:$J$48,9,FALSE) ->  | K118: 00:20:00 | L118: 00:50:00 | M118: 01:40:00 | N118: 00:00:00 | O118: 00:25:42
B119: =VLOOKUP($A119,'[1]Racing numbers file'!$A$4:$G$400,2,FALSE) ->  | C119: =VLOOKUP($A119,'[1]Racing numbers file'!$A$4:$G$400,5,FALSE) ->  | D119: =VLOOKUP($A119,'[1]Racing numbers file'!$A$4:$H$400,8,FALSE) ->  | E119: 00:20:00 | F119: 00:50:00 | G119: 01:40:00 | H119: =VLOOKUP($C119,'Age Standards'!$B$3:$J$48,7,FALSE) ->  | I119: =VLOOKUP($C119,'Age Standards'!$B$3:$J$48,8,FALSE) ->  | J119: =VLOOKUP($C119,'Age Standards'!$B$3:$J$48,9,FALSE) ->  | K119: 00:20:00 | L119: 00:50:00 | M119: 01:40:00 | N119: 00:00:00 | O119: 00:25:42
B120: =VLOOKUP($A120,'[1]Racing numbers file'!$A$4:$G$400,2,FALSE) ->  | C120: =VLOOKUP($A120,'[1]Racing numbers file'!$A$4:$G$400,5,FALSE) ->  | D120: =VLOOKUP($A120,'[1]Racing numbers file'!$A$4:$H$400,8,FALSE) ->  | E120: 00:20:00 | F120: 00:50:00 | G120: 01:40:00 | H120: =VLOOKUP($C120,'Age Standards'!$B$3:$J$48,7,FALSE) ->  | I120: =VLOOKUP($C120,'Age Standards'!$B$3:$J$48,8,FALSE) ->  | J120: =VLOOKUP($C120,'Age Standards'!$B$3:$J$48,9,FALSE) ->  | K120: 00:20:00 | L120: 00:50:00 | M120: 01:40:00 | N120: 00:00:00 | O120: 00:25:42
B121: =VLOOKUP($A121,'[1]Racing numbers file'!$A$4:$G$400,2,FALSE) ->  | C121: =VLOOKUP($A121,'[1]Racing numbers file'!$A$4:$G$400,5,FALSE) ->  | D121: =VLOOKUP($A121,'[1]Racing numbers file'!$A$4:$H$400,8,FALSE) ->  | E121: 00:20:00 | F121: 00:50:00 | G121: 01:40:00 | H121: =VLOOKUP($C121,'Age Standards'!$B$3:$J$48,7,FALSE) ->  | I121: =VLOOKUP($C121,'Age Standards'!$B$3:$J$48,8,FALSE) ->  | J121: =VLOOKUP($C121,'Age Standards'!$B$3:$J$48,9,FALSE) ->  | K121: 00:20:00 | L121: 00:50:00 | M121: 01:40:00 | N121: 00:00:00 | O121: 00:25:42
B122: =VLOOKUP($A122,'[1]Racing numbers file'!$A$4:$G$400,2,FALSE) ->  | C122: =VLOOKUP($A122,'[1]Racing numbers file'!$A$4:$G$400,5,FALSE) ->  | D122: =VLOOKUP($A122,'[1]Racing numbers file'!$A$4:$H$400,8,FALSE) ->  | E122: 00:20:00 | F122: 00:50:00 | G122: 01:40:00 | H122: =VLOOKUP($C122,'Age Standards'!$B$3:$J$48,7,FALSE) ->  | I122: =VLOOKUP($C122,'Age Standards'!$B$3:$J$48,8,FALSE) ->  | J122: =VLOOKUP($C122,'Age Standards'!$B$3:$J$48,9,FALSE) ->  | K122: 00:20:00 | L122: 00:50:00 | M122: 01:40:00 | N122: 00:00:00 | O122: 00:25:42
B123: =VLOOKUP($A123,'[1]Racing numbers file'!$A$4:$G$400,2,FALSE) ->  | C123: =VLOOKUP($A123,'[1]Racing numbers file'!$A$4:$G$400,5,FALSE) ->  | D123: =VLOOKUP($A123,'[1]Racing numbers file'!$A$4:$H$400,8,FALSE) ->  | E123: 00:20:00 | F123: 00:50:00 | G123: 01:40:00 | H123: =VLOOKUP($C123,'Age Standards'!$B$3:$J$48,7,FALSE) ->  | I123: =VLOOKUP($C123,'Age Standards'!$B$3:$J$48,8,FALSE) ->  | J123: =VLOOKUP($C123,'Age Standards'!$B$3:$J$48,9,FALSE) ->  | K123: 00:20:00 | L123: 00:50:00 | M123: 01:40:00 | N123: 00:00:00 | O123: 00:25:42
B124: =VLOOKUP($A124,'[1]Racing numbers file'!$A$4:$G$400,2,FALSE) ->  | C124: =VLOOKUP($A124,'[1]Racing numbers file'!$A$4:$G$400,5,FALSE) ->  | D124: =VLOOKUP($A124,'[1]Racing numbers file'!$A$4:$H$400,8,FALSE) ->  | E124: 00:20:00 | F124: 00:50:00 | G124: 01:40:00 | H124: =VLOOKUP($C124,'Age Standards'!$B$3:$J$48,7,FALSE) ->  | I124: =VLOOKUP($C124,'Age Standards'!$B$3:$J$48,8,FALSE) ->  | J124: =VLOOKUP($C124,'Age Standards'!$B$3:$J$48,9,FALSE) ->  | K124: 00:20:00 | L124: 00:50:00 | M124: 01:40:00 | N124: 00:00:00 | O124: 00:25:42
B125: =VLOOKUP($A125,'[1]Racing numbers file'!$A$4:$G$400,2,FALSE) ->  | C125: =VLOOKUP($A125,'[1]Racing numbers file'!$A$4:$G$400,5,FALSE) ->  | D125: =VLOOKUP($A125,'[1]Racing numbers file'!$A$4:$H$400,8,FALSE) ->  | E125: 00:20:00 | F125: 00:50:00 | G125: 01:40:00 | H125: =VLOOKUP($C125,'Age Standards'!$B$3:$J$48,7,FALSE) ->  | I125: =VLOOKUP($C125,'Age Standards'!$B$3:$J$48,8,FALSE) ->  | J125: =VLOOKUP($C125,'Age Standards'!$B$3:$J$48,9,FALSE) ->  | K125: 00:20:00 | L125: 00:50:00 | M125: 01:40:00 | N125: 00:00:00 | O125: 00:25:42
B126: =VLOOKUP($A126,'[1]Racing numbers file'!$A$4:$G$400,2,FALSE) ->  | C126: =VLOOKUP($A126,'[1]Racing numbers file'!$A$4:$G$400,5,FALSE) ->  | D126: =VLOOKUP($A126,'[1]Racing numbers file'!$A$4:$H$400,8,FALSE) ->  | E126: 00:20:00 | F126: 00:50:00 | G126: 01:40:00 | H126: =VLOOKUP($C126,'Age Standards'!$B$3:$J$48,7,FALSE) ->  | I126: =VLOOKUP($C126,'Age Standards'!$B$3:$J$48,8,FALSE) ->  | J126: =VLOOKUP($C126,'Age Standards'!$B$3:$J$48,9,FALSE) ->  | K126: 00:20:00 | L126: 00:50:00 | M126: 01:40:00 | N126: 00:00:00 | O126: 00:25:42
B127: =VLOOKUP($A127,'[1]Racing numbers file'!$A$4:$G$400,2,FALSE) ->  | C127: =VLOOKUP($A127,'[1]Racing numbers file'!$A$4:$G$400,5,FALSE) ->  | D127: =VLOOKUP($A127,'[1]Racing numbers file'!$A$4:$H$400,8,FALSE) ->  | E127: 00:20:00 | F127: 00:50:00 | G127: 01:40:00 | H127: =VLOOKUP($C127,'Age Standards'!$B$3:$J$48,7,FALSE) ->  | I127: =VLOOKUP($C127,'Age Standards'!$B$3:$J$48,8,FALSE) ->  | J127: =VLOOKUP($C127,'Age Standards'!$B$3:$J$48,9,FALSE) ->  | K127: 00:20:00 | L127: 00:50:00 | M127: 01:40:00 | N127: 00:00:00 | O127: 00:25:42
B128: =VLOOKUP($A128,'[1]Racing numbers file'!$A$4:$G$400,2,FALSE) ->  | C128: =VLOOKUP($A128,'[1]Racing numbers file'!$A$4:$G$400,5,FALSE) ->  | D128: =VLOOKUP($A128,'[1]Racing numbers file'!$A$4:$H$400,8,FALSE) ->  | E128: 00:20:00 | F128: 00:50:00 | G128: 01:40:00 | H128: =VLOOKUP($C128,'Age Standards'!$B$3:$J$48,7,FALSE) ->  | I128: =VLOOKUP($C128,'Age Standards'!$B$3:$J$48,8,FALSE) ->  | J128: =VLOOKUP($C128,'Age Standards'!$B$3:$J$48,9,FALSE) ->  | K128: 00:20:00 | L128: 00:50:00 | M128: 01:40:00 | N128: 00:00:00 | O128: 00:25:42
B129: =VLOOKUP($A129,'[1]Racing numbers file'!$A$4:$G$400,2,FALSE) ->  | C129: =VLOOKUP($A129,'[1]Racing numbers file'!$A$4:$G$400,5,FALSE) ->  | D129: =VLOOKUP($A129,'[1]Racing numbers file'!$A$4:$H$400,8,FALSE) ->  | E129: 00:20:00 | F129: 00:50:00 | G129: 01:40:00 | H129: =VLOOKUP($C129,'Age Standards'!$B$3:$J$48,7,FALSE) ->  | I129: =VLOOKUP($C129,'Age Standards'!$B$3:$J$48,8,FALSE) ->  | J129: =VLOOKUP($C129,'Age Standards'!$B$3:$J$48,9,FALSE) ->  | K129: 00:20:00 | L129: 00:50:00 | M129: 01:40:00 | N129: 00:00:00 | O129: 00:25:42
B130: =VLOOKUP($A130,'[1]Racing numbers file'!$A$4:$G$400,2,FALSE) ->  | C130: =VLOOKUP($A130,'[1]Racing numbers file'!$A$4:$G$400,5,FALSE) ->  | D130: =VLOOKUP($A130,'[1]Racing numbers file'!$A$4:$H$400,8,FALSE) ->  | E130: 00:20:00 | F130: 00:50:00 | G130: 01:40:00 | H130: =VLOOKUP($C130,'Age Standards'!$B$3:$J$48,7,FALSE) ->  | I130: =VLOOKUP($C130,'Age Standards'!$B$3:$J$48,8,FALSE) ->  | J130: =VLOOKUP($C130,'Age Standards'!$B$3:$J$48,9,FALSE) ->  | K130: 00:20:00 | L130: 00:50:00 | M130: 01:40:00 | N130: 00:00:00 | O130: 00:25:42
B131: =VLOOKUP($A131,'[1]Racing numbers file'!$A$4:$G$400,2,FALSE) ->  | C131: =VLOOKUP($A131,'[1]Racing numbers file'!$A$4:$G$400,5,FALSE) ->  | D131: =VLOOKUP($A131,'[1]Racing numbers file'!$A$4:$H$400,8,FALSE) ->  | E131: 00:20:00 | F131: 00:50:00 | G131: 01:40:00 | H131: =VLOOKUP($C131,'Age Standards'!$B$3:$J$48,7,FALSE) ->  | I131: =VLOOKUP($C131,'Age Standards'!$B$3:$J$48,8,FALSE) ->  | J131: =VLOOKUP($C131,'Age Standards'!$B$3:$J$48,9,FALSE) ->  | K131: 00:20:00 | L131: 00:50:00 | M131: 01:40:00 | N131: 00:00:00 | O131: 00:25:42
B132: =VLOOKUP($A132,'[1]Racing numbers file'!$A$4:$G$400,2,FALSE) ->  | C132: =VLOOKUP($A132,'[1]Racing numbers file'!$A$4:$G$400,5,FALSE) ->  | D132: =VLOOKUP($A132,'[1]Racing numbers file'!$A$4:$H$400,8,FALSE) ->  | E132: 00:20:00 | F132: 00:50:00 | G132: 01:40:00 | H132: =VLOOKUP($C132,'Age Standards'!$B$3:$J$48,7,FALSE) ->  | I132: =VLOOKUP($C132,'Age Standards'!$B$3:$J$48,8,FALSE) ->  | J132: =VLOOKUP($C132,'Age Standards'!$B$3:$J$48,9,FALSE) ->  | K132: 00:20:00 | L132: 00:50:00 | M132: 01:40:00 | N132: 00:00:00 | O132: 00:25:42
B133: =VLOOKUP($A133,'[1]Racing numbers file'!$A$4:$G$400,2,FALSE) ->  | C133: =VLOOKUP($A133,'[1]Racing numbers file'!$A$4:$G$400,5,FALSE) ->  | D133: =VLOOKUP($A133,'[1]Racing numbers file'!$A$4:$H$400,8,FALSE) ->  | E133: 00:20:00 | F133: 00:50:00 | G133: 01:40:00 | H133: =VLOOKUP($C133,'Age Standards'!$B$3:$J$48,7,FALSE) ->  | I133: =VLOOKUP($C133,'Age Standards'!$B$3:$J$48,8,FALSE) ->  | J133: =VLOOKUP($C133,'Age Standards'!$B$3:$J$48,9,FALSE) ->  | K133: 00:20:00 | L133: 00:50:00 | M133: 01:40:00 | N133: 00:00:00 | O133: 00:25:42
B134: =VLOOKUP($A134,'[1]Racing numbers file'!$A$4:$G$400,2,FALSE) ->  | C134: =VLOOKUP($A134,'[1]Racing numbers file'!$A$4:$G$400,5,FALSE) ->  | D134: =VLOOKUP($A134,'[1]Racing numbers file'!$A$4:$H$400,8,FALSE) ->  | E134: 00:20:00 | F134: 00:50:00 | G134: 01:40:00 | H134: =VLOOKUP($C134,'Age Standards'!$B$3:$J$48,7,FALSE) ->  | I134: =VLOOKUP($C134,'Age Standards'!$B$3:$J$48,8,FALSE) ->  | J134: =VLOOKUP($C134,'Age Standards'!$B$3:$J$48,9,FALSE) ->  | K134: 00:20:00 | L134: 00:50:00 | M134: 01:40:00 | N134: 00:00:00 | O134: 00:25:42
B135: =VLOOKUP($A135,'[1]Racing numbers file'!$A$4:$G$400,2,FALSE) ->  | C135: =VLOOKUP($A135,'[1]Racing numbers file'!$A$4:$G$400,5,FALSE) ->  | D135: =VLOOKUP($A135,'[1]Racing numbers file'!$A$4:$H$400,8,FALSE) ->  | E135: 00:20:00 | F135: 00:50:00 | G135: 01:40:00 | H135: =VLOOKUP($C135,'Age Standards'!$B$3:$J$48,7,FALSE) ->  | I135: =VLOOKUP($C135,'Age Standards'!$B$3:$J$48,8,FALSE) ->  | J135: =VLOOKUP($C135,'Age Standards'!$B$3:$J$48,9,FALSE) ->  | K135: 00:20:00 | L135: 00:50:00 | M135: 01:40:00 | N135: 00:00:00 | O135: 00:25:42
B136: =VLOOKUP($A136,'[1]Racing numbers file'!$A$4:$G$400,2,FALSE) ->  | C136: =VLOOKUP($A136,'[1]Racing numbers file'!$A$4:$G$400,5,FALSE) ->  | D136: =VLOOKUP($A136,'[1]Racing numbers file'!$A$4:$H$400,8,FALSE) ->  | E136: 00:20:00 | F136: 00:50:00 | G136: 01:40:00 | H136: =VLOOKUP($C136,'Age Standards'!$B$3:$J$48,7,FALSE) ->  | I136: =VLOOKUP($C136,'Age Standards'!$B$3:$J$48,8,FALSE) ->  | J136: =VLOOKUP($C136,'Age Standards'!$B$3:$J$48,9,FALSE) ->  | K136: 00:20:00 | L136: 00:50:00 | M136: 01:40:00 | N136: 00:00:00 | O136: 00:25:42
B137: =VLOOKUP($A137,'[1]Racing numbers file'!$A$4:$G$400,2,FALSE) ->  | C137: =VLOOKUP($A137,'[1]Racing numbers file'!$A$4:$G$400,5,FALSE) ->  | D137: =VLOOKUP($A137,'[1]Racing numbers file'!$A$4:$H$400,8,FALSE) ->  | E137: 00:20:00 | F137: 00:50:00 | G137: 01:40:00 | H137: =VLOOKUP($C137,'Age Standards'!$B$3:$J$48,7,FALSE) ->  | I137: =VLOOKUP($C137,'Age Standards'!$B$3:$J$48,8,FALSE) ->  | J137: =VLOOKUP($C137,'Age Standards'!$B$3:$J$48,9,FALSE) ->  | K137: 00:20:00 | L137: 00:50:00 | M137: 01:40:00 | N137: 00:00:00 | O137: 00:25:42
B138: =VLOOKUP($A138,'[1]Racing numbers file'!$A$4:$G$400,2,FALSE) ->  | C138: =VLOOKUP($A138,'[1]Racing numbers file'!$A$4:$G$400,5,FALSE) ->  | D138: =VLOOKUP($A138,'[1]Racing numbers file'!$A$4:$H$400,8,FALSE) ->  | E138: 00:20:00 | F138: 00:50:00 | G138: 01:40:00 | H138: =VLOOKUP($C138,'Age Standards'!$B$3:$J$48,7,FALSE) ->  | I138: =VLOOKUP($C138,'Age Standards'!$B$3:$J$48,8,FALSE) ->  | J138: =VLOOKUP($C138,'Age Standards'!$B$3:$J$48,9,FALSE) ->  | K138: 00:20:00 | L138: 00:50:00 | M138: 01:40:00 | N138: 00:00:00 | O138: 00:25:42
B139: =VLOOKUP($A139,'[1]Racing numbers file'!$A$4:$G$400,2,FALSE) ->  | C139: =VLOOKUP($A139,'[1]Racing numbers file'!$A$4:$G$400,5,FALSE) ->  | D139: =VLOOKUP($A139,'[1]Racing numbers file'!$A$4:$H$400,8,FALSE) ->  | E139: 00:20:00 | F139: 00:50:00 | G139: 01:40:00 | H139: =VLOOKUP($C139,'Age Standards'!$B$3:$J$48,7,FALSE) ->  | I139: =VLOOKUP($C139,'Age Standards'!$B$3:$J$48,8,FALSE) ->  | J139: =VLOOKUP($C139,'Age Standards'!$B$3:$J$48,9,FALSE) ->  | K139: 00:20:00 | L139: 00:50:00 | M139: 01:40:00 | N139: 00:00:00 | O139: 00:25:42
B140: =VLOOKUP($A140,'[1]Racing numbers file'!$A$4:$G$400,2,FALSE) ->  | C140: =VLOOKUP($A140,'[1]Racing numbers file'!$A$4:$G$400,5,FALSE) ->  | D140: =VLOOKUP($A140,'[1]Racing numbers file'!$A$4:$H$400,8,FALSE) ->  | E140: 00:20:00 | F140: 00:50:00 | G140: 01:40:00 | H140: =VLOOKUP($C140,'Age Standards'!$B$3:$J$48,7,FALSE) ->  | I140: =VLOOKUP($C140,'Age Standards'!$B$3:$J$48,8,FALSE) ->  | J140: =VLOOKUP($C140,'Age Standards'!$B$3:$J$48,9,FALSE) ->  | K140: 00:20:00 | L140: 00:50:00 | M140: 01:40:00 | N140: 00:00:00 | O140: 00:25:42
B141: =VLOOKUP($A141,'[1]Racing numbers file'!$A$4:$G$400,2,FALSE) ->  | C141: =VLOOKUP($A141,'[1]Racing numbers file'!$A$4:$G$400,5,FALSE) ->  | D141: =VLOOKUP($A141,'[1]Racing numbers file'!$A$4:$H$400,8,FALSE) ->  | E141: 00:20:00 | F141: 00:50:00 | G141: 01:40:00 | H141: =VLOOKUP($C141,'Age Standards'!$B$3:$J$48,7,FALSE) ->  | I141: =VLOOKUP($C141,'Age Standards'!$B$3:$J$48,8,FALSE) ->  | J141: =VLOOKUP($C141,'Age Standards'!$B$3:$J$48,9,FALSE) ->  | K141: 00:20:00 | L141: 00:50:00 | M141: 01:40:00 | N141: 00:00:00 | O141: 00:25:42
B142: =VLOOKUP($A142,'[1]Racing numbers file'!$A$4:$G$400,2,FALSE) ->  | C142: =VLOOKUP($A142,'[1]Racing numbers file'!$A$4:$G$400,5,FALSE) ->  | D142: =VLOOKUP($A142,'[1]Racing numbers file'!$A$4:$H$400,8,FALSE) ->  | E142: 00:20:00 | F142: 00:50:00 | G142: 01:40:00 | H142: =VLOOKUP($C142,'Age Standards'!$B$3:$J$48,7,FALSE) ->  | I142: =VLOOKUP($C142,'Age Standards'!$B$3:$J$48,8,FALSE) ->  | J142: =VLOOKUP($C142,'Age Standards'!$B$3:$J$48,9,FALSE) ->  | K142: 00:20:00 | L142: 00:50:00 | M142: 01:40:00 | N142: 00:00:00 | O142: 00:25:42
B143: =VLOOKUP($A143,'[1]Racing numbers file'!$A$4:$G$400,2,FALSE) ->  | C143: =VLOOKUP($A143,'[1]Racing numbers file'!$A$4:$G$400,5,FALSE) ->  | D143: =VLOOKUP($A143,'[1]Racing numbers file'!$A$4:$H$400,8,FALSE) ->  | E143: 00:20:00 | F143: 00:50:00 | G143: 01:40:00 | H143: =VLOOKUP($C143,'Age Standards'!$B$3:$J$48,7,FALSE) ->  | I143: =VLOOKUP($C143,'Age Standards'!$B$3:$J$48,8,FALSE) ->  | J143: =VLOOKUP($C143,'Age Standards'!$B$3:$J$48,9,FALSE) ->  | K143: 00:20:00 | L143: 00:50:00 | M143: 01:40:00 | N143: 00:00:00 | O143: 00:25:42
B144: =VLOOKUP($A144,'[1]Racing numbers file'!$A$4:$G$400,2,FALSE) ->  | C144: =VLOOKUP($A144,'[1]Racing numbers file'!$A$4:$G$400,5,FALSE) ->  | D144: =VLOOKUP($A144,'[1]Racing numbers file'!$A$4:$H$400,8,FALSE) ->  | E144: 00:20:00 | F144: 00:50:00 | G144: 01:40:00 | H144: =VLOOKUP($C144,'Age Standards'!$B$3:$J$48,7,FALSE) ->  | I144: =VLOOKUP($C144,'Age Standards'!$B$3:$J$48,8,FALSE) ->  | J144: =VLOOKUP($C144,'Age Standards'!$B$3:$J$48,9,FALSE) ->  | K144: 00:20:00 | L144: 00:50:00 | M144: 01:40:00 | N144: 00:00:00 | O144: 00:25:42
B145: =VLOOKUP($A145,'[1]Racing numbers file'!$A$4:$G$400,2,FALSE) ->  | C145: =VLOOKUP($A145,'[1]Racing numbers file'!$A$4:$G$400,5,FALSE) ->  | D145: =VLOOKUP($A145,'[1]Racing numbers file'!$A$4:$H$400,8,FALSE) ->  | E145: 00:20:00 | F145: 00:50:00 | G145: 01:40:00 | H145: =VLOOKUP($C145,'Age Standards'!$B$3:$J$48,7,FALSE) ->  | I145: =VLOOKUP($C145,'Age Standards'!$B$3:$J$48,8,FALSE) ->  | J145: =VLOOKUP($C145,'Age Standards'!$B$3:$J$48,9,FALSE) ->  | K145: 00:20:00 | L145: 00:50:00 | M145: 01:40:00 | N145: 00:00:00 | O145: 00:25:42
B146: =VLOOKUP($A146,'[1]Racing numbers file'!$A$4:$G$400,2,FALSE) ->  | C146: =VLOOKUP($A146,'[1]Racing numbers file'!$A$4:$G$400,5,FALSE) ->  | D146: =VLOOKUP($A146,'[1]Racing numbers file'!$A$4:$H$400,8,FALSE) ->  | E146: 00:20:00 | F146: 00:50:00 | G146: 01:40:00 | H146: =VLOOKUP($C146,'Age Standards'!$B$3:$J$48,7,FALSE) ->  | I146: =VLOOKUP($C146,'Age Standards'!$B$3:$J$48,8,FALSE) ->  | J146: =VLOOKUP($C146,'Age Standards'!$B$3:$J$48,9,FALSE) ->  | K146: 00:20:00 | L146: 00:50:00 | M146: 01:40:00 | N146: 00:00:00 | O146: 00:25:42
B147: =VLOOKUP($A147,'[1]Racing numbers file'!$A$4:$G$400,2,FALSE) ->  | C147: =VLOOKUP($A147,'[1]Racing numbers file'!$A$4:$G$400,5,FALSE) ->  | D147: =VLOOKUP($A147,'[1]Racing numbers file'!$A$4:$H$400,8,FALSE) ->  | E147: 00:20:00 | F147: 00:50:00 | G147: 01:40:00 | H147: =VLOOKUP($C147,'Age Standards'!$B$3:$J$48,7,FALSE) ->  | I147: =VLOOKUP($C147,'Age Standards'!$B$3:$J$48,8,FALSE) ->  | J147: =VLOOKUP($C147,'Age Standards'!$B$3:$J$48,9,FALSE) ->  | K147: 00:20:00 | L147: 00:50:00 | M147: 01:40:00 | N147: 00:00:00 | O147: 00:25:42
B148: =VLOOKUP($A148,'[1]Racing numbers file'!$A$4:$G$400,2,FALSE) ->  | C148: =VLOOKUP($A148,'[1]Racing numbers file'!$A$4:$G$400,5,FALSE) ->  | D148: =VLOOKUP($A148,'[1]Racing numbers file'!$A$4:$H$400,8,FALSE) ->  | E148: 00:20:00 | F148: 00:50:00 | G148: 01:40:00 | H148: =VLOOKUP($C148,'Age Standards'!$B$3:$J$48,7,FALSE) ->  | I148: =VLOOKUP($C148,'Age Standards'!$B$3:$J$48,8,FALSE) ->  | J148: =VLOOKUP($C148,'Age Standards'!$B$3:$J$48,9,FALSE) ->  | K148: 00:20:00 | L148: 00:50:00 | M148: 01:40:00 | N148: 00:00:00 | O148: 00:25:42
B149: =VLOOKUP($A149,'[1]Racing numbers file'!$A$4:$G$400,2,FALSE) ->  | C149: =VLOOKUP($A149,'[1]Racing numbers file'!$A$4:$G$400,5,FALSE) ->  | D149: =VLOOKUP($A149,'[1]Racing numbers file'!$A$4:$H$400,8,FALSE) ->  | E149: 00:20:00 | F149: 00:50:00 | G149: 01:40:00 | H149: =VLOOKUP($C149,'Age Standards'!$B$3:$J$48,7,FALSE) ->  | I149: =VLOOKUP($C149,'Age Standards'!$B$3:$J$48,8,FALSE) ->  | J149: =VLOOKUP($C149,'Age Standards'!$B$3:$J$48,9,FALSE) ->  | K149: 00:20:00 | L149: 00:50:00 | M149: 01:40:00 | N149: 00:00:00 | O149: 00:25:42
B150: =VLOOKUP($A150,'[1]Racing numbers file'!$A$4:$G$400,2,FALSE) ->  | C150: =VLOOKUP($A150,'[1]Racing numbers file'!$A$4:$G$400,5,FALSE) ->  | D150: =VLOOKUP($A150,'[1]Racing numbers file'!$A$4:$H$400,8,FALSE) ->  | E150: 00:20:00 | F150: 00:50:00 | G150: 01:40:00 | H150: =VLOOKUP($C150,'Age Standards'!$B$3:$J$48,7,FALSE) ->  | I150: =VLOOKUP($C150,'Age Standards'!$B$3:$J$48,8,FALSE) ->  | J150: =VLOOKUP($C150,'Age Standards'!$B$3:$J$48,9,FALSE) ->  | K150: 00:20:00 | L150: 00:50:00 | M150: 01:40:00 | N150: 00:00:00 | O150: 00:25:42
B151: =VLOOKUP($A151,'[1]Racing numbers file'!$A$4:$G$400,2,FALSE) ->  | C151: =VLOOKUP($A151,'[1]Racing numbers file'!$A$4:$G$400,5,FALSE) ->  | D151: =VLOOKUP($A151,'[1]Racing numbers file'!$A$4:$H$400,8,FALSE) ->  | E151: 00:20:00 | F151: 00:50:00 | G151: 01:40:00 | H151: =VLOOKUP($C151,'Age Standards'!$B$3:$J$48,7,FALSE) ->  | I151: =VLOOKUP($C151,'Age Standards'!$B$3:$J$48,8,FALSE) ->  | J151: =VLOOKUP($C151,'Age Standards'!$B$3:$J$48,9,FALSE) ->  | K151: 00:20:00 | L151: 00:50:00 | M151: 01:40:00 | N151: 00:00:00 | O151: 00:25:42
B152: =VLOOKUP($A152,'[1]Racing numbers file'!$A$4:$G$400,2,FALSE) ->  | C152: =VLOOKUP($A152,'[1]Racing numbers file'!$A$4:$G$400,5,FALSE) ->  | D152: =VLOOKUP($A152,'[1]Racing numbers file'!$A$4:$H$400,8,FALSE) ->  | E152: 00:20:00 | F152: 00:50:00 | G152: 01:40:00 | H152: =VLOOKUP($C152,'Age Standards'!$B$3:$J$48,7,FALSE) ->  | I152: =VLOOKUP($C152,'Age Standards'!$B$3:$J$48,8,FALSE) ->  | J152: =VLOOKUP($C152,'Age Standards'!$B$3:$J$48,9,FALSE) ->  | K152: 00:20:00 | L152: 00:50:00 | M152: 01:40:00 | N152: 00:00:00 | O152: 00:25:42
B153: =VLOOKUP($A153,'[1]Racing numbers file'!$A$4:$G$400,2,FALSE) ->  | C153: =VLOOKUP($A153,'[1]Racing numbers file'!$A$4:$G$400,5,FALSE) ->  | D153: =VLOOKUP($A153,'[1]Racing numbers file'!$A$4:$H$400,8,FALSE) ->  | E153: 00:20:00 | F153: 00:50:00 | G153: 01:40:00 | H153: =VLOOKUP($C153,'Age Standards'!$B$3:$J$48,7,FALSE) ->  | I153: =VLOOKUP($C153,'Age Standards'!$B$3:$J$48,8,FALSE) ->  | J153: =VLOOKUP($C153,'Age Standards'!$B$3:$J$48,9,FALSE) ->  | K153: 00:20:00 | L153: 00:50:00 | M153: 01:40:00 | N153: 00:00:00 | O153: 00:25:42
B154: =VLOOKUP($A154,'[1]Racing numbers file'!$A$4:$G$400,2,FALSE) ->  | C154: =VLOOKUP($A154,'[1]Racing numbers file'!$A$4:$G$400,5,FALSE) ->  | D154: =VLOOKUP($A154,'[1]Racing numbers file'!$A$4:$H$400,8,FALSE) ->  | E154: 00:20:00 | F154: 00:50:00 | G154: 01:40:00 | H154: =VLOOKUP($C154,'Age Standards'!$B$3:$J$48,7,FALSE) ->  | I154: =VLOOKUP($C154,'Age Standards'!$B$3:$J$48,8,FALSE) ->  | J154: =VLOOKUP($C154,'Age Standards'!$B$3:$J$48,9,FALSE) ->  | K154: 00:20:00 | L154: 00:50:00 | M154: 01:40:00 | N154: 00:00:00 | O154: 00:25:42
B155: =VLOOKUP($A155,'[1]Racing numbers file'!$A$4:$G$400,2,FALSE) ->  | C155: =VLOOKUP($A155,'[1]Racing numbers file'!$A$4:$G$400,5,FALSE) ->  | D155: =VLOOKUP($A155,'[1]Racing numbers file'!$A$4:$H$400,8,FALSE) ->  | E155: 00:20:00 | F155: 00:50:00 | G155: 01:40:00 | H155: =VLOOKUP($C155,'Age Standards'!$B$3:$J$48,7,FALSE) ->  | I155: =VLOOKUP($C155,'Age Standards'!$B$3:$J$48,8,FALSE) ->  | J155: =VLOOKUP($C155,'Age Standards'!$B$3:$J$48,9,FALSE) ->  | K155: 00:20:00 | L155: 00:50:00 | M155: 01:40:00 | N155: 00:00:00 | O155: 00:25:42
B156: =VLOOKUP($A156,'[1]Racing numbers file'!$A$4:$G$400,2,FALSE) ->  | C156: =VLOOKUP($A156,'[1]Racing numbers file'!$A$4:$G$400,5,FALSE) ->  | D156: =VLOOKUP($A156,'[1]Racing numbers file'!$A$4:$H$400,8,FALSE) ->  | E156: 00:20:00 | F156: 00:50:00 | G156: 01:40:00 | H156: =VLOOKUP($C156,'Age Standards'!$B$3:$J$48,7,FALSE) ->  | I156: =VLOOKUP($C156,'Age Standards'!$B$3:$J$48,8,FALSE) ->  | J156: =VLOOKUP($C156,'Age Standards'!$B$3:$J$48,9,FALSE) ->  | K156: 00:20:00 | L156: 00:50:00 | M156: 01:40:00 | N156: 00:00:00 | O156: 00:25:42
B157: =VLOOKUP($A157,'[1]Racing numbers file'!$A$4:$G$400,2,FALSE) ->  | C157: =VLOOKUP($A157,'[1]Racing numbers file'!$A$4:$G$400,5,FALSE) ->  | D157: =VLOOKUP($A157,'[1]Racing numbers file'!$A$4:$H$400,8,FALSE) ->  | E157: 00:20:00 | F157: 00:50:00 | G157: 01:40:00 | H157: =VLOOKUP($C157,'Age Standards'!$B$3:$J$48,7,FALSE) ->  | I157: =VLOOKUP($C157,'Age Standards'!$B$3:$J$48,8,FALSE) ->  | J157: =VLOOKUP($C157,'Age Standards'!$B$3:$J$48,9,FALSE) ->  | K157: 00:20:00 | L157: 00:50:00 | M157: 01:40:00 | N157: 00:00:00 | O157: 00:25:42
B158: =VLOOKUP($A158,'[1]Racing numbers file'!$A$4:$G$400,2,FALSE) ->  | C158: =VLOOKUP($A158,'[1]Racing numbers file'!$A$4:$G$400,5,FALSE) ->  | D158: =VLOOKUP($A158,'[1]Racing numbers file'!$A$4:$H$400,8,FALSE) ->  | E158: 00:20:00 | F158: 00:50:00 | G158: 01:40:00 | H158: =VLOOKUP($C158,'Age Standards'!$B$3:$J$48,7,FALSE) ->  | I158: =VLOOKUP($C158,'Age Standards'!$B$3:$J$48,8,FALSE) ->  | J158: =VLOOKUP($C158,'Age Standards'!$B$3:$J$48,9,FALSE) ->  | K158: 00:20:00 | L158: 00:50:00 | M158: 01:40:00 | N158: 00:00:00 | O158: 00:25:42
B159: =VLOOKUP($A159,'[1]Racing numbers file'!$A$4:$G$400,2,FALSE) ->  | C159: =VLOOKUP($A159,'[1]Racing numbers file'!$A$4:$G$400,5,FALSE) ->  | D159: =VLOOKUP($A159,'[1]Racing numbers file'!$A$4:$H$400,8,FALSE) ->  | E159: 00:20:00 | F159: 00:50:00 | G159: 01:40:00 | H159: =VLOOKUP($C159,'Age Standards'!$B$3:$J$48,7,FALSE) ->  | I159: =VLOOKUP($C159,'Age Standards'!$B$3:$J$48,8,FALSE) ->  | J159: =VLOOKUP($C159,'Age Standards'!$B$3:$J$48,9,FALSE) ->  | K159: 00:20:00 | L159: 00:50:00 | M159: 01:40:00 | N159: 00:00:00 | O159: 00:25:42
B160: =VLOOKUP($A160,'[1]Racing numbers file'!$A$4:$G$400,2,FALSE) ->  | C160: =VLOOKUP($A160,'[1]Racing numbers file'!$A$4:$G$400,5,FALSE) ->  | D160: =VLOOKUP($A160,'[1]Racing numbers file'!$A$4:$H$400,8,FALSE) ->  | E160: 00:20:00 | F160: 00:50:00 | G160: 01:40:00 | H160: =VLOOKUP($C160,'Age Standards'!$B$3:$J$48,7,FALSE) ->  | I160: =VLOOKUP($C160,'Age Standards'!$B$3:$J$48,8,FALSE) ->  | J160: =VLOOKUP($C160,'Age Standards'!$B$3:$J$48,9,FALSE) ->  | K160: 00:20:00 | L160: 00:50:00 | M160: 01:40:00 | N160: 00:00:00 | O160: 00:25:42
B161: =VLOOKUP($A161,'[1]Racing numbers file'!$A$4:$G$400,2,FALSE) ->  | C161: =VLOOKUP($A161,'[1]Racing numbers file'!$A$4:$G$400,5,FALSE) ->  | D161: =VLOOKUP($A161,'[1]Racing numbers file'!$A$4:$H$400,8,FALSE) ->  | E161: 00:20:00 | F161: 00:50:00 | G161: 01:40:00 | H161: =VLOOKUP($C161,'Age Standards'!$B$3:$J$48,7,FALSE) ->  | I161: =VLOOKUP($C161,'Age Standards'!$B$3:$J$48,8,FALSE) ->  | J161: =VLOOKUP($C161,'Age Standards'!$B$3:$J$48,9,FALSE) ->  | K161: 00:20:00 | L161: 00:50:00 | M161: 01:40:00 | N161: 00:00:00 | O161: 00:25:42
B162: =VLOOKUP($A162,'[1]Racing numbers file'!$A$4:$G$400,2,FALSE) ->  | C162: =VLOOKUP($A162,'[1]Racing numbers file'!$A$4:$G$400,5,FALSE) ->  | D162: =VLOOKUP($A162,'[1]Racing numbers file'!$A$4:$H$400,8,FALSE) ->  | E162: 00:20:00 | F162: 00:50:00 | G162: 01:40:00 | H162: =VLOOKUP($C162,'Age Standards'!$B$3:$J$48,7,FALSE) ->  | I162: =VLOOKUP($C162,'Age Standards'!$B$3:$J$48,8,FALSE) ->  | J162: =VLOOKUP($C162,'Age Standards'!$B$3:$J$48,9,FALSE) ->  | K162: 00:20:00 | L162: 00:50:00 | M162: 01:40:00 | N162: 00:00:00 | O162: 00:25:42
B163: =VLOOKUP($A163,'[1]Racing numbers file'!$A$4:$G$400,2,FALSE) ->  | C163: =VLOOKUP($A163,'[1]Racing numbers file'!$A$4:$G$400,5,FALSE) ->  | D163: =VLOOKUP($A163,'[1]Racing numbers file'!$A$4:$H$400,8,FALSE) ->  | E163: 00:20:00 | F163: 00:50:00 | G163: 01:40:00 | H163: =VLOOKUP($C163,'Age Standards'!$B$3:$J$48,7,FALSE) ->  | I163: =VLOOKUP($C163,'Age Standards'!$B$3:$J$48,8,FALSE) ->  | J163: =VLOOKUP($C163,'Age Standards'!$B$3:$J$48,9,FALSE) ->  | K163: 00:20:00 | L163: 00:50:00 | M163: 01:40:00 | N163: 00:00:00 | O163: 00:25:42
B164: =VLOOKUP($A164,'[1]Racing numbers file'!$A$4:$G$400,2,FALSE) ->  | C164: =VLOOKUP($A164,'[1]Racing numbers file'!$A$4:$G$400,5,FALSE) ->  | D164: =VLOOKUP($A164,'[1]Racing numbers file'!$A$4:$H$400,8,FALSE) ->  | E164: 00:20:00 | F164: 00:50:00 | G164: 01:40:00 | H164: =VLOOKUP($C164,'Age Standards'!$B$3:$J$48,7,FALSE) ->  | I164: =VLOOKUP($C164,'Age Standards'!$B$3:$J$48,8,FALSE) ->  | J164: =VLOOKUP($C164,'Age Standards'!$B$3:$J$48,9,FALSE) ->  | K164: 00:20:00 | L164: 00:50:00 | M164: 01:40:00 | N164: 00:00:00 | O164: 00:25:42
B165: =VLOOKUP($A165,'[1]Racing numbers file'!$A$4:$G$400,2,FALSE) ->  | C165: =VLOOKUP($A165,'[1]Racing numbers file'!$A$4:$G$400,5,FALSE) ->  | D165: =VLOOKUP($A165,'[1]Racing numbers file'!$A$4:$H$400,8,FALSE) ->  | E165: 00:20:00 | F165: 00:50:00 | G165: 01:40:00 | H165: =VLOOKUP($C165,'Age Standards'!$B$3:$J$48,7,FALSE) ->  | I165: =VLOOKUP($C165,'Age Standards'!$B$3:$J$48,8,FALSE) ->  | J165: =VLOOKUP($C165,'Age Standards'!$B$3:$J$48,9,FALSE) ->  | K165: 00:20:00 | L165: 00:50:00 | M165: 01:40:00 | N165: 00:00:00 | O165: 00:25:42
B166: =VLOOKUP($A166,'[1]Racing numbers file'!$A$4:$G$400,2,FALSE) ->  | C166: =VLOOKUP($A166,'[1]Racing numbers file'!$A$4:$G$400,5,FALSE) ->  | D166: =VLOOKUP($A166,'[1]Racing numbers file'!$A$4:$H$400,8,FALSE) ->  | E166: 00:20:00 | F166: 00:50:00 | G166: 01:40:00 | H166: =VLOOKUP($C166,'Age Standards'!$B$3:$J$48,7,FALSE) ->  | I166: =VLOOKUP($C166,'Age Standards'!$B$3:$J$48,8,FALSE) ->  | J166: =VLOOKUP($C166,'Age Standards'!$B$3:$J$48,9,FALSE) ->  | K166: 00:20:00 | L166: 00:50:00 | M166: 01:40:00 | N166: 00:00:00 | O166: 00:25:42
B167: =VLOOKUP($A167,'[1]Racing numbers file'!$A$4:$G$400,2,FALSE) ->  | C167: =VLOOKUP($A167,'[1]Racing numbers file'!$A$4:$G$400,5,FALSE) ->  | D167: =VLOOKUP($A167,'[1]Racing numbers file'!$A$4:$H$400,8,FALSE) ->  | E167: 00:20:00 | F167: 00:50:00 | G167: 01:40:00 | H167: =VLOOKUP($C167,'Age Standards'!$B$3:$J$48,7,FALSE) ->  | I167: =VLOOKUP($C167,'Age Standards'!$B$3:$J$48,8,FALSE) ->  | J167: =VLOOKUP($C167,'Age Standards'!$B$3:$J$48,9,FALSE) ->  | K167: 00:20:00 | L167: 00:50:00 | M167: 01:40:00 | N167: 00:00:00 | O167: 00:25:42
B168: =VLOOKUP($A168,'[1]Racing numbers file'!$A$4:$G$400,2,FALSE) ->  | C168: =VLOOKUP($A168,'[1]Racing numbers file'!$A$4:$G$400,5,FALSE) ->  | D168: =VLOOKUP($A168,'[1]Racing numbers file'!$A$4:$H$400,8,FALSE) ->  | E168: 00:20:00 | F168: 00:50:00 | G168: 01:40:00 | H168: =VLOOKUP($C168,'Age Standards'!$B$3:$J$48,7,FALSE) ->  | I168: =VLOOKUP($C168,'Age Standards'!$B$3:$J$48,8,FALSE) ->  | J168: =VLOOKUP($C168,'Age Standards'!$B$3:$J$48,9,FALSE) ->  | K168: 00:20:00 | L168: 00:50:00 | M168: 01:40:00 | N168: 00:00:00 | O168: 00:25:42
B169: =VLOOKUP($A169,'[1]Racing numbers file'!$A$4:$G$400,2,FALSE) ->  | C169: =VLOOKUP($A169,'[1]Racing numbers file'!$A$4:$G$400,5,FALSE) ->  | D169: =VLOOKUP($A169,'[1]Racing numbers file'!$A$4:$H$400,8,FALSE) ->  | E169: 00:20:00 | F169: 00:50:00 | G169: 01:40:00 | H169: =VLOOKUP($C169,'Age Standards'!$B$3:$J$48,7,FALSE) ->  | I169: =VLOOKUP($C169,'Age Standards'!$B$3:$J$48,8,FALSE) ->  | J169: =VLOOKUP($C169,'Age Standards'!$B$3:$J$48,9,FALSE) ->  | K169: 00:20:00 | L169: 00:50:00 | M169: 01:40:00 | N169: 00:00:00 | O169: 00:25:42
B170: =VLOOKUP($A170,'[1]Racing numbers file'!$A$4:$G$400,2,FALSE) ->  | C170: =VLOOKUP($A170,'[1]Racing numbers file'!$A$4:$G$400,5,FALSE) ->  | D170: =VLOOKUP($A170,'[1]Racing numbers file'!$A$4:$H$400,8,FALSE) ->  | E170: 00:20:00 | F170: 00:50:00 | G170: 01:40:00 | H170: =VLOOKUP($C170,'Age Standards'!$B$3:$J$48,7,FALSE) ->  | I170: =VLOOKUP($C170,'Age Standards'!$B$3:$J$48,8,FALSE) ->  | J170: =VLOOKUP($C170,'Age Standards'!$B$3:$J$48,9,FALSE) ->  | K170: 00:20:00 | L170: 00:50:00 | M170: 01:40:00 | N170: 00:00:00 | O170: 00:25:42
B171: =VLOOKUP($A171,'[1]Racing numbers file'!$A$4:$G$400,2,FALSE) ->  | C171: =VLOOKUP($A171,'[1]Racing numbers file'!$A$4:$G$400,5,FALSE) ->  | D171: =VLOOKUP($A171,'[1]Racing numbers file'!$A$4:$H$400,8,FALSE) ->  | E171: 00:20:00 | F171: 00:50:00 | G171: 01:40:00 | H171: =VLOOKUP($C171,'Age Standards'!$B$3:$J$48,7,FALSE) ->  | I171: =VLOOKUP($C171,'Age Standards'!$B$3:$J$48,8,FALSE) ->  | J171: =VLOOKUP($C171,'Age Standards'!$B$3:$J$48,9,FALSE) ->  | K171: 00:20:00 | L171: 00:50:00 | M171: 01:40:00 | N171: 00:00:00 | O171: 00:25:42
B172: =VLOOKUP($A172,'[1]Racing numbers file'!$A$4:$G$400,2,FALSE) ->  | C172: =VLOOKUP($A172,'[1]Racing numbers file'!$A$4:$G$400,5,FALSE) ->  | D172: =VLOOKUP($A172,'[1]Racing numbers file'!$A$4:$H$400,8,FALSE) ->  | E172: 00:20:00 | F172: 00:50:00 | G172: 01:40:00 | H172: =VLOOKUP($C172,'Age Standards'!$B$3:$J$48,7,FALSE) ->  | I172: =VLOOKUP($C172,'Age Standards'!$B$3:$J$48,8,FALSE) ->  | J172: =VLOOKUP($C172,'Age Standards'!$B$3:$J$48,9,FALSE) ->  | K172: 00:20:00 | L172: 00:50:00 | M172: 01:40:00 | N172: 00:00:00 | O172: 00:25:42
B173: =VLOOKUP($A173,'[1]Racing numbers file'!$A$4:$G$400,2,FALSE) ->  | C173: =VLOOKUP($A173,'[1]Racing numbers file'!$A$4:$G$400,5,FALSE) ->  | D173: =VLOOKUP($A173,'[1]Racing numbers file'!$A$4:$H$400,8,FALSE) ->  | E173: 00:20:00 | F173: 00:50:00 | G173: 01:40:00 | H173: =VLOOKUP($C173,'Age Standards'!$B$3:$J$48,7,FALSE) ->  | I173: =VLOOKUP($C173,'Age Standards'!$B$3:$J$48,8,FALSE) ->  | J173: =VLOOKUP($C173,'Age Standards'!$B$3:$J$48,9,FALSE) ->  | K173: 00:20:00 | L173: 00:50:00 | M173: 01:40:00 | N173: 00:00:00 | O173: 00:25:42
B174: =VLOOKUP($A174,'[1]Racing numbers file'!$A$4:$G$400,2,FALSE) ->  | C174: =VLOOKUP($A174,'[1]Racing numbers file'!$A$4:$G$400,5,FALSE) ->  | D174: =VLOOKUP($A174,'[1]Racing numbers file'!$A$4:$H$400,8,FALSE) ->  | E174: 00:20:00 | F174: 00:50:00 | G174: 01:40:00 | H174: =VLOOKUP($C174,'Age Standards'!$B$3:$J$48,7,FALSE) ->  | I174: =VLOOKUP($C174,'Age Standards'!$B$3:$J$48,8,FALSE) ->  | J174: =VLOOKUP($C174,'Age Standards'!$B$3:$J$48,9,FALSE) ->  | K174: 00:20:00 | L174: 00:50:00 | M174: 01:40:00 | N174: 00:00:00 | O174: 00:25:42
B175: =VLOOKUP($A175,'[1]Racing numbers file'!$A$4:$G$400,2,FALSE) ->  | C175: =VLOOKUP($A175,'[1]Racing numbers file'!$A$4:$G$400,5,FALSE) ->  | D175: =VLOOKUP($A175,'[1]Racing numbers file'!$A$4:$H$400,8,FALSE) ->  | E175: 00:20:00 | F175: 00:50:00 | G175: 01:40:00 | H175: =VLOOKUP($C175,'Age Standards'!$B$3:$J$48,7,FALSE) ->  | I175: =VLOOKUP($C175,'Age Standards'!$B$3:$J$48,8,FALSE) ->  | J175: =VLOOKUP($C175,'Age Standards'!$B$3:$J$48,9,FALSE) ->  | K175: 00:20:00 | L175: 00:50:00 | M175: 01:40:00 | N175: 00:00:00 | O175: 00:25:42
B176: =VLOOKUP($A176,'[1]Racing numbers file'!$A$4:$G$400,2,FALSE) ->  | C176: =VLOOKUP($A176,'[1]Racing numbers file'!$A$4:$G$400,5,FALSE) ->  | D176: =VLOOKUP($A176,'[1]Racing numbers file'!$A$4:$H$400,8,FALSE) ->  | E176: 00:20:00 | F176: 00:50:00 | G176: 01:40:00 | H176: =VLOOKUP($C176,'Age Standards'!$B$3:$J$48,7,FALSE) ->  | I176: =VLOOKUP($C176,'Age Standards'!$B$3:$J$48,8,FALSE) ->  | J176: =VLOOKUP($C176,'Age Standards'!$B$3:$J$48,9,FALSE) ->  | K176: 00:20:00 | L176: 00:50:00 | M176: 01:40:00 | N176: 00:00:00 | O176: 00:25:42
B177: =VLOOKUP($A177,'[1]Racing numbers file'!$A$4:$G$400,2,FALSE) ->  | C177: =VLOOKUP($A177,'[1]Racing numbers file'!$A$4:$G$400,5,FALSE) ->  | D177: =VLOOKUP($A177,'[1]Racing numbers file'!$A$4:$H$400,8,FALSE) ->  | E177: 00:20:00 | F177: 00:50:00 | G177: 01:40:00 | H177: =VLOOKUP($C177,'Age Standards'!$B$3:$J$48,7,FALSE) ->  | I177: =VLOOKUP($C177,'Age Standards'!$B$3:$J$48,8,FALSE) ->  | J177: =VLOOKUP($C177,'Age Standards'!$B$3:$J$48,9,FALSE) ->  | K177: 00:20:00 | L177: 00:50:00 | M177: 01:40:00 | N177: 00:00:00 | O177: 00:25:42
B178: =VLOOKUP($A178,'[1]Racing numbers file'!$A$4:$G$400,2,FALSE) ->  | C178: =VLOOKUP($A178,'[1]Racing numbers file'!$A$4:$G$400,5,FALSE) ->  | D178: =VLOOKUP($A178,'[1]Racing numbers file'!$A$4:$H$400,8,FALSE) ->  | E178: 00:20:00 | F178: 00:50:00 | G178: 01:40:00 | H178: =VLOOKUP($C178,'Age Standards'!$B$3:$J$48,7,FALSE) ->  | I178: =VLOOKUP($C178,'Age Standards'!$B$3:$J$48,8,FALSE) ->  | J178: =VLOOKUP($C178,'Age Standards'!$B$3:$J$48,9,FALSE) ->  | K178: 00:20:00 | L178: 00:50:00 | M178: 01:40:00 | N178: 00:00:00 | O178: 00:25:42
B179: =VLOOKUP($A179,'[1]Racing numbers file'!$A$4:$G$400,2,FALSE) ->  | C179: =VLOOKUP($A179,'[1]Racing numbers file'!$A$4:$G$400,5,FALSE) ->  | D179: =VLOOKUP($A179,'[1]Racing numbers file'!$A$4:$H$400,8,FALSE) ->  | E179: 00:20:00 | F179: 00:50:00 | G179: 01:40:00 | H179: =VLOOKUP($C179,'Age Standards'!$B$3:$J$48,7,FALSE) ->  | I179: =VLOOKUP($C179,'Age Standards'!$B$3:$J$48,8,FALSE) ->  | J179: =VLOOKUP($C179,'Age Standards'!$B$3:$J$48,9,FALSE) ->  | K179: 00:20:00 | L179: 00:50:00 | M179: 01:40:00 | N179: 00:00:00 | O179: 00:25:42
B180: =VLOOKUP($A180,'[1]Racing numbers file'!$A$4:$G$400,2,FALSE) ->  | C180: =VLOOKUP($A180,'[1]Racing numbers file'!$A$4:$G$400,5,FALSE) ->  | D180: =VLOOKUP($A180,'[1]Racing numbers file'!$A$4:$H$400,8,FALSE) ->  | E180: 00:20:00 | F180: 00:50:00 | G180: 01:40:00 | H180: =VLOOKUP($C180,'Age Standards'!$B$3:$J$48,7,FALSE) ->  | I180: =VLOOKUP($C180,'Age Standards'!$B$3:$J$48,8,FALSE) ->  | J180: =VLOOKUP($C180,'Age Standards'!$B$3:$J$48,9,FALSE) ->  | K180: 00:20:00 | L180: 00:50:00 | M180: 01:40:00 | N180: 00:00:00 | O180: 00:25:42
B181: =VLOOKUP($A181,'[1]Racing numbers file'!$A$4:$G$400,2,FALSE) ->  | C181: =VLOOKUP($A181,'[1]Racing numbers file'!$A$4:$G$400,5,FALSE) ->  | D181: =VLOOKUP($A181,'[1]Racing numbers file'!$A$4:$H$400,8,FALSE) ->  | E181: 00:20:00 | F181: 00:50:00 | G181: 01:40:00 | H181: =VLOOKUP($C181,'Age Standards'!$B$3:$J$48,7,FALSE) ->  | I181: =VLOOKUP($C181,'Age Standards'!$B$3:$J$48,8,FALSE) ->  | J181: =VLOOKUP($C181,'Age Standards'!$B$3:$J$48,9,FALSE) ->  | K181: 00:20:00 | L181: 00:50:00 | M181: 01:40:00 | N181: 00:00:00 | O181: 00:25:42
B182: =VLOOKUP($A182,'[1]Racing numbers file'!$A$4:$G$400,2,FALSE) ->  | C182: =VLOOKUP($A182,'[1]Racing numbers file'!$A$4:$G$400,5,FALSE) ->  | D182: =VLOOKUP($A182,'[1]Racing numbers file'!$A$4:$H$400,8,FALSE) ->  | E182: 00:20:00 | F182: 00:50:00 | G182: 01:40:00 | H182: =VLOOKUP($C182,'Age Standards'!$B$3:$J$48,7,FALSE) ->  | I182: =VLOOKUP($C182,'Age Standards'!$B$3:$J$48,8,FALSE) ->  | J182: =VLOOKUP($C182,'Age Standards'!$B$3:$J$48,9,FALSE) ->  | K182: 00:20:00 | L182: 00:50:00 | M182: 01:40:00 | N182: 00:00:00 | O182: 00:25:42
B183: =VLOOKUP($A183,'[1]Racing numbers file'!$A$4:$G$400,2,FALSE) ->  | C183: =VLOOKUP($A183,'[1]Racing numbers file'!$A$4:$G$400,5,FALSE) ->  | D183: =VLOOKUP($A183,'[1]Racing numbers file'!$A$4:$H$400,8,FALSE) ->  | E183: 00:20:00 | F183: 00:50:00 | G183: 01:40:00 | H183: =VLOOKUP($C183,'Age Standards'!$B$3:$J$48,7,FALSE) ->  | I183: =VLOOKUP($C183,'Age Standards'!$B$3:$J$48,8,FALSE) ->  | J183: =VLOOKUP($C183,'Age Standards'!$B$3:$J$48,9,FALSE) ->  | K183: 00:20:00 | L183: 00:50:00 | M183: 01:40:00 | N183: 00:00:00 | O183: 00:25:42
B184: =VLOOKUP($A184,'[1]Racing numbers file'!$A$4:$G$400,2,FALSE) ->  | C184: =VLOOKUP($A184,'[1]Racing numbers file'!$A$4:$G$400,5,FALSE) ->  | D184: =VLOOKUP($A184,'[1]Racing numbers file'!$A$4:$H$400,8,FALSE) ->  | E184: 00:20:00 | F184: 00:50:00 | G184: 01:40:00 | H184: =VLOOKUP($C184,'Age Standards'!$B$3:$J$48,7,FALSE) ->  | I184: =VLOOKUP($C184,'Age Standards'!$B$3:$J$48,8,FALSE) ->  | J184: =VLOOKUP($C184,'Age Standards'!$B$3:$J$48,9,FALSE) ->  | K184: 00:20:00 | L184: 00:50:00 | M184: 01:40:00 | N184: 00:00:00 | O184: 00:25:42
B185: =VLOOKUP($A185,'[1]Racing numbers file'!$A$4:$G$400,2,FALSE) ->  | C185: =VLOOKUP($A185,'[1]Racing numbers file'!$A$4:$G$400,5,FALSE) ->  | D185: =VLOOKUP($A185,'[1]Racing numbers file'!$A$4:$H$400,8,FALSE) ->  | E185: 00:20:00 | F185: 00:50:00 | G185: 01:40:00 | H185: =VLOOKUP($C185,'Age Standards'!$B$3:$J$48,7,FALSE) ->  | I185: =VLOOKUP($C185,'Age Standards'!$B$3:$J$48,8,FALSE) ->  | J185: =VLOOKUP($C185,'Age Standards'!$B$3:$J$48,9,FALSE) ->  | K185: 00:20:00 | L185: 00:50:00 | M185: 01:40:00 | N185: 00:00:00 | O185: 00:25:42
B186: =VLOOKUP($A186,'[1]Racing numbers file'!$A$4:$G$400,2,FALSE) ->  | C186: =VLOOKUP($A186,'[1]Racing numbers file'!$A$4:$G$400,5,FALSE) ->  | D186: =VLOOKUP($A186,'[1]Racing numbers file'!$A$4:$H$400,8,FALSE) ->  | E186: 00:20:00 | F186: 00:50:00 | G186: 01:40:00 | H186: =VLOOKUP($C186,'Age Standards'!$B$3:$J$48,7,FALSE) ->  | I186: =VLOOKUP($C186,'Age Standards'!$B$3:$J$48,8,FALSE) ->  | J186: =VLOOKUP($C186,'Age Standards'!$B$3:$J$48,9,FALSE) ->  | K186: 00:20:00 | L186: 00:50:00 | M186: 01:40:00 | N186: 00:00:00 | O186: 00:25:42
B187: =VLOOKUP($A187,'[1]Racing numbers file'!$A$4:$G$400,2,FALSE) ->  | C187: =VLOOKUP($A187,'[1]Racing numbers file'!$A$4:$G$400,5,FALSE) ->  | D187: =VLOOKUP($A187,'[1]Racing numbers file'!$A$4:$H$400,8,FALSE) ->  | E187: 00:20:00 | F187: 00:50:00 | G187: 01:40:00 | H187: =VLOOKUP($C187,'Age Standards'!$B$3:$J$48,7,FALSE) ->  | I187: =VLOOKUP($C187,'Age Standards'!$B$3:$J$48,8,FALSE) ->  | J187: =VLOOKUP($C187,'Age Standards'!$B$3:$J$48,9,FALSE) ->  | K187: 00:20:00 | L187: 00:50:00 | M187: 01:40:00 | N187: 00:00:00 | O187: 00:25:42
B188: =VLOOKUP($A188,'[1]Racing numbers file'!$A$4:$G$400,2,FALSE) ->  | C188: =VLOOKUP($A188,'[1]Racing numbers file'!$A$4:$G$400,5,FALSE) ->  | D188: =VLOOKUP($A188,'[1]Racing numbers file'!$A$4:$H$400,8,FALSE) ->  | E188: 00:20:00 | F188: 00:50:00 | G188: 01:40:00 | H188: =VLOOKUP($C188,'Age Standards'!$B$3:$J$48,7,FALSE) ->  | I188: =VLOOKUP($C188,'Age Standards'!$B$3:$J$48,8,FALSE) ->  | J188: =VLOOKUP($C188,'Age Standards'!$B$3:$J$48,9,FALSE) ->  | K188: 00:20:00 | L188: 00:50:00 | M188: 01:40:00 | N188: 00:00:00 | O188: 00:25:42
B189: =VLOOKUP($A189,'[1]Racing numbers file'!$A$4:$G$400,2,FALSE) ->  | C189: =VLOOKUP($A189,'[1]Racing numbers file'!$A$4:$G$400,5,FALSE) ->  | D189: =VLOOKUP($A189,'[1]Racing numbers file'!$A$4:$H$400,8,FALSE) ->  | E189: 00:20:00 | F189: 00:50:00 | G189: 01:40:00 | H189: =VLOOKUP($C189,'Age Standards'!$B$3:$J$48,7,FALSE) ->  | I189: =VLOOKUP($C189,'Age Standards'!$B$3:$J$48,8,FALSE) ->  | J189: =VLOOKUP($C189,'Age Standards'!$B$3:$J$48,9,FALSE) ->  | K189: 00:20:00 | L189: 00:50:00 | M189: 01:40:00 | N189: 00:00:00 | O189: 00:25:42
B190: =VLOOKUP($A190,'[1]Racing numbers file'!$A$4:$G$400,2,FALSE) ->  | C190: =VLOOKUP($A190,'[1]Racing numbers file'!$A$4:$G$400,5,FALSE) ->  | D190: =VLOOKUP($A190,'[1]Racing numbers file'!$A$4:$H$400,8,FALSE) ->  | E190: 00:20:00 | F190: 00:50:00 | G190: 01:40:00 | H190: =VLOOKUP($C190,'Age Standards'!$B$3:$J$48,7,FALSE) ->  | I190: =VLOOKUP($C190,'Age Standards'!$B$3:$J$48,8,FALSE) ->  | J190: =VLOOKUP($C190,'Age Standards'!$B$3:$J$48,9,FALSE) ->  | K190: 00:20:00 | L190: 00:50:00 | M190: 01:40:00 | N190: 00:00:00 | O190: 00:25:42
B191: =VLOOKUP($A191,'[1]Racing numbers file'!$A$4:$G$400,2,FALSE) ->  | C191: =VLOOKUP($A191,'[1]Racing numbers file'!$A$4:$G$400,5,FALSE) ->  | D191: =VLOOKUP($A191,'[1]Racing numbers file'!$A$4:$H$400,8,FALSE) ->  | E191: 00:20:00 | F191: 00:50:00 | G191: 01:40:00 | H191: =VLOOKUP($C191,'Age Standards'!$B$3:$J$48,7,FALSE) ->  | I191: =VLOOKUP($C191,'Age Standards'!$B$3:$J$48,8,FALSE) ->  | J191: =VLOOKUP($C191,'Age Standards'!$B$3:$J$48,9,FALSE) ->  | K191: 00:20:00 | L191: 00:50:00 | M191: 01:40:00 | N191: 00:00:00 | O191: 00:25:42
B192: =VLOOKUP($A192,'[1]Racing numbers file'!$A$4:$G$400,2,FALSE) ->  | C192: =VLOOKUP($A192,'[1]Racing numbers file'!$A$4:$G$400,5,FALSE) ->  | D192: =VLOOKUP($A192,'[1]Racing numbers file'!$A$4:$H$400,8,FALSE) ->  | E192: 00:20:00 | F192: 00:50:00 | G192: 01:40:00 | H192: =VLOOKUP($C192,'Age Standards'!$B$3:$J$48,7,FALSE) ->  | I192: =VLOOKUP($C192,'Age Standards'!$B$3:$J$48,8,FALSE) ->  | J192: =VLOOKUP($C192,'Age Standards'!$B$3:$J$48,9,FALSE) ->  | K192: 00:20:00 | L192: 00:50:00 | M192: 01:40:00 | N192: 00:00:00 | O192: 00:25:42
B193: =VLOOKUP($A193,'[1]Racing numbers file'!$A$4:$G$400,2,FALSE) ->  | C193: =VLOOKUP($A193,'[1]Racing numbers file'!$A$4:$G$400,5,FALSE) ->  | D193: =VLOOKUP($A193,'[1]Racing numbers file'!$A$4:$H$400,8,FALSE) ->  | E193: 00:20:00 | F193: 00:50:00 | G193: 01:40:00 | H193: =VLOOKUP($C193,'Age Standards'!$B$3:$J$48,7,FALSE) ->  | I193: =VLOOKUP($C193,'Age Standards'!$B$3:$J$48,8,FALSE) ->  | J193: =VLOOKUP($C193,'Age Standards'!$B$3:$J$48,9,FALSE) ->  | K193: 00:20:00 | L193: 00:50:00 | M193: 01:40:00 | N193: 00:00:00 | O193: 00:25:42
B194: =VLOOKUP($A194,'[1]Racing numbers file'!$A$4:$G$400,2,FALSE) ->  | C194: =VLOOKUP($A194,'[1]Racing numbers file'!$A$4:$G$400,5,FALSE) ->  | D194: =VLOOKUP($A194,'[1]Racing numbers file'!$A$4:$H$400,8,FALSE) ->  | E194: 00:20:00 | F194: 00:50:00 | G194: 01:40:00 | H194: =VLOOKUP($C194,'Age Standards'!$B$3:$J$48,7,FALSE) ->  | I194: =VLOOKUP($C194,'Age Standards'!$B$3:$J$48,8,FALSE) ->  | J194: =VLOOKUP($C194,'Age Standards'!$B$3:$J$48,9,FALSE) ->  | K194: 00:20:00 | L194: 00:50:00 | M194: 01:40:00 | N194: 00:00:00 | O194: 00:25:42
B195: =VLOOKUP($A195,'[1]Racing numbers file'!$A$4:$G$400,2,FALSE) ->  | C195: =VLOOKUP($A195,'[1]Racing numbers file'!$A$4:$G$400,5,FALSE) ->  | D195: =VLOOKUP($A195,'[1]Racing numbers file'!$A$4:$H$400,8,FALSE) ->  | E195: 00:20:00 | F195: 00:50:00 | G195: 01:40:00 | H195: =VLOOKUP($C195,'Age Standards'!$B$3:$J$48,7,FALSE) ->  | I195: =VLOOKUP($C195,'Age Standards'!$B$3:$J$48,8,FALSE) ->  | J195: =VLOOKUP($C195,'Age Standards'!$B$3:$J$48,9,FALSE) ->  | K195: 00:20:00 | L195: 00:50:00 | M195: 01:40:00 | N195: 00:00:00 | O195: 00:25:42
B196: =VLOOKUP($A196,'[1]Racing numbers file'!$A$4:$G$400,2,FALSE) ->  | C196: =VLOOKUP($A196,'[1]Racing numbers file'!$A$4:$G$400,5,FALSE) ->  | D196: =VLOOKUP($A196,'[1]Racing numbers file'!$A$4:$H$400,8,FALSE) ->  | E196: 00:20:00 | F196: 00:50:00 | G196: 01:40:00 | H196: =VLOOKUP($C196,'Age Standards'!$B$3:$J$48,7,FALSE) ->  | I196: =VLOOKUP($C196,'Age Standards'!$B$3:$J$48,8,FALSE) ->  | J196: =VLOOKUP($C196,'Age Standards'!$B$3:$J$48,9,FALSE) ->  | K196: 00:20:00 | L196: 00:50:00 | M196: 01:40:00 | N196: 00:00:00 | O196: 00:25:42
B197: =VLOOKUP($A197,'[1]Racing numbers file'!$A$4:$G$400,2,FALSE) ->  | C197: =VLOOKUP($A197,'[1]Racing numbers file'!$A$4:$G$400,5,FALSE) ->  | D197: =VLOOKUP($A197,'[1]Racing numbers file'!$A$4:$H$400,8,FALSE) ->  | E197: 00:20:00 | F197: 00:50:00 | G197: 01:40:00 | H197: =VLOOKUP($C197,'Age Standards'!$B$3:$J$48,7,FALSE) ->  | I197: =VLOOKUP($C197,'Age Standards'!$B$3:$J$48,8,FALSE) ->  | J197: =VLOOKUP($C197,'Age Standards'!$B$3:$J$48,9,FALSE) ->  | K197: 00:20:00 | L197: 00:50:00 | M197: 01:40:00 | N197: 00:00:00 | O197: 00:25:42
B198: =VLOOKUP($A198,'[1]Racing numbers file'!$A$4:$G$400,2,FALSE) ->  | C198: =VLOOKUP($A198,'[1]Racing numbers file'!$A$4:$G$400,5,FALSE) ->  | D198: =VLOOKUP($A198,'[1]Racing numbers file'!$A$4:$H$400,8,FALSE) ->  | E198: 00:20:00 | F198: 00:50:00 | G198: 01:40:00 | H198: =VLOOKUP($C198,'Age Standards'!$B$3:$J$48,7,FALSE) ->  | I198: =VLOOKUP($C198,'Age Standards'!$B$3:$J$48,8,FALSE) ->  | J198: =VLOOKUP($C198,'Age Standards'!$B$3:$J$48,9,FALSE) ->  | K198: 00:20:00 | L198: 00:50:00 | M198: 01:40:00 | N198: 00:00:00 | O198: 00:25:42
B199: =VLOOKUP($A199,'[1]Racing numbers file'!$A$4:$G$400,2,FALSE) ->  | C199: =VLOOKUP($A199,'[1]Racing numbers file'!$A$4:$G$400,5,FALSE) ->  | D199: =VLOOKUP($A199,'[1]Racing numbers file'!$A$4:$H$400,8,FALSE) ->  | E199: 00:20:00 | F199: 00:50:00 | G199: 01:40:00 | H199: =VLOOKUP($C199,'Age Standards'!$B$3:$J$48,7,FALSE) ->  | I199: =VLOOKUP($C199,'Age Standards'!$B$3:$J$48,8,FALSE) ->  | J199: =VLOOKUP($C199,'Age Standards'!$B$3:$J$48,9,FALSE) ->  | K199: 00:20:00 | L199: 00:50:00 | M199: 01:40:00 | N199: 00:00:00 | O199: 00:25:42

Sheet Age std Points Table
A1: IVCA Time Trial League
A2: 2015 | F2: TTL_01 | G2: TTL_02 | H2: TTL_03 | I2: TTL_04 | J2: TTL_05 | K2: TTL_06 | L2: TTL_07 | M2: TTL_08 | N2: TTL_09 | O2: TTL_10 | U2: Sat TT_01 | V2: Sat TT_02 | W2: Sat TT_03 | X2: Sat TT_04 | Y2: Sat TT_05 | Z2: SatTT_ 06
A3: Age Standard Points Table | F3: Tuesday | G3: Tuesday | H3: Tuesday | I3: Sunday | J3: Tuesday | K3: Tuesday | L3: Sunday | M3: Sunday | N3: Tuesday | O3: Sunday | U3: Sunday | V3: Tuesday | W3: Saturday | X3: Tuesday | Y3: Tuesday | Z3: Sunday
F4: 41031 | G4: 41038 | H4: 41052 | I4: 41057 | J4: 41066 | K4: 41073 | L4: 41085 | M4: 41076 | N4: 41122 | O4: 41127 | U4: 41043 | V4: 41059 | W4: 41107 | X4: 41094 | Y4: 41115 | Z4: 41103
F5: Tom Dempsey 10 TT | G5: IVCA | H5: Fred Smith 25 TT | I5: IVCA | J5: Championship 10 TT | K5: IVCA | L5: Championship 25 TT | M5: 40/50/60/70 Championships | N5: IVCA | O5: 100 in 8 | U5: Mind the Gaps | V5: IVCA | W5: Saturday 10 TT Series | X5: IVCA | Y5: IVCA | Z5: Age Champs
F6: TT | G6: DMS | H6: TT | I6: DMS | J6: TT | K6: DMS | L6: TT | M6: Age DMS | N6: DMS | O6: Tour | U6: Tour | V6: DMS | W6: TT | X6: DMS | Y6: DMS | Z6: Age CP
F7: Kilcock | G7: Kilcullen | H7: Black Bull | I7: The Curragh | J7: Kilcock | K7: Kilcullen | L7: Moy Valley | M7: Kentstown | N7: Summerhill | O7: Papal Cross | U7: 41043 | V7: Summerhill | W7: T.B.A. | X7: Kilcullen | Y7: Kilcullen | Z7: Summerhill
B8: Surname+id | C8: First Name | D8: Age | E8: Points | F8: 19:15:00 | G8: 19:15:00 | H8: 19:15:00 | I8: 09:00:00 | J8: 19:15:00 | K8: 19:15:00 | L8: 09:00:00 | M8: 09:00:00 | N8: 19:15:00 | O8: 09:00:00 | R8: Total | T8: 09:00:00 | U8: 19:15:00 | V8: 09:30:00 | W8: 19:15:00 | X8: 19:15:00 | Y8: 09:00:00 | Z8: 0 | AA8: Total
A9: Column1 | B9: Column2 | C9: Column3 | D9: Column4 | E9: Column5 | F9: Column6 | G9: Column7 | H9: Column8 | I9: Column9 | J9: Column10 | K9: Column11 | L9: Column12 | M9: Column13 | N9: Column14 | O9: Column15 | P9: Column16 | Q9: Column17 | R9: Column18 | S9: Column19 | T9: Column20 | U9: Column21 | V9: Column22 | W9: Column23 | X9: Column24 | Y9: Column25 | Z9: Column26 | AA9: Column27
B10: Paul Dolan | C10: 1967 | D10: 49 | E10: 10 | F10: 10 | G10: 0 | H10: 0 | I10: 0 | J10: 0 | K10: 0 | L10: 0 | M10: 0 | N10: 0 | O10: 0 | P10: 0 | Q10: 0 | T10: 10 | U10: 0 | V10: 0 | W10: 0 | X10: 0 | Y10: 0 | Z10: 0
B11: Adrian Byrne | C11: 1953 | D11: 63 | E11: 9 | F11: 9 | G11: 0 | H11: 0 | I11: 0 | J11: 0 | K11: 0 | L11: 0 | M11: 0 | N11: 0 | O11: 0 | P11: 0 | Q11: 0 | T11: 9 | U11: 0 | V11: 0 | W11: 0 | X11: 0 | Y11: 0 | Z11: 0
B12: Joe Sheehy | C12: 1967 | D12: 49 | E12: 8 | F12: 8 | T12: 8
B13: Brian Kane | C13: 1975 | D13: 41 | E13: 9 | F13: 9 | T13: 9 | U13: 0 | V13: 0 | W13: 0 | X13: 0 | Y13: 0 | Z13: 0
B14: Mark McCabe | C14: 1971 | D14: 45 | E14: 7 | F14: 7 | G14: 0 | H14: 0 | I14: 0 | J14: 0 | K14: 0 | L14: 0 | M14: 0 | N14: 0 | O14: 0 | P14: 0 | Q14: 0 | T14: 7 | U14: 0 | V14: 0 | W14: 0 | X14: 0 | Y14: 0 | Z14: 0
B15: Ciara Kinch | C15: 1973 | D15: 43 | E15: 6 | F15: 6 | G15: 0 | H15: 0 | I15: 0 | J15: 0 | K15: 0 | L15: 0 | M15: 0 | N15: 0 | O15: 0 | P15: 0 | Q15: 0 | T15: 6 | U15: 0 | V15: 0 | W15: 0 | X15: 0 | Y15: 0 | Z15: 0
B16: Mick Usher | C16: 1954 | D16: 62 | E16: 5 | F16: 5 | G16: 0 | H16: 0 | I16: 0 | J16: 0 | K16: 0 | L16: 0 | M16: 0 | N16: 0 | O16: 0 | P16: 0 | Q16: 0 | T16: 5 | U16: 0 | V16: 0 | W16: 0 | X16: 0 | Y16: 0 | Z16: 0
B17: Tom Malone | C17: 1958 | D17: 58 | E17: 4 | F17: 4 | G17: 0 | H17: 0 | I17: 0 | J17: 0 | K17: 0 | L17: 0 | M17: 0 | N17: 0 | O17: 0 | P17: 0 | Q17: 0 | T17: 4 | U17: 0 | V17: 0 | W17: 0 | X17: 0 | Y17: 0 | Z17: 0
B18: Stephen Walsh | C18: 1969 | D18: 47 | E18: 3 | F18: 3 | G18: 0 | H18: 0 | I18: 0 | J18: 0 | K18: 0 | L18: 0 | M18: 0 | N18: 0 | O18: 0 | P18: 0 | Q18: 0 | T18: 3 | U18: 0 | V18: 0 | W18: 0 | X18: 0 | Y18: 0 | Z18: 0
B19: Rodney Joyce | C19: 1967 | D19: 49 | E19: 2 | F19: 2 | G19: 0 | H19: 0 | I19: 0 | J19: 0 | K19: 0 | L19: 0 | M19: 0 | N19: 0 | O19: 0 | P19: 0 | Q19: 0 | T19: 2 | U19: 0 | V19: 0 | W19: 0 | X19: 0 | Y19: 0 | Z19: 0
B20: Kevin Simms | C20: 1932 | D20: 84 | E20: 2 | F20: 2 | G20: 0 | H20: 0 | I20: 0 | J20: 0 | K20: 0 | L20: 0 | M20: 0 | N20: 0 | O20: 0 | P20: 0 | Q20: 0 | T20: 2 | U20: 0 | V20: 0 | W20: 0 | X20: 0 | Y20: 0 | Z20: 0
B21: Phil Ormrod | C21: 1944 | D21: 72 | E21: 2 | F21: 2 | G21: 0 | H21: 0 | I21: 0 | J21: 0 | K21: 0 | L21: 0 | M21: 0 | N21: 0 | O21: 0 | P21: 0 | Q21: 0 | T21: 2 | U21: 0 | V21: 0 | W21: 0 | X21: 0 | Y21: 0 | Z21: 0
B22: Willie McDonald | C22: 1962 | D22: 54 | E22: 2 | F22: 2 | G22: 0 | H22: 0 | I22: 0 | J22: 0 | K22: 0 | L22: 0 | M22: 0 | N22: 0 | O22: 0 | P22: 0 | Q22: 0 | T22: 2 | U22: 0 | V22: 0 | W22: 0 | X22: 0 | Y22: 0 | Z22: 0
B23: Deanne Sanders | C23: 1971 | D23: 45 | E23: 2 | F23: 2 | G23: 0 | H23: 0 | I23: 0 | J23: 0 | K23: 0 | L23: 0 | M23: 0 | N23: 0 | O23: 0 | P23: 0 | Q23: 0 | T23: 2 | U23: 0 | V23: 0 | W23: 0 | X23: 0 | Y23: 0 | Z23: 0
B24: Leonard Carrigan | C24: 1967 | D24: 49 | E24: 2 | F24: 2 | G24: 0 | H24: 0 | I24: 0 | J24: 0 | K24: 0 | L24: 0 | M24: 0 | N24: 0 | O24: 0 | P24: 0 | Q24: 0 | T24: 2 | U24: 0 | V24: 0 | W24: 0 | X24: 0 | Y24: 0 | Z24: 0
B25: Enda Smyth | C25: 1969 | D25: 47 | E25: 2 | F25: 2 | G25: 0 | H25: 0 | I25: 0 | J25: 0 | K25: 0 | L25: 0 | M25: 0 | N25: 0 | O25: 0 | P25: 0 | Q25: 0 | T25: 2 | U25: 0 | V25: 0 | W25: 0 | X25: 0 | Y25: 0 | Z25: 0
B26: Brendan Byrne | C26: 1950 | D26: 66 | E26: 2 | F26: 2 | G26: 0 | H26: 0 | I26: 0 | J26: 0 | K26: 0 | L26: 0 | M26: 0 | N26: 0 | O26: 0 | P26: 0 | Q26: 0 | T26: 2 | U26: 0 | V26: 0 | W26: 0 | X26: 0 | Y26: 0 | Z26: 0
B27: Billy Bourke | C27: 1965 | D27: 51 | E27: 2 | F27: 2 | G27: 0 | H27: 0 | I27: 0 | J27: 0 | K27: 0 | L27: 0 | M27: 0 | N27: 0 | O27: 0 | P27: 0 | Q27: 0 | T27: 2 | U27: 0 | V27: 0 | W27: 0 | X27: 0 | Y27: 0 | Z27: 0
B28: Mark Prendergast | C28: 1967 | D28: 49 | E28: 2 | F28: 2 | G28: 0 | H28: 0 | I28: 0 | J28: 0 | K28: 0 | L28: 0 | M28: 0 | N28: 0 | O28: 0 | P28: 0 | Q28: 0 | T28: 2 | U28: 0 | V28: 0 | W28: 0 | X28: 0 | Y28: 0 | Z28: 0
B29: David McDonald | C29: 1972 | D29: 44 | E29: 2 | F29: 2 | G29: 0 | H29: 0 | I29: 0 | J29: 0 | K29: 0 | L29: 0 | M29: 0 | N29: 0 | O29: 0 | P29: 0 | Q29: 0 | T29: 2 | U29: 0 | V29: 0 | W29: 0 | X29: 0 | Y29: 0 | Z29: 0
B30: Jimmy Murphy | C30: 1956 | D30: 60 | E30: 2 | F30: 2 | G30: 0 | H30: 0 | I30: 0 | J30: 0 | K30: 0 | L30: 0 | M30: 0 | N30: 0 | O30: 0 | P30: 0 | Q30: 0 | T30: 2 | U30: 0 | V30: 0 | W30: 0 | X30: 0 | Y30: 0 | Z30: 0
B31: Donagh McArdle | C31: 1968 | D31: 48 | E31: 2 | F31: 2 | G31: 0 | H31: 0 | I31: 0 | J31: 0 | K31: 0 | L31: 0 | M31: 0 | N31: 0 | O31: 0 | P31: 0 | Q31: 0 | T31: 2 | U31: 0 | V31: 0 | W31: 0 | X31: 0 | Y31: 0 | Z31: 0
B32: Peter Raftery | C32: 1953 | D32: 63 | E32: 2 | F32: 2 | G32: 0 | H32: 0 | I32: 0 | J32: 0 | K32: 0 | L32: 0 | M32: 0 | N32: 0 | O32: 0 | P32: 0 | Q32: 0 | T32: 2 | U32: 0 | V32: 0 | W32: 0 | X32: 0 | Y32: 0 | Z32: 0
B33: Conor Barry | C33: 1973 | D33: 43 | E33: 2 | F33: 2 | G33: 0 | H33: 0 | I33: 0 | J33: 0 | K33: 0 | L33: 0 | M33: 0 | N33: 0 | O33: 0 | T33: 2 | U33: 0 | V33: 0 | W33: 0 | X33: 0 | Y33: 0 | Z33: 0
B34: Colm Conway | C34: 1952 | D34: 64 | E34: 2 | F34: 2 | G34: 0 | H34: 0 | I34: 0 | J34: 0 | K34: 0 | L34: 0 | M34: 0 | N34: 0 | O34: 0 | P34: 0 | Q34: 0 | T34: 2 | U34: 0 | V34: 0 | W34: 0 | X34: 0 | Y34: 0 | Z34: 0
B35: Colm Cassidy | C35: 1957 | D35: 59 | E35: 2 | F35: 2 | G35: 0 | H35: 0 | I35: 0 | J35: 0 | K35: 0 | L35: 0 | M35: 0 | N35: 0 | O35: 0 | P35: 0 | Q35: 0 | T35: 2 | U35: 0 | V35: 0 | W35: 0 | X35: 0 | Y35: 0 | Z35: 0
B36: John Kehoe | C36: 1969 | D36: 47 | E36: 2 | F36: 2 | G36: 0 | H36: 0 | I36: 0 | J36: 0 | K36: 0 | L36: 0 | M36: 0 | N36: 0 | O36: 0 | T36: 2 | U36: 0 | V36: 0 | W36: 0 | X36: 0 | Y36: 0 | Z36: 0
B37: Peter Hurley | C37: 1963 | D37: 53 | E37: 2 | F37: 2 | T37: 2 | U37: 0 | V37: 0 | W37: 0 | X37: 0 | Y37: 0 | Z37: 0
B38: Michael Hayden | C38: 1960 | D38: 56 | E38: 2 | F38: 2 | T38: 2 | U38: 0 | V38: 0 | W38: 0 | X38: 0 | Y38: 0 | Z38: 0
B39: JJ Boylan | C39: 1944 | D39: 72 | E39: 2 | F39: 2 | G39: 0 | H39: 0 | I39: 0 | J39: 0 | K39: 0 | L39: 0 | M39: 0 | N39: 0 | O39: 0 | P39: 0 | Q39: 0 | T39: 2 | U39: 0 | V39: 0 | W39: 0 | X39: 0 | Y39: 0 | Z39: 0
B40: Romano Morelli | C40: 1952 | D40: 64 | E40: 2 | F40: 2 | G40: 0 | H40: 0 | I40: 0 | J40: 0 | K40: 0 | L40: 0 | M40: 0 | N40: 0 | O40: 0 | P40: 0 | Q40: 0 | T40: 2 | U40: 0 | V40: 0 | W40: 0 | X40: 0 | Y40: 0 | Z40: 0
B41: Ger Madden | C41: 1964 | D41: 52 | E41: 2 | F41: 2 | G41: 0 | H41: 0 | I41: 0 | J41: 0 | K41: 0 | L41: 0 | M41: 0 | N41: 0 | O41: 0 | P41: 0 | Q41: 0 | T41: 2 | U41: 0 | V41: 0 | W41: 0 | X41: 0 | Y41: 0 | Z41: 0
B42: Mark Mearns | C42: 1976 | D42: 40 | E42: 2 | F42: 2 | G42: 0 | H42: 0 | I42: 0 | J42: 0 | K42: 0 | L42: 0 | M42: 0 | N42: 0 | O42: 0 | P42: 0 | Q42: 0 | T42: 2 | U42: 0 | V42: 0 | W42: 0 | X42: 0 | Y42: 0 | Z42: 0
B43: Malcolm Garland | C43: 1965 | D43: 51 | E43: 2 | F43: 2 | G43: 0 | H43: 0 | I43: 0 | J43: 0 | K43: 0 | L43: 0 | M43: 0 | N43: 0 | O43: 0 | P43: 0 | Q43: 0 | T43: 2 | U43: 0 | V43: 0 | W43: 0 | X43: 0 | Y43: 0 | Z43: 0
B44: Jimmy Stagg | C44: 1959 | D44: 57 | E44: 2 | F44: 2 | G44: 0 | H44: 0 | I44: 0 | J44: 0 | K44: 0 | L44: 0 | M44: 0 | N44: 0 | O44: 0 | P44: 0 | Q44: 0 | T44: 2 | U44: 0 | V44: 0 | W44: 0 | X44: 0 | Y44: 0 | Z44: 0
B45: Gerry Jameson | C45: 1960 | D45: 56 | E45: 2 | F45: 2 | G45: 0 | H45: 0 | I45: 0 | J45: 0 | K45: 0 | L45: 0 | M45: 0 | N45: 0 | O45: 0 | T45: 2 | U45: 0 | V45: 0 | W45: 0 | X45: 0 | Y45: 0 | Z45: 0
B46: Brian Kane | C46: 1975 | D46: 41 | E46: 2 | F46: 2 | T46: 2 | U46: 0 | V46: 0 | W46: 0 | X46: 0 | Y46: 0 | Z46: 0
B47: Daniel Roberts | C47: 1975 | D47: 41 | E47: 2 | F47: 2 | T47: 2 | U47: 0 | V47: 0 | W47: 0 | X47: 0 | Y47: 0 | Z47: 0
E48: 2 | F48: 2 | T48: 2 | U48: 0 | V48: 0 | W48: 0 | X48: 0 | Y48: 0 | Z48: 0
B49: Andrew Bartley | C49: 1965 | D49: 51 | E49: 0 | F49: 0 | G49: 0 | H49: 0 | I49: 0 | J49: 0 | K49: 0 | L49: 0 | M49: 0 | N49: 0 | O49: 0 | P49: 0 | Q49: 0 | T49: 0 | U49: 0 | V49: 0 | W49: 0 | X49: 0 | Y49: 0 | Z49: 0
B50: Bill Andrews | C50: 1966 | D50: 50 | E50: 0 | F50: 0 | G50: 0 | H50: 0 | I50: 0 | J50: 0 | K50: 0 | L50: 0 | M50: 0 | N50: 0 | O50: 0 | P50: 0 | Q50: 0 | T50: 0 | U50: 0 | V50: 0 | W50: 0 | X50: 0 | Y50: 0 | Z50: 0
B51: Hugh Davis | C51: 1947 | D51: 69 | E51: 0 | F51: 0 | G51: 0 | H51: 0 | I51: 0 | J51: 0 | K51: 0 | L51: 0 | M51: 0 | N51: 0 | O51: 0 | P51: 0 | Q51: 0 | T51: 0 | U51: 0 | V51: 0 | W51: 0 | X51: 0 | Y51: 0 | Z51: 0
B52: Paul Hunter | C52: 1976 | D52: 40 | E52: 0 | F52: 0 | G52: 0 | H52: 0 | I52: 0 | J52: 0 | K52: 0 | L52: 0 | M52: 0 | N52: 0 | O52: 0 | T52: 0 | U52: 0 | V52: 0 | W52: 0 | X52: 0 | Y52: 0 | Z52: 0
B53: Billy Riggs | C53: 1972 | D53: 44 | E53: 0 | F53: 0 | G53: 0 | H53: 0 | I53: 0 | J53: 0 | K53: 0 | L53: 0 | M53: 0 | N53: 0 | O53: 0 | P53: 0 | Q53: 0 | T53: 0 | U53: 0 | V53: 0 | W53: 0 | X53: 0 | Y53: 0 | Z53: 0
B54: Desmond King | C54: 1962 | D54: 54 | E54: 0 | F54: 0 | G54: 0 | H54: 0 | I54: 0 | J54: 0 | K54: 0 | L54: 0 | M54: 0 | N54: 0 | O54: 0 | P54: 0 | Q54: 0 | T54: 0 | U54: 0 | V54: 0 | W54: 0 | X54: 0 | Y54: 0 | Z54: 0
B55: Martin McCaffrey | C55: 1964 | D55: 52 | E55: 0 | F55: 0 | G55: 0 | H55: 0 | I55: 0 | J55: 0 | K55: 0 | L55: 0 | M55: 0 | N55: 0 | O55: 0 | P55: 0 | Q55: 0 | T55: 0 | U55: 0 | V55: 0 | W55: 0 | X55: 0 | Y55: 0 | Z55: 0
B56: Alan Carroll | C56: 1975 | D56: 41 | E56: 0 | F56: 0 | G56: 0 | H56: 0 | I56: 0 | J56: 0 | K56: 0 | L56: 0 | M56: 0 | N56: 0 | O56: 0 | P56: 0 | Q56: 0 | T56: 0 | U56: 0 | V56: 0 | W56: 0 | X56: 0 | Y56: 0 | Z56: 0
B57: Paul Cullinan | C57: 1965 | D57: 51 | E57: 0 | F57: 0 | G57: 0 | H57: 0 | I57: 0 | J57: 0 | K57: 0 | L57: 0 | M57: 0 | N57: 0 | O57: 0 | P57: 0 | Q57: 0 | T57: 0 | U57: 0 | V57: 0 | W57: 0 | X57: 0 | Y57: 0 | Z57: 0
B58: Simon Wallace | C58: 1972 | D58: 44 | E58: 0 | F58: 0 | G58: 0 | H58: 0 | I58: 0 | J58: 0 | K58: 0 | L58: 0 | M58: 0 | N58: 0 | O58: 0 | P58: 0 | Q58: 0 | T58: 0 | U58: 0 | V58: 0 | W58: 0 | X58: 0 | Y58: 0 | Z58: 0
B59: Sam McArdle | C59: 1964 | D59: 52 | E59: 0 | F59: 0 | G59: 0 | H59: 0 | I59: 0 | J59: 0 | K59: 0 | L59: 0 | M59: 0 | N59: 0 | O59: 0 | P59: 0 | Q59: 0 | T59: 0 | U59: 0 | V59: 0 | W59: 0 | X59: 0 | Y59: 0 | Z59: 0
B60: Patsy FitzSimons | C60: 1934 | D60: 82 | E60: 0 | F60: 0 | G60: 0 | H60: 0 | I60: 0 | J60: 0 | K60: 0 | L60: 0 | M60: 0 | N60: 0 | O60: 0 | P60: 0 | Q60: 0 | T60: 0 | U60: 0 | V60: 0 | W60: 0 | X60: 0 | Y60: 0 | Z60: 0
B61: Joe Christian | C61: 1975 | D61: 41 | E61: 0 | F61: 0 | G61: 0 | H61: 0 | I61: 0 | J61: 0 | K61: 0 | L61: 0 | M61: 0 | N61: 0 | O61: 0 | P61: 0 | Q61: 0 | T61: 0 | U61: 0 | V61: 0 | W61: 0 | X61: 0 | Y61: 0 | Z61: 0
B62: Brian McNamara | C62: 1968 | D62: 48 | E62: 0 | F62: 0 | G62: 0 | H62: 0 | I62: 0 | J62: 0 | K62: 0 | L62: 0 | M62: 0 | N62: 0 | O62: 0 | P62: 0 | Q62: 0 | T62: 0 | U62: 0 | V62: 0 | W62: 0 | X62: 0 | Y62: 0 | Z62: 0
B63: David Carroll | C63: 1971 | D63: 45 | E63: 0 | F63: 0 | G63: 0 | H63: 0 | I63: 0 | J63: 0 | K63: 0 | L63: 0 | M63: 0 | N63: 0 | O63: 0 | P63: 0 | Q63: 0 | T63: 0 | U63: 0 | V63: 0 | W63: 0 | X63: 0 | Y63: 0 | Z63: 0
B64: Eddie Dunne | C64: 1944 | D64: 72 | E64: 0 | F64: 0 | G64: 0 | H64: 0 | I64: 0 | J64: 0 | K64: 0 | L64: 0 | M64: 0 | N64: 0 | O64: 0 | P64: 0 | Q64: 0 | T64: 0 | U64: 0 | V64: 0 | W64: 0 | X64: 0 | Y64: 0 | Z64: 0
B65: Tony Brady | C65: 1962 | D65: 54 | E65: 0 | F65: 0 | G65: 0 | H65: 0 | I65: 0 | J65: 0 | K65: 0 | L65: 0 | M65: 0 | N65: 0 | O65: 0 | P65: 0 | Q65: 0 | T65: 0 | U65: 0 | V65: 0 | W65: 0 | X65: 0 | Y65: 0 | Z65: 0
B66: Harry Sherratt | C66: 1948 | D66: 68 | E66: 0 | F66: 0 | G66: 0 | H66: 0 | I66: 0 | J66: 0 | K66: 0 | L66: 0 | M66: 0 | N66: 0 | O66: 0 | P66: 0 | Q66: 0 | T66: 0 | U66: 0 | V66: 0 | W66: 0 | X66: 0 | Y66: 0 | Z66: 0
B67: Peter Rice | C67: 1946 | D67: 70 | E67: 0 | F67: 0 | G67: 0 | H67: 0 | I67: 0 | J67: 0 | K67: 0 | L67: 0 | M67: 0 | N67: 0 | O67: 0 | P67: 0 | Q67: 0 | T67: 0 | U67: 0 | V67: 0 | W67: 0 | X67: 0 | Y67: 0 | Z67: 0
B68: Karl Monaghan | C68: 1970 | D68: 46 | E68: 0 | F68: 0 | G68: 0 | H68: 0 | I68: 0 | J68: 0 | K68: 0 | L68: 0 | M68: 0 | N68: 0 | O68: 0 | P68: 0 | Q68: 0 | T68: 0 | U68: 0 | V68: 0 | W68: 0 | X68: 0 | Y68: 0 | Z68: 0
B69: Mick Payne | C69: 1942 | D69: 74 | E69: 0 | F69: 0 | G69: 0 | H69: 0 | I69: 0 | J69: 0 | K69: 0 | L69: 0 | M69: 0 | N69: 0 | O69: 0 | P69: 0 | Q69: 0 | T69: 0 | U69: 0 | V69: 0 | W69: 0 | X69: 0 | Y69: 0 | Z69: 0
B70: Liam Cullen | C70: 1974 | D70: 42 | E70: 0 | F70: 0 | G70: 0 | H70: 0 | I70: 0 | J70: 0 | K70: 0 | L70: 0 | M70: 0 | N70: 0 | O70: 0 | T70: 0 | U70: 0 | V70: 0 | W70: 0 | X70: 0 | Y70: 0 | Z70: 0
B71: Lochlann Walsh | C71: 1968 | D71: 48 | E71: 0 | F71: 0 | G71: 0 | H71: 0 | I71: 0 | J71: 0 | K71: 0 | L71: 0 | M71: 0 | N71: 0 | O71: 0 | P71: 0 | Q71: 0 | T71: 0 | U71: 0 | V71: 0 | W71: 0 | X71: 0 | Y71: 0 | Z71: 0
B72: Shay Dalton | C72: 1967 | D72: 49 | E72: 0 | F72: 0 | G72: 0 | H72: 0 | I72: 0 | J72: 0 | K72: 0 | L72: 0 | M72: 0 | N72: 0 | O72: 0 | P72: 0 | Q72: 0 | T72: 0 | U72: 0 | V72: 0 | W72: 0 | X72: 0 | Y72: 0 | Z72: 0
B73: Alan Quinn | C73: 1976 | D73: 40 | E73: 0 | F73: 0 | G73: 0 | H73: 0 | I73: 0 | J73: 0 | K73: 0 | L73: 0 | M73: 0 | N73: 0 | O73: 0 | T73: 0 | U73: 0 | V73: 0 | W73: 0 | X73: 0 | Y73: 0 | Z73: 0
B74: Valerie Considine | C74: 1969 | D74: 47 | E74: 0 | F74: 0 | G74: 0 | H74: 0 | I74: 0 | J74: 0 | K74: 0 | L74: 0 | M74: 0 | N74: 0 | O74: 0 | P74: 0 | Q74: 0 | T74: 0 | U74: 0 | V74: 0 | W74: 0 | X74: 0 | Y74: 0 | Z74: 0
B75: Dermot Anglin | C75: 1958 | D75: 58 | E75: 0 | F75: 0 | G75: 0 | H75: 0 | I75: 0 | J75: 0 | K75: 0 | L75: 0 | M75: 0 | N75: 0 | O75: 0 | P75: 0 | Q75: 0 | T75: 0 | U75: 0 | V75: 0 | W75: 0 | X75: 0 | Y75: 0 | Z75: 0
B76: Tony Keating | C76: 1969 | D76: 47 | E76: 0 | F76: 0 | G76: 0 | H76: 0 | I76: 0 | J76: 0 | K76: 0 | L76: 0 | M76: 0 | N76: 0 | O76: 0 | P76: 0 | Q76: 0 | T76: 0 | U76: 0 | V76: 0 | W76: 0 | X76: 0 | Y76: 0 | Z76: 0
B77: David Holland | C77: 1974 | D77: 42 | E77: 0 | F77: 0 | G77: 0 | H77: 0 | I77: 0 | J77: 0 | K77: 0 | L77: 0 | M77: 0 | N77: 0 | O77: 0 | P77: 0 | Q77: 0 | T77: 0 | U77: 0 | V77: 0 | W77: 0 | X77: 0 | Y77: 0 | Z77: 0
B78: John Piggott | C78: 1955 | D78: 61 | E78: 0 | F78: 0 | G78: 0 | H78: 0 | I78: 0 | J78: 0 | K78: 0 | L78: 0 | M78: 0 | N78: 0 | O78: 0 | P78: 0 | Q78: 0 | T78: 0 | U78: 0 | V78: 0 | W78: 0 | X78: 0 | Y78: 0 | Z78: 0
B79: Ollie Daly | C79: 1971 | D79: 45 | E79: 0 | F79: 0 | G79: 0 | H79: 0 | I79: 0 | J79: 0 | K79: 0 | L79: 0 | M79: 0 | N79: 0 | O79: 0 | P79: 0 | Q79: 0 | T79: 0 | U79: 0 | V79: 0 | W79: 0 | X79: 0 | Y79: 0 | Z79: 0
B80: Dave Woods | C80: 1953 | D80: 63 | E80: 0 | F80: 0 | G80: 0 | H80: 0 | I80: 0 | J80: 0 | K80: 0 | L80: 0 | M80: 0 | N80: 0 | O80: 0 | P80: 0 | Q80: 0 | T80: 0 | U80: 0 | V80: 0 | W80: 0 | X80: 0 | Y80: 0 | Z80: 0
B81: Eunan Malone | C81: 1960 | D81: 56 | E81: 0 | F81: 0 | G81: 0 | H81: 0 | I81: 0 | J81: 0 | K81: 0 | L81: 0 | M81: 0 | N81: 0 | O81: 0 | P81: 0 | Q81: 0 | T81: 0 | U81: 0 | V81: 0 | W81: 0 | X81: 0 | Y81: 0 | Z81: 0
B82: Norman Eyre | C82: 1969 | D82: 47 | E82: 0 | F82: 0 | G82: 0 | H82: 0 | I82: 0 | J82: 0 | K82: 0 | L82: 0 | M82: 0 | N82: 0 | O82: 0 | P82: 0 | Q82: 0 | T82: 0 | U82: 0 | V82: 0 | W82: 0 | X82: 0 | Y82: 0 | Z82: 0
B83: Eddie Scully | C83: 1941 | D83: 75 | E83: 0 | F83: 0 | G83: 0 | H83: 0 | I83: 0 | J83: 0 | K83: 0 | L83: 0 | M83: 0 | N83: 0 | O83: 0 | P83: 0 | Q83: 0 | T83: 0 | U83: 0 | V83: 0 | W83: 0 | X83: 0 | Y83: 0 | Z83: 0
B84: Barry Timmins | C84: 1965 | D84: 51 | E84: 0 | F84: 0 | G84: 0 | H84: 0 | I84: 0 | J84: 0 | K84: 0 | L84: 0 | M84: 0 | N84: 0 | O84: 0 | P84: 0 | Q84: 0 | T84: 0 | U84: 0 | V84: 0 | W84: 0 | X84: 0 | Y84: 0 | Z84: 0
B85: Pat Halpin | C85: 1957 | D85: 59 | E85: 0 | F85: 0 | G85: 0 | H85: 0 | I85: 0 | J85: 0 | K85: 0 | L85: 0 | M85: 0 | N85: 0 | O85: 0 | P85: 0 | Q85: 0 | T85: 0 | U85: 0 | V85: 0 | W85: 0 | X85: 0 | Y85: 0 | Z85: 0
B86: Barry Dace | C86: 1974 | D86: 42 | E86: 0 | F86: 0 | G86: 0 | H86: 0 | I86: 0 | J86: 0 | K86: 0 | L86: 0 | M86: 0 | N86: 0 | O86: 0 | P86: 0 | Q86: 0 | T86: 0 | U86: 0 | V86: 0 | W86: 0 | X86: 0 | Y86: 0 | Z86: 0
B87: Jack Lynch | C87: 1970 | D87: 46 | E87: 0 | F87: 0 | G87: 0 | H87: 0 | I87: 0 | J87: 0 | K87: 0 | L87: 0 | M87: 0 | N87: 0 | O87: 0 | T87: 0 | U87: 0 | V87: 0 | W87: 0 | X87: 0 | Y87: 0 | Z87: 0
B88: Kiaran Sweeney | C88: 1967 | D88: 49 | E88: 0 | F88: 0 | G88: 0 | H88: 0 | I88: 0 | J88: 0 | K88: 0 | L88: 0 | M88: 0 | N88: 0 | O88: 0 | T88: 0 | U88: 0 | V88: 0 | W88: 0 | X88: 0 | Y88: 0 | Z88: 0
B89: Emmet Reilly | C89: 1968 | D89: 48 | E89: 0 | F89: 0 | G89: 0 | H89: 0 | I89: 0 | J89: 0 | K89: 0 | L89: 0 | M89: 0 | N89: 0 | O89: 0 | P89: 0 | Q89: 0 | T89: 0 | U89: 0 | V89: 0 | W89: 0 | X89: 0 | Y89: 0 | Z89: 0
B90: Anthony O'Malley | C90: 1968 | D90: 48 | E90: 0 | F90: 0 | G90: 0 | H90: 0 | I90: 0 | J90: 0 | K90: 0 | L90: 0 | M90: 0 | N90: 0 | O90: 0 | P90: 0 | Q90: 0 | T90: 0 | U90: 0 | V90: 0 | W90: 0 | X90: 0 | Y90: 0 | Z90: 0
B91: Mick Hennessy | C91: 1968 | D91: 48 | E91: 0 | F91: 0 | G91: 0 | H91: 0 | I91: 0 | J91: 0 | K91: 0 | L91: 0 | M91: 0 | N91: 0 | O91: 0 | P91: 0 | Q91: 0 | T91: 0 | U91: 0 | V91: 0 | W91: 0 | X91: 0 | Y91: 0 | Z91: 0
B92: Seamus Brennan | C92: 1947 | D92: 69 | E92: 0 | F92: 0 | G92: 0 | H92: 0 | I92: 0 | J92: 0 | K92: 0 | L92: 0 | M92: 0 | N92: 0 | O92: 0 | P92: 0 | Q92: 0 | T92: 0 | U92: 0 | V92: 0 | W92: 0 | X92: 0 | Y92: 0 | Z92: 0
B93: Brian Moran | C93: 1976 | D93: 40 | E93: 0 | F93: 0 | G93: 0 | H93: 0 | I93: 0 | J93: 0 | K93: 0 | L93: 0 | M93: 0 | N93: 0 | O93: 0 | P93: 0 | Q93: 0 | T93: 0 | U93: 0 | V93: 0 | W93: 0 | X93: 0 | Y93: 0 | Z93: 0
B94: Martin Gray | C94: 1951 | D94: 65 | E94: 0 | F94: 0 | G94: 0 | H94: 0 | I94: 0 | J94: 0 | K94: 0 | L94: 0 | M94: 0 | N94: 0 | O94: 0 | P94: 0 | Q94: 0 | T94: 0 | U94: 0 | V94: 0 | W94: 0 | X94: 0 | Y94: 0 | Z94: 0
B95: Michael Kinsella | C95: 1965 | D95: 51 | E95: 0 | F95: 0 | G95: 0 | H95: 0 | I95: 0 | J95: 0 | K95: 0 | L95: 0 | M95: 0 | N95: 0 | O95: 0 | P95: 0 | Q95: 0 | T95: 0 | U95: 0 | V95: 0 | W95: 0 | X95: 0 | Y95: 0 | Z95: 0
B96: Don Samway | C96: 1965 | D96: 51 | E96: 0 | F96: 0 | G96: 0 | H96: 0 | I96: 0 | J96: 0 | K96: 0 | L96: 0 | M96: 0 | N96: 0 | O96: 0 | P96: 0 | Q96: 0 | T96: 0 | U96: 0 | V96: 0 | W96: 0 | X96: 0 | Y96: 0 | Z96: 0
B97: Seán Lally | C97: 1941 | D97: 75 | E97: 0 | F97: 0 | G97: 0 | H97: 0 | I97: 0 | J97: 0 | K97: 0 | L97: 0 | M97: 0 | N97: 0 | O97: 0 | P97: 0 | Q97: 0 | T97: 0 | U97: 0 | V97: 0 | W97: 0 | X97: 0 | Y97: 0 | Z97: 0
B98: Tosh Lavery | C98: 1953 | D98: 63 | E98: 0 | F98: 0 | G98: 0 | H98: 0 | I98: 0 | J98: 0 | K98: 0 | L98: 0 | M98: 0 | N98: 0 | O98: 0 | P98: 0 | Q98: 0 | T98: 0 | U98: 0 | V98: 0 | W98: 0 | X98: 0 | Y98: 0 | Z98: 0
B99: Robert Norgrove | C99: 1940 | D99: 76 | E99: 0 | F99: 0 | G99: 0 | H99: 0 | I99: 0 | J99: 0 | K99: 0 | L99: 0 | M99: 0 | N99: 0 | O99: 0 | P99: 0 | Q99: 0 | T99: 0 | U99: 0 | V99: 0 | W99: 0 | X99: 0 | Y99: 0 | Z99: 0
B100: Damian Doyle | C100: 1967 | D100: 49 | E100: 0 | F100: 0 | G100: 0 | H100: 0 | I100: 0 | J100: 0 | K100: 0 | L100: 0 | M100: 0 | N100: 0 | O100: 0 | P100: 0 | Q100: 0 | T100: 0 | U100: 0 | V100: 0 | W100: 0 | X100: 0 | Y100: 0 | Z100: 0
B101: Will Byrne | C101: 1973 | D101: 43 | E101: 0 | F101: 0 | G101: 0 | H101: 0 | I101: 0 | J101: 0 | K101: 0 | L101: 0 | M101: 0 | N101: 0 | O101: 0 | P101: 0 | Q101: 0 | T101: 0 | U101: 0 | V101: 0 | W101: 0 | X101: 0 | Y101: 0 | Z101: 0
B102: Stephen McGovern | C102: 1976 | D102: 40 | E102: 0 | F102: 0 | G102: 0 | H102: 0 | I102: 0 | J102: 0 | K102: 0 | L102: 0 | M102: 0 | N102: 0 | O102: 0 | T102: 0 | U102: 0 | V102: 0 | W102: 0 | X102: 0 | Y102: 0 | Z102: 0
B103: Paul Reid | C103: 1970 | D103: 46 | E103: 0 | F103: 0 | G103: 0 | H103: 0 | I103: 0 | J103: 0 | K103: 0 | L103: 0 | M103: 0 | N103: 0 | O103: 0 | P103: 0 | Q103: 0 | T103: 0 | U103: 0 | V103: 0 | W103: 0 | X103: 0 | Y103: 0 | Z103: 0
B104: Anthony Crean | C104: 1972 | D104: 44 | E104: 0 | F104: 0 | G104: 0 | H104: 0 | I104: 0 | J104: 0 | K104: 0 | L104: 0 | M104: 0 | N104: 0 | O104: 0 | P104: 0 | Q104: 0 | T104: 0 | U104: 0 | V104: 0 | W104: 0 | X104: 0 | Y104: 0 | Z104: 0
B105: Dermot Hickey | C105: 1971 | D105: 45 | E105: 0 | F105: 0 | G105: 0 | H105: 0 | I105: 0 | J105: 0 | K105: 0 | L105: 0 | M105: 0 | N105: 0 | O105: 0 | P105: 0 | Q105: 0 | T105: 0 | U105: 0 | V105: 0 | W105: 0 | X105: 0 | Y105: 0 | Z105: 0
B106: Dale Copas | C106: 1968 | D106: 48 | E106: 0 | F106: 0 | G106: 0 | H106: 0 | I106: 0 | J106: 0 | K106: 0 | L106: 0 | M106: 0 | N106: 0 | O106: 0 | P106: 0 | Q106: 0 | T106: 0 | U106: 0 | V106: 0 | W106: 0 | X106: 0 | Y106: 0 | Z106: 0
B107: Ed Hogan | C107: 1958 | D107: 58 | E107: 0 | F107: 0 | G107: 0 | H107: 0 | I107: 0 | J107: 0 | K107: 0 | L107: 0 | M107: 0 | N107: 0 | O107: 0 | P107: 0 | Q107: 0 | T107: 0 | U107: 0 | V107: 0 | W107: 0 | X107: 0 | Y107: 0 | Z107: 0
B108: Paul Faherty | C108: 1974 | D108: 42 | E108: 0 | F108: 0 | G108: 0 | H108: 0 | I108: 0 | J108: 0 | K108: 0 | L108: 0 | M108: 0 | N108: 0 | O108: 0 | P108: 0 | Q108: 0 | T108: 0 | U108: 0 | V108: 0 | W108: 0 | X108: 0 | Y108: 0 | Z108: 0
B109: Seán Gaine | C109: 1964 | D109: 52 | E109: 0 | F109: 0 | G109: 0 | H109: 0 | I109: 0 | J109: 0 | K109: 0 | L109: 0 | M109: 0 | N109: 0 | O109: 0 | P109: 0 | Q109: 0 | T109: 0 | U109: 0 | V109: 0 | W109: 0 | X109: 0 | Y109: 0 | Z109: 0
B110: Jim Sweeney | C110: 1936 | D110: 80 | E110: 0 | F110: 0 | G110: 0 | H110: 0 | I110: 0 | J110: 0 | K110: 0 | L110: 0 | M110: 0 | N110: 0 | O110: 0 | P110: 0 | Q110: 0 | T110: 0 | U110: 0 | V110: 0 | W110: 0 | X110: 0 | Y110: 0 | Z110: 0
B111: Gerard Murphy | C111: 1970 | D111: 46 | E111: 0 | F111: 0 | G111: 0 | H111: 0 | I111: 0 | J111: 0 | K111: 0 | L111: 0 | M111: 0 | N111: 0 | O111: 0 | T111: 0 | U111: 0 | V111: 0 | W111: 0 | X111: 0 | Y111: 0 | Z111: 0
B112: Robert Kehoe | C112: 1964 | D112: 52 | E112: 0 | F112: 0 | G112: 0 | H112: 0 | I112: 0 | J112: 0 | K112: 0 | L112: 0 | M112: 0 | N112: 0 | O112: 0 | P112: 0 | Q112: 0 | T112: 0 | U112: 0 | V112: 0 | W112: 0 | X112: 0 | Y112: 0 | Z112: 0
B113: Cathal Murray | C113: 1972 | D113: 44 | E113: 0 | F113: 0 | G113: 0 | H113: 0 | I113: 0 | J113: 0 | K113: 0 | L113: 0 | M113: 0 | N113: 0 | O113: 0 | P113: 0 | Q113: 0 | T113: 0 | U113: 0 | V113: 0 | W113: 0 | X113: 0 | Y113: 0 | Z113: 0
B114: Mark Pagell | C114: 1966 | D114: 50 | E114: 0 | F114: 0 | G114: 0 | H114: 0 | I114: 0 | J114: 0 | K114: 0 | L114: 0 | M114: 0 | N114: 0 | O114: 0 | P114: 0 | Q114: 0 | T114: 0 | U114: 0 | V114: 0 | W114: 0 | X114: 0 | Y114: 0 | Z114: 0
B115: Kevin Byrne | C115: 1975 | D115: 41 | E115: 0 | F115: 0 | G115: 0 | H115: 0 | I115: 0 | J115: 0 | K115: 0 | L115: 0 | M115: 0 | N115: 0 | O115: 0 | P115: 0 | Q115: 0 | T115: 0 | U115: 0 | V115: 0 | W115: 0 | X115: 0 | Y115: 0 | Z115: 0
B116: Stephen McNally | C116: 1966 | D116: 50 | E116: 0 | F116: 0 | G116: 0 | H116: 0 | I116: 0 | J116: 0 | K116: 0 | L116: 0 | M116: 0 | N116: 0 | O116: 0 | P116: 0 | Q116: 0 | T116: 0 | U116: 0 | V116: 0 | W116: 0 | X116: 0 | Y116: 0 | Z116: 0
B117: David Bradley | C117: 1972 | D117: 44 | E117: 0 | F117: 0 | G117: 0 | H117: 0 | I117: 0 | J117: 0 | K117: 0 | L117: 0 | M117: 0 | N117: 0 | O117: 0 | P117: 0 | Q117: 0 | T117: 0 | U117: 0 | V117: 0 | W117: 0 | X117: 0 | Y117: 0 | Z117: 0
B118: Mark Mahon | C118: 1973 | D118: 43 | E118: 0 | F118: 0 | G118: 0 | H118: 0 | I118: 0 | J118: 0 | K118: 0 | L118: 0 | M118: 0 | N118: 0 | O118: 0 | T118: 0 | U118: 0 | V118: 0 | W118: 0 | X118: 0 | Y118: 0 | Z118: 0
B119: Jimmy Lally | C119: 1943 | D119: 73 | E119: 0 | F119: 0 | G119: 0 | H119: 0 | I119: 0 | J119: 0 | K119: 0 | L119: 0 | M119: 0 | N119: 0 | O119: 0 | P119: 0 | Q119: 0 | T119: 0 | U119: 0 | V119: 0 | W119: 0 | X119: 0 | Y119: 0 | Z119: 0
B120: Derek McCullagh | C120: 1946 | D120: 70 | E120: 0 | F120: 0 | G120: 0 | H120: 0 | I120: 0 | J120: 0 | K120: 0 | L120: 0 | M120: 0 | N120: 0 | O120: 0 | P120: 0 | Q120: 0 | T120: 0 | U120: 0 | V120: 0 | W120: 0 | X120: 0 | Y120: 0 | Z120: 0
B121: Richard Cattle | C121: 1967 | D121: 49 | E121: 0 | F121: 0 | G121: 0 | H121: 0 | I121: 0 | J121: 0 | K121: 0 | L121: 0 | M121: 0 | N121: 0 | O121: 0 | T121: 0 | U121: 0 | V121: 0 | W121: 0 | X121: 0 | Y121: 0 | Z121: 0
B122: Mark Cooney | C122: 1972 | D122: 44 | E122: 0 | F122: 0 | G122: 0 | H122: 0 | I122: 0 | J122: 0 | K122: 0 | L122: 0 | M122: 0 | N122: 0 | O122: 0 | P122: 0 | Q122: 0 | T122: 0 | U122: 0 | V122: 0 | W122: 0 | X122: 0 | Y122: 0 | Z122: 0
B123: Paul Kelly | C123: 1974 | D123: 42 | E123: 0 | F123: 0 | G123: 0 | H123: 0 | I123: 0 | J123: 0 | K123: 0 | L123: 0 | M123: 0 | N123: 0 | O123: 0 | P123: 0 | Q123: 0 | T123: 0 | U123: 0 | V123: 0 | W123: 0 | X123: 0 | Y123: 0 | Z123: 0
B124: Elaine Clarke | C124: 1979 | D124: 37 | E124: 0 | F124: 0 | G124: 0 | H124: 0 | I124: 0 | J124: 0 | K124: 0 | L124: 0 | M124: 0 | N124: 0 | O124: 0 | P124: 0 | Q124: 0 | T124: 0 | U124: 0 | V124: 0 | W124: 0 | X124: 0 | Y124: 0 | Z124: 0
B125: William McGonagle | C125: 1964 | D125: 52 | E125: 0 | F125: 0 | G125: 0 | H125: 0 | I125: 0 | J125: 0 | K125: 0 | L125: 0 | M125: 0 | N125: 0 | O125: 0 | P125: 0 | Q125: 0 | T125: 0 | U125: 0 | V125: 0 | W125: 0 | X125: 0 | Y125: 0 | Z125: 0
B126: Jason O'Toole | C126: 1971 | D126: 45 | E126: 0 | F126: 0 | G126: 0 | H126: 0 | I126: 0 | J126: 0 | K126: 0 | L126: 0 | M126: 0 | N126: 0 | O126: 0 | P126: 0 | Q126: 0 | T126: 0 | U126: 0 | V126: 0 | W126: 0 | X126: 0 | Y126: 0 | Z126: 0
B127: Ken O'Neill | C127: 1971 | D127: 45 | E127: 0 | F127: 0 | G127: 0 | H127: 0 | I127: 0 | J127: 0 | K127: 0 | L127: 0 | M127: 0 | N127: 0 | O127: 0 | P127: 0 | Q127: 0 | T127: 0 | U127: 0 | V127: 0 | W127: 0 | X127: 0 | Y127: 0 | Z127: 0
B128: Seán Bracken | C128: 1960 | D128: 56 | E128: 0 | F128: 0 | G128: 0 | H128: 0 | I128: 0 | J128: 0 | K128: 0 | L128: 0 | M128: 0 | N128: 0 | O128: 0 | P128: 0 | Q128: 0 | T128: 0 | U128: 0 | V128: 0 | W128: 0 | X128: 0 | Y128: 0 | Z128: 0
B129: Noel Thompson | C129: 1961 | D129: 55 | E129: 0 | F129: 0 | G129: 0 | H129: 0 | I129: 0 | J129: 0 | K129: 0 | L129: 0 | M129: 0 | N129: 0 | O129: 0 | P129: 0 | Q129: 0 | T129: 0 | U129: 0 | V129: 0 | W129: 0 | X129: 0 | Y129: 0 | Z129: 0
B130: Erik Robson | C130: 1970 | D130: 46 | E130: 0 | F130: 0 | G130: 0 | H130: 0 | I130: 0 | J130: 0 | K130: 0 | L130: 0 | M130: 0 | N130: 0 | O130: 0 | P130: 0 | Q130: 0 | T130: 0 | U130: 0 | V130: 0 | W130: 0 | X130: 0 | Y130: 0 | Z130: 0
B131: Paddy FitzSimons | C131: 1946 | D131: 70 | E131: 0 | F131: 0 | G131: 0 | H131: 0 | I131: 0 | J131: 0 | K131: 0 | L131: 0 | M131: 0 | N131: 0 | O131: 0 | P131: 0 | Q131: 0 | T131: 0 | U131: 0 | V131: 0 | W131: 0 | X131: 0 | Y131: 0 | Z131: 0
B132: Des Howe | C132: 1948 | D132: 68 | E132: 0 | F132: 0 | G132: 0 | H132: 0 | I132: 0 | J132: 0 | K132: 0 | L132: 0 | M132: 0 | N132: 0 | O132: 0 | P132: 0 | Q132: 0 | T132: 0 | U132: 0 | V132: 0 | W132: 0 | X132: 0 | Y132: 0 | Z132: 0
B133: Ian Cassidy | C133: 1974 | D133: 42 | E133: 0 | F133: 0 | G133: 0 | H133: 0 | I133: 0 | J133: 0 | K133: 0 | L133: 0 | M133: 0 | N133: 0 | O133: 0 | T133: 0 | U133: 0 | V133: 0 | W133: 0 | X133: 0 | Y133: 0 | Z133: 0
B134: Andy Brady | C134: 1968 | D134: 48 | E134: 0 | F134: 0 | G134: 0 | H134: 0 | I134: 0 | J134: 0 | K134: 0 | L134: 0 | M134: 0 | N134: 0 | O134: 0 | P134: 0 | Q134: 0 | T134: 0 | U134: 0 | V134: 0 | W134: 0 | X134: 0 | Y134: 0 | Z134: 0
B135: Ken Tobin | C135: 1975 | D135: 41 | E135: 0 | F135: 0 | G135: 0 | H135: 0 | I135: 0 | J135: 0 | K135: 0 | L135: 0 | M135: 0 | N135: 0 | O135: 0 | T135: 0 | U135: 0 | V135: 0 | W135: 0 | X135: 0 | Y135: 0 | Z135: 0
B136: Karl Gallagher | C136: 1958 | D136: 58 | E136: 0 | F136: 0 | G136: 0 | H136: 0 | I136: 0 | J136: 0 | K136: 0 | L136: 0 | M136: 0 | N136: 0 | O136: 0 | P136: 0 | Q136: 0 | T136: 0 | U136: 0 | V136: 0 | W136: 0 | X136: 0 | Y136: 0 | Z136: 0
B137: Pat Beere | C137: 1969 | D137: 47 | E137: 0 | F137: 0 | G137: 0 | H137: 0 | I137: 0 | J137: 0 | K137: 0 | L137: 0 | M137: 0 | N137: 0 | O137: 0 | P137: 0 | Q137: 0 | T137: 0 | U137: 0 | V137: 0 | W137: 0 | X137: 0 | Y137: 0 | Z137: 0
B138: Column2 | C138: Column3 | D138: Column5 | E138: 0 | F138: 0 | G138: 0 | H138: 0 | I138: 0 | J138: 0 | K138: 0 | L138: 0 | M138: 0 | N138: 0 | O138: 0 | P138: 0 | Q138: 0 | T138: 0 | U138: 0 | V138: 0 | W138: 0 | X138: 0 | Y138: 0 | Z138: 0
B139: Malachy McKenna | C139: 1967 | D139: 49 | E139: 0 | F139: 0 | G139: 0 | H139: 0 | I139: 0 | J139: 0 | K139: 0 | L139: 0 | M139: 0 | N139: 0 | O139: 0 | P139: 0 | Q139: 0 | T139: 0 | U139: 0 | V139: 0 | W139: 0 | X139: 0 | Y139: 0 | Z139: 0
B140: Cian Lynch | C140: 1971 | D140: 45 | E140: 0 | F140: 0 | G140: 0 | H140: 0 | I140: 0 | J140: 0 | K140: 0 | L140: 0 | M140: 0 | N140: 0 | O140: 0 | P140: 0 | Q140: 0 | T140: 0 | U140: 0 | V140: 0 | W140: 0 | X140: 0 | Y140: 0 | Z140: 0
B141: Stephen Murphy | C141: 1966 | D141: 50 | E141: 0 | F141: 0 | G141: 0 | H141: 0 | I141: 0 | J141: 0 | K141: 0 | L141: 0 | M141: 0 | N141: 0 | O141: 0 | P141: 0 | Q141: 0 | T141: 0 | U141: 0 | V141: 0 | W141: 0 | X141: 0 | Y141: 0 | Z141: 0
B142: Francis Coates | C142: 1954 | D142: 62 | E142: 0 | F142: 0 | G142: 0 | H142: 0 | I142: 0 | J142: 0 | K142: 0 | L142: 0 | M142: 0 | N142: 0 | O142: 0 | P142: 0 | Q142: 0 | T142: 0 | U142: 0 | V142: 0 | W142: 0 | X142: 0 | Y142: 0 | Z142: 0
B143: Eddie Lynch | C143: 1960 | D143: 56 | E143: 0 | F143: 0 | G143: 0 | H143: 0 | I143: 0 | J143: 0 | K143: 0 | L143: 0 | M143: 0 | N143: 0 | O143: 0 | P143: 0 | Q143: 0 | T143: 0 | U143: 0 | V143: 0 | W143: 0 | X143: 0 | Y143: 0 | Z143: 0
B144: Damien Lyle-Stirling | C144: 1952 | D144: 64 | E144: 0 | F144: 0 | G144: 0 | H144: 0 | I144: 0 | J144: 0 | K144: 0 | L144: 0 | M144: 0 | N144: 0 | O144: 0 | P144: 0 | Q144: 0 | T144: 0 | U144: 0 | V144: 0 | W144: 0 | X144: 0 | Y144: 0 | Z144: 0
B145: John Shortt | C145: 1957 | D145: 59 | E145: 0 | F145: 0 | G145: 0 | H145: 0 | I145: 0 | J145: 0 | K145: 0 | L145: 0 | M145: 0 | N145: 0 | O145: 0 | P145: 0 | Q145: 0 | T145: 0 | U145: 0 | V145: 0 | W145: 0 | X145: 0 | Y145: 0 | Z145: 0
B146: John Brady | C146: 1964 | D146: 52 | E146: 0 | F146: 0 | G146: 0 | H146: 0 | I146: 0 | J146: 0 | K146: 0 | L146: 0 | M146: 0 | N146: 0 | O146: 0 | P146: 0 | Q146: 0 | T146: 0 | U146: 0 | V146: 0 | W146: 0 | X146: 0 | Y146: 0 | Z146: 0
B147: Enda McKeown | C147: 1972 | D147: 44 | E147: 0 | F147: 0 | G147: 0 | H147: 0 | I147: 0 | J147: 0 | K147: 0 | L147: 0 | M147: 0 | N147: 0 | O147: 0 | P147: 0 | Q147: 0 | T147: 0 | U147: 0 | V147: 0 | W147: 0 | X147: 0 | Y147: 0 | Z147: 0
B148: Tony Dunne | C148: 1962 | D148: 54 | E148: 0 | F148: 0 | G148: 0 | H148: 0 | I148: 0 | J148: 0 | K148: 0 | L148: 0 | M148: 0 | N148: 0 | O148: 0 | P148: 0 | Q148: 0 | T148: 0 | U148: 0 | V148: 0 | W148: 0 | X148: 0 | Y148: 0 | Z148: 0
B149: Seán Darragh | C149: 1951 | D149: 65 | E149: 0 | F149: 0 | G149: 0 | H149: 0 | I149: 0 | J149: 0 | K149: 0 | L149: 0 | M149: 0 | N149: 0 | O149: 0 | P149: 0 | Q149: 0 | T149: 0 | U149: 0 | V149: 0 | W149: 0 | X149: 0 | Y149: 0 | Z149: 0
B150: Sean Dunne | C150: 1966 | D150: 50 | E150: 0 | F150: 0 | G150: 0 | H150: 0 | I150: 0 | J150: 0 | K150: 0 | L150: 0 | M150: 0 | N150: 0 | O150: 0 | T150: 0 | U150: 0 | V150: 0 | W150: 0 | X150: 0 | Y150: 0 | Z150: 0
B151: Declan Weldon | C151: 1968 | D151: 48 | E151: 0 | F151: 0 | G151: 0 | H151: 0 | I151: 0 | J151: 0 | K151: 0 | L151: 0 | M151: 0 | N151: 0 | O151: 0 | P151: 0 | Q151: 0 | T151: 0 | U151: 0 | V151: 0 | W151: 0 | X151: 0 | Y151: 0 | Z151: 0
B152: Darragh Murphy | C152: 1968 | D152: 48 | E152: 0 | F152: 0 | G152: 0 | H152: 0 | I152: 0 | J152: 0 | K152: 0 | L152: 0 | M152: 0 | N152: 0 | O152: 0 | P152: 0 | Q152: 0 | T152: 0 | U152: 0 | V152: 0 | W152: 0 | X152: 0 | Y152: 0 | Z152: 0
B153: Lloyd Berry | C153: 1964 | D153: 52 | E153: 0 | F153: 0 | G153: 0 | H153: 0 | I153: 0 | J153: 0 | K153: 0 | L153: 0 | M153: 0 | N153: 0 | O153: 0 | P153: 0 | Q153: 0 | T153: 0 | U153: 0 | V153: 0 | W153: 0 | X153: 0 | Y153: 0 | Z153: 0
B154: Seán G Lally | C154: 1963 | D154: 53 | E154: 0 | F154: 0 | G154: 0 | H154: 0 | I154: 0 | J154: 0 | K154: 0 | L154: 0 | M154: 0 | N154: 0 | O154: 0 | P154: 0 | Q154: 0 | T154: 0 | U154: 0 | V154: 0 | W154: 0 | X154: 0 | Y154: 0 | Z154: 0
B155: Ken Nelson | C155: 1972 | D155: 44 | E155: 0 | F155: 0 | G155: 0 | H155: 0 | I155: 0 | J155: 0 | K155: 0 | L155: 0 | M155: 0 | N155: 0 | O155: 0 | T155: 0 | U155: 0 | V155: 0 | W155: 0 | X155: 0 | Y155: 0 | Z155: 0
B156: Paul Tansey | C156: 1957 | D156: 59 | E156: 0 | F156: 0 | G156: 0 | H156: 0 | I156: 0 | J156: 0 | K156: 0 | L156: 0 | M156: 0 | N156: 0 | O156: 0 | P156: 0 | Q156: 0 | T156: 0 | U156: 0 | V156: 0 | W156: 0 | X156: 0 | Y156: 0 | Z156: 0
B157: Gavin Kelly | C157: 1973 | D157: 43 | E157: 0 | F157: 0 | G157: 0 | H157: 0 | I157: 0 | J157: 0 | K157: 0 | L157: 0 | M157: 0 | N157: 0 | O157: 0 | P157: 0 | Q157: 0 | T157: 0 | U157: 0 | V157: 0 | W157: 0 | X157: 0 | Y157: 0 | Z157: 0
B158: Roy Bowden | C158: 1971 | D158: 45 | E158: 0 | F158: 0 | G158: 0 | H158: 0 | I158: 0 | J158: 0 | K158: 0 | L158: 0 | M158: 0 | N158: 0 | O158: 0 | P158: 0 | Q158: 0 | T158: 0 | U158: 0 | V158: 0 | W158: 0 | X158: 0 | Y158: 0 | Z158: 0
B159: David Kelly | C159: 1955 | D159: 61 | E159: 0 | F159: 0 | G159: 0 | H159: 0 | I159: 0 | J159: 0 | K159: 0 | L159: 0 | M159: 0 | N159: 0 | O159: 0 | P159: 0 | Q159: 0 | T159: 0 | U159: 0 | V159: 0 | W159: 0 | X159: 0 | Y159: 0 | Z159: 0
B160: Gerard Kane | C160: 1969 | D160: 47 | E160: 0 | F160: 0 | G160: 0 | H160: 0 | I160: 0 | J160: 0 | K160: 0 | L160: 0 | M160: 0 | N160: 0 | O160: 0 | T160: 0 | U160: 0 | V160: 0 | W160: 0 | X160: 0 | Y160: 0 | Z160: 0
B161: Albert Murtagh | C161: 1936 | D161: 80 | E161: 0 | F161: 0 | G161: 0 | H161: 0 | I161: 0 | J161: 0 | K161: 0 | L161: 0 | M161: 0 | N161: 0 | O161: 0 | P161: 0 | Q161: 0 | T161: 0 | U161: 0 | V161: 0 | W161: 0 | X161: 0 | Y161: 0 | Z161: 0
B162: Noel Conway | C162: 1972 | D162: 44 | E162: 0 | F162: 0 | G162: 0 | H162: 0 | I162: 0 | J162: 0 | K162: 0 | L162: 0 | M162: 0 | N162: 0 | O162: 0 | P162: 0 | Q162: 0 | T162: 0 | U162: 0 | V162: 0 | W162: 0 | X162: 0 | Y162: 0 | Z162: 0
B163: Jason Ludgate | C163: 1972 | D163: 44 | E163: 0 | F163: 0 | G163: 0 | H163: 0 | I163: 0 | J163: 0 | K163: 0 | L163: 0 | M163: 0 | N163: 0 | O163: 0 | P163: 0 | Q163: 0 | T163: 0 | U163: 0 | V163: 0 | W163: 0 | X163: 0 | Y163: 0 | Z163: 0
B164: Daniel Conroy | C164: 1967 | D164: 49 | E164: 0 | F164: 0 | G164: 0 | H164: 0 | I164: 0 | J164: 0 | K164: 0 | L164: 0 | M164: 0 | N164: 0 | O164: 0 | P164: 0 | Q164: 0 | T164: 0 | U164: 0 | V164: 0 | W164: 0 | X164: 0 | Y164: 0 | Z164: 0
B165: Neil Delahaye | C165: 1975 | D165: 41 | E165: 0 | F165: 0 | G165: 0 | H165: 0 | I165: 0 | J165: 0 | K165: 0 | L165: 0 | M165: 0 | N165: 0 | O165: 0 | P165: 0 | Q165: 0 | T165: 0 | U165: 0 | V165: 0 | W165: 0 | X165: 0 | Y165: 0 | Z165: 0
B166: Paddy Byrne | C166: 1938 | D166: 78 | E166: 0 | F166: 0 | G166: 0 | H166: 0 | I166: 0 | J166: 0 | K166: 0 | L166: 0 | M166: 0 | N166: 0 | O166: 0 | P166: 0 | Q166: 0 | T166: 0 | U166: 0 | V166: 0 | W166: 0 | X166: 0 | Y166: 0 | Z166: 0
B167: John Lanigan | C167: 1967 | D167: 49 | E167: 0 | F167: 0 | G167: 0 | H167: 0 | I167: 0 | J167: 0 | K167: 0 | L167: 0 | M167: 0 | N167: 0 | O167: 0 | P167: 0 | Q167: 0 | T167: 0 | U167: 0 | V167: 0 | W167: 0 | X167: 0 | Y167: 0 | Z167: 0
B168: Orla Tansey | C168: 1963 | D168: 53 | E168: 0 | F168: 0 | G168: 0 | H168: 0 | I168: 0 | J168: 0 | K168: 0 | L168: 0 | M168: 0 | N168: 0 | O168: 0 | P168: 0 | Q168: 0 | T168: 0 | U168: 0 | V168: 0 | W168: 0 | X168: 0 | Y168: 0 | Z168: 0
B169: Ronnie Howe | C169: 1953 | D169: 63 | E169: 0 | F169: 0 | G169: 0 | H169: 0 | I169: 0 | J169: 0 | K169: 0 | L169: 0 | M169: 0 | N169: 0 | O169: 0 | P169: 0 | Q169: 0 | T169: 0 | U169: 0 | V169: 0 | W169: 0 | X169: 0 | Y169: 0 | Z169: 0
B170: Mark Kidd | C170: 1969 | D170: 47 | E170: 0 | F170: 0 | G170: 0 | H170: 0 | I170: 0 | J170: 0 | K170: 0 | L170: 0 | M170: 0 | N170: 0 | O170: 0 | P170: 0 | Q170: 0 | T170: 0 | U170: 0 | V170: 0 | W170: 0 | X170: 0 | Y170: 0 | Z170: 0
B171: Gavin Dodd | C171: 1974 | D171: 42 | E171: 0 | F171: 0 | G171: 0 | H171: 0 | I171: 0 | J171: 0 | K171: 0 | L171: 0 | M171: 0 | N171: 0 | O171: 0 | T171: 0 | U171: 0 | V171: 0 | W171: 0 | X171: 0 | Y171: 0 | Z171: 0
B172: Malcolm Kell | C172: 1971 | D172: 45 | E172: 0 | F172: 0 | G172: 0 | H172: 0 | I172: 0 | J172: 0 | K172: 0 | L172: 0 | M172: 0 | N172: 0 | O172: 0 | P172: 0 | Q172: 0 | T172: 0 | U172: 0 | V172: 0 | W172: 0 | X172: 0 | Y172: 0 | Z172: 0
B173: Paddy Davis | C173: 1943 | D173: 73 | E173: 0 | F173: 0 | G173: 0 | H173: 0 | I173: 0 | J173: 0 | K173: 0 | L173: 0 | M173: 0 | N173: 0 | O173: 0 | P173: 0 | Q173: 0 | T173: 0 | U173: 0 | V173: 0 | W173: 0 | X173: 0 | Y173: 0 | Z173: 0
B174: Conor Feeney | C174: 1972 | D174: 44 | E174: 0 | F174: 0 | G174: 0 | H174: 0 | I174: 0 | J174: 0 | K174: 0 | L174: 0 | M174: 0 | N174: 0 | O174: 0 | P174: 0 | Q174: 0 | T174: 0 | U174: 0 | V174: 0 | W174: 0 | X174: 0 | Y174: 0 | Z174: 0
B175: Mark Kiernan | C175: 1969 | D175: 47 | E175: 0 | F175: 0 | G175: 0 | H175: 0 | I175: 0 | J175: 0 | K175: 0 | L175: 0 | M175: 0 | N175: 0 | O175: 0 | P175: 0 | Q175: 0 | T175: 0 | U175: 0 | V175: 0 | W175: 0 | X175: 0 | Y175: 0 | Z175: 0
B176: David Tansey | C176: 1966 | D176: 50 | E176: 0 | F176: 0 | G176: 0 | H176: 0 | I176: 0 | J176: 0 | K176: 0 | L176: 0 | M176: 0 | N176: 0 | O176: 0 | P176: 0 | Q176: 0 | T176: 0 | U176: 0 | V176: 0 | W176: 0 | X176: 0 | Y176: 0 | Z176: 0
B177: Eamonn Walsh | C177: 1962 | D177: 54 | E177: 0 | F177: 0 | G177: 0 | H177: 0 | I177: 0 | J177: 0 | K177: 0 | L177: 0 | M177: 0 | N177: 0 | O177: 0 | P177: 0 | Q177: 0 | T177: 0 | U177: 0 | V177: 0 | W177: 0 | X177: 0 | Y177: 0 | Z177: 0
B178: Hugh Byrne | C178: 1959 | D178: 57 | E178: 0 | F178: 0 | G178: 0 | H178: 0 | I178: 0 | J178: 0 | K178: 0 | L178: 0 | M178: 0 | N178: 0 | O178: 0 | P178: 0 | Q178: 0 | T178: 0 | U178: 0 | V178: 0 | W178: 0 | X178: 0 | Y178: 0 | Z178: 0
B179: Aidan Yates | C179: 1974 | D179: 42 | E179: 0 | F179: 0 | G179: 0 | H179: 0 | I179: 0 | J179: 0 | K179: 0 | L179: 0 | M179: 0 | N179: 0 | O179: 0 | P179: 0 | Q179: 0 | T179: 0 | U179: 0 | V179: 0 | W179: 0 | X179: 0 | Y179: 0 | Z179: 0
B180: Conor McGrane | C180: 1970 | D180: 46 | E180: 0 | F180: 0 | G180: 0 | H180: 0 | I180: 0 | J180: 0 | K180: 0 | L180: 0 | M180: 0 | N180: 0 | O180: 0 | P180: 0 | Q180: 0 | T180: 0 | U180: 0 | V180: 0 | W180: 0 | X180: 0 | Y180: 0 | Z180: 0
B181: Brian Kilbride | C181: 1968 | D181: 48 | E181: 0 | F181: 0 | G181: 0 | H181: 0 | I181: 0 | J181: 0 | K181: 0 | L181: 0 | M181: 0 | N181: 0 | O181: 0 | P181: 0 | Q181: 0 | T181: 0 | U181: 0 | V181: 0 | W181: 0 | X181: 0 | Y181: 0 | Z181: 0
B182: Michael Moore | C182: 1968 | D182: 48 | E182: 0 | F182: 0 | G182: 0 | H182: 0 | I182: 0 | J182: 0 | K182: 0 | L182: 0 | M182: 0 | N182: 0 | O182: 0 | P182: 0 | Q182: 0 | T182: 0 | U182: 0 | V182: 0 | W182: 0 | X182: 0 | Y182: 0 | Z182: 0
B183: Ciaran Ruane | C183: 1971 | D183: 45 | E183: 0 | F183: 0 | G183: 0 | H183: 0 | I183: 0 | J183: 0 | K183: 0 | L183: 0 | M183: 0 | N183: 0 | O183: 0 | T183: 0 | U183: 0 | V183: 0 | W183: 0 | X183: 0 | Y183: 0 | Z183: 0
B184: Andreas Voigt | C184: 1972 | D184: 44 | E184: 0 | F184: 0 | G184: 0 | H184: 0 | I184: 0 | J184: 0 | K184: 0 | L184: 0 | M184: 0 | N184: 0 | O184: 0 | P184: 0 | Q184: 0 | T184: 0 | U184: 0 | V184: 0 | W184: 0 | X184: 0 | Y184: 0 | Z184: 0
B185: Patrick Troy | C185: 1954 | D185: 62 | E185: 0 | F185: 0 | G185: 0 | H185: 0 | I185: 0 | J185: 0 | K185: 0 | L185: 0 | M185: 0 | N185: 0 | O185: 0 | P185: 0 | Q185: 0 | T185: 0 | U185: 0 | V185: 0 | W185: 0 | X185: 0 | Y185: 0 | Z185: 0
B186: Declan Quigley | C186: 1966 | D186: 50 | E186: 0 | F186: 0 | G186: 0 | H186: 0 | I186: 0 | J186: 0 | K186: 0 | L186: 0 | M186: 0 | N186: 0 | O186: 0 | T186: 0 | U186: 0 | V186: 0 | W186: 0 | X186: 0 | Y186: 0 | Z186: 0
B187: Paul Atkinson | C187: 1960 | D187: 56 | E187: 0 | F187: 0 | G187: 0 | H187: 0 | I187: 0 | J187: 0 | K187: 0 | L187: 0 | M187: 0 | N187: 0 | O187: 0 | P187: 0 | Q187: 0 | T187: 0 | U187: 0 | V187: 0 | W187: 0 | X187: 0 | Y187: 0 | Z187: 0
B188: Thomas Coleman | C188: 1964 | D188: 52 | E188: 0 | F188: 0 | G188: 0 | H188: 0 | I188: 0 | J188: 0 | K188: 0 | L188: 0 | M188: 0 | N188: 0 | O188: 0 | P188: 0 | Q188: 0 | T188: 0 | U188: 0 | V188: 0 | W188: 0 | X188: 0 | Y188: 0 | Z188: 0
B189: Charlie Sheridan | C189: 1971 | D189: 45 | E189: 0 | F189: 0 | G189: 0 | H189: 0 | I189: 0 | J189: 0 | K189: 0 | L189: 0 | M189: 0 | N189: 0 | O189: 0 | P189: 0 | Q189: 0 | T189: 0 | U189: 0 | V189: 0 | W189: 0 | X189: 0 | Y189: 0 | Z189: 0
B190: Keith O'Rourke | C190: 1969 | D190: 47 | E190: 0 | F190: 0 | G190: 0 | H190: 0 | I190: 0 | J190: 0 | K190: 0 | L190: 0 | M190: 0 | N190: 0 | O190: 0 | P190: 0 | Q190: 0 | T190: 0 | U190: 0 | V190: 0 | W190: 0 | X190: 0 | Y190: 0 | Z190: 0
B191: Aidan Hammond | C191: 1969 | D191: 47 | E191: 0 | F191: 0 | G191: 0 | H191: 0 | I191: 0 | J191: 0 | K191: 0 | L191: 0 | M191: 0 | N191: 0 | O191: 0 | P191: 0 | Q191: 0 | T191: 0 | U191: 0 | V191: 0 | W191: 0 | X191: 0 | Y191: 0 | Z191: 0
B192: Patrick Deegan | C192: 1970 | D192: 46 | E192: 0 | F192: 0 | G192: 0 | H192: 0 | I192: 0 | J192: 0 | K192: 0 | L192: 0 | M192: 0 | N192: 0 | O192: 0 | P192: 0 | Q192: 0 | T192: 0 | U192: 0 | V192: 0 | W192: 0 | X192: 0 | Y192: 0 | Z192: 0
B193: Dave Cormack | C193: 1961 | D193: 55 | E193: 0 | F193: 0 | G193: 0 | H193: 0 | I193: 0 | J193: 0 | K193: 0 | L193: 0 | M193: 0 | N193: 0 | O193: 0 | P193: 0 | Q193: 0 | T193: 0 | U193: 0 | V193: 0 | W193: 0 | X193: 0 | Y193: 0 | Z193: 0
B194: Jim Morahan | C194: 1943 | D194: 73 | E194: 0 | F194: 0 | G194: 0 | H194: 0 | I194: 0 | J194: 0 | K194: 0 | L194: 0 | M194: 0 | N194: 0 | O194: 0 | P194: 0 | Q194: 0 | T194: 0 | U194: 0 | V194: 0 | W194: 0 | X194: 0 | Y194: 0 | Z194: 0
B195: Fearghal Regan | C195: 1970 | D195: 46 | E195: 0 | F195: 0 | G195: 0 | H195: 0 | I195: 0 | J195: 0 | K195: 0 | L195: 0 | M195: 0 | N195: 0 | O195: 0 | T195: 0 | U195: 0 | V195: 0 | W195: 0 | X195: 0 | Y195: 0 | Z195: 0
B196: Eamon Finn | C196: 1965 | D196: 51 | E196: 0 | F196: 0 | G196: 0 | H196: 0 | I196: 0 | J196: 0 | K196: 0 | L196: 0 | M196: 0 | N196: 0 | O196: 0 | T196: 0 | U196: 0 | V196: 0 | W196: 0 | X196: 0 | Y196: 0 | Z196: 0
B197: Oliver Bright | C197: 1944 | D197: 72 | E197: 0 | F197: 0 | G197: 0 | H197: 0 | I197: 0 | J197: 0 | K197: 0 | L197: 0 | M197: 0 | N197: 0 | O197: 0 | P197: 0 | Q197: 0 | T197: 0 | U197: 0 | V197: 0 | W197: 0 | X197: 0 | Y197: 0 | Z197: 0
B198: Jimmy Flynn | C198: 1956 | D198: 60 | E198: 0 | F198: 0 | G198: 0 | H198: 0 | I198: 0 | J198: 0 | K198: 0 | L198: 0 | M198: 0 | N198: 0 | O198: 0 | P198: 0 | Q198: 0 | T198: 0 | U198: 0 | V198: 0 | W198: 0 | X198: 0 | Y198: 0 | Z198: 0
B199: Aidan Somerville | C199: 1973 | D199: 43 | E199: 0 | F199: 0 | G199: 0 | H199: 0 | I199: 0 | J199: 0 | K199: 0 | L199: 0 | M199: 0 | N199: 0 | O199: 0 | P199: 0 | Q199: 0 | T199: 0 | U199: 0 | V199: 0 | W199: 0 | X199: 0 | Y199: 0 | Z199: 0
B200: Albert Morrow | C200: 1962 | D200: 54 | E200: 0 | F200: 0 | G200: 0 | H200: 0 | I200: 0 | J200: 0 | K200: 0 | L200: 0 | M200: 0 | N200: 0 | O200: 0 | P200: 0 | Q200: 0 | T200: 0 | U200: 0 | V200: 0 | W200: 0 | X200: 0 | Y200: 0 | Z200: 0
... 208 more rows

Sheet Handicap Points Table
A1: IVCA Time Trial League
A2: 2015 | F2: TTL_01 | G2: TTL_02 | H2: TTL_03 | I2: TTL_04 | J2: TTL_05 | K2: TTL_06 | L2: TTL_07 | M2: TTL_08 | N2: TTL_09 | O2: TTL_10 | S2: Sat TT_01 | T2: Sat TT_02 | U2: Sat TT_03 | V2: Sat TT_04 | W2: Sat TT_05 | X2: SatTT_ 06
A3: Handicap League | F3: Tuesday | G3: Tuesday | H3: Tuesday | I3: Sunday | J3: Tuesday | K3: Tuesday | L3: Sunday | M3: Sunday | N3: Tuesday | O3: Sunday | S3: Sunday | T3: Tuesday | U3: Saturday | V3: Tuesday | W3: Tuesday | X3: Sunday
A4: Phil Ormrod Trophy. | F4: 41031 | G4: 41038 | H4: 41052 | I4: 41057 | J4: 41066 | K4: 41073 | L4: 41085 | M4: 41076 | N4: 41122 | O4: 41127 | S4: 41043 | T4: 41059 | U4: 41107 | V4: 41094 | W4: 41115 | X4: 41103
F5: Tom Dempsey 10 TT | G5: IVCA | H5: Fred Smith 25 TT | I5: IVCA | J5: Championship 10 TT | K5: IVCA | L5: Championship 25 TT | M5: 40/50/60/70 Championships | N5: IVCA | O5: 100 in 8 | S5: Mind the Gaps | T5: IVCA | U5: Saturday 10 TT Series | V5: IVCA | W5: IVCA | X5: Age Champs
F6: TT | G6: DMS | H6: TT | I6: DMS | J6: TT | K6: DMS | L6: TT | M6: Age DMS | N6: DMS | O6: Tour | S6: Tour | T6: DMS | U6: TT | V6: DMS | W6: DMS | X6: Age CP
F7: Kilcock | G7: Kilcullen | H7: Black Bull | I7: The Curragh | J7: Kilcock | K7: Kilcullen | L7: Moy Valley | M7: Kentstown | N7: Summerhill | O7: Papal Cross | R7: TTL Points | S7: 41043 | T7: Summerhill | U7: T.B.A. | V7: Kilcullen | W7: Kilcullen | X7: Summerhill | Y7: Sat TTL Points
E8: TTL Points | F8: 19:15:00 | G8: 19:15:00 | H8: 19:15:00 | I8: 09:00:00 | J8: 19:15:00 | K8: 19:15:00 | L8: 09:00:00 | M8: 09:00:00 | N8: 19:15:00 | O8: 09:00:00 | R8: Total | S8: 19:15:00 | T8: 09:30:00 | U8: 19:15:00 | V8: 19:15:00 | W8: 09:00:00 | X8: 0 | Y8: Total
A9: Column1 | B9: Column2 | C9: Column3 | D9: Column4 | E9: Column5 | F9: Column6 | G9: Column7 | H9: Column8 | I9: Column9 | J9: Column10 | K9: Column11 | L9: Column12 | M9: Column13 | N9: Column14 | O9: Column15 | P9: Column16 | Q9: Column17 | R9: Column18 | S9: Column21 | T9: Column22 | U9: Column23 | V9: Column24 | W9: Column25 | X9: Column26 | Y9: Column27
B10: Paul Dolan | C10: 1967 | D10: 49 | E10: 10 | F10: 10 | G10: 0 | H10: 0 | I10: 0 | J10: 0 | K10: 0 | L10: 0 | M10: 0 | N10: 0 | O10: 0 | P10: 0 | Q10: 0 | R10: 10 | S10: 0 | T10: 0 | U10: 0 | V10: 0 | W10: 0 | X10: 0 | Y10: 0
B11: Colm Conway | C11: 1952 | D11: 64 | E11: 9 | F11: 9 | G11: 0 | H11: 0 | I11: 0 | J11: 0 | K11: 0 | L11: 0 | M11: 0 | N11: 0 | O11: 0 | P11: 0 | Q11: 0 | R11: 9 | S11: 0 | T11: 0 | U11: 0 | V11: 0 | W11: 0 | X11: 0 | Y11: 0
B12: Stephen Walsh | C12: 1969 | D12: 47 | E12: 8 | F12: 8 | G12: 0 | H12: 0 | I12: 0 | J12: 0 | K12: 0 | L12: 0 | M12: 0 | N12: 0 | O12: 0 | P12: 0 | Q12: 0 | R12: 8 | S12: 0 | T12: 0 | U12: 0 | V12: 0 | W12: 0 | X12: 0 | Y12: 0
B13: Mick Usher | C13: 1954 | D13: 62 | E13: 7 | F13: 7 | G13: 0 | H13: 0 | I13: 0 | J13: 0 | K13: 0 | L13: 0 | M13: 0 | N13: 0 | O13: 0 | P13: 0 | Q13: 0 | R13: 7 | S13: 0 | T13: 0 | U13: 0 | V13: 0 | W13: 0 | X13: 0 | Y13: 0
B14: Rodney Joyce | C14: 1967 | D14: 49 | E14: 6 | F14: 6 | G14: 0 | H14: 0 | I14: 0 | J14: 0 | K14: 0 | L14: 0 | M14: 0 | N14: 0 | O14: 0 | P14: 0 | Q14: 0 | R14: 6 | S14: 0 | T14: 0 | U14: 0 | V14: 0 | W14: 0 | X14: 0 | Y14: 0
B15: Ciara Kinch | C15: 1973 | D15: 43 | E15: 5 | F15: 5 | G15: 0 | H15: 0 | I15: 0 | J15: 0 | K15: 0 | L15: 0 | M15: 0 | N15: 0 | O15: 0 | P15: 0 | Q15: 0 | R15: 5 | S15: 0 | T15: 0 | U15: 0 | V15: 0 | W15: 0 | X15: 0 | Y15: 0
B16: Jimmy Murphy | C16: 1956 | D16: 60 | E16: 4 | F16: 4 | G16: 0 | H16: 0 | I16: 0 | J16: 0 | K16: 0 | L16: 0 | M16: 0 | N16: 0 | O16: 0 | P16: 0 | Q16: 0 | R16: 4 | S16: 0 | T16: 0 | U16: 0 | V16: 0 | W16: 0 | X16: 0 | Y16: 0
B17: Donagh McArdle | C17: 1968 | D17: 48 | E17: 3 | F17: 3 | G17: 0 | H17: 0 | I17: 0 | J17: 0 | K17: 0 | L17: 0 | M17: 0 | N17: 0 | O17: 0 | P17: 0 | Q17: 0 | R17: 3 | S17: 0 | T17: 0 | U17: 0 | V17: 0 | W17: 0 | X17: 0 | Y17: 0
B18: Phil Ormrod | C18: 1944 | D18: 72 | E18: 2 | F18: 2 | G18: 0 | H18: 0 | I18: 0 | J18: 0 | K18: 0 | L18: 0 | M18: 0 | N18: 0 | O18: 0 | P18: 0 | Q18: 0 | R18: 2 | S18: 0 | T18: 0 | U18: 0 | V18: 0 | W18: 0 | X18: 0 | Y18: 0
B19: Adrian Byrne | C19: 1953 | D19: 63 | E19: 2 | F19: 2 | G19: 0 | H19: 0 | I19: 0 | J19: 0 | K19: 0 | L19: 0 | M19: 0 | N19: 0 | O19: 0 | P19: 0 | Q19: 0 | R19: 2 | S19: 0 | T19: 0 | U19: 0 | V19: 0 | W19: 0 | X19: 0 | Y19: 0
B20: Willie McDonald | C20: 1962 | D20: 54 | E20: 2 | F20: 2 | G20: 0 | H20: 0 | I20: 0 | J20: 0 | K20: 0 | L20: 0 | M20: 0 | N20: 0 | O20: 0 | P20: 0 | Q20: 0 | R20: 2 | S20: 0 | T20: 0 | U20: 0 | V20: 0 | W20: 0 | X20: 0 | Y20: 0
B21: Romano Morelli | C21: 1952 | D21: 64 | E21: 2 | F21: 2 | G21: 0 | H21: 0 | I21: 0 | J21: 0 | K21: 0 | L21: 0 | M21: 0 | N21: 0 | O21: 0 | P21: 0 | Q21: 0 | R21: 2 | S21: 0 | T21: 0 | U21: 0 | V21: 0 | W21: 0 | X21: 0 | Y21: 0
B22: Deanne Sanders | C22: 1971 | D22: 45 | E22: 2 | F22: 2 | G22: 0 | H22: 0 | I22: 0 | J22: 0 | K22: 0 | L22: 0 | M22: 0 | N22: 0 | O22: 0 | P22: 0 | Q22: 0 | R22: 2 | S22: 0 | T22: 0 | U22: 0 | V22: 0 | W22: 0 | X22: 0 | Y22: 0
B23: Leonard Carrigan | C23: 1967 | D23: 49 | E23: 2 | F23: 2 | G23: 0 | H23: 0 | I23: 0 | J23: 0 | K23: 0 | L23: 0 | M23: 0 | N23: 0 | O23: 0 | P23: 0 | Q23: 0 | R23: 2 | S23: 0 | T23: 0 | U23: 0 | V23: 0 | W23: 0 | X23: 0 | Y23: 0
B24: Ger Madden | C24: 1964 | D24: 52 | E24: 2 | F24: 2 | G24: 0 | H24: 0 | I24: 0 | J24: 0 | K24: 0 | L24: 0 | M24: 0 | N24: 0 | O24: 0 | P24: 0 | Q24: 0 | R24: 2 | S24: 0 | T24: 0 | U24: 0 | V24: 0 | W24: 0 | X24: 0 | Y24: 0
B25: Brendan Byrne | C25: 1950 | D25: 66 | E25: 2 | F25: 2 | G25: 0 | H25: 0 | I25: 0 | J25: 0 | K25: 0 | L25: 0 | M25: 0 | N25: 0 | O25: 0 | P25: 0 | Q25: 0 | R25: 2 | S25: 0 | T25: 0 | U25: 0 | V25: 0 | W25: 0 | X25: 0 | Y25: 0
B26: Billy Bourke | C26: 1965 | D26: 51 | E26: 2 | F26: 2 | G26: 0 | H26: 0 | I26: 0 | J26: 0 | K26: 0 | L26: 0 | M26: 0 | N26: 0 | O26: 0 | P26: 0 | Q26: 0 | R26: 2 | S26: 0 | T26: 0 | U26: 0 | V26: 0 | W26: 0 | X26: 0 | Y26: 0
B27: Enda Smyth | C27: 1969 | D27: 47 | E27: 2 | F27: 2 | G27: 0 | H27: 0 | I27: 0 | J27: 0 | K27: 0 | L27: 0 | M27: 0 | N27: 0 | O27: 0 | P27: 0 | Q27: 0 | R27: 2 | S27: 0 | T27: 0 | U27: 0 | V27: 0 | W27: 0 | X27: 0 | Y27: 0
B28: Colm Cassidy | C28: 1957 | D28: 59 | E28: 2 | F28: 2 | G28: 0 | H28: 0 | I28: 0 | J28: 0 | K28: 0 | L28: 0 | M28: 0 | N28: 0 | O28: 0 | P28: 0 | Q28: 0 | R28: 2 | S28: 0 | T28: 0 | U28: 0 | V28: 0 | W28: 0 | X28: 0 | Y28: 0
B29: Jimmy Stagg | C29: 1959 | D29: 57 | E29: 2 | F29: 2 | G29: 0 | H29: 0 | I29: 0 | J29: 0 | K29: 0 | L29: 0 | M29: 0 | N29: 0 | O29: 0 | P29: 0 | Q29: 0 | R29: 2 | S29: 0 | T29: 0 | U29: 0 | V29: 0 | W29: 0 | X29: 0 | Y29: 0
B30: Peter Raftery | C30: 1953 | D30: 63 | E30: 2 | F30: 2 | G30: 0 | H30: 0 | I30: 0 | J30: 0 | K30: 0 | L30: 0 | M30: 0 | N30: 0 | O30: 0 | P30: 0 | Q30: 0 | R30: 2 | S30: 0 | T30: 0 | U30: 0 | V30: 0 | W30: 0 | X30: 0 | Y30: 0
B31: Tom Malone | C31: 1958 | D31: 58 | E31: 2 | F31: 2 | G31: 0 | H31: 0 | I31: 0 | J31: 0 | K31: 0 | L31: 0 | M31: 0 | N31: 0 | O31: 0 | P31: 0 | Q31: 0 | R31: 2 | S31: 0 | T31: 0 | U31: 0 | V31: 0 | W31: 0 | X31: 0 | Y31: 0
B32: Mark McCabe | C32: 1971 | D32: 45 | E32: 2 | F32: 2 | G32: 0 | H32: 0 | I32: 0 | J32: 0 | K32: 0 | L32: 0 | M32: 0 | N32: 0 | O32: 0 | P32: 0 | Q32: 0 | R32: 2 | S32: 0 | T32: 0 | U32: 0 | V32: 0 | W32: 0 | X32: 0 | Y32: 0
B33: Mark Prendergast | C33: 1967 | D33: 49 | E33: 2 | F33: 2 | G33: 0 | H33: 0 | I33: 0 | J33: 0 | K33: 0 | L33: 0 | M33: 0 | N33: 0 | O33: 0 | P33: 0 | Q33: 0 | R33: 2 | S33: 0 | T33: 0 | U33: 0 | V33: 0 | W33: 0 | X33: 0 | Y33: 0
B34: David McDonald | C34: 1972 | D34: 44 | E34: 2 | F34: 2 | G34: 0 | H34: 0 | I34: 0 | J34: 0 | K34: 0 | L34: 0 | M34: 0 | N34: 0 | O34: 0 | P34: 0 | Q34: 0 | R34: 2 | S34: 0 | T34: 0 | U34: 0 | V34: 0 | W34: 0 | X34: 0 | Y34: 0
B35: Mark Mearns | C35: 1976 | D35: 40 | E35: 2 | F35: 2 | G35: 0 | H35: 0 | I35: 0 | J35: 0 | K35: 0 | L35: 0 | M35: 0 | N35: 0 | O35: 0 | P35: 0 | Q35: 0 | R35: 2 | S35: 0 | T35: 0 | U35: 0 | V35: 0 | W35: 0 | X35: 0 | Y35: 0
B36: Malcolm Garland | C36: 1965 | D36: 51 | E36: 2 | F36: 2 | G36: 0 | H36: 0 | I36: 0 | J36: 0 | K36: 0 | L36: 0 | M36: 0 | N36: 0 | O36: 0 | P36: 0 | Q36: 0 | R36: 2 | S36: 0 | T36: 0 | U36: 0 | V36: 0 | W36: 0 | X36: 0 | Y36: 0
B37: Conor Barry | C37: 1973 | D37: 43 | E37: 2 | F37: 2 | G37: 0 | H37: 0 | I37: 0 | J37: 0 | K37: 0 | L37: 0 | M37: 0 | N37: 0 | O37: 0 | P37: 0 | Q37: 0 | R37: 2 | S37: 0 | T37: 0 | U37: 0 | V37: 0 | W37: 0 | X37: 0 | Y37: 0
B38: John Kehoe | C38: 1969 | D38: 47 | E38: 2 | F38: 2 | G38: 0 | H38: 0 | I38: 0 | J38: 0 | K38: 0 | L38: 0 | M38: 0 | N38: 0 | O38: 0 | P38: 0 | Q38: 0 | R38: 2 | S38: 0 | T38: 0 | U38: 0 | V38: 0 | W38: 0 | X38: 0 | Y38: 0
B39: Gerry Jameson | C39: 1960 | D39: 56 | E39: 2 | F39: 2 | G39: 0 | H39: 0 | I39: 0 | J39: 0 | K39: 0 | L39: 0 | M39: 0 | N39: 0 | O39: 0 | P39: 0 | Q39: 0 | R39: 2 | S39: 0 | T39: 0 | U39: 0 | V39: 0 | W39: 0 | X39: 0 | Y39: 0
B40: Joe Sheehy | C40: 1967 | D40: 49 | E40: 2 | F40: 2 | R40: 2
B41: Kevin Simms | C41: 1932 | D41: 84 | E41: 2 | F41: 2 | G41: 0 | H41: 0 | I41: 0 | J41: 0 | K41: 0 | L41: 0 | M41: 0 | N41: 0 | O41: 0 | P41: 0 | Q41: 0 | R41: 2 | S41: 0 | T41: 0 | U41: 0 | V41: 0 | W41: 0 | X41: 0 | Y41: 0
B42: JJ Boylan | C42: 1944 | D42: 72 | E42: 2 | F42: 2 | G42: 0 | H42: 0 | I42: 0 | J42: 0 | K42: 0 | L42: 0 | M42: 0 | N42: 0 | O42: 0 | P42: 0 | Q42: 0 | R42: 2 | S42: 0 | T42: 0 | U42: 0 | V42: 0 | W42: 0 | X42: 0 | Y42: 0
B43: Brian Kane | C43: 1975 | D43: 41 | E43: 2 | F43: 2 | R43: 2 | S43: 0 | T43: 0 | U43: 0 | V43: 0 | W43: 0 | X43: 0 | Y43: 0
B44: Pat Halpin | C44: 1957 | D44: 59 | E44: 0 | F44: 0 | G44: 0 | H44: 0 | I44: 0 | J44: 0 | K44: 0 | L44: 0 | M44: 0 | N44: 0 | O44: 0 | P44: 0 | Q44: 0 | R44: 0 | S44: 0 | T44: 0 | U44: 0 | V44: 0 | W44: 0 | X44: 0 | Y44: 0
B45: John Piggott | C45: 1955 | D45: 61 | E45: 0 | F45: 0 | G45: 0 | H45: 0 | I45: 0 | J45: 0 | K45: 0 | L45: 0 | M45: 0 | N45: 0 | O45: 0 | P45: 0 | Q45: 0 | R45: 0 | S45: 0 | T45: 0 | U45: 0 | V45: 0 | W45: 0 | X45: 0 | Y45: 0
B46: Valerie Considine | C46: 1969 | D46: 47 | E46: 0 | F46: 0 | G46: 0 | H46: 0 | I46: 0 | J46: 0 | K46: 0 | L46: 0 | M46: 0 | N46: 0 | O46: 0 | P46: 0 | Q46: 0 | R46: 0 | S46: 0 | T46: 0 | U46: 0 | V46: 0 | W46: 0 | X46: 0 | Y46: 0
B47: Barry Timmins | C47: 1965 | D47: 51 | E47: 0 | F47: 0 | G47: 0 | H47: 0 | I47: 0 | J47: 0 | K47: 0 | L47: 0 | M47: 0 | N47: 0 | O47: 0 | P47: 0 | Q47: 0 | R47: 0 | S47: 0 | T47: 0 | U47: 0 | V47: 0 | W47: 0 | X47: 0 | Y47: 0
B48: Norman Eyre | C48: 1969 | D48: 47 | E48: 0 | F48: 0 | G48: 0 | H48: 0 | I48: 0 | J48: 0 | K48: 0 | L48: 0 | M48: 0 | N48: 0 | O48: 0 | P48: 0 | Q48: 0 | R48: 0 | S48: 0 | T48: 0 | U48: 0 | V48: 0 | W48: 0 | X48: 0 | Y48: 0
B49: David Ryan | C49: 1960 | D49: 56 | E49: 0 | F49: 0 | G49: 0 | H49: 0 | I49: 0 | J49: 0 | K49: 0 | L49: 0 | M49: 0 | N49: 0 | O49: 0 | P49: 0 | Q49: 0 | R49: 0 | S49: 0 | T49: 0 | U49: 0 | V49: 0 | W49: 0 | X49: 0 | Y49: 0
B50: Dave Woods | C50: 1953 | D50: 63 | E50: 0 | F50: 0 | G50: 0 | H50: 0 | I50: 0 | J50: 0 | K50: 0 | L50: 0 | M50: 0 | N50: 0 | O50: 0 | P50: 0 | Q50: 0 | R50: 0 | S50: 0 | T50: 0 | U50: 0 | V50: 0 | W50: 0 | X50: 0 | Y50: 0
B51: Jack Lynch | C51: 1970 | D51: 46 | E51: 0 | F51: 0 | G51: 0 | H51: 0 | I51: 0 | J51: 0 | K51: 0 | L51: 0 | M51: 0 | N51: 0 | O51: 0 | P51: 0 | Q51: 0 | R51: 0 | S51: 0 | T51: 0 | U51: 0 | V51: 0 | W51: 0 | X51: 0 | Y51: 0
B52: Joe Christian | C52: 1975 | D52: 41 | E52: 0 | F52: 0 | G52: 0 | H52: 0 | I52: 0 | J52: 0 | K52: 0 | L52: 0 | M52: 0 | N52: 0 | O52: 0 | P52: 0 | Q52: 0 | R52: 0 | S52: 0 | T52: 0 | U52: 0 | V52: 0 | W52: 0 | X52: 0 | Y52: 0
B53: Martin Gray | C53: 1951 | D53: 65 | E53: 0 | F53: 0 | G53: 0 | H53: 0 | I53: 0 | J53: 0 | K53: 0 | L53: 0 | M53: 0 | N53: 0 | O53: 0 | P53: 0 | Q53: 0 | R53: 0 | S53: 0 | T53: 0 | U53: 0 | V53: 0 | W53: 0 | X53: 0 | Y53: 0
B54: Seamus Brennan | C54: 1947 | D54: 69 | E54: 0 | F54: 0 | G54: 0 | H54: 0 | I54: 0 | J54: 0 | K54: 0 | L54: 0 | M54: 0 | N54: 0 | O54: 0 | P54: 0 | Q54: 0 | R54: 0 | S54: 0 | T54: 0 | U54: 0 | V54: 0 | W54: 0 | X54: 0 | Y54: 0
B55: Karl Monaghan | C55: 1970 | D55: 46 | E55: 0 | F55: 0 | G55: 0 | H55: 0 | I55: 0 | J55: 0 | K55: 0 | L55: 0 | M55: 0 | N55: 0 | O55: 0 | P55: 0 | Q55: 0 | R55: 0 | S55: 0 | T55: 0 | U55: 0 | V55: 0 | W55: 0 | X55: 0 | Y55: 0
B56: Barry Dace | C56: 1974 | D56: 42 | E56: 0 | F56: 0 | G56: 0 | H56: 0 | I56: 0 | J56: 0 | K56: 0 | L56: 0 | M56: 0 | N56: 0 | O56: 0 | P56: 0 | Q56: 0 | R56: 0 | S56: 0 | T56: 0 | U56: 0 | V56: 0 | W56: 0 | X56: 0 | Y56: 0
B57: Brian Moran | C57: 1976 | D57: 40 | E57: 0 | F57: 0 | G57: 0 | H57: 0 | I57: 0 | J57: 0 | K57: 0 | L57: 0 | M57: 0 | N57: 0 | O57: 0 | P57: 0 | Q57: 0 | R57: 0 | S57: 0 | T57: 0 | U57: 0 | V57: 0 | W57: 0 | X57: 0 | Y57: 0
B58: Anthony O'Malley | C58: 1968 | D58: 48 | E58: 0 | F58: 0 | G58: 0 | H58: 0 | I58: 0 | J58: 0 | K58: 0 | L58: 0 | M58: 0 | N58: 0 | O58: 0 | P58: 0 | Q58: 0 | R58: 0 | S58: 0 | T58: 0 | U58: 0 | V58: 0 | W58: 0 | X58: 0 | Y58: 0
B59: Emmet Reilly | C59: 1968 | D59: 48 | E59: 0 | F59: 0 | G59: 0 | H59: 0 | I59: 0 | J59: 0 | K59: 0 | L59: 0 | M59: 0 | N59: 0 | O59: 0 | P59: 0 | Q59: 0 | R59: 0 | S59: 0 | T59: 0 | U59: 0 | V59: 0 | W59: 0 | X59: 0 | Y59: 0
B60: Mick Hennessy | C60: 1968 | D60: 48 | E60: 0 | F60: 0 | G60: 0 | H60: 0 | I60: 0 | J60: 0 | K60: 0 | L60: 0 | M60: 0 | N60: 0 | O60: 0 | P60: 0 | Q60: 0 | R60: 0 | S60: 0 | T60: 0 | U60: 0 | V60: 0 | W60: 0 | X60: 0 | Y60: 0
B61: Kiaran Sweeney | C61: 1967 | D61: 49 | E61: 0 | F61: 0 | G61: 0 | H61: 0 | I61: 0 | J61: 0 | K61: 0 | L61: 0 | M61: 0 | N61: 0 | O61: 0 | P61: 0 | Q61: 0 | R61: 0 | S61: 0 | T61: 0 | U61: 0 | V61: 0 | W61: 0 | X61: 0 | Y61: 0
B62: Liam Cullen | C62: 1974 | D62: 42 | E62: 0 | F62: 0 | G62: 0 | H62: 0 | I62: 0 | J62: 0 | K62: 0 | L62: 0 | M62: 0 | N62: 0 | O62: 0 | P62: 0 | Q62: 0 | R62: 0 | S62: 0 | T62: 0 | U62: 0 | V62: 0 | W62: 0 | X62: 0 | Y62: 0
B63: Don Samway | C63: 1965 | D63: 51 | E63: 0 | F63: 0 | G63: 0 | H63: 0 | I63: 0 | J63: 0 | K63: 0 | L63: 0 | M63: 0 | N63: 0 | O63: 0 | P63: 0 | Q63: 0 | R63: 0 | S63: 0 | T63: 0 | U63: 0 | V63: 0 | W63: 0 | X63: 0 | Y63: 0
B64: Michael Kinsella | C64: 1965 | D64: 51 | E64: 0 | F64: 0 | G64: 0 | H64: 0 | I64: 0 | J64: 0 | K64: 0 | L64: 0 | M64: 0 | N64: 0 | O64: 0 | P64: 0 | Q64: 0 | R64: 0 | S64: 0 | T64: 0 | U64: 0 | V64: 0 | W64: 0 | X64: 0 | Y64: 0
B65: Seán Lally | C65: 1941 | D65: 75 | E65: 0 | F65: 0 | G65: 0 | H65: 0 | I65: 0 | J65: 0 | K65: 0 | L65: 0 | M65: 0 | N65: 0 | O65: 0 | P65: 0 | Q65: 0 | R65: 0 | S65: 0 | T65: 0 | U65: 0 | V65: 0 | W65: 0 | X65: 0 | Y65: 0
B66: Tosh Lavery | C66: 1953 | D66: 63 | E66: 0 | F66: 0 | G66: 0 | H66: 0 | I66: 0 | J66: 0 | K66: 0 | L66: 0 | M66: 0 | N66: 0 | O66: 0 | P66: 0 | Q66: 0 | R66: 0 | S66: 0 | T66: 0 | U66: 0 | V66: 0 | W66: 0 | X66: 0 | Y66: 0
B67: Damian Doyle | C67: 1967 | D67: 49 | E67: 0 | F67: 0 | G67: 0 | H67: 0 | I67: 0 | J67: 0 | K67: 0 | L67: 0 | M67: 0 | N67: 0 | O67: 0 | P67: 0 | Q67: 0 | R67: 0 | S67: 0 | T67: 0 | U67: 0 | V67: 0 | W67: 0 | X67: 0 | Y67: 0
B68: Robert Norgrove | C68: 1940 | D68: 76 | E68: 0 | F68: 0 | G68: 0 | H68: 0 | I68: 0 | J68: 0 | K68: 0 | L68: 0 | M68: 0 | N68: 0 | O68: 0 | P68: 0 | Q68: 0 | R68: 0 | S68: 0 | T68: 0 | U68: 0 | V68: 0 | W68: 0 | X68: 0 | Y68: 0
B69: Eddie Scully | C69: 1941 | D69: 75 | E69: 0 | F69: 0 | G69: 0 | H69: 0 | I69: 0 | J69: 0 | K69: 0 | L69: 0 | M69: 0 | N69: 0 | O69: 0 | P69: 0 | Q69: 0 | R69: 0 | S69: 0 | T69: 0 | U69: 0 | V69: 0 | W69: 0 | X69: 0 | Y69: 0
B70: Will Byrne | C70: 1973 | D70: 43 | E70: 0 | F70: 0 | G70: 0 | H70: 0 | I70: 0 | J70: 0 | K70: 0 | L70: 0 | M70: 0 | N70: 0 | O70: 0 | P70: 0 | Q70: 0 | R70: 0 | S70: 0 | T70: 0 | U70: 0 | V70: 0 | W70: 0 | X70: 0 | Y70: 0
B71: Paul Reid | C71: 1970 | D71: 46 | E71: 0 | F71: 0 | G71: 0 | H71: 0 | I71: 0 | J71: 0 | K71: 0 | L71: 0 | M71: 0 | N71: 0 | O71: 0 | P71: 0 | Q71: 0 | R71: 0 | S71: 0 | T71: 0 | U71: 0 | V71: 0 | W71: 0 | X71: 0 | Y71: 0
B72: Stephen McGovern | C72: 1976 | D72: 40 | E72: 0 | F72: 0 | G72: 0 | H72: 0 | I72: 0 | J72: 0 | K72: 0 | L72: 0 | M72: 0 | N72: 0 | O72: 0 | P72: 0 | Q72: 0 | R72: 0 | S72: 0 | T72: 0 | U72: 0 | V72: 0 | W72: 0 | X72: 0 | Y72: 0
B73: Jim Sweeney | C73: 1936 | D73: 80 | E73: 0 | F73: 0 | G73: 0 | H73: 0 | I73: 0 | J73: 0 | K73: 0 | L73: 0 | M73: 0 | N73: 0 | O73: 0 | P73: 0 | Q73: 0 | R73: 0 | S73: 0 | T73: 0 | U73: 0 | V73: 0 | W73: 0 | X73: 0 | Y73: 0
B74: Stephen McNally | C74: 1966 | D74: 50 | E74: 0 | F74: 0 | G74: 0 | H74: 0 | I74: 0 | J74: 0 | K74: 0 | L74: 0 | M74: 0 | N74: 0 | O74: 0 | P74: 0 | Q74: 0 | R74: 0 | S74: 0 | T74: 0 | U74: 0 | V74: 0 | W74: 0 | X74: 0 | Y74: 0
B75: Dale Copas | C75: 1968 | D75: 48 | E75: 0 | F75: 0 | G75: 0 | H75: 0 | I75: 0 | J75: 0 | K75: 0 | L75: 0 | M75: 0 | N75: 0 | O75: 0 | P75: 0 | Q75: 0 | R75: 0 | S75: 0 | T75: 0 | U75: 0 | V75: 0 | W75: 0 | X75: 0 | Y75: 0
B76: Anthony Crean | C76: 1972 | D76: 44 | E76: 0 | F76: 0 | G76: 0 | H76: 0 | I76: 0 | J76: 0 | K76: 0 | L76: 0 | M76: 0 | N76: 0 | O76: 0 | P76: 0 | Q76: 0 | R76: 0 | S76: 0 | T76: 0 | U76: 0 | V76: 0 | W76: 0 | X76: 0 | Y76: 0
B77: Seán Gaine | C77: 1964 | D77: 52 | E77: 0 | F77: 0 | G77: 0 | H77: 0 | I77: 0 | J77: 0 | K77: 0 | L77: 0 | M77: 0 | N77: 0 | O77: 0 | P77: 0 | Q77: 0 | R77: 0 | S77: 0 | T77: 0 | U77: 0 | V77: 0 | W77: 0 | X77: 0 | Y77: 0
B78: Kevin Byrne | C78: 1975 | D78: 41 | E78: 0 | F78: 0 | G78: 0 | H78: 0 | I78: 0 | J78: 0 | K78: 0 | L78: 0 | M78: 0 | N78: 0 | O78: 0 | P78: 0 | Q78: 0 | R78: 0 | S78: 0 | T78: 0 | U78: 0 | V78: 0 | W78: 0 | X78: 0 | Y78: 0
B79: Mark Pagell | C79: 1966 | D79: 50 | E79: 0 | F79: 0 | G79: 0 | H79: 0 | I79: 0 | J79: 0 | K79: 0 | L79: 0 | M79: 0 | N79: 0 | O79: 0 | P79: 0 | Q79: 0 | R79: 0 | S79: 0 | T79: 0 | U79: 0 | V79: 0 | W79: 0 | X79: 0 | Y79: 0
B80: Robert Kehoe | C80: 1964 | D80: 52 | E80: 0 | F80: 0 | G80: 0 | H80: 0 | I80: 0 | J80: 0 | K80: 0 | L80: 0 | M80: 0 | N80: 0 | O80: 0 | P80: 0 | Q80: 0 | R80: 0 | S80: 0 | T80: 0 | U80: 0 | V80: 0 | W80: 0 | X80: 0 | Y80: 0
B81: Dermot Hickey | C81: 1971 | D81: 45 | E81: 0 | F81: 0 | G81: 0 | H81: 0 | I81: 0 | J81: 0 | K81: 0 | L81: 0 | M81: 0 | N81: 0 | O81: 0 | P81: 0 | Q81: 0 | R81: 0 | S81: 0 | T81: 0 | U81: 0 | V81: 0 | W81: 0 | X81: 0 | Y81: 0
B82: Paul Faherty | C82: 1974 | D82: 42 | E82: 0 | F82: 0 | G82: 0 | H82: 0 | I82: 0 | J82: 0 | K82: 0 | L82: 0 | M82: 0 | N82: 0 | O82: 0 | P82: 0 | Q82: 0 | R82: 0 | S82: 0 | T82: 0 | U82: 0 | V82: 0 | W82: 0 | X82: 0 | Y82: 0
B83: Eunan Malone | C83: 1960 | D83: 56 | E83: 0 | F83: 0 | G83: 0 | H83: 0 | I83: 0 | J83: 0 | K83: 0 | L83: 0 | M83: 0 | N83: 0 | O83: 0 | P83: 0 | Q83: 0 | R83: 0 | S83: 0 | T83: 0 | U83: 0 | V83: 0 | W83: 0 | X83: 0 | Y83: 0
B84: Tony Keating | C84: 1969 | D84: 47 | E84: 0 | F84: 0 | G84: 0 | H84: 0 | I84: 0 | J84: 0 | K84: 0 | L84: 0 | M84: 0 | N84: 0 | O84: 0 | P84: 0 | Q84: 0 | R84: 0 | S84: 0 | T84: 0 | U84: 0 | V84: 0 | W84: 0 | X84: 0 | Y84: 0
B85: Cathal Murray | C85: 1972 | D85: 44 | E85: 0 | F85: 0 | G85: 0 | H85: 0 | I85: 0 | J85: 0 | K85: 0 | L85: 0 | M85: 0 | N85: 0 | O85: 0 | P85: 0 | Q85: 0 | R85: 0 | S85: 0 | T85: 0 | U85: 0 | V85: 0 | W85: 0 | X85: 0 | Y85: 0
B86: David Bradley | C86: 1972 | D86: 44 | E86: 0 | F86: 0 | G86: 0 | H86: 0 | I86: 0 | J86: 0 | K86: 0 | L86: 0 | M86: 0 | N86: 0 | O86: 0 | P86: 0 | Q86: 0 | R86: 0 | S86: 0 | T86: 0 | U86: 0 | V86: 0 | W86: 0 | X86: 0 | Y86: 0
B87: Mark Mahon | C87: 1973 | D87: 43 | E87: 0 | F87: 0 | G87: 0 | H87: 0 | I87: 0 | J87: 0 | K87: 0 | L87: 0 | M87: 0 | N87: 0 | O87: 0 | P87: 0 | Q87: 0 | R87: 0 | S87: 0 | T87: 0 | U87: 0 | V87: 0 | W87: 0 | X87: 0 | Y87: 0
B88: Gerard Murphy | C88: 1970 | D88: 46 | E88: 0 | F88: 0 | G88: 0 | H88: 0 | I88: 0 | J88: 0 | K88: 0 | L88: 0 | M88: 0 | N88: 0 | O88: 0 | P88: 0 | Q88: 0 | R88: 0 | S88: 0 | T88: 0 | U88: 0 | V88: 0 | W88: 0 | X88: 0 | Y88: 0
B89: Alan Quinn | C89: 1976 | D89: 40 | E89: 0 | F89: 0 | G89: 0 | H89: 0 | I89: 0 | J89: 0 | K89: 0 | L89: 0 | M89: 0 | N89: 0 | O89: 0 | P89: 0 | Q89: 0 | R89: 0 | S89: 0 | T89: 0 | U89: 0 | V89: 0 | W89: 0 | X89: 0 | Y89: 0
B90: Mark Cooney | C90: 1972 | D90: 44 | E90: 0 | F90: 0 | G90: 0 | H90: 0 | I90: 0 | J90: 0 | K90: 0 | L90: 0 | M90: 0 | N90: 0 | O90: 0 | P90: 0 | Q90: 0 | R90: 0 | S90: 0 | T90: 0 | U90: 0 | V90: 0 | W90: 0 | X90: 0 | Y90: 0
B91: Paul Kelly | C91: 1974 | D91: 42 | E91: 0 | F91: 0 | G91: 0 | H91: 0 | I91: 0 | J91: 0 | K91: 0 | L91: 0 | M91: 0 | N91: 0 | O91: 0 | P91: 0 | Q91: 0 | R91: 0 | S91: 0 | T91: 0 | U91: 0 | V91: 0 | W91: 0 | X91: 0 | Y91: 0
B92: Jason O'Toole | C92: 1971 | D92: 45 | E92: 0 | F92: 0 | G92: 0 | H92: 0 | I92: 0 | J92: 0 | K92: 0 | L92: 0 | M92: 0 | N92: 0 | O92: 0 | P92: 0 | Q92: 0 | R92: 0 | S92: 0 | T92: 0 | U92: 0 | V92: 0 | W92: 0 | X92: 0 | Y92: 0
B93: Des Howe | C93: 1948 | D93: 68 | E93: 0 | F93: 0 | G93: 0 | H93: 0 | I93: 0 | J93: 0 | K93: 0 | L93: 0 | M93: 0 | N93: 0 | O93: 0 | P93: 0 | Q93: 0 | R93: 0 | S93: 0 | T93: 0 | U93: 0 | V93: 0 | W93: 0 | X93: 0 | Y93: 0
B94: Seán Bracken | C94: 1960 | D94: 56 | E94: 0 | F94: 0 | G94: 0 | H94: 0 | I94: 0 | J94: 0 | K94: 0 | L94: 0 | M94: 0 | N94: 0 | O94: 0 | P94: 0 | Q94: 0 | R94: 0 | S94: 0 | T94: 0 | U94: 0 | V94: 0 | W94: 0 | X94: 0 | Y94: 0
B95: Jimmy Lally | C95: 1943 | D95: 73 | E95: 0 | F95: 0 | G95: 0 | H95: 0 | I95: 0 | J95: 0 | K95: 0 | L95: 0 | M95: 0 | N95: 0 | O95: 0 | P95: 0 | Q95: 0 | R95: 0 | S95: 0 | T95: 0 | U95: 0 | V95: 0 | W95: 0 | X95: 0 | Y95: 0
B96: William McGonagle | C96: 1964 | D96: 52 | E96: 0 | F96: 0 | G96: 0 | H96: 0 | I96: 0 | J96: 0 | K96: 0 | L96: 0 | M96: 0 | N96: 0 | O96: 0 | P96: 0 | Q96: 0 | R96: 0 | S96: 0 | T96: 0 | U96: 0 | V96: 0 | W96: 0 | X96: 0 | Y96: 0
B97: Paddy FitzSimons | C97: 1946 | D97: 70 | E97: 0 | F97: 0 | G97: 0 | H97: 0 | I97: 0 | J97: 0 | K97: 0 | L97: 0 | M97: 0 | N97: 0 | O97: 0 | P97: 0 | Q97: 0 | R97: 0 | S97: 0 | T97: 0 | U97: 0 | V97: 0 | W97: 0 | X97: 0 | Y97: 0
B98: Cian Lynch | C98: 1971 | D98: 45 | E98: 0 | F98: 0 | G98: 0 | H98: 0 | I98: 0 | J98: 0 | K98: 0 | L98: 0 | M98: 0 | N98: 0 | O98: 0 | P98: 0 | Q98: 0 | R98: 0 | S98: 0 | T98: 0 | U98: 0 | V98: 0 | W98: 0 | X98: 0 | Y98: 0
B99: Richard Cattle | C99: 1967 | D99: 49 | E99: 0 | F99: 0 | G99: 0 | H99: 0 | I99: 0 | J99: 0 | K99: 0 | L99: 0 | M99: 0 | N99: 0 | O99: 0 | P99: 0 | Q99: 0 | R99: 0 | S99: 0 | T99: 0 | U99: 0 | V99: 0 | W99: 0 | X99: 0 | Y99: 0
B100: Karl Gallagher | C100: 1958 | D100: 58 | E100: 0 | F100: 0 | G100: 0 | H100: 0 | I100: 0 | J100: 0 | K100: 0 | L100: 0 | M100: 0 | N100: 0 | O100: 0 | P100: 0 | Q100: 0 | R100: 0 | S100: 0 | T100: 0 | U100: 0 | V100: 0 | W100: 0 | X100: 0 | Y100: 0
B101: Noel Thompson | C101: 1961 | D101: 55 | E101: 0 | F101: 0 | G101: 0 | H101: 0 | I101: 0 | J101: 0 | K101: 0 | L101: 0 | M101: 0 | N101: 0 | O101: 0 | P101: 0 | Q101: 0 | R101: 0 | S101: 0 | T101: 0 | U101: 0 | V101: 0 | W101: 0 | X101: 0 | Y101: 0
B102: Stephen Murphy | C102: 1966 | D102: 50 | E102: 0 | F102: 0 | G102: 0 | H102: 0 | I102: 0 | J102: 0 | K102: 0 | L102: 0 | M102: 0 | N102: 0 | O102: 0 | P102: 0 | Q102: 0 | R102: 0 | S102: 0 | T102: 0 | U102: 0 | V102: 0 | W102: 0 | X102: 0 | Y102: 0
B103: Andy Brady | C103: 1968 | D103: 48 | E103: 0 | F103: 0 | G103: 0 | H103: 0 | I103: 0 | J103: 0 | K103: 0 | L103: 0 | M103: 0 | N103: 0 | O103: 0 | P103: 0 | Q103: 0 | R103: 0 | S103: 0 | T103: 0 | U103: 0 | V103: 0 | W103: 0 | X103: 0 | Y103: 0
B104: Elaine Clarke | C104: 1979 | D104: 37 | E104: 0 | F104: 0 | G104: 0 | H104: 0 | I104: 0 | J104: 0 | K104: 0 | L104: 0 | M104: 0 | N104: 0 | O104: 0 | P104: 0 | Q104: 0 | R104: 0 | S104: 0 | T104: 0 | U104: 0 | V104: 0 | W104: 0 | X104: 0 | Y104: 0
B105: Derek McCullagh | C105: 1946 | D105: 70 | E105: 0 | F105: 0 | G105: 0 | H105: 0 | I105: 0 | J105: 0 | K105: 0 | L105: 0 | M105: 0 | N105: 0 | O105: 0 | P105: 0 | Q105: 0 | R105: 0 | S105: 0 | T105: 0 | U105: 0 | V105: 0 | W105: 0 | X105: 0 | Y105: 0
B106: Paul Tansey | C106: 1957 | D106: 59 | E106: 0 | F106: 0 | G106: 0 | H106: 0 | I106: 0 | J106: 0 | K106: 0 | L106: 0 | M106: 0 | N106: 0 | O106: 0 | P106: 0 | Q106: 0 | R106: 0 | S106: 0 | T106: 0 | U106: 0 | V106: 0 | W106: 0 | X106: 0 | Y106: 0
B107: Column2 | C107: Column3 | D107: Column5 | E107: 0 | F107: 0 | G107: 0 | H107: 0 | I107: 0 | J107: 0 | K107: 0 | L107: 0 | M107: 0 | N107: 0 | O107: 0 | P107: 0 | Q107: 0 | R107: 0 | S107: 0 | T107: 0 | U107: 0 | V107: 0 | W107: 0 | X107: 0 | Y107: 0
B108: John Shortt | C108: 1957 | D108: 59 | E108: 0 | F108: 0 | G108: 0 | H108: 0 | I108: 0 | J108: 0 | K108: 0 | L108: 0 | M108: 0 | N108: 0 | O108: 0 | P108: 0 | Q108: 0 | R108: 0 | S108: 0 | T108: 0 | U108: 0 | V108: 0 | W108: 0 | X108: 0 | Y108: 0
B109: Pat Beere | C109: 1969 | D109: 47 | E109: 0 | F109: 0 | G109: 0 | H109: 0 | I109: 0 | J109: 0 | K109: 0 | L109: 0 | M109: 0 | N109: 0 | O109: 0 | P109: 0 | Q109: 0 | R109: 0 | S109: 0 | T109: 0 | U109: 0 | V109: 0 | W109: 0 | X109: 0 | Y109: 0
B110: John Brady | C110: 1964 | D110: 52 | E110: 0 | F110: 0 | G110: 0 | H110: 0 | I110: 0 | J110: 0 | K110: 0 | L110: 0 | M110: 0 | N110: 0 | O110: 0 | P110: 0 | Q110: 0 | R110: 0 | S110: 0 | T110: 0 | U110: 0 | V110: 0 | W110: 0 | X110: 0 | Y110: 0
B111: Francis Coates | C111: 1954 | D111: 62 | E111: 0 | F111: 0 | G111: 0 | H111: 0 | I111: 0 | J111: 0 | K111: 0 | L111: 0 | M111: 0 | N111: 0 | O111: 0 | P111: 0 | Q111: 0 | R111: 0 | S111: 0 | T111: 0 | U111: 0 | V111: 0 | W111: 0 | X111: 0 | Y111: 0
B112: Seán Darragh | C112: 1951 | D112: 65 | E112: 0 | F112: 0 | G112: 0 | H112: 0 | I112: 0 | J112: 0 | K112: 0 | L112: 0 | M112: 0 | N112: 0 | O112: 0 | P112: 0 | Q112: 0 | R112: 0 | S112: 0 | T112: 0 | U112: 0 | V112: 0 | W112: 0 | X112: 0 | Y112: 0
B113: Tony Dunne | C113: 1962 | D113: 54 | E113: 0 | F113: 0 | G113: 0 | H113: 0 | I113: 0 | J113: 0 | K113: 0 | L113: 0 | M113: 0 | N113: 0 | O113: 0 | P113: 0 | Q113: 0 | R113: 0 | S113: 0 | T113: 0 | U113: 0 | V113: 0 | W113: 0 | X113: 0 | Y113: 0
B114: Sean Dunne | C114: 1966 | D114: 50 | E114: 0 | F114: 0 | G114: 0 | H114: 0 | I114: 0 | J114: 0 | K114: 0 | L114: 0 | M114: 0 | N114: 0 | O114: 0 | P114: 0 | Q114: 0 | R114: 0 | S114: 0 | T114: 0 | U114: 0 | V114: 0 | W114: 0 | X114: 0 | Y114: 0
B115: Enda McKeown | C115: 1972 | D115: 44 | E115: 0 | F115: 0 | G115: 0 | H115: 0 | I115: 0 | J115: 0 | K115: 0 | L115: 0 | M115: 0 | N115: 0 | O115: 0 | P115: 0 | Q115: 0 | R115: 0 | S115: 0 | T115: 0 | U115: 0 | V115: 0 | W115: 0 | X115: 0 | Y115: 0
B116: Declan Weldon | C116: 1968 | D116: 48 | E116: 0 | F116: 0 | G116: 0 | H116: 0 | I116: 0 | J116: 0 | K116: 0 | L116: 0 | M116: 0 | N116: 0 | O116: 0 | P116: 0 | Q116: 0 | R116: 0 | S116: 0 | T116: 0 | U116: 0 | V116: 0 | W116: 0 | X116: 0 | Y116: 0
B117: Darragh Murphy | C117: 1968 | D117: 48 | E117: 0 | F117: 0 | G117: 0 | H117: 0 | I117: 0 | J117: 0 | K117: 0 | L117: 0 | M117: 0 | N117: 0 | O117: 0 | P117: 0 | Q117: 0 | R117: 0 | S117: 0 | T117: 0 | U117: 0 | V117: 0 | W117: 0 | X117: 0 | Y117: 0
B118: Ian Cassidy | C118: 1974 | D118: 42 | E118: 0 | F118: 0 | G118: 0 | H118: 0 | I118: 0 | J118: 0 | K118: 0 | L118: 0 | M118: 0 | N118: 0 | O118: 0 | P118: 0 | Q118: 0 | R118: 0 | S118: 0 | T118: 0 | U118: 0 | V118: 0 | W118: 0 | X118: 0 | Y118: 0
B119: Erik Robson | C119: 1970 | D119: 46 | E119: 0 | F119: 0 | G119: 0 | H119: 0 | I119: 0 | J119: 0 | K119: 0 | L119: 0 | M119: 0 | N119: 0 | O119: 0 | P119: 0 | Q119: 0 | R119: 0 | S119: 0 | T119: 0 | U119: 0 | V119: 0 | W119: 0 | X119: 0 | Y119: 0
B120: Ken O'Neill | C120: 1971 | D120: 45 | E120: 0 | F120: 0 | G120: 0 | H120: 0 | I120: 0 | J120: 0 | K120: 0 | L120: 0 | M120: 0 | N120: 0 | O120: 0 | P120: 0 | Q120: 0 | R120: 0 | S120: 0 | T120: 0 | U120: 0 | V120: 0 | W120: 0 | X120: 0 | Y120: 0
B121: Malachy McKenna | C121: 1967 | D121: 49 | E121: 0 | F121: 0 | G121: 0 | H121: 0 | I121: 0 | J121: 0 | K121: 0 | L121: 0 | M121: 0 | N121: 0 | O121: 0 | P121: 0 | Q121: 0 | R121: 0 | S121: 0 | T121: 0 | U121: 0 | V121: 0 | W121: 0 | X121: 0 | Y121: 0
B122: Eddie Lynch | C122: 1960 | D122: 56 | E122: 0 | F122: 0 | G122: 0 | H122: 0 | I122: 0 | J122: 0 | K122: 0 | L122: 0 | M122: 0 | N122: 0 | O122: 0 | P122: 0 | Q122: 0 | R122: 0 | S122: 0 | T122: 0 | U122: 0 | V122: 0 | W122: 0 | X122: 0 | Y122: 0
B123: Seán G Lally | C123: 1963 | D123: 53 | E123: 0 | F123: 0 | G123: 0 | H123: 0 | I123: 0 | J123: 0 | K123: 0 | L123: 0 | M123: 0 | N123: 0 | O123: 0 | P123: 0 | Q123: 0 | R123: 0 | S123: 0 | T123: 0 | U123: 0 | V123: 0 | W123: 0 | X123: 0 | Y123: 0
B124: Damien Lyle-Stirling | C124: 1952 | D124: 64 | E124: 0 | F124: 0 | G124: 0 | H124: 0 | I124: 0 | J124: 0 | K124: 0 | L124: 0 | M124: 0 | N124: 0 | O124: 0 | P124: 0 | Q124: 0 | R124: 0 | S124: 0 | T124: 0 | U124: 0 | V124: 0 | W124: 0 | X124: 0 | Y124: 0
B125: Ken Nelson | C125: 1972 | D125: 44 | E125: 0 | F125: 0 | G125: 0 | H125: 0 | I125: 0 | J125: 0 | K125: 0 | L125: 0 | M125: 0 | N125: 0 | O125: 0 | P125: 0 | Q125: 0 | R125: 0 | S125: 0 | T125: 0 | U125: 0 | V125: 0 | W125: 0 | X125: 0 | Y125: 0
B126: Lloyd Berry | C126: 1964 | D126: 52 | E126: 0 | F126: 0 | G126: 0 | H126: 0 | I126: 0 | J126: 0 | K126: 0 | L126: 0 | M126: 0 | N126: 0 | O126: 0 | P126: 0 | Q126: 0 | R126: 0 | S126: 0 | T126: 0 | U126: 0 | V126: 0 | W126: 0 | X126: 0 | Y126: 0
B127: Ken Tobin | C127: 1975 | D127: 41 | E127: 0 | F127: 0 | G127: 0 | H127: 0 | I127: 0 | J127: 0 | K127: 0 | L127: 0 | M127: 0 | N127: 0 | O127: 0 | P127: 0 | Q127: 0 | R127: 0 | S127: 0 | T127: 0 | U127: 0 | V127: 0 | W127: 0 | X127: 0 | Y127: 0
B128: Gavin Kelly | C128: 1973 | D128: 43 | E128: 0 | F128: 0 | G128: 0 | H128: 0 | I128: 0 | J128: 0 | K128: 0 | L128: 0 | M128: 0 | N128: 0 | O128: 0 | P128: 0 | Q128: 0 | R128: 0 | S128: 0 | T128: 0 | U128: 0 | V128: 0 | W128: 0 | X128: 0 | Y128: 0
B129: David Kelly | C129: 1955 | D129: 61 | E129: 0 | F129: 0 | G129: 0 | H129: 0 | I129: 0 | J129: 0 | K129: 0 | L129: 0 | M129: 0 | N129: 0 | O129: 0 | P129: 0 | Q129: 0 | R129: 0 | S129: 0 | T129: 0 | U129: 0 | V129: 0 | W129: 0 | X129: 0 | Y129: 0
B130: Roy Bowden | C130: 1971 | D130: 45 | E130: 0 | F130: 0 | G130: 0 | H130: 0 | I130: 0 | J130: 0 | K130: 0 | L130: 0 | M130: 0 | N130: 0 | O130: 0 | P130: 0 | Q130: 0 | R130: 0 | S130: 0 | T130: 0 | U130: 0 | V130: 0 | W130: 0 | X130: 0 | Y130: 0
B131: Gerard Kane | C131: 1969 | D131: 47 | E131: 0 | F131: 0 | G131: 0 | H131: 0 | I131: 0 | J131: 0 | K131: 0 | L131: 0 | M131: 0 | N131: 0 | O131: 0 | P131: 0 | Q131: 0 | R131: 0 | S131: 0 | T131: 0 | U131: 0 | V131: 0 | W131: 0 | X131: 0 | Y131: 0
B132: Albert Murtagh | C132: 1936 | D132: 80 | E132: 0 | F132: 0 | G132: 0 | H132: 0 | I132: 0 | J132: 0 | K132: 0 | L132: 0 | M132: 0 | N132: 0 | O132: 0 | P132: 0 | Q132: 0 | R132: 0 | S132: 0 | T132: 0 | U132: 0 | V132: 0 | W132: 0 | X132: 0 | Y132: 0
B133: Paddy Byrne | C133: 1938 | D133: 78 | E133: 0 | F133: 0 | G133: 0 | H133: 0 | I133: 0 | J133: 0 | K133: 0 | L133: 0 | M133: 0 | N133: 0 | O133: 0 | P133: 0 | Q133: 0 | R133: 0 | S133: 0 | T133: 0 | U133: 0 | V133: 0 | W133: 0 | X133: 0 | Y133: 0
B134: Ronnie Howe | C134: 1953 | D134: 63 | E134: 0 | F134: 0 | G134: 0 | H134: 0 | I134: 0 | J134: 0 | K134: 0 | L134: 0 | M134: 0 | N134: 0 | O134: 0 | P134: 0 | Q134: 0 | R134: 0 | S134: 0 | T134: 0 | U134: 0 | V134: 0 | W134: 0 | X134: 0 | Y134: 0
B135: John Lanigan | C135: 1967 | D135: 49 | E135: 0 | F135: 0 | G135: 0 | H135: 0 | I135: 0 | J135: 0 | K135: 0 | L135: 0 | M135: 0 | N135: 0 | O135: 0 | P135: 0 | Q135: 0 | R135: 0 | S135: 0 | T135: 0 | U135: 0 | V135: 0 | W135: 0 | X135: 0 | Y135: 0
B136: Daniel Conroy | C136: 1967 | D136: 49 | E136: 0 | F136: 0 | G136: 0 | H136: 0 | I136: 0 | J136: 0 | K136: 0 | L136: 0 | M136: 0 | N136: 0 | O136: 0 | P136: 0 | Q136: 0 | R136: 0 | S136: 0 | T136: 0 | U136: 0 | V136: 0 | W136: 0 | X136: 0 | Y136: 0
B137: Noel Conway | C137: 1972 | D137: 44 | E137: 0 | F137: 0 | G137: 0 | H137: 0 | I137: 0 | J137: 0 | K137: 0 | L137: 0 | M137: 0 | N137: 0 | O137: 0 | P137: 0 | Q137: 0 | R137: 0 | S137: 0 | T137: 0 | U137: 0 | V137: 0 | W137: 0 | X137: 0 | Y137: 0
B138: Jason Ludgate | C138: 1972 | D138: 44 | E138: 0 | F138: 0 | G138: 0 | H138: 0 | I138: 0 | J138: 0 | K138: 0 | L138: 0 | M138: 0 | N138: 0 | O138: 0 | P138: 0 | Q138: 0 | R138: 0 | S138: 0 | T138: 0 | U138: 0 | V138: 0 | W138: 0 | X138: 0 | Y138: 0
B139: Orla Tansey | C139: 1963 | D139: 53 | E139: 0 | F139: 0 | G139: 0 | H139: 0 | I139: 0 | J139: 0 | K139: 0 | L139: 0 | M139: 0 | N139: 0 | O139: 0 | P139: 0 | Q139: 0 | R139: 0 | S139: 0 | T139: 0 | U139: 0 | V139: 0 | W139: 0 | X139: 0 | Y139: 0
B140: Neil Delahaye | C140: 1975 | D140: 41 | E140: 0 | F140: 0 | G140: 0 | H140: 0 | I140: 0 | J140: 0 | K140: 0 | L140: 0 | M140: 0 | N140: 0 | O140: 0 | P140: 0 | Q140: 0 | R140: 0 | S140: 0 | T140: 0 | U140: 0 | V140: 0 | W140: 0 | X140: 0 | Y140: 0
B141: Mick Davis | C141: 1945 | D141: 71 | E141: 0 | F141: 0 | G141: 0 | H141: 0 | I141: 0 | J141: 0 | K141: 0 | L141: 0 | M141: 0 | N141: 0 | O141: 0 | P141: 0 | Q141: 0 | R141: 0 | S141: 0 | T141: 0 | U141: 0 | V141: 0 | W141: 0 | X141: 0 | Y141: 0
B142: George O'Rorke | C142: 1948 | D142: 68 | E142: 0 | F142: 0 | G142: 0 | H142: 0 | I142: 0 | J142: 0 | K142: 0 | L142: 0 | M142: 0 | N142: 0 | O142: 0 | P142: 0 | Q142: 0 | R142: 0 | S142: 0 | T142: 0 | U142: 0 | V142: 0 | W142: 0 | X142: 0 | Y142: 0
B143: Tom Lucas | C143: 1958 | D143: 58 | E143: 0 | F143: 0 | G143: 0 | H143: 0 | I143: 0 | J143: 0 | K143: 0 | L143: 0 | M143: 0 | N143: 0 | O143: 0 | P143: 0 | Q143: 0 | R143: 0 | S143: 0 | T143: 0 | U143: 0 | V143: 0 | W143: 0 | X143: 0 | Y143: 0
B144: Patrick Troy | C144: 1954 | D144: 62 | E144: 0 | F144: 0 | G144: 0 | H144: 0 | I144: 0 | J144: 0 | K144: 0 | L144: 0 | M144: 0 | N144: 0 | O144: 0 | P144: 0 | Q144: 0 | R144: 0 | S144: 0 | T144: 0 | U144: 0 | V144: 0 | W144: 0 | X144: 0 | Y144: 0
B145: Mick Mullen | C145: 1948 | D145: 68 | E145: 0 | F145: 0 | G145: 0 | H145: 0 | I145: 0 | J145: 0 | K145: 0 | L145: 0 | M145: 0 | N145: 0 | O145: 0 | P145: 0 | Q145: 0 | R145: 0 | S145: 0 | T145: 0 | U145: 0 | V145: 0 | W145: 0 | X145: 0 | Y145: 0
B146: Oliver Bright | C146: 1944 | D146: 72 | E146: 0 | F146: 0 | G146: 0 | H146: 0 | I146: 0 | J146: 0 | K146: 0 | L146: 0 | M146: 0 | N146: 0 | O146: 0 | P146: 0 | Q146: 0 | R146: 0 | S146: 0 | T146: 0 | U146: 0 | V146: 0 | W146: 0 | X146: 0 | Y146: 0
B147: Jim Ludden | C147: 1935 | D147: 81 | E147: 0 | F147: 0 | G147: 0 | H147: 0 | I147: 0 | J147: 0 | K147: 0 | L147: 0 | M147: 0 | N147: 0 | O147: 0 | P147: 0 | Q147: 0 | R147: 0 | S147: 0 | T147: 0 | U147: 0 | V147: 0 | W147: 0 | X147: 0 | Y147: 0
B148: Peter Schweppe | C148: 1938 | D148: 78 | E148: 0 | F148: 0 | G148: 0 | H148: 0 | I148: 0 | J148: 0 | K148: 0 | L148: 0 | M148: 0 | N148: 0 | O148: 0 | P148: 0 | Q148: 0 | R148: 0 | S148: 0 | T148: 0 | U148: 0 | V148: 0 | W148: 0 | X148: 0 | Y148: 0
B149: Paddy Davis | C149: 1943 | D149: 73 | E149: 0 | F149: 0 | G149: 0 | H149: 0 | I149: 0 | J149: 0 | K149: 0 | L149: 0 | M149: 0 | N149: 0 | O149: 0 | P149: 0 | Q149: 0 | R149: 0 | S149: 0 | T149: 0 | U149: 0 | V149: 0 | W149: 0 | X149: 0 | Y149: 0
B150: Gerry Gaston | C150: 1954 | D150: 62 | E150: 0 | F150: 0 | G150: 0 | H150: 0 | I150: 0 | J150: 0 | K150: 0 | L150: 0 | M150: 0 | N150: 0 | O150: 0 | P150: 0 | Q150: 0 | R150: 0 | S150: 0 | T150: 0 | U150: 0 | V150: 0 | W150: 0 | X150: 0 | Y150: 0
B151: Hugh Byrne | C151: 1959 | D151: 57 | E151: 0 | F151: 0 | G151: 0 | H151: 0 | I151: 0 | J151: 0 | K151: 0 | L151: 0 | M151: 0 | N151: 0 | O151: 0 | P151: 0 | Q151: 0 | R151: 0 | S151: 0 | T151: 0 | U151: 0 | V151: 0 | W151: 0 | X151: 0 | Y151: 0
B152: Jim O'Shea | C152: 1959 | D152: 57 | E152: 0 | F152: 0 | G152: 0 | H152: 0 | I152: 0 | J152: 0 | K152: 0 | L152: 0 | M152: 0 | N152: 0 | O152: 0 | P152: 0 | Q152: 0 | R152: 0 | S152: 0 | T152: 0 | U152: 0 | V152: 0 | W152: 0 | X152: 0 | Y152: 0
B153: Karl Naylor | C153: 1959 | D153: 57 | E153: 0 | F153: 0 | G153: 0 | H153: 0 | I153: 0 | J153: 0 | K153: 0 | L153: 0 | M153: 0 | N153: 0 | O153: 0 | P153: 0 | Q153: 0 | R153: 0 | S153: 0 | T153: 0 | U153: 0 | V153: 0 | W153: 0 | X153: 0 | Y153: 0
B154: Jim Morahan | C154: 1943 | D154: 73 | E154: 0 | F154: 0 | G154: 0 | H154: 0 | I154: 0 | J154: 0 | K154: 0 | L154: 0 | M154: 0 | N154: 0 | O154: 0 | P154: 0 | Q154: 0 | R154: 0 | S154: 0 | T154: 0 | U154: 0 | V154: 0 | W154: 0 | X154: 0 | Y154: 0
B155: Jimmy Flynn | C155: 1956 | D155: 60 | E155: 0 | F155: 0 | G155: 0 | H155: 0 | I155: 0 | J155: 0 | K155: 0 | L155: 0 | M155: 0 | N155: 0 | O155: 0 | P155: 0 | Q155: 0 | R155: 0 | S155: 0 | T155: 0 | U155: 0 | V155: 0 | W155: 0 | X155: 0 | Y155: 0
B156: Paul Deans | C156: 1956 | D156: 60 | E156: 0 | F156: 0 | G156: 0 | H156: 0 | I156: 0 | J156: 0 | K156: 0 | L156: 0 | M156: 0 | N156: 0 | O156: 0 | P156: 0 | Q156: 0 | R156: 0 | S156: 0 | T156: 0 | U156: 0 | V156: 0 | W156: 0 | X156: 0 | Y156: 0
B157: Terry Ferris | C157: 1956 | D157: 60 | E157: 0 | F157: 0 | G157: 0 | H157: 0 | I157: 0 | J157: 0 | K157: 0 | L157: 0 | M157: 0 | N157: 0 | O157: 0 | P157: 0 | Q157: 0 | R157: 0 | S157: 0 | T157: 0 | U157: 0 | V157: 0 | W157: 0 | X157: 0 | Y157: 0
B158: Murray ch | E158: 0 | F158: 0 | G158: 0 | H158: 0 | I158: 0 | J158: 0 | K158: 0 | L158: 0 | M158: 0 | N158: 0 | O158: 0 | P158: 0 | Q158: 0 | R158: 0 | S158: 0 | T158: 0 | U158: 0 | V158: 0 | W158: 0 | X158: 0 | Y158: 0
B159: Dermot Naughton | C159: 1958 | D159: 58 | E159: 0 | F159: 0 | G159: 0 | H159: 0 | I159: 0 | J159: 0 | K159: 0 | L159: 0 | M159: 0 | N159: 0 | O159: 0 | P159: 0 | Q159: 0 | R159: 0 | S159: 0 | T159: 0 | U159: 0 | V159: 0 | W159: 0 | X159: 0 | Y159: 0
B160: Martin Kennedy | C160: 1960 | D160: 56 | E160: 0 | F160: 0 | G160: 0 | H160: 0 | I160: 0 | J160: 0 | K160: 0 | L160: 0 | M160: 0 | N160: 0 | O160: 0 | P160: 0 | Q160: 0 | R160: 0 | S160: 0 | T160: 0 | U160: 0 | V160: 0 | W160: 0 | X160: 0 | Y160: 0
B161: Michael McEntee | C161: 1954 | D161: 62 | E161: 0 | F161: 0 | G161: 0 | H161: 0 | I161: 0 | J161: 0 | K161: 0 | L161: 0 | M161: 0 | N161: 0 | O161: 0 | P161: 0 | Q161: 0 | R161: 0 | S161: 0 | T161: 0 | U161: 0 | V161: 0 | W161: 0 | X161: 0 | Y161: 0
B162: Dermot O'Gorman | C162: 1956 | D162: 60 | E162: 0 | F162: 0 | G162: 0 | H162: 0 | I162: 0 | J162: 0 | K162: 0 | L162: 0 | M162: 0 | N162: 0 | O162: 0 | P162: 0 | Q162: 0 | R162: 0 | S162: 0 | T162: 0 | U162: 0 | V162: 0 | W162: 0 | X162: 0 | Y162: 0
B163: Terry Ryan | C163: 1956 | D163: 60 | E163: 0 | F163: 0 | G163: 0 | H163: 0 | I163: 0 | J163: 0 | K163: 0 | L163: 0 | M163: 0 | N163: 0 | O163: 0 | P163: 0 | Q163: 0 | R163: 0 | S163: 0 | T163: 0 | U163: 0 | V163: 0 | W163: 0 | X163: 0 | Y163: 0
B164: Arthur Ebbs | C164: 1959 | D164: 57 | E164: 0 | F164: 0 | G164: 0 | H164: 0 | I164: 0 | J164: 0 | K164: 0 | L164: 0 | M164: 0 | N164: 0 | O164: 0 | P164: 0 | Q164: 0 | R164: 0 | S164: 0 | T164: 0 | U164: 0 | V164: 0 | W164: 0 | X164: 0 | Y164: 0
B165: Gerry Martin | C165: 1959 | D165: 57 | E165: 0 | F165: 0 | G165: 0 | H165: 0 | I165: 0 | J165: 0 | K165: 0 | L165: 0 | M165: 0 | N165: 0 | O165: 0 | P165: 0 | Q165: 0 | R165: 0 | S165: 0 | T165: 0 | U165: 0 | V165: 0 | W165: 0 | X165: 0 | Y165: 0
B166: Peter McDunphy | C166: 1959 | D166: 57 | E166: 0 | F166: 0 | G166: 0 | H166: 0 | I166: 0 | J166: 0 | K166: 0 | L166: 0 | M166: 0 | N166: 0 | O166: 0 | P166: 0 | Q166: 0 | R166: 0 | S166: 0 | T166: 0 | U166: 0 | V166: 0 | W166: 0 | X166: 0 | Y166: 0
B167: Noel Kelly | C167: 1959 | D167: 57 | E167: 0 | F167: 0 | G167: 0 | H167: 0 | I167: 0 | J167: 0 | K167: 0 | L167: 0 | M167: 0 | N167: 0 | O167: 0 | P167: 0 | Q167: 0 | R167: 0 | S167: 0 | T167: 0 | U167: 0 | V167: 0 | W167: 0 | X167: 0 | Y167: 0
B168: John Hogan | C168: 1960 | D168: 56 | E168: 0 | F168: 0 | G168: 0 | H168: 0 | I168: 0 | J168: 0 | K168: 0 | L168: 0 | M168: 0 | N168: 0 | O168: 0 | P168: 0 | Q168: 0 | R168: 0 | S168: 0 | T168: 0 | U168: 0 | V168: 0 | W168: 0 | X168: 0 | Y168: 0
B169: William Parnell | C169: 1960 | D169: 56 | E169: 0 | F169: 0 | G169: 0 | H169: 0 | I169: 0 | J169: 0 | K169: 0 | L169: 0 | M169: 0 | N169: 0 | O169: 0 | P169: 0 | Q169: 0 | R169: 0 | S169: 0 | T169: 0 | U169: 0 | V169: 0 | W169: 0 | X169: 0 | Y169: 0
B170: John Lawless | C170: 1961 | D170: 55 | E170: 0 | F170: 0 | G170: 0 | H170: 0 | I170: 0 | J170: 0 | K170: 0 | L170: 0 | M170: 0 | N170: 0 | O170: 0 | P170: 0 | Q170: 0 | R170: 0 | S170: 0 | T170: 0 | U170: 0 | V170: 0 | W170: 0 | X170: 0 | Y170: 0
B171: Brian Kinsella | C171: 1970 | D171: 46 | E171: 0 | F171: 0 | G171: 0 | H171: 0 | I171: 0 | J171: 0 | K171: 0 | L171: 0 | M171: 0 | N171: 0 | O171: 0 | P171: 0 | Q171: 0 | R171: 0 | S171: 0 | T171: 0 | U171: 0 | V171: 0 | W171: 0 | X171: 0 | Y171: 0
B172: Mike Claffey | C172: 1968 | D172: 48 | E172: 0 | F172: 0 | G172: 0 | H172: 0 | I172: 0 | J172: 0 | K172: 0 | L172: 0 | M172: 0 | N172: 0 | O172: 0 | P172: 0 | Q172: 0 | R172: 0 | S172: 0 | T172: 0 | U172: 0 | V172: 0 | W172: 0 | X172: 0 | Y172: 0
B173: Conor McGrane | C173: 1970 | D173: 46 | E173: 0 | F173: 0 | G173: 0 | H173: 0 | I173: 0 | J173: 0 | K173: 0 | L173: 0 | M173: 0 | N173: 0 | O173: 0 | P173: 0 | Q173: 0 | R173: 0 | S173: 0 | T173: 0 | U173: 0 | V173: 0 | W173: 0 | X173: 0 | Y173: 0
B174: Norman Shine | C174: 1975 | D174: 41 | E174: 0 | F174: 0 | G174: 0 | H174: 0 | I174: 0 | J174: 0 | K174: 0 | L174: 0 | M174: 0 | N174: 0 | O174: 0 | P174: 0 | Q174: 0 | R174: 0 | S174: 0 | T174: 0 | U174: 0 | V174: 0 | W174: 0 | X174: 0 | Y174: 0
B175: Denis Gleeson | C175: 1953 | D175: 63 | E175: 0 | F175: 0 | G175: 0 | H175: 0 | I175: 0 | J175: 0 | K175: 0 | L175: 0 | M175: 0 | N175: 0 | O175: 0 | P175: 0 | Q175: 0 | R175: 0 | S175: 0 | T175: 0 | U175: 0 | V175: 0 | W175: 0 | X175: 0 | Y175: 0
B176: Dave Cormack | C176: 1961 | D176: 55 | E176: 0 | F176: 0 | G176: 0 | H176: 0 | I176: 0 | J176: 0 | K176: 0 | L176: 0 | M176: 0 | N176: 0 | O176: 0 | P176: 0 | Q176: 0 | R176: 0 | S176: 0 | T176: 0 | U176: 0 | V176: 0 | W176: 0 | X176: 0 | Y176: 0
B177: Mark Burns | C177: 1962 | D177: 54 | E177: 0 | F177: 0 | G177: 0 | H177: 0 | I177: 0 | J177: 0 | K177: 0 | L177: 0 | M177: 0 | N177: 0 | O177: 0 | P177: 0 | Q177: 0 | R177: 0 | S177: 0 | T177: 0 | U177: 0 | V177: 0 | W177: 0 | X177: 0 | Y177: 0
B178: John Tracey | C178: 1957 | D178: 59 | E178: 0 | F178: 0 | G178: 0 | H178: 0 | I178: 0 | J178: 0 | K178: 0 | L178: 0 | M178: 0 | N178: 0 | O178: 0 | P178: 0 | Q178: 0 | R178: 0 | S178: 0 | T178: 0 | U178: 0 | V178: 0 | W178: 0 | X178: 0 | Y178: 0
B179: Jonathan Grimes | C179: 1971 | D179: 45 | E179: 0 | F179: 0 | G179: 0 | H179: 0 | I179: 0 | J179: 0 | K179: 0 | L179: 0 | M179: 0 | N179: 0 | O179: 0 | P179: 0 | Q179: 0 | R179: 0 | S179: 0 | T179: 0 | U179: 0 | V179: 0 | W179: 0 | X179: 0 | Y179: 0
B180: Tony O'Malley | C180: 1972 | D180: 44 | E180: 0 | F180: 0 | G180: 0 | H180: 0 | I180: 0 | J180: 0 | K180: 0 | L180: 0 | M180: 0 | N180: 0 | O180: 0 | P180: 0 | Q180: 0 | R180: 0 | S180: 0 | T180: 0 | U180: 0 | V180: 0 | W180: 0 | X180: 0 | Y180: 0
B181: Paul Atkinson | C181: 1960 | D181: 56 | E181: 0 | F181: 0 | G181: 0 | H181: 0 | I181: 0 | J181: 0 | K181: 0 | L181: 0 | M181: 0 | N181: 0 | O181: 0 | P181: 0 | Q181: 0 | R181: 0 | S181: 0 | T181: 0 | U181: 0 | V181: 0 | W181: 0 | X181: 0 | Y181: 0
B182: Ned Costello | C182: 1961 | D182: 55 | E182: 0 | F182: 0 | G182: 0 | H182: 0 | I182: 0 | J182: 0 | K182: 0 | L182: 0 | M182: 0 | N182: 0 | O182: 0 | P182: 0 | Q182: 0 | R182: 0 | S182: 0 | T182: 0 | U182: 0 | V182: 0 | W182: 0 | X182: 0 | Y182: 0
B183: Pat Byrne | C183: 1964 | D183: 52 | E183: 0 | F183: 0 | G183: 0 | H183: 0 | I183: 0 | J183: 0 | K183: 0 | L183: 0 | M183: 0 | N183: 0 | O183: 0 | P183: 0 | Q183: 0 | R183: 0 | S183: 0 | T183: 0 | U183: 0 | V183: 0 | W183: 0 | X183: 0 | Y183: 0
B184: Andrew Kavanagh | C184: 1971 | D184: 45 | E184: 0 | F184: 0 | G184: 0 | H184: 0 | I184: 0 | J184: 0 | K184: 0 | L184: 0 | M184: 0 | N184: 0 | O184: 0 | P184: 0 | Q184: 0 | R184: 0 | S184: 0 | T184: 0 | U184: 0 | V184: 0 | W184: 0 | X184: 0 | Y184: 0
B185: Mark Colbert | C185: 1971 | D185: 45 | E185: 0 | F185: 0 | G185: 0 | H185: 0 | I185: 0 | J185: 0 | K185: 0 | L185: 0 | M185: 0 | N185: 0 | O185: 0 | P185: 0 | Q185: 0 | R185: 0 | S185: 0 | T185: 0 | U185: 0 | V185: 0 | W185: 0 | X185: 0 | Y185: 0
B186: Eamonn Newton | C186: 1963 | D186: 53 | E186: 0 | F186: 0 | G186: 0 | H186: 0 | I186: 0 | J186: 0 | K186: 0 | L186: 0 | M186: 0 | N186: 0 | O186: 0 | P186: 0 | Q186: 0 | R186: 0 | S186: 0 | T186: 0 | U186: 0 | V186: 0 | W186: 0 | X186: 0 | Y186: 0
B187: Thomas Coleman | C187: 1964 | D187: 52 | E187: 0 | F187: 0 | G187: 0 | H187: 0 | I187: 0 | J187: 0 | K187: 0 | L187: 0 | M187: 0 | N187: 0 | O187: 0 | P187: 0 | Q187: 0 | R187: 0 | S187: 0 | T187: 0 | U187: 0 | V187: 0 | W187: 0 | X187: 0 | Y187: 0
B188: Conleth McKernan | C188: 1967 | D188: 49 | E188: 0 | F188: 0 | G188: 0 | H188: 0 | I188: 0 | J188: 0 | K188: 0 | L188: 0 | M188: 0 | N188: 0 | O188: 0 | P188: 0 | Q188: 0 | R188: 0 | S188: 0 | T188: 0 | U188: 0 | V188: 0 | W188: 0 | X188: 0 | Y188: 0
B189: Aidan Yates | C189: 1974 | D189: 42 | E189: 0 | F189: 0 | G189: 0 | H189: 0 | I189: 0 | J189: 0 | K189: 0 | L189: 0 | M189: 0 | N189: 0 | O189: 0 | P189: 0 | Q189: 0 | R189: 0 | S189: 0 | T189: 0 | U189: 0 | V189: 0 | W189: 0 | X189: 0 | Y189: 0
B190: Stephen Fennell | C190: 1961 | D190: 55 | E190: 0 | F190: 0 | G190: 0 | H190: 0 | I190: 0 | J190: 0 | K190: 0 | L190: 0 | M190: 0 | N190: 0 | O190: 0 | P190: 0 | Q190: 0 | R190: 0 | S190: 0 | T190: 0 | U190: 0 | V190: 0 | W190: 0 | X190: 0 | Y190: 0
B191: Derek Gormley | C191: 1973 | D191: 43 | E191: 0 | F191: 0 | G191: 0 | H191: 0 | I191: 0 | J191: 0 | K191: 0 | L191: 0 | M191: 0 | N191: 0 | O191: 0 | P191: 0 | Q191: 0 | R191: 0 | S191: 0 | T191: 0 | U191: 0 | V191: 0 | W191: 0 | X191: 0 | Y191: 0
B192: Gavin Keating | C192: 1975 | D192: 41 | E192: 0 | F192: 0 | G192: 0 | H192: 0 | I192: 0 | J192: 0 | K192: 0 | L192: 0 | M192: 0 | N192: 0 | O192: 0 | P192: 0 | Q192: 0 | R192: 0 | S192: 0 | T192: 0 | U192: 0 | V192: 0 | W192: 0 | X192: 0 | Y192: 0
B193: Quentin Jansen | C193: 1971 | D193: 45 | E193: 0 | F193: 0 | G193: 0 | H193: 0 | I193: 0 | J193: 0 | K193: 0 | L193: 0 | M193: 0 | N193: 0 | O193: 0 | P193: 0 | Q193: 0 | R193: 0 | S193: 0 | T193: 0 | U193: 0 | V193: 0 | W193: 0 | X193: 0 | Y193: 0
B194: Michael Lee | C194: 1964 | D194: 52 | E194: 0 | F194: 0 | G194: 0 | H194: 0 | I194: 0 | J194: 0 | K194: 0 | L194: 0 | M194: 0 | N194: 0 | O194: 0 | P194: 0 | Q194: 0 | R194: 0 | S194: 0 | T194: 0 | U194: 0 | V194: 0 | W194: 0 | X194: 0 | Y194: 0
B195: Liam Hogan | C195: 1959 | D195: 57 | E195: 0 | F195: 0 | G195: 0 | H195: 0 | I195: 0 | J195: 0 | K195: 0 | L195: 0 | M195: 0 | N195: 0 | O195: 0 | P195: 0 | Q195: 0 | R195: 0 | S195: 0 | T195: 0 | U195: 0 | V195: 0 | W195: 0 | X195: 0 | Y195: 0
B196: Aidan Hammond | C196: 1969 | D196: 47 | E196: 0 | F196: 0 | G196: 0 | H196: 0 | I196: 0 | J196: 0 | K196: 0 | L196: 0 | M196: 0 | N196: 0 | O196: 0 | P196: 0 | Q196: 0 | R196: 0 | S196: 0 | T196: 0 | U196: 0 | V196: 0 | W196: 0 | X196: 0 | Y196: 0
B197: Aidan Somerville | C197: 1973 | D197: 43 | E197: 0 | F197: 0 | G197: 0 | H197: 0 | I197: 0 | J197: 0 | K197: 0 | L197: 0 | M197: 0 | N197: 0 | O197: 0 | P197: 0 | Q197: 0 | R197: 0 | S197: 0 | T197: 0 | U197: 0 | V197: 0 | W197: 0 | X197: 0 | Y197: 0
B198: Seán Connolly | C198: 1970 | D198: 46 | E198: 0 | F198: 0 | G198: 0 | H198: 0 | I198: 0 | J198: 0 | K198: 0 | L198: 0 | M198: 0 | N198: 0 | O198: 0 | P198: 0 | Q198: 0 | R198: 0 | S198: 0 | T198: 0 | U198: 0 | V198: 0 | W198: 0 | X198: 0 | Y198: 0
B199: Richard Dufficy | C199: 1970 | D199: 46 | E199: 0 | F199: 0 | G199: 0 | H199: 0 | I199: 0 | J199: 0 | K199: 0 | L199: 0 | M199: 0 | N199: 0 | O199: 0 | P199: 0 | Q199: 0 | R199: 0 | S199: 0 | T199: 0 | U199: 0 | V199: 0 | W199: 0 | X199: 0 | Y199: 0
B200: Mark Kidd | C200: 1969 | D200: 47 | E200: 0 | F200: 0 | G200: 0 | H200: 0 | I200: 0 | J200: 0 | K200: 0 | L200: 0 | M200: 0 | N200: 0 | O200: 0 | P200: 0 | Q200: 0 | R200: 0 | S200: 0 | T200: 0 | U200: 0 | V200: 0 | W200: 0 | X200: 0 | Y200: 0
... 103 more rows

Sheet TTL_01
B1: Start/Result | F1: 11 | G1: 2 | I1: Red Result | Z1: 27
A2: TTL_01 | B2: Tuesday | C2: IVCA 10 TT | I2: Age Record | Z2: 20
B3: 2016-04-26 | C3: TT | D3: 10 mls
B4: 19:15:00 | F4: 10 mls | G4: 10 mls
A5: Start | B5: IVCA No. | C5: Licence Name | D5: Gender | E5: Age | F5: Handicap Time | G5: Age Std Time | H5: Finish time | I5: Actual Time | J5: Actual Time Pos. | K5: Nett Age Std Time | L5: Nett Age Std by % | M5: Age Std Pos. | N5: Age Std Points. | O5: Handicap by % | P5: Handicap by % Position | Q5: Handicap by % Points. | R5: Date | S5: Age record Year | T5: Distance
A6: 00:04:00 | B6: 1255 | C6: Paul Dolan | D6: M | E6: 49 | F6: 00:22:34 | G6: 00:25:53.847 | H6: 00:27:13 | I6: 00:23:13 | J6: 1 | K6: 0.00186165849 | L6: 20:56:46.547 | M6: 1 | N6: 10 | O6: 1.028803545 | P6: 1 | Q6: 10 | R6: 2016-04-26 | T6: 10 mls
A7: 00:11:00 | B7: 1095 | C7: Adrian Byrne | D7: M | E7: 63 | F7: 00:20:00 | G7: 00:27:02.171 | H7: 00:36:10 | I7: 00:25:10 | J7: 4 | K7: 0.00129827398 | L7: 21:32:13.409 | M7: 2 | N7: 9 | O7: 1.258333333 | P7: 19 | Q7: 2 | R7: 2016-04-26 | T7: 10 mls
A8: 00:09:00 | B8: 1539 | C8: Joe Sheehy | D8: M | E8: 49 | F8: 00:20:00 | G8: 00:25:53.847 | H8: 00:33:25 | I8: 00:24:25 | J8: 2 | K8: 0.001028325157 | L8: 23:06:11.530 | M8: 3 | N8: 8 | O8: 1.220833333 | P8: 17 | Q8: 2 | R8: 2016-04-26 | T8: 10 mls
A9: 00:17:00 | B9: 1328 | C9: Mark McCabe | D9: M | E9: 45 | F9: 00:20:00 | G9: 00:25:35.552 | H9: 00:41:25 | I9: 00:24:25 | J9: 3 | K9: 0.0008165786116 | L9: 21:11:02.537 | M9: 4 | N9: 7 | O9: 1.220833333 | P9: 18 | Q9: 2 | R9: 2016-04-26 | T9: 10 mls
A10: 00:26:00 | B10: 1348 | C10: Ciara Kinch | D10: F | E10: 43 | F10: 00:24:35 | G10: 00:27:28.609 | H10: 00:52:38 | I10: 00:26:38 | J10: 11 | K10: 0.0005857487704 | L10: 1.056257176 | M10: 5 | N10: 6 | O10: 1.083389831 | P10: 6 | Q10: 5 | R10: 2016-04-26 | T10: 10 mls
A11: 00:12:00 | B11: 1101 | C11: Mick Usher | D11: M | E11: 62 | F11: 00:24:50 | G11: 00:26:56.129 | H11: 00:38:20 | I11: 00:26:20 | J11: 9 | K11: 0.000418162821 | L11: 23:47:51.501 | M11: 6 | N11: 5 | O11: 1.060402685 | P11: 4 | Q11: 7 | R11: 2016-04-26 | T11: 10 mls
A12: 00:05:00 | B12: 1141 | C12: Tom Malone | D12: M | E12: 58 | F12: 00:23:22.435 | G12: 00:26:35.848 | H12: 00:31:12 | I12: 00:26:12 | J12: 8 | K12: 0.0002760238525 | L12: 20:49:46.847 | M12: 7 | N12: 4 | O12: 1.120907592 | P12: 10 | Q12: 2 | R12: 2016-04-26 | T12: 10 mls
A13: 00:14:00 | B13: 1402 | C13: Stephen Walsh | D13: M | E13: 47 | F13: 00:24:15.567 | G13: 00:25:44.672 | H13: 00:39:31 | I13: 00:25:31 | J13: 5 | K13: 0.0001582352971 | L13: 20:31:26.538 | M13: 8 | N13: 3 | O13: 1.051824062 | P13: 3 | Q13: 8 | R13: 2016-04-26 | T13: 10 mls
A14: 00:16:00 | B14: 1258 | C14: Rodney Joyce | D14: M | E14: 49 | F14: 00:24:29 | G14: 00:25:53.847 | H14: 00:42:08 | I14: 00:26:08 | J14: 6 | K14: -0.0001638044725 | L14: 21:15:48.785 | M14: 9 | N14: 2 | O14: 1.067392784 | P14: 5 | Q14: 6 | R14: 2016-04-26 | T14: 10 mls
A15: 00:25:00 | B15: 1519 | C15: John Kehoe | D15: M | E15: 47 | F15: 00:20:00 | G15: 00:25:44.672 | H15: 00:51:08 | I15: 00:26:08 | J15: 7 | K15: -0.0002700054437 | L15: 21:53:51.714 | M15: 10 | N15: 2 | O15: 1.306666667 | P15: 20 | Q15: 2 | R15: 2016-04-26 | T15: 10 mls
A16: 00:10:00 | B16: 1040 | C16: Phil Ormrod | D16: M | E16: 72 | F16: 00:24:24.669 | G16: 00:28:20.374 | H16: 00:38:51 | I16: 00:28:51 | J16: 17 | K16: -0.000354461813 | L16: 1.018011033 | M16: 11 | N16: 2 | O16: 1.181836878 | P16: 15 | Q16: 2 | R16: 2016-04-26 | T16: 10 mls
A17: 00:22:00 | B17: 1096 | C17: Peter Raftery | D17: M | E17: 63 | F17: 00:24:39.598 | G17: 00:27:02.171 | H17: 00:49:39 | I17: 00:27:39 | J17: 16 | K17: -0.000426263057 | L17: 1.022703606 | M17: 12 | N17: 2 | O17: 1.12125015 | P17: 11 | Q17: 2 | R17: 2016-04-26 | T17: 10 mls
A18: 00:23:00 | B18: 1259 | C18: Mark Prendergast | D18: M | E18: 49 | F18: 00:22:29 | G18: 00:25:53.847 | H18: 00:49:31 | I18: 00:26:31 | J18: 10 | K18: -0.0004300081762 | L18: 22:53:59.566 | M18: 13 | N18: 2 | O18: 1.179392142 | P18: 14 | Q18: 2 | R18: 2016-04-26 | T18: 10 mls
A19: 00:19:00 | B19: 1390 | C19: Donagh McArdle | D19: M | E19: 48 | F19: 00:24:42.581 | G19: 00:25:49.252 | H19: 00:45:59 | I19: 00:26:59 | J19: 13 | K19: -0.0008072649143 | L19: 1.060394151 | M19: 14 | N19: 2 | O19: 1.092014732 | P19: 8 | Q19: 3 | R19: 2016-04-26 | T19: 10 mls
A20: 00:08:00 | B20: 1488 | C20: Conor Barry | D20: M | E20: 43 | F20: 00:20:00 | G20: 00:25:26.490 | H20: 00:34:57 | I20: 00:26:57 | J20: 12 | K20: -0.00104757487 | L20: 1.071538857 | M20: 15 | N20: 2 | O20: 1.3475 | P20: 21 | Q20: 2 | R20: 2016-04-26 | T20: 10 mls
A21: 00:24:00 | B21: 1446 | C21: David McDonald | D21: M | E21: 44 | F21: 00:20:00 | G21: 00:25:31.014 | H21: 00:51:02 | I21: 00:27:02 | J21: 14 | K21: -0.001053079296 | L21: 1.013011152 | M21: 16 | N21: 2 | O21: 1.351666667 | P21: 22 | Q21: 2 | R21: 2016-04-26 | T21: 10 mls
A22: 00:28:00 | B22: 1261 | C22: Leonard Carrigan | D22: M | E22: 49 | F22: 00:24:57 | G22: 00:25:53.847 | H22: 00:55:26 | I22: 00:27:26 | J22: 15 | K22: -0.00106658225 | L22: 1.059306154 | M22: 17 | N22: 2 | O22: 1.099532398 | P22: 9 | Q22: 2 | R22: 2016-04-26 | T22: 10 mls
A23: 00:03:00 | B23: 1311 | C23: Deanne Sanders | D23: F | E23: 45 | F23: 00:25:05.538 | G23: 00:27:38.397 | H23: 00:32:24 | I23: 00:29:24 | J23: 19 | K23: -0.001222261766 | L23: 1.063678023 | M23: 18 | N23: 2 | O23: 1.171673834 | P23: 13 | Q23: 2 | R23: 2016-04-26 | T23: 10 mls
A24: 00:21:00 | B24: 1114 | C24: Jimmy Murphy | D24: M | E24: 60 | F24: 00:27:03 | G24: 00:26:45.495 | H24: 00:50:27 | I24: 00:29:27 | J24: 20 | K24: -0.001869266524 | L24: 21:51:14.712 | M24: 19 | N24: 2 | O24: 1.088724584 | P24: 7 | Q24: 4 | R24: 2016-04-26 | T24: 10 mls
A25: 00:18:00 | B25: 1195 | C25: Willie McDonald | D25: M | E25: 54 | F25: 00:20:00 | G25: 00:26:17.037 | H25: 00:47:06 | I25: 00:29:06 | J25: 18 | K25: -0.001955593099 | M25: 20 | N25: 2 | O25: 1.455 | P25: 24 | Q25: 2 | R25: 2016-04-26 | T25: 10 mls
A26: 00:02:00 | B26: 1077 | C26: Brendan Byrne | D26: M | E26: 66 | F26: 00:26:52 | G26: 00:27:23.260 | H26: 00:33:06 | I26: 00:31:06 | J26: 24 | K26: -0.002578007449 | L26: 1.135547523 | M26: 21 | N26: 2 | O26: 1.157568238 | P26: 12 | Q26: 2 | R26: 2016-04-26 | T26: 10 mls
A27: 00:15:00 | B27: 1090 | C27: Colm Conway | D27: M | E27: 64 | F27: 00:29:51 | G27: 00:27:08.703 | H27: 00:45:56 | I27: 00:30:56 | J27: 23 | K27: -0.002630757066 | L27: 22:00:59.504 | M27: 22 | N27: 2 | O27: 1.036292574 | P27: 2 | Q27: 9 | R27: 2016-04-26 | T27: 10 mls
A28: 00:07:00 | B28: 1284 | C28: Enda Smyth | D28: M | E28: 47 | F28: 00:24:37.567 | G28: 00:25:44.672 | H28: 00:36:46 | I28: 00:29:46 | J28: 21 | K28: -0.002793153592 | M28: 23 | N28: 2 | O28: 1.20874414 | P28: 16 | Q28: 2 | R28: 2016-04-26 | T28: 10 mls
A29: 00:20:00 | B29: 1530 | C29: Brian Kane | D29: M | E29: 41 | F29: 00:20:00 | G29: 00:25:17.483 | H29: 00:50:42 | I29: 00:30:42 | J29: 22 | K29: -0.003755988426 | L29: 20:27:33.272 | M29: 24 | N29: 2 | O29: 1.535 | P29: 25 | Q29: 2 | R29: 2016-04-26 | T29: 10 mls
A30: 00:01:00 | B30: 1002 | C30: Kevin Simms | D30: M | E30: 84 | F30: 00:31:23.055 | G30: 00:31:47.667 | H30: 00:45:17 | I30: 00:44:17 | J30: 25 | K30: -0.008672837598 | L30: 1.05060622 | M30: 25 | N30: 2 | O30: 1.411004662 | P30: 23 | Q30: 2 | R30: 2016-04-26 | T30: 10 mls
A31: 00:06:00 | B31: 1123 | C31: Colm Cassidy | D31: M | E31: 59 | F31: 00:25:05.464 | G31: 00:26:40.588 | H31: 01:06:00 | I31: 01:00:00 | J31: 26 | K31: -0.02314134385 | L31: 1.145809414 | M31: 26 | N31: 2 | O31: 2.391288991 | P31: 26 | Q31: 2 | R31: 2016-04-26 | T31: 10 mls
A32: 00:13:00 | B32: 1231 | C32: Billy Bourke | D32: M | E32: 51 | F32: 00:23:11 | G32: 00:26:03.080 | H32: 01:13:00 | I32: 01:00:00 | J32: 27 | K32: -0.02314134385 | L32: 20:20:28.037 | M32: 27 | N32: 2 | O32: 2.588066139 | P32: 27 | Q32: 2 | R32: 2016-04-26 | T32: 10 mls
A33: 00:27:00 | J33: 28 | K33: -1 | M33: 28 | N33: 2 | O33: 10 | P33: 28 | Q33: 2 | R33: 2016-04-26 | T33: 10 mls
A34: 00:57:00 | J34: 29 | K34: -1 | M34: 29 | N34: 2 | O34: 10 | P34: 29 | Q34: 2 | R34: 2016-04-26 | T34: 10 mls
A35: 00:59:00 | J35: 30 | K35: -1 | M35: 30 | N35: 2 | O35: 10 | P35: 30 | Q35: 2 | R35: 2016-04-26 | T35: 10 mls
A36: 01:01:00 | J36: 31 | K36: -1 | M36: 31 | N36: 2 | O36: 10 | P36: 31 | Q36: 2 | R36: 2016-04-26 | T36: 10 mls
A37: 01:03:00 | J37: 32 | K37: -1 | M37: 32 | N37: 2 | O37: 10 | P37: 32 | Q37: 2 | R37: 2016-04-26 | T37: 10 mls
A38: 01:39:00 | J38: 33 | K38: -1 | M38: 33 | N38: 2 | O38: 10 | P38: 33 | Q38: 2 | R38: 2016-04-26 | T38: 10 mls
A39: 01:40:00 | J39: 34 | K39: -1 | M39: 34 | N39: 2 | O39: 10 | P39: 34 | Q39: 2 | R39: 2016-04-26 | T39: 10 mls
A40: 00:33:00 | J40: 35 | K40: -1 | M40: 35 | N40: 2 | O40: 10 | P40: 35 | Q40: 2 | R40: 2016-04-26 | T40: 10 mls
A41: 00:34:00 | J41: 36 | K41: -1 | M41: 36 | N41: 2 | O41: 10 | P41: 36 | Q41: 2 | R41: 2016-04-26 | T41: 10 mls
A42: 00:35:00 | J42: 37 | K42: -1 | M42: 37 | N42: 2 | O42: 10 | P42: 37 | Q42: 2 | R42: 2016-04-26 | T42: 10 mls
A43: 00:36:00 | J43: 38 | K43: -1 | M43: 38 | N43: 2 | O43: 10 | P43: 38 | Q43: 2 | R43: 2016-04-26 | T43: 10 mls
A44: 00:37:00 | J44: 39 | K44: -1 | M44: 39 | N44: 2 | O44: 10 | P44: 39 | Q44: 2 | R44: 2016-04-26 | T44: 10 mls
A45: 00:38:00 | J45: 40 | K45: -1 | M45: 40 | N45: 2 | O45: 10 | P45: 40 | Q45: 2 | R45: 2016-04-26 | T45: 10 mls
A46: 00:39:00 | J46: 41 | K46: -1 | M46: 41 | N46: 2 | O46: 10 | P46: 41 | Q46: 2 | R46: 2016-04-26 | T46: 10 mls
A47: 00:40:00 | J47: 42 | K47: -1 | M47: 42 | N47: 2 | O47: 10 | P47: 42 | Q47: 2 | R47: 2016-04-26 | T47: 10 mls
A48: 00:41:00 | J48: 43 | K48: -1 | M48: 43 | N48: 2 | O48: 10 | P48: 43 | Q48: 2 | R48: 2016-04-26 | T48: 10 mls
A49: 00:42:00 | J49: 44 | K49: -1 | M49: 44 | N49: 2 | O49: 10 | P49: 44 | Q49: 2 | R49: 2016-04-26 | T49: 10 mls
A50: 00:43:00 | J50: 45 | K50: -1 | M50: 45 | N50: 2 | O50: 10 | P50: 45 | Q50: 2 | R50: 2016-04-26 | T50: 10 mls
A51: 00:44:00 | J51: 46 | K51: -1 | M51: 46 | N51: 2 | O51: 10 | P51: 46 | Q51: 2 | R51: 2016-04-26 | T51: 10 mls
A52: 00:46:00 | J52: 47 | K52: -1 | M52: 47 | N52: 2 | O52: 10 | P52: 47 | Q52: 2 | R52: 2016-04-26 | T52: 10 mls
A53: 00:48:00 | J53: 48 | K53: -1 | M53: 48 | N53: 2 | O53: 10 | P53: 48 | Q53: 2 | R53: 2016-04-26 | T53: 10 mls
A54: 00:50:00 | J54: 49 | K54: -1 | M54: 49 | N54: 2 | O54: 10 | P54: 49 | Q54: 2 | R54: 2016-04-26 | T54: 10 mls
A55: 00:52:00 | J55: 50 | K55: -1 | M55: 50 | N55: 2 | O55: 10 | P55: 50 | Q55: 2 | R55: 2016-04-26 | T55: 10 mls
A56: 00:54:00 | J56: 51 | K56: -1 | M56: 51 | N56: 2 | O56: 10 | P56: 51 | Q56: 2 | R56: 2016-04-26 | T56: 10 mls
A57: 00:56:00 | J57: 52 | K57: -1 | M57: 52 | N57: 2 | O57: 10 | P57: 52 | Q57: 2 | R57: 2016-04-26 | T57: 10 mls
A58: 00:58:00 | J58: 53 | K58: -1 | M58: 53 | N58: 2 | O58: 10 | P58: 53 | Q58: 2 | R58: 2016-04-26 | T58: 10 mls
A59: 01:00:00 | J59: 54 | K59: -1 | M59: 54 | N59: 2 | O59: 10 | P59: 54 | Q59: 2 | R59: 2016-04-26 | T59: 10 mls
A60: 01:02:00 | J60: 55 | K60: -1 | M60: 55 | N60: 2 | O60: 10 | P60: 55 | Q60: 2 | R60: 2016-04-26 | T60: 10 mls
A61: 01:04:00 | J61: 56 | K61: -1 | M61: 56 | N61: 2 | O61: 10 | P61: 56 | Q61: 2 | R61: 2016-04-26 | T61: 10 mls
A62: 01:05:00 | J62: 57 | K62: -1 | M62: 57 | N62: 2 | O62: 10 | P62: 57 | Q62: 2 | R62: 2016-04-26 | T62: 10 mls
A63: 01:06:00 | J63: 58 | K63: -1 | M63: 58 | N63: 2 | O63: 10 | P63: 58 | Q63: 2 | R63: 2016-04-26 | T63: 10 mls
A64: 01:07:00 | J64: 59 | K64: -1 | M64: 59 | N64: 2 | O64: 10 | P64: 59 | Q64: 2 | R64: 2016-04-26 | T64: 10 mls
A65: 01:08:00 | J65: 60 | K65: -1 | M65: 60 | N65: 2 | O65: 10 | P65: 60 | Q65: 2 | R65: 2016-04-26 | T65: 10 mls
A66: 01:09:00 | J66: 61 | K66: -1 | M66: 61 | N66: 2 | O66: 10 | P66: 61 | Q66: 2 | R66: 2016-04-26 | T66: 10 mls
A67: 01:10:00 | J67: 62 | K67: -1 | M67: 62 | N67: 2 | O67: 10 | P67: 62 | Q67: 2 | R67: 2016-04-26 | T67: 10 mls
A68: 01:11:00 | J68: 63 | K68: -1 | M68: 63 | N68: 2 | O68: 10 | P68: 63 | Q68: 2 | R68: 2016-04-26 | T68: 10 mls
A69: 01:12:00 | J69: 64 | K69: -1 | M69: 64 | N69: 2 | O69: 10 | P69: 64 | Q69: 2 | R69: 2016-04-26 | T69: 10 mls
A70: 01:13:00 | J70: 65 | K70: -1 | M70: 65 | N70: 2 | O70: 10 | P70: 65 | Q70: 2 | R70: 2016-04-26 | T70: 10 mls
A71: 01:14:00 | J71: 66 | K71: -1 | M71: 66 | N71: 2 | O71: 10 | P71: 66 | Q71: 2 | R71: 2016-04-26 | T71: 10 mls
A72: 01:15:00 | J72: 67 | K72: -1 | M72: 67 | N72: 2 | O72: 10 | P72: 67 | Q72: 2 | R72: 2016-04-26 | T72: 10 mls
A73: 01:16:00 | J73: 68 | K73: -1 | M73: 68 | N73: 2 | O73: 10 | P73: 68 | Q73: 2 | R73: 2016-04-26 | T73: 10 mls
A74: 01:17:00 | J74: 69 | K74: -1 | M74: 69 | N74: 2 | O74: 10 | P74: 69 | Q74: 2 | R74: 2016-04-26 | T74: 10 mls
A75: 01:18:00 | J75: 70 | K75: -1 | M75: 70 | N75: 2 | O75: 10 | P75: 70 | Q75: 2 | R75: 2016-04-26 | T75: 10 mls
A76: 01:19:00 | J76: 71 | K76: -1 | M76: 71 | N76: 2 | O76: 10 | P76: 71 | Q76: 2 | R76: 2016-04-26 | T76: 10 mls
A77: 01:20:00 | J77: 72 | K77: -1 | M77: 72 | N77: 2 | O77: 10 | P77: 72 | Q77: 2 | R77: 2016-04-26 | T77: 10 mls
A78: 01:21:00 | J78: 73 | K78: -1 | M78: 73 | N78: 2 | O78: 10 | P78: 73 | Q78: 2 | R78: 2016-04-26 | T78: 10 mls
A79: 01:22:00 | J79: 74 | K79: -1 | M79: 74 | N79: 2 | O79: 10 | P79: 74 | Q79: 2 | R79: 2016-04-26 | T79: 10 mls
A80: 01:23:00 | J80: 75 | K80: -1 | M80: 75 | N80: 2 | O80: 10 | P80: 75 | Q80: 2 | R80: 2016-04-26 | T80: 10 mls
A81: 01:24:00 | J81: 76 | K81: -1 | M81: 76 | N81: 2 | O81: 10 | P81: 76 | Q81: 2 | R81: 2016-04-26 | T81: 10 mls
A82: 01:25:00 | J82: 77 | K82: -1 | M82: 77 | N82: 2 | O82: 10 | P82: 77 | Q82: 2 | R82: 2016-04-26 | T82: 10 mls
A83: 01:26:00 | J83: 78 | K83: -1 | M83: 78 | N83: 2 | O83: 10 | P83: 78 | Q83: 2 | R83: 2016-04-26 | T83: 10 mls
A84: 01:27:00 | J84: 79 | K84: -1 | M84: 79 | N84: 2 | O84: 10 | P84: 79 | Q84: 2 | R84: 2016-04-26 | T84: 10 mls
A85: 01:28:00 | J85: 80 | K85: -1 | M85: 80 | N85: 2 | O85: 10 | P85: 80 | Q85: 2 | R85: 2016-04-26 | T85: 10 mls
A86: 01:29:00 | J86: 81 | K86: -1 | M86: 81 | N86: 2 | O86: 10 | P86: 81 | Q86: 2 | R86: 2016-04-26 | T86: 10 mls
A87: 01:30:00 | J87: 82 | K87: -1 | M87: 82 | N87: 2 | O87: 10 | P87: 82 | Q87: 2 | R87: 2016-04-26 | T87: 10 mls
A88: 01:31:00 | J88: 83 | K88: -1 | M88: 83 | N88: 2 | O88: 10 | P88: 83 | Q88: 2 | R88: 2016-04-26 | T88: 10 mls
A89: 01:32:00 | J89: 84 | K89: -1 | M89: 84 | N89: 2 | O89: 10 | P89: 84 | Q89: 2 | R89: 2016-04-26 | T89: 10 mls
A90: 01:33:00 | J90: 85 | K90: -1 | M90: 85 | N90: 2 | O90: 10 | P90: 85 | Q90: 2 | R90: 2016-04-26 | T90: 10 mls
A91: 01:34:00 | J91: 86 | K91: -1 | M91: 86 | N91: 2 | O91: 10 | P91: 86 | Q91: 2 | R91: 2016-04-26 | T91: 10 mls
A92: 01:35:00 | J92: 87 | K92: -1 | M92: 87 | N92: 2 | O92: 10 | P92: 87 | Q92: 2 | R92: 2016-04-26 | T92: 10 mls
A93: 01:37:00 | J93: 88 | K93: -1 | M93: 88 | N93: 2 | O93: 10 | P93: 88 | Q93: 2 | R93: 2016-04-26 | T93: 10 mls
A94: 01:36:00 | K94: -1 | O94: 10 | P94: 98 | Q94: 2 | R94: 2016-04-26 | T94: 10 mls
A95: 01:38:00 | K95: -1 | O95: 10 | P95: 97 | Q95: 2 | R95: 2016-04-26 | T95: 10 mls
A96: Timekeeper | C96: Ger Madden | J96: 89 | M96: 89 | N96: 2 | P96: 89 | Q96: 2 | R96: 2016-04-26 | T96: 10 mls
C97: Harry Sherrattt | J97: 90 | M97: 90 | N97: 2 | P97: 90 | Q97: 2 | R97: 2016-04-26 | T97: 10 mls
J98: 91 | M98: 91 | N98: 2 | P98: 91 | Q98: 2 | R98: 2016-04-26 | T98: 10 mls
A99: Marshalls | C99: Mark Mearns | J99: 92 | M99: 92 | N99: 2 | P99: 92 | Q99: 2 | R99: 2016-04-26 | T99: 10 mls
C100: Jimmy Stagg | J100: 93 | M100: 93 | N100: 2 | P100: 93 | Q100: 2 | R100: 2016-04-26 | T100: 10 mls
C101: Malcolm Garland | J101: 94 | M101: 94 | N101: 2 | P101: 94 | Q101: 2 | R101: 2016-04-26 | T101: 10 mls
C102: Gerry Jameson | J102: 95 | M102: 95 | N102: 2 | P102: 95 | Q102: 2 | R102: 2016-04-26 | T102: 10 mls
C103: JJ Boylan | J103: 96 | M103: 96 | N103: 2 | P103: 96 | Q103: 2 | R103: 2016-04-26 | T103: 10 mls
C104: Romano Morelli | J104: 97 | M104: 97 | N104: 2 | P104: 97 | Q104: 2 | R104: 2016-04-26 | T104: 10 mls
C105: Colm Cassidy | J105: 98 | M105: 98 | N105: 2 | P105: 98 | Q105: 2 | R105: 2016-04-26 | T105: 10 mls

Sheet TTL_02

Sheet TTL_03

Sheet TTL_04

Sheet TTL_05

Sheet TTL_06

Sheet TTL_07

Sheet TTL_08

Sheet TTL_09

Sheet TTL_10

Sheet TTL_Opt

Sheet Sat TT_01

Sheet Sat TT_02

Sheet Sat TT_03

Sheet Sat TT_04

Sheet Sat TT_05

Sheet Sat TT_06

Sheet Sat TT_07

Sheet Sat TT_08

Sheet Master Times
A1: Start | B1: IVCA No. | C1: Licence Name | D1: Gender | E1: Age | F1: Handicap Time | G1: Age Std Time | H1: Finish time | I1: Actual Time | J1: Actual Time Pos. | K1: Nett Age Std Time | L1: Nett Age Std by % | M1: Age Std Pos. | N1: Age Std Points. | O1: Handicap by % | P1: Handicap by % Position | Q1: Handicap by % Points. | R1: Date | S1: Age record Year | T1: Distance | X1: Sort FAR | Z1: Sort BAR
A2: Column1 | B2: Column2 | C2: Column3 | D2: Column4 | E2: Column5 | F2: Column6 | G2: Column7 | H2: Column8 | I2: Column9 | J2: Column10 | K2: Column11 | L2: Column12 | M2: Column13 | N2: Column14 | O2: Column15 | P2: Column16 | Q2: Column17 | R2: Column18 | S2: Column19 | T2: Column20 | U2: Column21 | V2: Column22 | W2: Column23 | X2: Column24 | Y2: Column25 | Z2: Column26 | AA2: Column27
A3: 00:04:00 | B3: 1255 | C3: Paul Dolan | D3: M | E3: 49 | F3: 00:22:34 | G3: 00:25:53.847 | H3: 00:27:13 | I3: 00:23:13 | J3: 1 | K3: 00:02:40.847 | L3: 0.8727609636 | M3: 1 | N3: 10 | O3: 1.028803545 | P3: 1 | Q3: 10 | R3: 2016-04-26 | T3: 10 mls
A4: 00:11:00 | B4: 1095 | C4: Adrian Byrne | D4: M | E4: 63 | F4: 00:20:00 | G4: 00:27:02.171 | H4: 00:36:10 | I4: 00:25:10 | J4: 4 | K4: 00:01:52.171 | L4: 0.897377423 | M4: 2 | N4: 9 | O4: 1.258333333 | P4: 19 | Q4: 2 | R4: 2016-04-26 | T4: 10 mls
A5: 00:09:00 | B5: 1539 | C5: Joe Sheehy | D5: M | E5: 49 | F5: 00:20:00 | G5: 00:25:53.847 | H5: 00:33:25 | I5: 00:24:25 | J5: 2 | K5: 00:01:28.847 | L5: 0.962633452 | M5: 3 | N5: 8 | O5: 1.220833333 | P5: 17 | Q5: 2 | R5: 2016-04-26 | T5: 10 mls
A6: 00:17:00 | B6: 1328 | C6: Mark McCabe | D6: M | E6: 45 | F6: 00:20:00 | G6: 00:25:35.552 | H6: 00:41:25 | I6: 00:24:25 | J6: 3 | K6: 00:01:10.552 | L6: 0.8826682549 | M6: 4 | N6: 7 | O6: 1.220833333 | P6: 18 | Q6: 2 | R6: 2016-04-26 | T6: 10 mls
A7: 00:12:00 | B7: 1101 | C7: Mick Usher | D7: M | E7: 62 | F7: 00:24:50 | G7: 00:26:56.129 | H7: 00:38:20 | I7: 00:26:20 | J7: 9 | K7: 00:00:36.129 | L7: 0.9915682968 | M7: 5 | N7: 6 | O7: 1.060402685 | P7: 4 | Q7: 7 | R7: 2016-04-26 | T7: 10 mls
A8: 00:05:00 | B8: 1141 | C8: Tom Malone | D8: M | E8: 58 | F8: 00:23:22.435 | G8: 00:26:35.848 | H8: 00:31:12 | I8: 00:26:12 | J8: 8 | K8: 00:00:23.848 | L8: 0.8679033165 | M8: 6 | N8: 5 | O8: 1.120907592 | P8: 10 | Q8: 2 | R8: 2016-04-26 | T8: 10 mls
A9: 00:14:00 | B9: 1402 | C9: Stephen Walsh | D9: M | E9: 47 | F9: 00:24:15.567 | G9: 00:25:44.672 | H9: 00:39:31 | I9: 00:25:31 | J9: 5 | K9: 00:00:13.672 | L9: 0.8551682692 | M9: 7 | N9: 4 | O9: 1.051824062 | P9: 3 | Q9: 8 | R9: 2016-04-26 | T9: 10 mls
A10: 00:16:00 | B10: 1258 | C10: Rodney Joyce | D10: M | E10: 49 | F10: 00:24:29 | G10: 00:25:53.847 | H10: 00:42:08 | I10: 00:26:08 | J10: 6 | K10: -0.0001638044725 | L10: 0.8859813084 | M10: 8 | N10: 3 | O10: 1.067392784 | P10: 5 | Q10: 6 | R10: 2016-04-26 | T10: 10 mls
A11: 00:25:00 | B11: 1519 | C11: John Kehoe | D11: M | E11: 47 | F11: 00:20:00 | G11: 00:25:44.672 | H11: 00:51:08 | I11: 00:26:08 | J11: 7 | K11: -0.0002700054437 | L11: 0.9124040921 | M11: 9 | N11: 2 | O11: 1.306666667 | P11: 20 | Q11: 2 | R11: 2016-04-26 | T11: 10 mls
A12: 00:10:00 | B12: 1040 | C12: Phil Ormrod | D12: M | E12: 72 | F12: 00:24:24.669 | G12: 00:28:20.374 | H12: 00:38:51 | I12: 00:28:51 | J12: 17 | K12: -0.000354461813 | L12: 1.018011033 | M12: 10 | N12: 2 | O12: 1.181836878 | P12: 15 | Q12: 2 | R12: 2016-04-26 | T12: 10 mls
A13: 00:22:00 | B13: 1096 | C13: Peter Raftery | D13: M | E13: 63 | F13: 00:24:39.598 | G13: 00:27:02.171 | H13: 00:49:39 | I13: 00:27:39 | J13: 16 | K13: -0.000426263057 | L13: 1.022703606 | M13: 11 | N13: 2 | O13: 1.12125015 | P13: 11 | Q13: 2 | R13: 2016-04-26 | T13: 10 mls
A14: 00:23:00 | B14: 1259 | C14: Mark Prendergast | D14: M | E14: 49 | F14: 00:22:29 | G14: 00:25:53.847 | H14: 00:49:31 | I14: 00:26:31 | J14: 10 | K14: -0.0004300081762 | L14: 0.9541616405 | M14: 12 | N14: 2 | O14: 1.179392142 | P14: 14 | Q14: 2 | R14: 2016-04-26 | T14: 10 mls
A15: 00:19:00 | B15: 1390 | C15: Donagh McArdle | D15: M | E15: 48 | F15: 00:24:42.581 | G15: 00:25:49.252 | H15: 00:45:59 | I15: 00:26:59 | J15: 13 | K15: -0.0008072649143 | L15: 1.060394151 | M15: 13 | N15: 2 | O15: 1.092014732 | P15: 8 | Q15: 3 | R15: 2016-04-26 | T15: 10 mls
A16: 00:26:00 | B16: 1348 | C16: Ciara Kinch | D16: M | E16: 43 | F16: 00:24:35 | G16: 00:25:26.490 | H16: 00:52:38 | I16: 00:26:38 | J16: 11 | K16: -0.0008276674623 | L16: 1.056257176 | M16: 14 | N16: 2 | O16: 1.083389831 | P16: 6 | Q16: 5 | R16: 2016-04-26 | T16: 10 mls
A17: 00:08:00 | B17: 1488 | C17: Conor Barry | D17: M | E17: 43 | F17: 00:20:00 | G17: 00:25:26.490 | H17: 00:34:57 | I17: 00:26:57 | J17: 12 | K17: -0.00104757487 | L17: 1.071538857 | M17: 15 | N17: 2 | O17: 1.3475 | P17: 21 | Q17: 2 | R17: 2016-04-26 | T17: 10 mls
A18: 00:24:00 | B18: 1446 | C18: David McDonald | D18: M | E18: 44 | F18: 00:20:00 | G18: 00:25:31.014 | H18: 00:51:02 | I18: 00:27:02 | J18: 14 | K18: -0.001053079296 | L18: 1.013011152 | M18: 16 | N18: 2 | O18: 1.351666667 | P18: 22 | Q18: 2 | R18: 2016-04-26 | T18: 10 mls
A19: 00:28:00 | B19: 1261 | C19: Leonard Carrigan | D19: M | E19: 49 | F19: 00:24:57 | G19: 00:25:53.847 | H19: 00:55:26 | I19: 00:27:26 | J19: 15 | K19: -0.00106658225 | L19: 1.059306154 | M19: 17 | N19: 2 | O19: 1.099532398 | P19: 9 | Q19: 2 | R19: 2016-04-26 | T19: 10 mls
A20: 00:21:00 | B20: 1114 | C20: Jimmy Murphy | D20: M | E20: 60 | F20: 00:27:03 | G20: 00:26:45.495 | H20: 00:50:27 | I20: 00:29:27 | J20: 20 | K20: -0.001869266524 | L20: 0.9105869446 | M20: 18 | N20: 2 | O20: 1.088724584 | P20: 7 | Q20: 4 | R20: 2016-04-26 | T20: 10 mls
A21: 00:18:00 | B21: 1195 | C21: Willie McDonald | D21: M | E21: 54 | F21: 00:20:00 | G21: 00:26:17.037 | H21: 00:47:06 | I21: 00:29:06 | J21: 18 | K21: -0.001955593099 | M21: 19 | N21: 2 | O21: 1.455 | P21: 24 | Q21: 2 | R21: 2016-04-26 | T21: 10 mls
A22: 00:02:00 | B22: 1077 | C22: Brendan Byrne | D22: M | E22: 66 | F22: 00:26:52 | G22: 00:27:23.260 | H22: 00:33:06 | I22: 00:31:06 | J22: 24 | K22: -0.002578007449 | L22: 1.135547523 | M22: 20 | N22: 2 | O22: 1.157568238 | P22: 12 | Q22: 2 | R22: 2016-04-26 | T22: 10 mls
A23: 00:15:00 | B23: 1090 | C23: Colm Conway | D23: M | E23: 64 | F23: 00:29:51 | G23: 00:27:08.703 | H23: 00:45:56 | I23: 00:30:56 | J23: 23 | K23: -0.002630757066 | L23: 0.9173553719 | M23: 21 | N23: 2 | O23: 1.036292574 | P23: 2 | Q23: 9 | R23: 2016-04-26 | T23: 10 mls
A24: 00:03:00 | B24: 1311 | C24: Deanne Sanders | D24: M | E24: 45 | F24: 00:25:05.538 | G24: 00:25:35.552 | H24: 00:32:24 | I24: 00:29:24 | J24: 19 | K24: -0.002644069537 | L24: 1.148772265 | M24: 22 | N24: 2 | O24: 1.171673834 | P24: 13 | Q24: 2 | R24: 2016-04-26 | T24: 10 mls
A25: 00:07:00 | B25: 1284 | C25: Enda Smyth | D25: M | E25: 47 | F25: 00:24:37.567 | G25: 00:25:44.672 | H25: 00:36:46 | I25: 00:29:46 | J25: 21 | K25: -0.002793153592 | M25: 23 | N25: 2 | O25: 1.20874414 | P25: 16 | Q25: 2 | R25: 2016-04-26 | T25: 10 mls
A26: 00:20:00 | B26: 1530 | C26: Brian Kane | D26: M | E26: 41 | F26: 00:20:00 | G26: 00:25:17.483 | H26: 00:50:42 | I26: 00:30:42 | J26: 22 | K26: -0.003755988426 | L26: 0.8524684271 | M26: 24 | N26: 2 | O26: 1.535 | P26: 25 | Q26: 2 | R26: 2016-04-26 | T26: 10 mls
A27: 00:01:00 | B27: 1002 | C27: Kevin Simms | D27: M | E27: 84 | F27: 00:31:23.055 | G27: 00:31:47.667 | H27: 00:45:17 | I27: 00:44:17 | J27: 25 | K27: -0.008672837598 | L27: 1.05060622 | M27: 25 | N27: 2 | O27: 1.411004662 | P27: 23 | Q27: 2 | R27: 2016-04-26 | T27: 10 mls
A28: 00:13:00 | B28: 1231 | C28: Billy Bourke | D28: M | E28: 51 | F28: 00:23:11 | G28: 00:26:03.080 | H28: 01:13:00 | I28: 01:00:00 | J28: 26 | K28: -0.01958718945 | L28: 0.847546729 | M28: 26 | N28: 2 | O28: 2.588066139 | P28: 27 | Q28: 2 | R28: 2016-04-26 | T28: 10 mls
A29: 00:06:00 | B29: 1123 | C29: Colm Cassidy | D29: M | E29: 59 | F29: 00:25:05.464 | G29: 00:26:40.588 | H29: 01:06:00 | I29: 01:00:00 | J29: 27 | K29: -0.02314134385 | L29: 1.145809414 | M29: 27 | N29: 2 | O29: 2.391288991 | P29: 26 | Q29: 2 | R29: 2016-04-26 | T29: 10 mls

Sheet FAR_BAR
A1: IVCA No. | B1: Licence Name | C1: Age | F1: 2011 | G1: Fastest 10 | H1: Fastest 25 | I1: Fastest 50 | J1: FAR | K1: Av Sp Mp/h | L1: FAR Pos | M1: BAR | N1: BAR Pos
K4: =(85/((HOUR(J4)*3600)+(MINUTE(J4)*60)+SECOND(J4))*3600) -> 
A5: ='Ability Times'!A11 -> 1004 | B5: ='Ability Times'!B11 -> Patsy FitzSimons | C5: ='Ability Times'!C11 -> 82 | K5: =(85/((HOUR(J5)*3600)+(MINUTE(J5)*60)+SECOND(J5))*3600) -> 
A6: ='Ability Times'!A12 -> 1014 | B6: ='Ability Times'!B12 -> Peter Schweppe | C6: ='Ability Times'!C12 -> 78
A7: ='Ability Times'!A13 -> 1015 | B7: ='Ability Times'!B13 -> Paddy Byrne | C7: ='Ability Times'!C13 -> 78
A8: ='Ability Times'!A14 -> 1023 | B8: ='Ability Times'!B14 -> Robert Norgrove | C8: ='Ability Times'!C14 -> 76
A9: ='Ability Times'!A15 -> 1024 | B9: ='Ability Times'!B15 -> Eddie Scully | C9: ='Ability Times'!C15 -> 75
A10: ='Ability Times'!A16 -> 1026 | B10: ='Ability Times'!B16 -> Seán Lally | C10: ='Ability Times'!C16 -> 75
A11: ='Ability Times'!A17 -> 1034 | B11: ='Ability Times'!B17 -> Paddy Davis | C11: ='Ability Times'!C17 -> 73
A12: ='Ability Times'!A18 -> 1040 | B12: ='Ability Times'!B18 -> Phil Ormrod | C12: ='Ability Times'!C18 -> 72
A13: ='Ability Times'!A19 -> 1044 | B13: ='Ability Times'!B19 -> Eddie Dunne | C13: ='Ability Times'!C19 -> 72
A14: ='Ability Times'!A21 -> 1050 | B14: ='Ability Times'!B21 -> Mick Davis | C14: ='Ability Times'!C21 -> 71
A15: ='Ability Times'!A22 -> 1054 | B15: ='Ability Times'!B22 -> Peter Rice | C15: ='Ability Times'!C22 -> 70
A16: ='Ability Times'!A23 -> 1060 | B16: ='Ability Times'!B23 -> Hugh Davis | C16: ='Ability Times'!C23 -> 69
A17: ='Ability Times'!A24 -> 1062 | B17: ='Ability Times'!B24 -> Mick Mullen | C17: ='Ability Times'!C24 -> 68
A18: ='Ability Times'!A25 -> 1077 | B18: ='Ability Times'!B25 -> Brendan Byrne | C18: ='Ability Times'!C25 -> 66
A19: ='Ability Times'!A26 -> 1083 | B19: ='Ability Times'!B26 -> Seán Darragh | C19: ='Ability Times'!C26 -> 65
A20: ='Ability Times'!A28 -> 1095 | B20: ='Ability Times'!B28 -> Adrian Byrne | C20: ='Ability Times'!C28 -> 63
A21: ='Ability Times'!A30 -> 1096 | B21: ='Ability Times'!B30 -> Peter Raftery | C21: ='Ability Times'!C30 -> 63
A22: ='Ability Times'!A31 -> 1101 | B22: ='Ability Times'!B31 -> Mick Usher | C22: ='Ability Times'!C31 -> 62
A23: ='Ability Times'!A36 -> 1123 | B23: ='Ability Times'!B36 -> Colm Cassidy | C23: ='Ability Times'!C36 -> 59
A24: ='Ability Times'!A37 -> 1131 | B24: ='Ability Times'!B37 -> Ed Hogan | C24: ='Ability Times'!C37 -> 58
A25: ='Ability Times'!A40 -> 1162 | B25: ='Ability Times'!B40 -> William Parnell | C25: ='Ability Times'!C40 -> 56
A26: ='Ability Times'!A42 -> 1164 | B26: ='Ability Times'!B42 -> Eunan Malone | C26: ='Ability Times'!C42 -> 56
A27: ='Ability Times'!A43 -> 1169 | B27: ='Ability Times'!B43 -> Paul Atkinson | C27: ='Ability Times'!C43 -> 56
A28: ='Ability Times'!A44 -> 1185 | B28: ='Ability Times'!B44 -> Noel Thompson | C28: ='Ability Times'!C44 -> 55
A29: ='Ability Times'!A45 -> 1190 | B29: ='Ability Times'!B45 -> Lloyd Scott | C29: ='Ability Times'!C45 -> 954
A30: ='Ability Times'!A47 -> 1196 | B30: ='Ability Times'!B47 -> Tom Barber | C30: ='Ability Times'!C47 -> 54
A31: ='Ability Times'!A49 -> 1213 | B31: ='Ability Times'!B49 -> Lloyd Berry | C31: ='Ability Times'!C49 -> 52
A32: ='Ability Times'!A51 -> 1224 | B32: ='Ability Times'!B51 -> Pat Byrne | C32: ='Ability Times'!C51 -> 52
A33: ='Ability Times'!A52 -> 1227 | B33: ='Ability Times'!B52 -> Linus Devlin | C33: ='Ability Times'!C52 -> 52
A34: ='Ability Times'!A54 -> 1230 | B34: ='Ability Times'!B54 -> Paul Cullinan | C34: ='Ability Times'!C54 -> 51
A35: ='Ability Times'!A57 -> 1236 | B35: ='Ability Times'!B57 -> John Dillon | C35: ='Ability Times'!C57 -> 51
A36: ='Ability Times'!A58 -> 1252 | B36: ='Ability Times'!B58 -> Barry Swan | C36: ='Ability Times'!C58 -> 49
A37: ='Ability Times'!A59 -> 1255 | B37: ='Ability Times'!B59 -> Paul Dolan | C37: ='Ability Times'!C59 -> 49 | K37: =(85/((HOUR(J37)*3600)+(MINUTE(J37)*60)+SECOND(J37))*3600) -> 
A38: ='Ability Times'!A60 -> 1258 | B38: ='Ability Times'!B60 -> Rodney Joyce | C38: ='Ability Times'!C60 -> 49
A39: ='Ability Times'!A61 -> 1259 | B39: ='Ability Times'!B61 -> Mark Prendergast | C39: ='Ability Times'!C61 -> 49
A40: ='Ability Times'!A65 -> 1281 | B40: ='Ability Times'!B65 -> Cathal Miller | C40: ='Ability Times'!C65 -> 48
A41: ='Ability Times'!A67 -> 1294 | B41: ='Ability Times'!B67 -> Mark Kidd | C41: ='Ability Times'!C67 -> 47
A42: ='Ability Times'!A68 -> 1303 | B42: ='Ability Times'!B68 -> Richard Dufficy | C42: ='Ability Times'!C68 -> 46
A43: ='Ability Times'!A69 -> 1311 | B43: ='Ability Times'!B69 -> Deanne Sanders | C43: ='Ability Times'!C69 -> 45
A44: ='Ability Times'!A70 -> 1311 | B44: ='Ability Times'!B70 -> Deanne Sanders | C44: ='Ability Times'!C70 -> 45
A45: ='Ability Times'!A72 -> 1328 | B45: ='Ability Times'!B72 -> Mark McCabe | C45: ='Ability Times'!C72 -> 45
A46: ='Ability Times'!A73 -> 1339 | B46: ='Ability Times'!B73 -> Noel Conway | C46: ='Ability Times'!C73 -> 44
A47: ='Ability Times'!A75 -> 1351 | B47: ='Ability Times'!B75 ->  | C47: ='Ability Times'!C75 -> 
A48: ='Ability Times'!A78 -> 1374 | B48: ='Ability Times'!B78 -> Martin McCaffrey | C48: ='Ability Times'!C78 -> 52
A49: ='Ability Times'!A79 -> 1375 | B49: ='Ability Times'!B79 -> Paul Fahy | C49: ='Ability Times'!C79 -> 51
A50: ='Ability Times'!A81 -> 1387 | B50: ='Ability Times'!B81 -> Tony O'Malley | C50: ='Ability Times'!C81 -> 44
A51: ='Ability Times'!A82 -> 1390 | B51: ='Ability Times'!B82 -> Donagh McArdle | C51: ='Ability Times'!C82 -> 48
A52: ='Ability Times'!A85 -> 1402 | B52: ='Ability Times'!B85 -> Stephen Walsh | C52: ='Ability Times'!C85 -> 47
A53: ='Ability Times'!A86 -> 1405 | B53: ='Ability Times'!B86 -> Anthony O'Malley | C53: ='Ability Times'!C86 -> 48
A54: ='Ability Times'!A89 -> 1420 | B54: ='Ability Times'!B89 -> Ian O'Hara | C54: ='Ability Times'!C89 -> 44
A55: ='Ability Times'!A91 -> 1427 | B55: ='Ability Times'!B91 -> David Carroll | C55: ='Ability Times'!C91 -> 45
A56: ='Ability Times'!A92 -> 1438 | B56: ='Ability Times'!B92 -> Neil Delahaye | C56: ='Ability Times'!C92 -> 41
A57: ='Ability Times'!A93 -> 1439 | B57: ='Ability Times'!B93 ->  | C57: ='Ability Times'!C93 -> 
A58: ='Ability Times'!A98 -> 1466 | B58: ='Ability Times'!B98 -> Andrew Bartley | C58: ='Ability Times'!C98 -> 51
A59: ='Ability Times'!A99 -> 1471 | B59: ='Ability Times'!B99 -> Ed O'Brien | C59: ='Ability Times'!C99 -> 41
A60: ='Ability Times'!A100 -> 1472 | B60: ='Ability Times'!B100 -> Caroline Martinez | C60: ='Ability Times'!C100 -> 37
A61: ='Ability Times'!A101 -> 1473 | B61: ='Ability Times'!B101 ->  | C61: ='Ability Times'!C101 -> 
A62: ='Ability Times'!A102 -> 1488 | B62: ='Ability Times'!B102 -> Conor Barry | C62: ='Ability Times'!C102 -> 43
A63: ='Ability Times'!A103 -> 1519 | B63: ='Ability Times'!B103 -> John Kehoe | C63: ='Ability Times'!C103 -> 47
A64: ='Ability Times'!A105 -> 1539 | B64: ='Ability Times'!B105 -> Joe Sheehy | C64: ='Ability Times'!C105 -> 49
A65: ='Ability Times'!A84 -> 1398 | B65: ='Ability Times'!B84 -> Aidan Yates | C65: ='Ability Times'!C84 -> 42
A66: ='Ability Times'!A27 -> 1090 | B66: ='Ability Times'!B27 -> Colm Conway | C66: ='Ability Times'!C27 -> 64
A67: ='Ability Times'!A39 -> 1141 | B67: ='Ability Times'!B39 -> Tom Malone | C67: ='Ability Times'!C39 -> 58
A68: ='Ability Times'!A29 -> 1095 | B68: ='Ability Times'!B29 -> Adrian Byrne | C68: ='Ability Times'!C29 -> 63
A69: ='Ability Times'!A32 -> 1103 | B69: ='Ability Times'!B32 -> Gerry Gaston | C69: ='Ability Times'!C32 -> 62 | K69: =(85/((HOUR(J69)*3600)+(MINUTE(J69)*60)+SECOND(J69))*3600) -> 
A70: ='Ability Times'!A38 -> 1137 | B70: ='Ability Times'!B38 -> Karl Gallagher | C70: ='Ability Times'!C38 -> 58
A71: ='Ability Times'!A53 -> 1228 | B71: ='Ability Times'!B53 -> William McGonagle | C71: ='Ability Times'!C53 -> 52
A72: ='Ability Times'!A90 -> 1426 | B72: ='Ability Times'!B90 -> Seán Bracken | C72: ='Ability Times'!C90 -> 56
A73: ='Ability Times'!A48 -> 1197 | B73: ='Ability Times'!B48 -> Dermot Moyne | C73: ='Ability Times'!C48 -> 54
A74: ='Ability Times'!A34 -> 1115 | B74: ='Ability Times'!B34 -> Jimmy Flynn | C74: ='Ability Times'!C34 -> 60
A75: ='Ability Times'!A20 -> 1045 | B75: ='Ability Times'!B20 -> Oliver Bright | C75: ='Ability Times'!C20 -> 72
A76: ='Ability Times'!A94 -> 1441 | B76: ='Ability Times'!B94 -> David Bradley | C76: ='Ability Times'!C94 -> 44
A77: ='Ability Times'!A46 -> 1195 | B77: ='Ability Times'!B46 -> Willie McDonald | C77: ='Ability Times'!C46 -> 54
A78: ='Ability Times'!A10 -> 1002 | B78: ='Ability Times'!B10 -> Kevin Simms | C78: ='Ability Times'!C10 -> 84
A79: ='Ability Times'!A33 -> 1114 | B79: ='Ability Times'!B33 -> Jimmy Murphy | C79: ='Ability Times'!C33 -> 60
A80: ='Ability Times'!A35 -> 1120 | B80: ='Ability Times'!B35 -> Dermot O'Gorman | C80: ='Ability Times'!C35 -> 60
A81: ='Ability Times'!A41 -> 1163 | B81: ='Ability Times'!B41 -> Eddie Lynch | C81: ='Ability Times'!C41 -> 56
A82: ='Ability Times'!A50 -> 1214 | B82: ='Ability Times'!B50 -> Robert Kehoe | C82: ='Ability Times'!C50 -> 52
A83: ='Ability Times'!A55 -> 1231 | B83: ='Ability Times'!B55 -> Billy Bourke | C83: ='Ability Times'!C55 -> 51
A84: ='Ability Times'!A56 -> 1235 | B84: ='Ability Times'!B56 ->  | C84: ='Ability Times'!C56 -> 
A85: ='Ability Times'!A62 -> 1261 | B85: ='Ability Times'!B62 -> Leonard Carrigan | C85: ='Ability Times'!C62 -> 49
A86: ='Ability Times'!A63 -> 1263 | B86: ='Ability Times'!B63 -> Shay Dalton | C86: ='Ability Times'!C63 -> 49 | D86: 0
A87: ='Ability Times'!A64 -> 1266 | B87: ='Ability Times'!B64 -> Mick Hennessy | C87: ='Ability Times'!C64 -> 48
A88: ='Ability Times'!A66 -> 1284 | B88: ='Ability Times'!B66 -> Enda Smyth | C88: ='Ability Times'!C66 -> 47
A89: ='Ability Times'!A71 -> 1326 | B89: ='Ability Times'!B71 -> Andrew Kavanagh | C89: ='Ability Times'!C71 -> 45
A90: ='Ability Times'!A74 -> 1348 | B90: ='Ability Times'!B74 -> Ciara Kinch | C90: ='Ability Times'!C74 -> 43
A91: ='Ability Times'!A76 -> 1360 | B91: ='Ability Times'!B76 -> David Kelly | C91: ='Ability Times'!C76 -> 61
A92: ='Ability Times'!A77 -> 1363 | B92: ='Ability Times'!B77 -> Paul Faherty | C92: ='Ability Times'!C77 -> 42
A93: ='Ability Times'!A80 -> 1381 | B93: ='Ability Times'!B80 -> Aidan Hammond | C93: ='Ability Times'!C80 -> 47
A94: ='Ability Times'!A83 -> 1396 | B94: ='Ability Times'!B83 -> Cathal Murray | C94: ='Ability Times'!C83 -> 44
A95: ='Ability Times'!A87 -> 1416 | B95: ='Ability Times'!B87 -> Barry Dace | C95: ='Ability Times'!C87 -> 42
A96: ='Ability Times'!A88 -> 0 | B96: ='Ability Times'!B88 ->  | C96: ='Ability Times'!C88 -> 
A97: ='Ability Times'!A95 -> 1446 | B97: ='Ability Times'!B95 -> David McDonald | C97: ='Ability Times'!C95 -> 44
A98: ='Ability Times'!A96 -> 1451 | B98: ='Ability Times'!B96 -> Andreas Voigt | C98: ='Ability Times'!C96 -> 44
A99: ='Ability Times'!A97 -> 1462 | B99: ='Ability Times'!B97 ->  | C99: ='Ability Times'!C97 -> 
A100: ='Ability Times'!A104 -> 1530 | B100: ='Ability Times'!B104 -> Brian Kane | C100: ='Ability Times'!C104 -> 41
A101: ='Ability Times'!A106 -> 1540 | B101: ='Ability Times'!B106 -> Aogan Lynch | C101: ='Ability Times'!C106 -> 41 | K101: =(85/((HOUR(J101)*3600)+(MINUTE(J101)*60)+SECOND(J101))*3600) -> 
A102: ='Ability Times'!A107 -> 0 | B102: ='Ability Times'!B107 ->  | C102: ='Ability Times'!C107 -> 
A103: ='Ability Times'!A108 -> 0 | B103: ='Ability Times'!B108 ->  | C103: ='Ability Times'!C108 -> 
A104: ='Ability Times'!A109 -> 0 | B104: ='Ability Times'!B109 ->  | C104: ='Ability Times'!C109 -> 
A105: ='Ability Times'!A110 -> 0 | B105: ='Ability Times'!B110 ->  | C105: ='Ability Times'!C110 -> 
A106: ='Ability Times'!A111 -> 0 | B106: ='Ability Times'!B111 ->  | C106: ='Ability Times'!C111 -> 
A107: ='Ability Times'!A112 -> 0 | B107: ='Ability Times'!B112 ->  | C107: ='Ability Times'!C112 -> 
A108: ='Ability Times'!A113 -> 0 | B108: ='Ability Times'!B113 ->  | C108: ='Ability Times'!C113 -> 
A109: ='Ability Times'!A114 -> 0 | B109: ='Ability Times'!B114 ->  | C109: ='Ability Times'!C114 -> 
A110: ='Ability Times'!A115 -> 0 | B110: ='Ability Times'!B115 ->  | C110: ='Ability Times'!C115 -> 
A111: ='Ability Times'!A116 -> 0 | B111: ='Ability Times'!B116 ->  | C111: ='Ability Times'!C116 -> 
A112: ='Ability Times'!A117 -> 0 | B112: ='Ability Times'!B117 ->  | C112: ='Ability Times'!C117 -> 
A113: ='Ability Times'!A118 -> 0 | B113: ='Ability Times'!B118 ->  | C113: ='Ability Times'!C118 -> 
A114: ='Ability Times'!A119 -> 0 | B114: ='Ability Times'!B119 ->  | C114: ='Ability Times'!C119 -> 
A115: ='Ability Times'!A120 -> 0 | B115: ='Ability Times'!B120 ->  | C115: ='Ability Times'!C120 -> 
A116: ='Ability Times'!A121 -> 0 | B116: ='Ability Times'!B121 ->  | C116: ='Ability Times'!C121 -> 
A117: ='Ability Times'!A122 -> 0 | B117: ='Ability Times'!B122 ->  | C117: ='Ability Times'!C122 -> 
A118: ='Ability Times'!A123 -> 0 | B118: ='Ability Times'!B123 ->  | C118: ='Ability Times'!C123 -> 
A119: ='Ability Times'!A124 -> 0 | B119: ='Ability Times'!B124 ->  | C119: ='Ability Times'!C124 -> 
A120: ='Ability Times'!A125 -> 0 | B120: ='Ability Times'!B125 ->  | C120: ='Ability Times'!C125 -> 
A121: ='Ability Times'!A126 -> 0 | B121: ='Ability Times'!B126 ->  | C121: ='Ability Times'!C126 -> 
A122: ='Ability Times'!A127 -> 0 | B122: ='Ability Times'!B127 ->  | C122: ='Ability Times'!C127 -> 
A123: ='Ability Times'!A128 -> 0 | B123: ='Ability Times'!B128 ->  | C123: ='Ability Times'!C128 -> 
A124: ='Ability Times'!A129 -> 0 | B124: ='Ability Times'!B129 ->  | C124: ='Ability Times'!C129 -> 
A125: ='Ability Times'!A130 -> 0 | B125: ='Ability Times'!B130 ->  | C125: ='Ability Times'!C130 -> 
A126: ='Ability Times'!A131 -> 0 | B126: ='Ability Times'!B131 ->  | C126: ='Ability Times'!C131 -> 
A127: ='Ability Times'!A132 -> 0 | B127: ='Ability Times'!B132 ->  | C127: ='Ability Times'!C132 -> 
A128: ='Ability Times'!A133 -> 0 | B128: ='Ability Times'!B133 ->  | C128: ='Ability Times'!C133 -> 
A129: ='Ability Times'!A134 -> 0 | B129: ='Ability Times'!B134 ->  | C129: ='Ability Times'!C134 -> 
A130: ='Ability Times'!A135 -> 0 | B130: ='Ability Times'!B135 ->  | C130: ='Ability Times'!C135 -> 
A131: ='Ability Times'!A136 -> 0 | B131: ='Ability Times'!B136 ->  | C131: ='Ability Times'!C136 -> 
A132: ='Ability Times'!A137 -> 0 | B132: ='Ability Times'!B137 ->  | C132: ='Ability Times'!C137 ->  | K132: =(85/((HOUR(J132)*3600)+(MINUTE(J132)*60)+SECOND(J132))*3600) -> 
A133: ='Ability Times'!A138 -> 0 | B133: ='Ability Times'!B138 ->  | C133: ='Ability Times'!C138 -> 
A134: ='Ability Times'!A139 -> 0 | B134: ='Ability Times'!B139 ->  | C134: ='Ability Times'!C139 -> 
A135: ='Ability Times'!A140 -> 0 | B135: ='Ability Times'!B140 ->  | C135: ='Ability Times'!C140 -> 
A136: ='Ability Times'!A141 -> 0 | B136: ='Ability Times'!B141 ->  | C136: ='Ability Times'!C141 -> 
A137: ='Ability Times'!A142 -> 0 | B137: ='Ability Times'!B142 ->  | C137: ='Ability Times'!C142 -> 
A138: ='Ability Times'!A143 -> 0 | B138: ='Ability Times'!B143 ->  | C138: ='Ability Times'!C143 -> 
A139: ='Ability Times'!A144 -> 0 | B139: ='Ability Times'!B144 ->  | C139: ='Ability Times'!C144 -> 
A140: ='Ability Times'!A145 -> 0 | B140: ='Ability Times'!B145 ->  | C140: ='Ability Times'!C145 -> 
A141: ='Ability Times'!A146 -> 0 | B141: ='Ability Times'!B146 ->  | C141: ='Ability Times'!C146 -> 
A142: ='Ability Times'!A147 -> 0 | B142: ='Ability Times'!B147 ->  | C142: ='Ability Times'!C147 -> 
A143: ='Ability Times'!A148 -> 0 | B143: ='Ability Times'!B148 ->  | C143: ='Ability Times'!C148 -> 
A144: ='Ability Times'!A149 -> 0 | B144: ='Ability Times'!B149 ->  | C144: ='Ability Times'!C149 -> 
A145: ='Ability Times'!A150 -> 0 | B145: ='Ability Times'!B150 ->  | C145: ='Ability Times'!C150 -> 
A146: ='Ability Times'!A151 -> 0 | B146: ='Ability Times'!B151 ->  | C146: ='Ability Times'!C151 -> 
A147: ='Ability Times'!A152 -> 0 | B147: ='Ability Times'!B152 ->  | C147: ='Ability Times'!C152 -> 
A148: ='Ability Times'!A153 -> 0 | B148: ='Ability Times'!B153 ->  | C148: ='Ability Times'!C153 -> 
A149: ='Ability Times'!A154 -> 0 | B149: ='Ability Times'!B154 ->  | C149: ='Ability Times'!C154 -> 
A150: ='Ability Times'!A155 -> 0 | B150: ='Ability Times'!B155 ->  | C150: ='Ability Times'!C155 -> 
A151: ='Ability Times'!A156 -> 0 | B151: ='Ability Times'!B156 ->  | C151: ='Ability Times'!C156 -> 
A152: ='Ability Times'!A157 -> 0 | B152: ='Ability Times'!B157 ->  | C152: ='Ability Times'!C157 -> 
A153: ='Ability Times'!A158 -> 0 | B153: ='Ability Times'!B158 ->  | C153: ='Ability Times'!C158 -> 
A154: ='Ability Times'!A159 -> 0 | B154: ='Ability Times'!B159 ->  | C154: ='Ability Times'!C159 -> 
A155: ='Ability Times'!A160 -> 0 | B155: ='Ability Times'!B160 ->  | C155: ='Ability Times'!C160 -> 
A156: ='Ability Times'!A161 -> 0 | B156: ='Ability Times'!B161 ->  | C156: ='Ability Times'!C161 -> 
A157: ='Ability Times'!A162 -> 0 | B157: ='Ability Times'!B162 ->  | C157: ='Ability Times'!C162 -> 
A158: ='Ability Times'!A163 -> 0 | B158: ='Ability Times'!B163 ->  | C158: ='Ability Times'!C163 -> 
A159: ='Ability Times'!A164 -> 0 | B159: ='Ability Times'!B164 ->  | C159: ='Ability Times'!C164 -> 
A160: ='Ability Times'!A165 -> 0 | B160: ='Ability Times'!B165 ->  | C160: ='Ability Times'!C165 -> 
A161: ='Ability Times'!A166 -> 0 | B161: ='Ability Times'!B166 ->  | C161: ='Ability Times'!C166 -> 
A162: ='Ability Times'!A167 -> 0 | B162: ='Ability Times'!B167 ->  | C162: ='Ability Times'!C167 -> 
A163: ='Ability Times'!A168 -> 0 | B163: ='Ability Times'!B168 ->  | C163: ='Ability Times'!C168 -> 
A164: ='Ability Times'!A169 -> 0 | B164: ='Ability Times'!B169 ->  | C164: ='Ability Times'!C169 -> 
A165: ='Ability Times'!A170 -> 0 | B165: ='Ability Times'!B170 ->  | C165: ='Ability Times'!C170 -> 
A166: ='Ability Times'!A171 -> 0 | B166: ='Ability Times'!B171 ->  | C166: ='Ability Times'!C171 -> 
A167: ='Ability Times'!A172 -> 0 | B167: ='Ability Times'!B172 ->  | C167: ='Ability Times'!C172 -> 
A168: ='Ability Times'!A173 -> 0 | B168: ='Ability Times'!B173 ->  | C168: ='Ability Times'!C173 -> 
A169: ='Ability Times'!A174 -> 0 | B169: ='Ability Times'!B174 ->  | C169: ='Ability Times'!C174 -> 
A170: ='Ability Times'!A175 -> 0 | B170: ='Ability Times'!B175 ->  | C170: ='Ability Times'!C175 -> 
A171: ='Ability Times'!A176 -> 0 | B171: ='Ability Times'!B176 ->  | C171: ='Ability Times'!C176 -> 
A172: ='Ability Times'!A177 -> 0 | B172: ='Ability Times'!B177 ->  | C172: ='Ability Times'!C177 -> 
A173: ='Ability Times'!A178 -> 0 | B173: ='Ability Times'!B178 ->  | C173: ='Ability Times'!C178 -> 
A174: ='Ability Times'!A179 -> 0 | B174: ='Ability Times'!B179 ->  | C174: ='Ability Times'!C179 -> 
A175: ='Ability Times'!A180 -> 0 | B175: ='Ability Times'!B180 ->  | C175: ='Ability Times'!C180 -> 
A176: ='Ability Times'!A181 -> 0 | B176: ='Ability Times'!B181 ->  | C176: ='Ability Times'!C181 -> 
A177: ='Ability Times'!A182 -> 0 | B177: ='Ability Times'!B182 ->  | C177: ='Ability Times'!C182 -> 
A178: ='Ability Times'!A183 -> 0 | B178: ='Ability Times'!B183 ->  | C178: ='Ability Times'!C183 -> 
A179: ='Ability Times'!A184 -> 0 | B179: ='Ability Times'!B184 ->  | C179: ='Ability Times'!C184 -> 
A180: ='Ability Times'!A185 -> 0 | B180: ='Ability Times'!B185 ->  | C180: ='Ability Times'!C185 -> 
A181: ='Ability Times'!A186 -> 0 | B181: ='Ability Times'!B186 ->  | C181: ='Ability Times'!C186 -> 
A182: ='Ability Times'!A187 -> 0 | B182: ='Ability Times'!B187 ->  | C182: ='Ability Times'!C187 -> 
A183: ='Ability Times'!A188 -> 0 | B183: ='Ability Times'!B188 ->  | C183: ='Ability Times'!C188 -> 
A184: ='Ability Times'!A189 -> 0 | B184: ='Ability Times'!B189 ->  | C184: ='Ability Times'!C189 -> 
A185: ='Ability Times'!A190 -> 0 | B185: ='Ability Times'!B190 ->  | C185: ='Ability Times'!C190 -> 
A186: ='Ability Times'!A191 -> 0 | B186: ='Ability Times'!B191 ->  | C186: ='Ability Times'!C191 -> 
A187: ='Ability Times'!A192 -> 0 | B187: ='Ability Times'!B192 ->  | C187: ='Ability Times'!C192 -> 
A188: ='Ability Times'!A193 -> 0 | B188: ='Ability Times'!B193 ->  | C188: ='Ability Times'!C193 -> 
A189: ='Ability Times'!A194 -> 0 | B189: ='Ability Times'!B194 ->  | C189: ='Ability Times'!C194 -> 
A190: ='Ability Times'!A195 -> 0 | B190: ='Ability Times'!B195 ->  | C190: ='Ability Times'!C195 -> 
A191: ='Ability Times'!A196 -> 0 | B191: ='Ability Times'!B196 ->  | C191: ='Ability Times'!C196 -> 
A192: ='Ability Times'!A197 -> 0 | B192: ='Ability Times'!B197 ->  | C192: ='Ability Times'!C197 -> 
A193: ='Ability Times'!A198 -> 0 | B193: ='Ability Times'!B198 ->  | C193: ='Ability Times'!C198 -> 
A194: ='Ability Times'!A199 -> 0 | B194: ='Ability Times'!B199 ->  | C194: ='Ability Times'!C199 -> 
A195: ='Ability Times'!A200 -> 0 | B195: ='Ability Times'!B200 -> 0 | C195: ='Ability Times'!C200 -> 0
A196: ='Ability Times'!A201 -> 0 | B196: ='Ability Times'!B201 -> 0 | C196: ='Ability Times'!C201 -> 0 | K196: =(85/((HOUR(J196)*3600)+(MINUTE(J196)*60)+SECOND(J196))*3600) -> 
A197: ='Ability Times'!A202 -> 0 | B197: ='Ability Times'!B202 -> 0 | C197: ='Ability Times'!C202 -> 0
A198: ='Ability Times'!A203 -> 0 | B198: ='Ability Times'!B203 -> 0 | C198: ='Ability Times'!C203 -> 0
A199: ='Ability Times'!A204 -> 0 | B199: ='Ability Times'!B204 -> 0 | C199: ='Ability Times'!C204 -> 0
A200: ='Ability Times'!A205 -> 0 | B200: ='Ability Times'!B205 -> 0 | C200: ='Ability Times'!C205 -> 0
A201: ='Ability Times'!A206 -> 0 | B201: ='Ability Times'!B206 -> 0 | C201: ='Ability Times'!C206 -> 0
A202: ='Ability Times'!A207 -> 0 | B202: ='Ability Times'!B207 -> 0 | C202: ='Ability Times'!C207 -> 0
... 99 more rows

Sheet IVCA Age Records Road & Track .
A1: IVCA Age Records Men | C1: As of | D1: 2015-08-09 | F1: IVCA Age Records Women | I1: See below | R1: IVCA Track Records.
R2: Sundrive Road only. | V2: Eligible events, IVCA, Leinster & National Champs +Sundrive League.
A3: 10 Miles. | B3: Name | C3: Time | D3: Year | E3: 25 Miles. | F3: Name | G3: Time | H3: Year | I3: 50 Miles. | J3: Name | K3: Time | L3: Year | M3: Circuit TT | N3: Name | O3: Time | P3: Year | R3: Men
A4: Age | E4: Age | I4: Age | M4: Age | R4: Age | S4: Flying 200m. | T4: Time | U4: Year | W4: 500m. T.T. | X4: Time | Y4: Year | AA4: 2000m. T.T. | AB4: Time | AC4: Year | AE4: 3000m. T.T. | AF4: Time | AG4: Year
A5: 40 | E5: 40 | F5: Neil Delahaye | G5: 00:53:51 | H5: 2015 | I5: 40 | M5: 40 | R5: 40 | V5: 40 | W5: Stephen McNally | X5: 37.19 | Z5: 40 | AD5: 40
A6: 41 | B6: John Oram | C6: 00:21:05 | D6: 2009 | E6: 41 | F6: John Oram | G6: 00:54:18 | H6: 2009 | I6: 41 | J6: John Oram | K6: 01:52:59 | L6: 2009 | M6: 41 | R6: 41 | S6: Brendan Whelan, 1968 | T6: 12.25 | U6: 2009 | V6: 41 | Z6: 41 | AD6: 41 | AE6: Brendan Whelan, 1968 | AF6: 4:04.83 | AG6: 2009
A7: 42 | B7: John Oram | C7: 00:21:35 | D7: 2009 | E7: 42 | I7: 42 | M7: 42 | R7: 42 | V7: 42 | Z7: 42 | AD7: 42
A8: 43 | E8: 43 | I8: 43 | M8: 43 | R8: 43 | V8: 43 | Z8: 43 | AD8: 43
A9: 44 | B9: Paul Lee | C9: 00:21:37 | D9: 2013 | E9: 44 | F9: David Carroll | G9: 00:54:56 | H9: 2015 | I9: 44 | M9: 44 | N9: David Carroll | O9: 00:29:01 | P9: 2015 | R9: 44 | V9: 44 | Z9: 44 | AD9: 44
A10: 45 | E10: 45 | I10: 45 | M10: 45 | R10: 45 | V10: 45 | Z10: 45 | AD10: 45
A11: 46 | E11: 46 | I11: 46 | M11: 46 | R11: 46 | V11: 46 | Z11: 46 | AD11: 46
A12: 47 | B12: Dave woods | C12: 00:21:53 | D12: 2000 | E12: 47 | I12: 47 | M12: 47 | N12: John Dillon | O12: 00:29:43 | P12: 2012 | R12: 47 | V12: 47 | Z12: 47 | AD12: 47
A13: 48 | E13: 48 | I13: 48 | M13: 48 | R13: 48 | V13: 48 | Z13: 48 | AD13: 48 | AE13: Ned Costello, 1961 | AF13: 4:21.46 | AG13: 2009
A14: 49 | B14: Pat Byrne | C14: 00:22:00 | D14: 2013 | E14: 49 | I14: 49 | M14: 49 | N14: Pat Byrne | O14: 00:29:49 | P14: 2013 | R14: 49 | V14: 49 | Z14: 49 | AD14: 49
A15: 50 | E15: 50 | I15: 50 | M15: 50 | N15: John Dillon | O15: 00:30:31 | P15: 2015 | R15: 50 | V15: 50 | Z15: 50 | AD15: 50
A16: 51 | E16: 51 | I16: 51 | M16: 51 | R16: 51 | V16: 51 | Z16: 51 | AD16: 51
A17: 52 | E17: 52 | I17: 52 | M17: 52 | R17: 52 | V17: 52 | Z17: 52 | AD17: 52
A18: 53 | E18: 53 | I18: 53 | M18: 53 | R18: 53 | V18: 53 | Z18: 53 | AD18: 53
A19: 54 | E19: 54 | I19: 54 | M19: 54 | N19: Tom Malone | O19: 00:30:55 | P19: 2012 | R19: 54 | V19: 54 | Z19: 54 | AD19: 54
A20: 55 | E20: 55 | I20: 55 | M20: 55 | N20: Tom Malone | O20: 00:31:14 | P20: 2013 | R20: 55 | V20: 55 | Z20: 55 | AD20: 55
A21: 56 | E21: 56 | I21: 56 | M21: 56 | R21: 56 | V21: 56 | Z21: 56 | AD21: 56
A22: 57 | B22: Hugh Davis | C22: 00:22:13 | D22: 2004 | E22: 57 | I22: 57 | M22: 57 | R22: 57 | S22: Terry Cromer, 1952 | T22: 12.366 | U22: 2009 | V22: 57 | W22: Terry Cromer, 1952 | X22: 37.366 | Y22: 2009 | Z22: 57 | AD22: 57
A23: 58 | B23: Hugh Davis | C23: 00:22:29 | D23: 2005 | E23: 58 | F23: Hugh Davis | G23: 00:55:38 | H23: 2005 | I23: 58 | J23: Hugh Davis | K23: 01:54:01 | L23: 2005 | M23: 58 | R23: 58 | V23: 58 | Z23: 58 | AD23: 58
A24: 59 | B24: Hugh Davis | C24: 00:22:59 | D24: 2006 | E24: 59 | F24: Hugh Davis | G24: 00:57:27 | H24: 2006 | I24: 59 | J24: Hugh Davis | K24: 01:59:25 | L24: 2006 | M24: 59 | R24: 59 | S24: Hugh Davis, 1947 | T24: 13.004 | U24: 2006 | V24: 59 | Z24: 59 | AD24: 59
A25: 60 | E25: 60 | F25: Paddy Davis | G25: 00:58:27 | H25: 2003 | I25: 60 | M25: 60 | R25: 60 | V25: 60 | Z25: 60 | AD25: 60
A26: 61 | B26: Mick Manley | C26: 00:23:11 | D26: 1995 | E26: 61 | I26: 61 | M26: 61 | R26: 61 | V26: 61 | W26: Hugh Davis, 1947 | X26: 41.37 | Y26: 2008 | Z26: 61 | AD26: 61
A27: 62 | E27: 62 | F27: Sean lally | G27: 00:59:18 | H27: 2003 | I27: 62 | J27: Hugh Davis | K27: 02:00:05 | L27: 2009 | M27: 62 | R27: 62 | S27: Eddie Dunne, 1944 | T27: 13.661 | U27: 2006 | V27: 62 | W27: Hugh Davis, 1947 | X27: 41.66 | Y27: 2009 | Z27: 62 | AD27: 62
A28: 63 | E28: 63 | I28: 63 | J28: Sean Lally | K28: 02:00:14 | L28: 2004 | M28: 63 | R28: 63 | V28: 63 | W28: Paddy Davis, 1943 | X28: 42.115 | Y28: 2006 | Z28: 63 | AD28: 63
A29: 64 | B29: Paddy Davis | C29: 00:23:29 | D29: 2007 | E29: 64 | I29: 64 | J29: Hugh Davis | K29: 02:02:15 | L29: 2011 | M29: 64 | R29: 64 | V29: 64 | Z29: 64 | AD29: 64
A30: 65 | E30: 65 | I30: 65 | M30: 65 | R30: 65 | S30: Eddie Dunne, 1944 | T30: 13.85 | U30: 2009 | V30: 65 | Z30: 65 | AD30: 65
A31: 66 | B31: Hugh Davis | C31: 00:23:35 | D31: 2013 | E31: 66 | I31: 66 | J31: Sean Lally | K31: 02:03:47 | L31: 2007 | M31: 66 | N31: Hugh Davis | O31: 00:31:15 | P31: 2013 | R31: 66 | S31: Paddy Fitzsimons, 1946 | T31: 14.71 | U31: 2011 | V31: 66 | Z31: 66 | AD31: 66
A32: 67 | B32: Hugh Davis | C32: 00:23:40 | D32: 2014 | E32: 67 | F32: Hugh Davis | G32: 00:59:24 | H32: 2014 | I32: 67 | J32: Hugh Davis | K32: 02:04:51 | L32: 2014 | M32: 67 | R32: 67 | V32: 67 | W32: Phil Ormrod, 1944 | X32: 42.54. | Y32: 2011 | Z32: 67 | AD32: 67
A33: 68 | E33: 68 | F33: Hugh Davis | G33: 01:01:04 | H33: 2015 | I33: 68 | J33: Hugh Davis | K33: 02:06:40 | L33: 2015 | M33: 68 | R33: 68 | V33: 68 | Z33: 68 | AA33: Hugh Davis, 1947 | AB33: 2:56.09 | AC33: 2015 | AD33: 68
A34: 69 | B34: Fred Harte | C34: 00:24:03 | D34: 2008 | E34: 69 | F34: Fred Harte | G34: 01:02:01 | H34: 2008 | I34: 69 | J34: Dermot McGrath | K34: 02:11:52 | L34: 2008 | M34: 69 | N34: Phil Ormrod | O34: 00:32:52 | P34: 2013 | R34: 69 | V34: 69 | Z34: 69 | AD34: 69
A35: 70 | B35: Phil Ormrod | C35: 00:24:45 | D35: 2014 | E35: 70 | I35: 70 | J35: Phil Ormrod | K35: 02:12:17 | L35: 2014 | M35: 70 | N35: Phil Ormrod | O35: 00:33:14 | P35: 2014 | R35: 70 | S35: Paul O'Connell, 1945 | T35: 14.92 | U35: 2015 | V35: 70 | Z35: 70 | AD35: 70
A36: 71 | E36: 71 | I36: 71 | M36: 71 | R36: 71 | S36: Eddie Dunne, 1944 | T36: 15.14 | U36: 2015 | V36: 71 | W36: Eddie Dunne, 1944 | X36: 43.26 | Y36: 2015 | Z36: 71 | AA36: Phil Ormrod, 1944 | AB36: 3:14.92 | AC36: 2015 | AD36: 71
A37: 72 | B37: Sean Lally | C37: 00:25:12 | D37: 2013 | E37: 72 | I37: 72 | M37: 72 | R37: 72 | S37: Paddy Davis, 1943 | T37: 16.77 | U37: 2015 | V37: 72 | W37: Paddy Davis, 1943 | X37: 46.23 | Y37: 2015 | Z37: 72 | AD37: 72
A38: 73 | B38: Fred Harte | C38: 00:25:13 | D38: 2012 | E38: 73 | F38: Sean Lally | G38: 01:03:47 | H38: 2014 | I38: 73 | J38: Sean Lally | K38: 02:13:11 | L38: 2014 | M38: 73 | R38: 73 | V38: 73 | Z38: 73 | AD38: 73
A39: 74 | B39: Dermot McGrath | C39: 00:25:36 | D39: 2013 | E39: 74 | F39: Dermot McGrath | G39: 01:05:50 | H39: 2013 | I39: 74 | J39: Fred Harte | K39: 02:19:56 | L39: 2013 | M39: 74 | N39: Dermot McGrath | O39: 00:34:30 | P39: 2013 | R39: 74 | S39: Eddie Scully, 1941 | T39: 17.16 | U39: 2015 | V39: 74 | W39: Eddie Scully, 1941 | X39: 50.9 | Y39: 2015 | Z39: 74 | AA39: Eddie Scully, 1941 | AB39: 3:47.77 | AC39: 2015 | AD39: 74
A40: 75 | B40: Dermot McGrath | C40: 00:26:26 | D40: 2014 | E40: 75 | F40: Peter Schweppe | G40: 01:06:32 | H40: 2013 | I40: 75 | J40: Fred Harte | K40: 02:23:25 | L40: 2014 | M40: 75 | R40: 75 | V40: 75 | Z40: 75 | AD40: 75
A41: 76 | B41: Peter Schweppe | C41: 00:26:55 | D41: 2014 | E41: 76 | F41: Peter Schweppe | G41: 01:08:14 | H41: 2014 | I41: 76 | J41: Patsy Fitzsimons | K41: 02:34:53 | L41: 2010 | M41: 76 | R41: 76 | V41: 76 | Z41: 76 | AD41: 76
A42: 77 | B42: Patsy Fitzsimons | C42: 00:29:59 | D42: 2011 | E42: 77 | F42: Patsy Fitzsimons | G42: 01:14:14 | H42: 2011 | I42: 77 | J42: Patsy Fitzsimons | K42: 02:36:45 | L42: 2011 | M42: 77 | N42: Paddy byrne | O42: 00:40:35 | P42: 2015 | R42: 77 | V42: 77 | Z42: 77 | AD42: 77
A43: 78 | E43: 78 | F43: Patsy Fitzsimons | G43: 01:17:48 | H43: 2012 | I43: 78 | J43: Patsy Fitzsimons | K43: 02:41:53 | L43: 2012 | M43: 78 | R43: 78 | V43: 78 | Z43: 78 | AD43: 78
A44: 79 | B44: Kevin Simms | C44: 00:30:11 | D44: 2011 | E44: 79 | F44: Kevin Simms | G44: 01:18:21 | H44: 2011 | I44: 79 | M44: 79 | R44: 79 | V44: 79 | Z44: 79 | AD44: 79
A45: 80 | B45: Kevin Simms | C45: 00:31:45 | D45: 2012 | E45: 80 | I45: 80 | M45: 80 | R45: 80 | V45: 80 | Z45: 80 | AD45: 80
A46: 81 | B46: Patsy Fitzsimons | C46: 00:30:54 | D46: 2015 | E46: 81 | F46: Patsy Fitzsimons | G46: 01:19:36 | H46: 2015 | I46: 81 | J46: Patsy Fitzsimons | K46: 02:46:13 | L46: 2015 | M46: 81 | N46: Patsy Fitzsimons | O46: 00:41:49 | P46: 2015
A47: 82 | B47: Kevin simms | C47: 00:34:35 | D47: 2014 | E47: 82 | F47: Kevin simms | G47: 01:27:13 | H47: 2014 | I47: 82 | J47: Kevin simms | K47: 03:04:41 | L47: 2014 | M47: 82 | O47: 00:46:20 | P47: 2014
A48: 83 | B48: Kevin simms | C48: 00:36:13 | D48: 2015 | E48: 83 | F48: Kevin simms | G48: 01:33:01 | H48: 2015 | I48: 83 | M48: 83 | N48: Kevin simms | O48: 00:49:06 | P48: 2015
A49: 84 | E49: 84 | I49: 84 | M49: 84
A50: 85 | E50: 85 | I50: 85 | M50: 85
A52: IVCA Age Records Women | C52: As of | D52: 2015-08-09 | R52: Women | T52: Time | U52: Year | W52: 500m. T.T. | X52: Time | Y52: Year | AA52: 2000m. T.T. | AB52: Time | AC52: Year | AE52: 3000m. T.T. | AF52: Time | AG52: Year
A54: 10 Miles. | B54: Name | C54: Time | D54: Year | E54: 25 Miles. | F54: Name | G54: Time | H54: Year | I54: 50 Miles. | J54: Name | K54: Time | L54: Year
A55: Age | E55: Age | I55: Age
A56: 35 | E56: 35 | I56: 35 | R56: 35 | V56: 35 | Z56: 35 | AD56: 35
A57: 36 | E57: 36 | I57: 36 | R57: 36 | V57: 36 | Z57: 36 | AD57: 36
A58: 37 | E58: 37 | F58: Eve McCrystal | G58: 00:57:51 | H58: 2015 | I58: 37 | R58: 37 | V58: 37 | Z58: 37 | AD58: 37
A59: 38 | E59: 38 | I59: 38 | R59: 38 | V59: 38 | Z59: 38 | AD59: 38
A60: 39 | E60: 39 | I60: 39 | R60: 39 | V60: 39 | Z60: 39 | AD60: 39
A61: 40 | E61: 40 | I61: 40 | R61: 40 | V61: 40 | Z61: 40 | AD61: 40
A62: 41 | E62: 41 | I62: 41 | R62: 41 | V62: 41 | Z62: 41 | AD62: 41
A63: 42 | E63: 42 | I63: 42 | R63: 42 | V63: 42 | Z63: 42 | AD63: 42
A64: 43 | E64: 43 | I64: 43 | J64: Rose Leith | K64: 02:19:52 | L64: 2005 | R64: 43 | V64: 43 | Z64: 43 | AD64: 43
A65: 44 | B65: Orla Tansey | C65: 00:23:56 | D65: 2007 | E65: 44 | I65: 44 | J65: Rose Leith | K65: 02:27:48 | L65: 2006 | R65: 44 | V65: 44 | Z65: 44 | AD65: 44
A66: 45 | B66: Orla Tansey | C66: 00:24:22 | D66: 2008 | E66: 45 | I66: 45 | R66: 45 | V66: 45 | Z66: 45 | AD66: 45
A67: 46 | E67: 46 | I67: 46 | R67: 46 | V67: 46 | Z67: 46 | AD67: 46
A68: 47 | E68: 47 | F68: Orla Tansey | G68: 01:01:22 | H68: 2010 | I68: 47 | J68: Rose Leith | K68: 02:28:53 | L68: 2009 | R68: 47 | V68: 47 | Z68: 47 | AD68: 47
A69: 48 | B69: Orla Tansey | C69: 00:25:13 | D69: 2011 | E69: 48 | F69: Orla Tansey | G69: 01:03:36 | H69: 2011 | I69: 48 | J69: Rose Leith | K69: 02:35:58 | L69: 2010 | R69: 48 | V69: 48 | Z69: 48 | AD69: 48
A70: 49 | B70: Orla Tansey | C70: 00:25:19 | D70: 2012 | E70: 49 | I70: 49 | J70: Rose Leith | K70: 02:42:03 | L70: 2011 | R70: 49 | S70: Susie Mitchell, 1966 | T70: 13.81 | U70: 2015 | V70: 49 | W70: Susie Mitchell, 1966 | X70: 39.16 | Y70: 2015 | Z70: 49 | AA70: Susie Mitchell, 1966 | AB70: 2:46.61 | AC70: 2015 | AD70: 49
A71: 50 | B71: Orla Tansey | C71: 00:25:26 | D71: 2013 | E71: 50 | I71: 50 | R71: 50 | V71: 50 | Z71: 50 | AD71: 50
A72: 51 | E72: 51 | I72: 51 | R72: 51 | V72: 51 | Z72: 51 | AD72: 51
A73: 52 | E73: 52 | I73: 52 | R73: 52 | V73: 52 | W73: Orla Hendron, 1963 | X73: 41.88 | Y73: 2015 | Z73: 52 | AD73: 52
A74: 53 | E74: 53 | I74: 53 | R74: 53 | V74: 53 | Z74: 53 | AD74: 53
A75: 54 | E75: 54 | I75: 54 | R75: 54 | V75: 54 | Z75: 54 | AD75: 54
A76: 55 | B76: Tess Quinlan | C76: 00:28:43 | D76: 2002 | E76: 55 | I76: 55 | J76: Susan Maher | K76: 02:51:41 | L76: 2012 | R76: 55 | V76: 55 | Z76: 55 | AD76: 55
A77: 56 | E77: 56 | I77: 56 | R77: 56 | V77: 56 | Z77: 56 | AD77: 56
A78: 57 | E78: 57 | I78: 57 | R78: 57 | V78: 57 | Z78: 57 | AD78: 57
A79: 58 | E79: 58 | I79: 58 | R79: 58 | V79: 58 | Z79: 58 | AD79: 58
A80: 59 | E80: 59 | F80: Tess Quinlan | G80: 01:17:28 | H80: 2006 | I80: 59 | R80: 59 | V80: 59 | Z80: 59 | AD80: 59
A81: 60 | E81: 60 | I81: 60 | R81: 60 | V81: 60 | Z81: 60 | AD81: 60
A82: 61 | E82: 61 | I82: 61 | R82: 61 | V82: 61 | Z82: 61 | AD82: 61
A83: 62 | E83: 62 | I83: 62 | R83: 62 | V83: 62 | Z83: 62 | AD83: 62
A84: 63 | E84: 63 | I84: 63 | R84: 63 | V84: 63 | Z84: 63 | AD84: 63
A85: 64 | E85: 64 | I85: 64 | R85: 64 | V85: 64 | Z85: 64 | AD85: 64
A86: 65 | E86: 65 | F86: Tess Quinlan | G86: 01:18:06 | H86: 2012 | I86: 65 | R86: 65 | V86: 65 | Z86: 65 | AD86: 65
A87: 66 | E87: 66 | I87: 66 | R87: 66 | V87: 66 | Z87: 66 | AD87: 66
A88: 67 | E88: 67 | I88: 67 | R88: 67 | V88: 67 | Z88: 67 | AD88: 67
A89: 68 | E89: 68 | I89: 68 | R89: 68 | V89: 68 | Z89: 68 | AD89: 68
A90: 69 | E90: 69 | I90: 69 | R90: 69 | V90: 69 | Z90: 69 | AD90: 69
A91: 70 | E91: 70 | I91: 70 | R91: 70 | V91: 70 | Z91: 70 | AD91: 70
A92: 71 | E92: 71 | I92: 71 | R92: 71 | V92: 71 | Z92: 71 | AD92: 71
A93: 72 | E93: 72 | I93: 72 | R93: 72 | V93: 72 | Z93: 72 | AD93: 72
A94: 73 | E94: 73 | I94: 73 | R94: 73 | V94: 73 | Z94: 73 | AD94: 73
A95: 74 | E95: 74 | I95: 74 | R95: 74 | V95: 74 | Z95: 74 | AD95: 74
A96: 75 | E96: 75 | I96: 75 | R96: 75 | V96: 75 | Z96: 75 | AD96: 75
A97: 76 | E97: 76 | I97: 76 | R97: 76 | V97: 76 | Z97: 76 | AD97: 76
A98: 77 | E98: 77 | I98: 77 | R98: 77 | V98: 77 | Z98: 77 | AD98: 77
A99: 78 | E99: 78 | I99: 78 | R99: 78 | V99: 78 | Z99: 78 | AD99: 78
A100: 79 | E100: 79 | I100: 79 | R100: 79 | V100: 79 | Z100: 79 | AD100: 79
A101: 80 | E101: 80 | I101: 80 | R101: 80 | V101: 80 | Z101: 80 | AD101: 80
A102: 81 | E102: 81 | I102: 81
A103: 82 | E103: 82 | I103: 82
A104: 83 | E104: 83 | I104: 83
A105: 84 | E105: 84 | I105: 84
A106: 85 | E106: 85 | I106: 85

Sheet SatTTL Age Std
A1: IVCA Saturday Time Trial League
A2: 2015 | F2: Sat TT_01 | G2: Sat TT_02 | H2: Sat TT_03 | I2: Sat TT_04 | J2: Sat TT_05 | K2: Sat TT_06 | L2: Sat TT_07 | M2: Sat TT_08
A3: Age Standard Points Table | F3: =+'[1]Racing Calendar'!$C$17 -> 41043 | G3: =+'[1]Racing Calendar'!$C$24 -> 41059 | H3: =+'[1]Racing Calendar'!$C$31 -> 41107 | I3: =+'[1]Racing Calendar'!$C$38 -> 41094 | J3: =+'[1]Racing Calendar'!$C$46 -> 41115 | K3: =+'[1]Racing Calendar'!$C$53 -> 41103 | L3: =+'[1]Racing Calendar'!$C$55 -> 41141 | M3: =+'[1]Racing Calendar'!$C$57 -> 41154
F6: TT | G6: TT | H6: TT | I6: TT | J6: TT | K6: TT | L6: TT | M6: TT
F7: 10 mls | G7: 10 mls | H7: 10 mls | I7: 10 mls | J7: 10 mls | K7: 10 mls | L7: 10 mls | M7: 10 mls
F8: =+'[1]Racing Calendar'!$G$17 -> 09:00:00 | G8: =+'[1]Racing Calendar'!$G$24 -> 19:15:00 | H8: =+'[1]Racing Calendar'!$G$31 -> 09:30:00 | I8: =+'[1]Racing Calendar'!$G$38 -> 19:15:00 | J8: =+'[1]Racing Calendar'!$G$46 -> 19:15:00 | K8: =+'[1]Racing Calendar'!$G$53 -> 09:00:00 | L8: Kilcock | M8: Batterstown | N8: Total
A9: Column7 | B9: Position | C9: Surname+id | D9: First Name | E9: Age | F9: Points | G9: Column1 | H9: Column2 | I9: Column3 | J9: Column4 | K9: Column5 | L9: Column6 | M9: 7.15 pm | N9: 7.15 pm7 | O9: Points8 | P9: Points9
A10: =VLOOKUP(C10,'Sheet 1'!C$1:D$96,2,FALSE) ->  | B10: 1 | C10: =+'[1]Racing numbers file'!$B122 -> Bill Andrews | D10: =VLOOKUP(C10,'[1]Racing numbers file'!$B$4:$F$290,2,FALSE) -> 1966 | E10: =VLOOKUP(C10,'[1]Racing numbers file'!$B$4:$F$290,4,FALSE) -> 50 | F10: =+O10 -> 0 | G10: =IF(ISNA(VLOOKUP($C10,'Sat TT_01'!$C$4:$Q$152,12,FALSE)=$C10),0,VLOOKUP($C10,'Sat TT_01'!$C$4:$Q$152,12,FALSE)) -> 0 | H10: =IF(ISNA(VLOOKUP($C10,'Sat TT_02'!$C$4:$Q$152,12,FALSE)=$C10),0,VLOOKUP($C10,'Sat TT_02'!$C$4:$Q$152,12,FALSE)) -> 0 | I10: =IF(ISNA(VLOOKUP($C10,'Sat TT_03'!$C$4:$Q$152,12,FALSE)=$C10),0,VLOOKUP($C10,'Sat TT_03'!$C$4:$Q$152,12,FALSE)) -> 0 | J10: =IF(ISNA(VLOOKUP($C10,'Sat TT_04'!$C$4:$Q$152,12,FALSE)=$C10),0,VLOOKUP($C10,'Sat TT_04'!$C$4:$Q$152,12,FALSE)) -> 0 | K10: =IF(ISNA(VLOOKUP($C10,'Sat TT_05'!$C$4:$Q$152,12,FALSE)=$C10),0,VLOOKUP($C10,'Sat TT_05'!$C$4:$Q$152,12,FALSE)) -> 0 | L10: =IF(ISNA(VLOOKUP($C10,'Sat TT_06'!$C$4:$Q$152,12,FALSE)=$C10),0,VLOOKUP($C10,'Sat TT_06'!$C$4:$Q$152,12,FALSE)) -> 0 | M10: =IF(ISNA(VLOOKUP($C10,'Sat TT_07'!$C$4:$Q$152,12,FALSE)=$C10),0,VLOOKUP($C10,'Sat TT_07'!$C$4:$Q$152,12,FALSE)) -> 0 | N10: =IF(ISNA(VLOOKUP($C10,'Sat TT_08'!$C$4:$Q$152,12,FALSE)=$C10),0,VLOOKUP($C10,'Sat TT_08'!$C$4:$Q$152,12,FALSE)) -> 0 | O10: =SUM(G10:N10) -> 0
A11: =VLOOKUP(C11,'Sheet 1'!C$1:D$96,2,FALSE) ->  | B11: 2 | C11: =+'[1]Racing numbers file'!$B114 -> Sam McArdle | D11: =VLOOKUP(C11,'[1]Racing numbers file'!$B$4:$F$290,2,FALSE) -> 1964 | E11: =VLOOKUP(C11,'[1]Racing numbers file'!$B$4:$F$290,4,FALSE) -> 52 | F11: 0 | G11: =IF(ISNA(VLOOKUP($C11,'Sat TT_01'!$C$4:$Q$152,12,FALSE)=$C11),0,VLOOKUP($C11,'Sat TT_01'!$C$4:$Q$152,12,FALSE)) -> 0 | H11: =IF(ISNA(VLOOKUP($C11,'Sat TT_02'!$C$4:$Q$152,12,FALSE)=$C11),0,VLOOKUP($C11,'Sat TT_02'!$C$4:$Q$152,12,FALSE)) -> 0 | I11: =IF(ISNA(VLOOKUP($C11,'Sat TT_03'!$C$4:$Q$152,12,FALSE)=$C11),0,VLOOKUP($C11,'Sat TT_03'!$C$4:$Q$152,12,FALSE)) -> 0 | J11: =IF(ISNA(VLOOKUP($C11,'Sat TT_04'!$C$4:$Q$152,12,FALSE)=$C11),0,VLOOKUP($C11,'Sat TT_04'!$C$4:$Q$152,12,FALSE)) -> 0 | K11: =IF(ISNA(VLOOKUP($C11,'Sat TT_05'!$C$4:$Q$152,12,FALSE)=$C11),0,VLOOKUP($C11,'Sat TT_05'!$C$4:$Q$152,12,FALSE)) -> 0 | L11: =IF(ISNA(VLOOKUP($C11,'Sat TT_06'!$C$4:$Q$152,12,FALSE)=$C11),0,VLOOKUP($C11,'Sat TT_06'!$C$4:$Q$152,12,FALSE)) -> 0 | M11: =IF(ISNA(VLOOKUP($C11,'Sat TT_07'!$C$4:$Q$152,12,FALSE)=$C11),0,VLOOKUP($C11,'Sat TT_07'!$C$4:$Q$152,12,FALSE)) -> 0 | N11: =IF(ISNA(VLOOKUP($C11,'Sat TT_08'!$C$4:$Q$152,12,FALSE)=$C11),0,VLOOKUP($C11,'Sat TT_08'!$C$4:$Q$152,12,FALSE)) -> 0 | O11: 0
A12: =VLOOKUP(C12,'Sheet 1'!C$1:D$96,2,FALSE) -> 1466 | B12: 3 | C12: =+'[1]Racing numbers file'!$B237 -> Andrew Bartley | D12: =VLOOKUP(C12,'[1]Racing numbers file'!$B$4:$F$290,2,FALSE) -> 1965 | E12: =VLOOKUP(C12,'[1]Racing numbers file'!$B$4:$F$290,4,FALSE) -> 51 | F12: 0 | G12: =IF(ISNA(VLOOKUP($C12,'Sat TT_01'!$C$4:$Q$152,12,FALSE)=$C12),0,VLOOKUP($C12,'Sat TT_01'!$C$4:$Q$152,12,FALSE)) -> 0 | H12: =IF(ISNA(VLOOKUP($C12,'Sat TT_02'!$C$4:$Q$152,12,FALSE)=$C12),0,VLOOKUP($C12,'Sat TT_02'!$C$4:$Q$152,12,FALSE)) -> 0 | I12: =IF(ISNA(VLOOKUP($C12,'Sat TT_03'!$C$4:$Q$152,12,FALSE)=$C12),0,VLOOKUP($C12,'Sat TT_03'!$C$4:$Q$152,12,FALSE)) -> 0 | J12: =IF(ISNA(VLOOKUP($C12,'Sat TT_04'!$C$4:$Q$152,12,FALSE)=$C12),0,VLOOKUP($C12,'Sat TT_04'!$C$4:$Q$152,12,FALSE)) -> 0 | K12: =IF(ISNA(VLOOKUP($C12,'Sat TT_05'!$C$4:$Q$152,12,FALSE)=$C12),0,VLOOKUP($C12,'Sat TT_05'!$C$4:$Q$152,12,FALSE)) -> 0 | L12: =IF(ISNA(VLOOKUP($C12,'Sat TT_06'!$C$4:$Q$152,12,FALSE)=$C12),0,VLOOKUP($C12,'Sat TT_06'!$C$4:$Q$152,12,FALSE)) -> 0 | M12: =IF(ISNA(VLOOKUP($C12,'Sat TT_07'!$C$4:$Q$152,12,FALSE)=$C12),0,VLOOKUP($C12,'Sat TT_07'!$C$4:$Q$152,12,FALSE)) -> 0 | N12: =IF(ISNA(VLOOKUP($C12,'Sat TT_08'!$C$4:$Q$152,12,FALSE)=$C12),0,VLOOKUP($C12,'Sat TT_08'!$C$4:$Q$152,12,FALSE)) -> 0 | O12: 0
A13: =VLOOKUP(C13,'Sheet 1'!C$1:D$96,2,FALSE) -> 1466 | B13: 4 | C13: =+'[1]Racing numbers file'!$B237 -> Andrew Bartley | D13: =VLOOKUP(C13,'[1]Racing numbers file'!$B$4:$F$290,2,FALSE) -> 1965 | E13: =VLOOKUP(C13,'[1]Racing numbers file'!$B$4:$F$290,4,FALSE) -> 51 | F13: 0 | G13: =IF(ISNA(VLOOKUP($C13,'Sat TT_01'!$C$4:$Q$152,12,FALSE)=$C13),0,VLOOKUP($C13,'Sat TT_01'!$C$4:$Q$152,12,FALSE)) -> 0 | H13: =IF(ISNA(VLOOKUP($C13,'Sat TT_02'!$C$4:$Q$152,12,FALSE)=$C13),0,VLOOKUP($C13,'Sat TT_02'!$C$4:$Q$152,12,FALSE)) -> 0 | I13: =IF(ISNA(VLOOKUP($C13,'Sat TT_03'!$C$4:$Q$152,12,FALSE)=$C13),0,VLOOKUP($C13,'Sat TT_03'!$C$4:$Q$152,12,FALSE)) -> 0 | J13: =IF(ISNA(VLOOKUP($C13,'Sat TT_04'!$C$4:$Q$152,12,FALSE)=$C13),0,VLOOKUP($C13,'Sat TT_04'!$C$4:$Q$152,12,FALSE)) -> 0 | K13: =IF(ISNA(VLOOKUP($C13,'Sat TT_05'!$C$4:$Q$152,12,FALSE)=$C13),0,VLOOKUP($C13,'Sat TT_05'!$C$4:$Q$152,12,FALSE)) -> 0 | L13: =IF(ISNA(VLOOKUP($C13,'Sat TT_06'!$C$4:$Q$152,12,FALSE)=$C13),0,VLOOKUP($C13,'Sat TT_06'!$C$4:$Q$152,12,FALSE)) -> 0 | M13: =IF(ISNA(VLOOKUP($C13,'Sat TT_07'!$C$4:$Q$152,12,FALSE)=$C13),0,VLOOKUP($C13,'Sat TT_07'!$C$4:$Q$152,12,FALSE)) -> 0 | N13: =IF(ISNA(VLOOKUP($C13,'Sat TT_08'!$C$4:$Q$152,12,FALSE)=$C13),0,VLOOKUP($C13,'Sat TT_08'!$C$4:$Q$152,12,FALSE)) -> 0 | O13: 0
A14: =VLOOKUP(C14,'Sheet 1'!C$1:D$96,2,FALSE) ->  | B14: 5 | C14: =+'[1]Racing numbers file'!$B185 -> Billy Riggs | D14: =VLOOKUP(C14,'[1]Racing numbers file'!$B$4:$F$290,2,FALSE) -> 1972 | E14: =VLOOKUP(C14,'[1]Racing numbers file'!$B$4:$F$290,4,FALSE) -> 44 | F14: 0 | G14: =IF(ISNA(VLOOKUP($C14,'Sat TT_01'!$C$4:$Q$152,12,FALSE)=$C14),0,VLOOKUP($C14,'Sat TT_01'!$C$4:$Q$152,12,FALSE)) -> 0 | H14: =IF(ISNA(VLOOKUP($C14,'Sat TT_02'!$C$4:$Q$152,12,FALSE)=$C14),0,VLOOKUP($C14,'Sat TT_02'!$C$4:$Q$152,12,FALSE)) -> 0 | I14: =IF(ISNA(VLOOKUP($C14,'Sat TT_03'!$C$4:$Q$152,12,FALSE)=$C14),0,VLOOKUP($C14,'Sat TT_03'!$C$4:$Q$152,12,FALSE)) -> 0 | J14: =IF(ISNA(VLOOKUP($C14,'Sat TT_04'!$C$4:$Q$152,12,FALSE)=$C14),0,VLOOKUP($C14,'Sat TT_04'!$C$4:$Q$152,12,FALSE)) -> 0 | K14: =IF(ISNA(VLOOKUP($C14,'Sat TT_05'!$C$4:$Q$152,12,FALSE)=$C14),0,VLOOKUP($C14,'Sat TT_05'!$C$4:$Q$152,12,FALSE)) -> 0 | L14: =IF(ISNA(VLOOKUP($C14,'Sat TT_06'!$C$4:$Q$152,12,FALSE)=$C14),0,VLOOKUP($C14,'Sat TT_06'!$C$4:$Q$152,12,FALSE)) -> 0 | M14: =IF(ISNA(VLOOKUP($C14,'Sat TT_07'!$C$4:$Q$152,12,FALSE)=$C14),0,VLOOKUP($C14,'Sat TT_07'!$C$4:$Q$152,12,FALSE)) -> 0 | N14: =IF(ISNA(VLOOKUP($C14,'Sat TT_08'!$C$4:$Q$152,12,FALSE)=$C14),0,VLOOKUP($C14,'Sat TT_08'!$C$4:$Q$152,12,FALSE)) -> 0 | O14: 0
A15: =VLOOKUP(C15,'Sheet 1'!C$1:D$96,2,FALSE) ->  | B15: 6 | C15: =+'[1]Racing numbers file'!$B19 -> JJ Boylan | D15: =VLOOKUP(C15,'[1]Racing numbers file'!$B$4:$F$290,2,FALSE) -> 1944 | E15: =VLOOKUP(C15,'[1]Racing numbers file'!$B$4:$F$290,4,FALSE) -> 72 | F15: 0 | G15: =IF(ISNA(VLOOKUP($C15,'Sat TT_01'!$C$4:$Q$152,12,FALSE)=$C15),0,VLOOKUP($C15,'Sat TT_01'!$C$4:$Q$152,12,FALSE)) -> 0 | H15: =IF(ISNA(VLOOKUP($C15,'Sat TT_02'!$C$4:$Q$152,12,FALSE)=$C15),0,VLOOKUP($C15,'Sat TT_02'!$C$4:$Q$152,12,FALSE)) -> 0 | I15: =IF(ISNA(VLOOKUP($C15,'Sat TT_03'!$C$4:$Q$152,12,FALSE)=$C15),0,VLOOKUP($C15,'Sat TT_03'!$C$4:$Q$152,12,FALSE)) -> 0 | J15: =IF(ISNA(VLOOKUP($C15,'Sat TT_04'!$C$4:$Q$152,12,FALSE)=$C15),0,VLOOKUP($C15,'Sat TT_04'!$C$4:$Q$152,12,FALSE)) -> 0 | K15: =IF(ISNA(VLOOKUP($C15,'Sat TT_05'!$C$4:$Q$152,12,FALSE)=$C15),0,VLOOKUP($C15,'Sat TT_05'!$C$4:$Q$152,12,FALSE)) -> 0 | L15: =IF(ISNA(VLOOKUP($C15,'Sat TT_06'!$C$4:$Q$152,12,FALSE)=$C15),0,VLOOKUP($C15,'Sat TT_06'!$C$4:$Q$152,12,FALSE)) -> 0 | M15: =IF(ISNA(VLOOKUP($C15,'Sat TT_07'!$C$4:$Q$152,12,FALSE)=$C15),0,VLOOKUP($C15,'Sat TT_07'!$C$4:$Q$152,12,FALSE)) -> 0 | N15: =IF(ISNA(VLOOKUP($C15,'Sat TT_08'!$C$4:$Q$152,12,FALSE)=$C15),0,VLOOKUP($C15,'Sat TT_08'!$C$4:$Q$152,12,FALSE)) -> 0 | O15: 0
A16: =VLOOKUP(C16,'Sheet 1'!C$1:D$96,2,FALSE) ->  | B16: 7 | C16: =+'[1]Racing numbers file'!$B65 -> Dermot Anglin | D16: =VLOOKUP(C16,'[1]Racing numbers file'!$B$4:$F$290,2,FALSE) -> 1958 | E16: =VLOOKUP(C16,'[1]Racing numbers file'!$B$4:$F$290,4,FALSE) -> 58 | F16: 0 | G16: =IF(ISNA(VLOOKUP($C16,'Sat TT_01'!$C$4:$Q$152,12,FALSE)=$C16),0,VLOOKUP($C16,'Sat TT_01'!$C$4:$Q$152,12,FALSE)) -> 0 | H16: =IF(ISNA(VLOOKUP($C16,'Sat TT_02'!$C$4:$Q$152,12,FALSE)=$C16),0,VLOOKUP($C16,'Sat TT_02'!$C$4:$Q$152,12,FALSE)) -> 0 | I16: =IF(ISNA(VLOOKUP($C16,'Sat TT_03'!$C$4:$Q$152,12,FALSE)=$C16),0,VLOOKUP($C16,'Sat TT_03'!$C$4:$Q$152,12,FALSE)) -> 0 | J16: =IF(ISNA(VLOOKUP($C16,'Sat TT_04'!$C$4:$Q$152,12,FALSE)=$C16),0,VLOOKUP($C16,'Sat TT_04'!$C$4:$Q$152,12,FALSE)) -> 0 | K16: =IF(ISNA(VLOOKUP($C16,'Sat TT_05'!$C$4:$Q$152,12,FALSE)=$C16),0,VLOOKUP($C16,'Sat TT_05'!$C$4:$Q$152,12,FALSE)) -> 0 | L16: =IF(ISNA(VLOOKUP($C16,'Sat TT_06'!$C$4:$Q$152,12,FALSE)=$C16),0,VLOOKUP($C16,'Sat TT_06'!$C$4:$Q$152,12,FALSE)) -> 0 | M16: =IF(ISNA(VLOOKUP($C16,'Sat TT_07'!$C$4:$Q$152,12,FALSE)=$C16),0,VLOOKUP($C16,'Sat TT_07'!$C$4:$Q$152,12,FALSE)) -> 0 | N16: =IF(ISNA(VLOOKUP($C16,'Sat TT_08'!$C$4:$Q$152,12,FALSE)=$C16),0,VLOOKUP($C16,'Sat TT_08'!$C$4:$Q$152,12,FALSE)) -> 0 | O16: 0
